Workbook

Sheet Contents

Sheet Input C
B1: Scenario No. | E1: 10 | H1: =F3 -> Natural Gas Benchmark (Low) | J1: LCOE | K1: =LCOE -> 49.12250389
H2: 1 | I2: 2 | J2: 3 | K2: 4 | L2: 5 | M2: 6 | N2: 7 | O2: 8 | P2: 9 | Q2: 10 | R2: 11 | AH2: 10 | AI2: 11 | AJ2: 12 | AK2: 13 | AL2: 14 | AM2: 15 | AN2: 16 | AO2: 17 | AP2: 18 | AQ2: 19 | AR2: 20 | AS2: 21 | AT2: 22 | AU2: 23 | AV2: 24 | AW2: 25 | AX2: 26 | AY2: 27
B3: Project | F3: =INDEX(H3:BD3,$E$1) -> Natural Gas Benchmark (Low) | H3: Wind Project - Lazard Cost | I3: Wind On-shore Benchmark (Low) | J3: Wind On-shore Alternative Debt | K3: Wind On-shore SL Depreciation and Tax | L3: Wind On-shore No Taxes | M3: Wind On-shore No Low Cost of Capital | N3: Wind On-shore No Low Cost of Capital | O3: Wind On-shore No Inflation Adjustment | P3: Wind On-shore High | Q3: Natural Gas Benchmark (Low) | R3: Natural Gas Mean Price (Low) | AI3: Utility Solar Project High | AJ3: Utility Solar Project Low | AL3: Solar with Tracking | AM3: Hyrdo Project | AN3: Geothermal | AO3: NGCC Project - Current Fuel | AP3: NGCC Project Mean Reverted Price | AQ3: Nuclear Project - Lazard Cost | AR3: Nuclear Project - Lazard Cost | AS3: Nuclear Project - Lazard Cost | AT3: Solar without BESS | AU3: Solar for BESS | AV3: Solar Subtotal | AW3: BESS Project | AX3: Solar + BESS | AY3: Hydro + BESS
C5: Financial Close Date | E5: Date | F5: =INDEX(H5:AZ5,$E$1) -> 2026-01-01 | H5: 2026-01-01 | I5: 2026-01-01 | J5: 2026-01-01 | K5: 2026-01-01 | L5: 2026-01-01 | M5: 2026-01-01 | N5: 2026-01-01 | O5: 2026-01-01 | P5: 2026-01-01 | Q5: 2026-01-01 | R5: 2026-01-01 | AI5: 2026-01-01 | AJ5: 2026-01-01 | AL5: 2026-01-01 | AM5: 2026-01-01 | AN5: 2026-01-01 | AO5: 2026-01-01 | AP5: 2026-01-01 | AQ5: 2026-01-01 | AR5: 2026-01-01 | AS5: 2026-01-01 | AT5: =AI5 -> 2026-01-01 | AU5: =AT5 -> 2026-01-01 | AV5: =AU5 -> 2026-01-01 | AW5: 2026-01-01 | AX5: 2026-01-01 | AY5: 2026-01-01
C6: Construction Period | E6: Months | F6: =INDEX(H6:AZ6,$E$1) -> 18 | H6: 18 | I6: =Lazard!G36 -> 18 | J6: =Lazard!H36 -> 18 | K6: =J6 -> 18 | L6: =K6 -> 18 | M6: 18 | N6: =M6 -> 18 | O6: 18 | P6: =M6 -> 18 | Q6: =H6 -> 18 | R6: =I6 -> 18 | AI6: =Lazard!S36 -> 15 | AJ6: =Lazard!T36 -> 15 | AL6: 12 | AM6: 12 | AN6: 12 | AO6: 12 | AP6: 12 | AQ6: 12 | AR6: 12 | AS6: 12 | AT6: =AI6 -> 15 | AU6: =AT6 -> 15 | AV6: 15 | AW6: 12 | AX6: 12 | AY6: 12
C7: Capital Expenditure Include Financing | E7: Flag | F7: =INDEX(H7:AZ7,$E$1) -> TRUE | H7: TRUE | I7: TRUE | J7: TRUE | K7: TRUE | L7: TRUE | M7: TRUE | N7: TRUE | O7: TRUE | P7: TRUE | Q7: TRUE | R7: TRUE | AI7: TRUE | AJ7: TRUE | AK7: TRUE | AL7: TRUE | AM7: TRUE | AN7: TRUE | AO7: TRUE | AP7: TRUE | AQ7: TRUE | AR7: TRUE | AS7: TRUE | AT7: TRUE | AU7: TRUE | AV7: TRUE | AW7: TRUE | AX7: TRUE | AY7: TRUE
C8: Commercial Operation Date | E8: Date | F8: =INDEX(H8:AZ8,$E$1) -> 2027-07-01 | H8: =EDATE(H5,H6) -> 2027-07-01 | I8: 2027-07-01 | J8: 2027-07-01 | K8: 2027-07-01 | L8: 2027-07-01 | M8: 2027-07-01 | N8: 2027-07-01 | O8: 2027-07-01 | P8: 2027-07-01 | Q8: 2027-07-01 | R8: =EDATE(R5,R6) -> 2027-07-01 | AI8: =EDATE(AI5,AI6) -> 2027-04-01 | AJ8: =EDATE(AJ5,AJ6) -> 2027-04-01 | AL8: =EDATE(AL5,AL6) -> 2027-01-01 | AM8: 2027-01-01 | AN8: =EDATE(AN5,AN6) -> 2027-01-01 | AO8: 2027-01-01 | AP8: =EDATE(AP5,AP6) -> 2027-01-01 | AQ8: 2027-01-01 | AR8: =EDATE(AR5,AR6) -> 2027-01-01 | AS8: 2027-01-01 | AT8: 2027-04-01 | AU8: 2027-04-01 | AV8: 2027-04-01 | AW8: =EDATE(AW5,AW6) -> 2027-01-01 | AX8: 2027-01-01 | AY8: 2027-01-01
C9: Project Life | E9: Years | F9: =INDEX(H9:AZ9,$E$1) -> 30 | H9: 35 | I9: 30 | J9: 30 | K9: 30 | L9: 30 | M9: 30 | N9: 30 | O9: 30 | P9: 30 | Q9: 30 | R9: 30 | AI9: 35 | AJ9: 35 | AL9: 35 | AM9: 80 | AN9: 80 | AO9: 25 | AP9: 25 | AQ9: 70 | AR9: 70 | AS9: 70 | AT9: 35 | AU9: 35 | AV9: 35 | AW9: 15
C10: Decommissioning Date | E10: Date | F10: =INDEX(H10:AZ10,$E$1) -> 2057-07-01 | H10: =EDATE(H8,H9*Months) -> 2062-07-01 | I10: 2057-07-01 | J10: =EDATE(J8,J9*Months) -> 2057-07-01 | K10: 2057-07-01 | L10: =EDATE(L8,L9*Months) -> 2057-07-01 | M10: 2057-07-01 | N10: =EDATE(N8,N9*Months) -> 2057-07-01 | O10: 2057-07-01 | P10: =EDATE(P8,P9*Months) -> 2057-07-01 | Q10: 2057-07-01 | R10: =EDATE(R8,R9*Months) -> 2057-07-01 | AI10: =EDATE(AI8,AI9*Months) -> 2062-04-01 | AJ10: =EDATE(AJ8,AJ9*Months) -> 2062-04-01 | AL10: =EDATE(AL8,AL9*Months) -> 2062-01-01 | AM10: 2107-01-01 | AN10: =EDATE(AN8,AN9*Months) -> 2107-01-01 | AO10: 2052-01-01 | AP10: =EDATE(AP8,AP9*Months) -> 2052-01-01 | AQ10: 2097-01-01 | AR10: =EDATE(AR8,AR9*Months) -> 2097-01-01 | AS10: 2097-01-01 | AT10: 2062-04-01 | AU10: 2062-04-01 | AV10: 2062-04-01 | AW10: =EDATE(AW8,AW9*Months) -> 2042-01-01
C11: Months in Period PreCOD | E11: Months | F11: =INDEX(H11:AZ11,$E$1) -> 12 | H11: 12 | I11: 12 | J11: 12 | K11: 12 | L11: 12 | M11: 12 | N11: 12 | O11: 12 | P11: 12 | Q11: 12 | R11: 12 | AI11: 12 | AJ11: 12 | AL11: 12 | AM11: 12 | AN11: 12 | AO11: 12 | AP11: 12 | AQ11: 12 | AR11: 12 | AS11: 12 | AT11: 12 | AU11: 12 | AV11: 12 | AW11: 12
C12: Months in Period PostCOD | E12: Months | F12: =INDEX(H12:AZ12,$E$1) -> 12 | H12: 12 | I12: 12 | J12: 12 | K12: 12 | L12: 12 | M12: 12 | N12: 12 | O12: 12 | P12: 12 | Q12: 12 | R12: 12 | AI12: 12 | AJ12: 12 | AL12: 12 | AM12: 12 | AN12: 12 | AO12: 12 | AP12: 12 | AQ12: 12 | AR12: 12 | AS12: 12 | AT12: 12 | AU12: 12 | AV12: 12 | AW12: 12
B14: Operations
C15: Prodcution Capacity | E15: MW | F15: =INDEX(H15:AZ15,$E$1) -> 1225 | H15: 300 | I15: =Lazard!G28 -> 300 | J15: =Lazard!H28 -> 300 | K15: =J15 -> 300 | L15: =K15 -> 300 | M15: 300 | N15: =M15 -> 300 | O15: 300 | P15: =M15 -> 300 | Q15: =Lazard!AP28 -> 1225 | R15: =Lazard!AQ28 -> 750 | AI15: 100 | AJ15: 100 | AL15: 100 | AM15: 100 | AN15: 100 | AO15: 100 | AP15: 100 | AQ15: 100 | AR15: 100 | AS15: 100 | AT15: 100 | AU15: =(AQ17-AT17)/AT17*AT15 -> 384.2105263 | AV15: =AT15+AU15 -> 484.2105263 | AW15: 100
C16: Capacity Factor | E16: % | F16: =INDEX(H16:AZ16,$E$1) -> 0.9 | H16: =I16 -> 0.55 | I16: =Lazard!G34 -> 0.55 | J16: =I16 -> 0.55 | K16: =J16 -> 0.55 | L16: =K16 -> 0.55 | M16: =L16 -> 0.55 | N16: =M16 -> 0.55 | O16: =N16 -> 0.55 | P16: =Lazard!H34 -> 0.3 | Q16: 0.9 | R16: 0.9 | AI16: 0.19 | AJ16: 0.19 | AL16: =AI16*1.36 -> 0.2584 | AM16: 0.3 | AN16: 0.3 | AO16: 0.92 | AP16: 0.92 | AQ16: 0.92 | AR16: 0.92 | AS16: 0.92 | AT16: =AI16 -> 0.19 | AU16: =AT16 -> 0.19
C17: Hours per Day | E17: Hrs | F17: =INDEX(H17:AZ17,$E$1) -> 21.6 | H17: =H16*24 -> 13.2 | I17: 13.2 | J17: 13.2 | K17: 13.2 | L17: 13.2 | M17: 13.2 | N17: 13.2 | O17: 13.2 | P17: 7.2 | Q17: 21.6 | R17: =R16*24 -> 21.6 | AI17: =AI16*24 -> 4.56 | AJ17: =AJ16*24 -> 4.56 | AL17: 6.2016 | AM17: 7.2 | AN17: =AN16*24 -> 7.2 | AO17: 22.08 | AP17: 22.08 | AQ17: 22.08 | AR17: =AR16*24 -> 22.08 | AS17: 22.08 | AT17: 4.56 | AU17: =AU15/AT15*AU16*24 -> 17.52 | AW17: =AQ17-#REF! -> 
C18: Hours in a Year | E18: h | F18: =INDEX(H18:AZ18,$E$1) -> 8760 | H18: 8760 | I18: 8760 | J18: 8760 | K18: 8760 | L18: 8760 | M18: 8760 | N18: 8760 | O18: 8760 | P18: 8760 | Q18: 8760 | R18: 8760 | AI18: 8760 | AJ18: 8760 | AL18: 8760 | AM18: 8760 | AN18: 8760 | AO18: 8760 | AP18: 8760 | AQ18: 8760 | AR18: 8760 | AS18: 8760 | AT18: 8760 | AU18: 8760 | AW18: 8760 | AX18: 8760 | AY18: 8760
C19: Degradation | E19: % | F19: =INDEX(H19:AZ19,$E$1) -> 0 | H19: 0.01 | I19: 0 | J19: 0 | K19: 0 | L19: 0 | M19: 0 | N19: 0 | O19: 0 | P19: 0 | Q19: 0 | R19: 0 | AI19: 0.005 | AJ19: 0.005 | AL19: 0.005 | AM19: 0 | AN19: 0 | AO19: 0 | AP19: 0 | AQ19: 0 | AR19: 0 | AS19: 0 | AT19: =AI19 -> 0.005 | AU19: =AT19 -> 0.005 | AW19: 0.02
C20: Availability | E20: % | F20: =INDEX(H20:AZ20,$E$1) -> 1 | H20: 1 | I20: 1 | J20: 1 | K20: 1 | L20: 1 | M20: 1 | N20: 1 | O20: 1 | P20: 1 | Q20: 1 | R20: 1 | AI20: 1 | AJ20: 1 | AL20: 1 | AM20: 1 | AN20: 1 | AO20: 1 | AP20: 1 | AQ20: 1 | AR20: 1 | AS20: 1 | AT20: 1 | AU20: 1 | AW20: 1
C22: Round Trip Efficiency | E22: % | AU22: 0.15
C23: Minimum State of Charge | E23: % | AW23: 0.2
C24: Hours of Storage per kW | E24: Hours
C25: kWh of Storage | E25: kWh
B27: Free Cashflow Assumptions
C29: Capital Expenditure | E29: USD/kW | F29: =INDEX(H29:AZ29,$E$1) -> 1200 | H29: 1900 | I29: =Lazard!G30 -> 1900 | J29: =I29 -> 1900 | K29: 1900 | L29: 1900 | M29: 1900 | N29: 1900 | O29: 1900 | P29: =Lazard!H30 -> 2300 | Q29: =Lazard!AP30 -> 1200 | R29: =Lazard!AQ30 -> 1600 | AI29: 1580 | AJ29: 1580 | AL29: =AL34*4 -> 1784.8 | AM29: 10000 | AN29: 10000 | AO29: 4800 | AP29: 4800 | AQ29: 26000 | AR29: 26000 | AS29: 26000 | AT29: =AI29 -> 1580 | AU29: =AI29 -> 1580
C30: Panel Price | E30: USD/kWp | AL30: 88
C31: Other Cost | E31: USD/kWp | AL31: 300
C32: Total | E32: USD/kWp | AL32: =AL30+AL31 -> 388
C33: With Tracking | E33: USD/kWp | AL33: =AL32*1.15 -> 446.2
C34: Capital Expenditure | E34: USD/kW | F34: =INDEX(H34:AZ34,$E$1) -> 1200 | H34: 1900 | I34: =Lazard!G30 -> 1900 | J34: =I34 -> 1900 | K34: 1900 | L34: 1900 | M34: 1900 | N34: 1900 | O34: 1900 | P34: =Lazard!H30 -> 2300 | Q34: =Q29 -> 1200 | R34: =R29 -> 1600 | AI34: 450 | AJ34: 450 | AL34: =AL33 -> 446.2 | AM34: 2500 | AN34: 2500 | AO34: 1200 | AP34: 1200 | AQ34: 6500 | AR34: 6500 | AS34: 6500 | AT34: 6500 | AU34: 6500
F35: =INDEX(H35:AZ35,$E$1) -> 0
C36: Battery Capital Expenditure | E36: USD/kWh | AW36: 150
C38: Total Expenditure | E38: USD | F38: =INDEX(H38:AZ38,$E$1) -> 1470000000 | H38: =H29*H15*1000 -> 570000000 | I38: 570000000 | J38: 570000000 | K38: 570000000 | L38: 570000000 | M38: 570000000 | N38: 570000000 | O38: 570000000 | P38: 690000000 | Q38: 1470000000 | R38: =R29*R15*1000 -> 1200000000 | AI38: =AI29*AI15*1000 -> 158000000 | AJ38: =AJ29*AJ15*1000 -> 158000000 | AL38: =AL29*AL15*1000 -> 178480000 | AM38: 1000000000 | AN38: 1000000000 | AO38: 480000000 | AP38: 480000000 | AQ38: 2600000000 | AR38: 2600000000 | AS38: 2600000000 | AT38: =AI38 -> 158000000 | AU38: =AU29*AU15*1000 -> 607052631.6
F39: =INDEX(H39:AZ39,$E$1) -> 0
C40: Variable O&M Expense | E40: USD/MWH | F40: =INDEX(H40:AZ40,$E$1) -> 2.75 | Q40: 2.75 | R40: 2.75
C41: Fixed Operating Expenses | E41: USD/kW/y | F41: =INDEX(H41:AZ41,$E$1) -> 10 | H41: 10 | I41: 24.5 | J41: 24.5 | K41: 24.5 | L41: 24.5 | M41: 24.5 | N41: 24.5 | O41: 24.5 | P41: 40 | Q41: =Lazard!AP31 -> 10 | R41: =Lazard!AQ31 -> 25.5 | AI41: 10 | AJ41: 10 | AL41: 10 | AM41: 30 | AN41: 30 | AO41: 15 | AP41: 15 | AQ41: 200 | AR41: 200 | AS41: 200 | AT41: =AI41 -> 10 | AU41: 200
C42: Total Fixed Expenses | E42: RM | F42: =INDEX(H42:AZ42,$E$1) -> 12250000 | H42: =H41*H15*1000 -> 3000000 | I42: 7350000 | J42: 7350000 | K42: 7350000 | L42: 7350000 | M42: 7350000 | N42: 7350000 | O42: 7350000 | P42: 12000000 | Q42: 12250000 | R42: =R41*R15*1000 -> 19125000 | AI42: =AI41*AI15*1000 -> 1000000 | AJ42: 1000000 | AK42: 0 | AL42: 1000000 | AM42: 3000000 | AN42: 3000000 | AO42: 1500000 | AP42: 1500000 | AQ42: 20000000 | AR42: 20000000 | AS42: 20000000 | AT42: 1000000 | AU42: 76842105.26
C44: Heat Rate | E44: MMBTU/MWH | F44: =INDEX(H44:AZ44,$E$1) -> 6.475 | H44: 0 | I44: 0 | J44: 0 | K44: 0 | L44: 0 | M44: 0 | N44: 0 | O44: 0 | P44: 0 | Q44: =Lazard!AP33 -> 6.475 | R44: =Lazard!AQ33 -> 6.55 | AI44: 0 | AJ44: 0 | AL44: 0 | AM44: 0 | AN44: 0 | AO44: 6575 | AP44: =AO44*1.04 -> 6838 | AQ44: 10450 | AR44: 10450 | AS44: 10450 | AT44: =AI44 -> 0 | AU44: =AT44 -> 0
C45: Current Fuel Cost | E45: USD/MMBtu | F45: =INDEX(H45:AZ45,$E$1) -> 3.45 | H45: 0 | I45: 0 | J45: 0 | K45: 0 | L45: 0 | M45: 0 | N45: 0 | O45: 0 | P45: 0 | Q45: =Lazard!AP35 -> 3.45 | R45: =Lazard!AQ35 -> 3.45 | AI45: 0 | AJ45: 0 | AL45: 0 | AM45: 0 | AN45: 0 | AO45: 43.6 | AP45: 43.6 | AQ45: =0.85*4 -> 3.4 | AR45: =0.85*4 -> 3.4 | AS45: =0.85*4 -> 3.4 | AT45: =AI45 -> 0 | AU45: =AT45 -> 0
C46: Long-term Natural Gas Cost | E46: USD/MMBtu | F46: =INDEX(H46:AZ46,$E$1) -> 10 | H46: 0 | I46: 0 | J46: 0 | K46: 0 | L46: 0 | M46: 0 | N46: 0 | O46: 0 | P46: 0 | Q46: 10 | R46: 10 | AI46: 0 | AJ46: 0 | AL46: 0 | AM46: 0 | AN46: 0 | AO46: 16.5 | AP46: 16.5
C47: Conversion | E47: MMBtu/GJ | F47: =INDEX(H47:AZ47,$E$1) -> 0 | H47: 0 | I47: 0 | J47: 0 | K47: 0 | L47: 0 | M47: 0 | N47: 0 | O47: 0 | P47: 0 | Q47: 0 | R47: 0 | AI47: 0 | AJ47: 0 | AL47: 0 | AM47: 0 | AN47: 0 | AO47: 1.055 | AP47: 1.055
C48: Fuel Cost | E48: USD/MWh | F48: =INDEX(H48:AZ48,$E$1) -> 22.33875 | H48: 0 | I48: 0 | J48: 0 | K48: 0 | L48: 0 | M48: 0 | N48: 0 | O48: 0 | P48: 0 | Q48: =Q45*Q44 -> 22.33875 | R48: =R46*R44 -> 65.5 | AI48: 0 | AJ48: 0 | AL48: 0 | AM48: 0 | AN48: 0 | AO48: =AO44*AO45/1000 -> 286.67 | AP48: =AP44*#REF!/1000 ->  | AQ48: =AQ44*AQ45/1000 -> 35.53 | AR48: 35.53 | AS48: 35.53 | AT48: 0 | AU48: 0 | AV48: 0 | AW48: 0 | AX48: 0 | AY48: 0
C50: CO2 Emission | E50: Tonnes/MWh | F50: =INDEX(H50:AZ50,$E$1) -> 0.04 | Q50: 0.04 | R50: 0.04
C51: Carbon Tax | E51: USD/Ton | F51: =INDEX(H51:AZ51,$E$1) -> 0 | Q51: 0 | R51: 0
C52: Cost | E52: USD/MWh | F52: =INDEX(H52:AZ52,$E$1) -> 0 | Q52: =Q50*Q51 -> 0 | R52: =R50*R51 -> 0
C54: LCOE Input | E54: USD/MWH | H54: =Lazard!G38 -> 36.7 | I54: =Lazard!G38 -> 36.7 | J54: =I54 -> 36.7 | K54: 36.7 | L54: 36.7 | M54: 36.7 | N54: 36.7 | O54: 36.7 | P54: =Lazard!H38 -> 86 | Q54: =Lazard!AP38 -> 48 | R54: =Lazard!AQ38 -> 109
C55: LCOE | E55: USD/MWH | F55: =INDEX(H55:AZ55,$E$1) -> 0
C57: Inflate LCOE | E57: flag | F57: =INDEX(H57:AZ57,$E$1) -> FALSE | H57: FALSE | I57: FALSE | J57: FALSE | K57: FALSE | L57: FALSE | M57: FALSE | N57: FALSE | O57: TRUE | P57: FALSE | Q57: FALSE | R57: FALSE | AI57: FALSE | AJ57: FALSE | AK57: FALSE | AL57: FALSE | AM57: FALSE | AN57: FALSE | AO57: FALSE | AP57: FALSE | AQ57: FALSE | AR57: FALSE | AS57: FALSE | AT57: FALSE | AU57: FALSE | AV57: FALSE | AW57: FALSE | AX57: FALSE | AY57: FALSE
C58: Apply MACRS | E58: flag | F58: =INDEX(H58:AZ58,$E$1) -> FALSE | H58: TRUE | I58: TRUE | J58: TRUE | K58: FALSE | L58: FALSE | M58: FALSE | N58: FALSE | O58: FALSE | P58: TRUE | Q58: FALSE | R58: FALSE | AI58: TRUE | AJ58: TRUE | AK58: TRUE | AL58: TRUE | AM58: TRUE | AN58: TRUE | AO58: TRUE | AP58: TRUE | AQ58: TRUE | AR58: TRUE | AS58: TRUE | AT58: TRUE | AU58: TRUE | AV58: TRUE | AW58: TRUE | AX58: TRUE | AY58: TRUE
C60: MACRS Year | E60: Year | H60: 0 | I60: 1 | J60: 1 | K60: 1 | L60: 1 | M60: 1 | N60: 1 | O60: 1 | P60: 2 | Q60: 1 | R60: 1 | AI60: 3 | AJ60: 4 | AK60: 5 | AL60: 6 | AM60: 7
C61: MACRS Rate | E61: Rate | H61: =Lazard!G79 -> 0 | I61: =Lazard!H79 -> 0.2 | J61: =Lazard!I79 -> 0.32 | K61: =Lazard!J79 -> 0.1919298246 | L61: =Lazard!K79 -> 0.1152631579 | M61: =Lazard!L79 -> 0.1152631579 | N61: =Lazard!M79 -> 0.05754385965 | O61: =Lazard!N79 -> 0 | P61: =Lazard!I79 -> 0.32 | Q61: =Lazard!P79 -> 0 | R61: =Lazard!Q79 -> 0 | AI61: =Lazard!J79 -> 0.1919298246 | AJ61: =Lazard!K79 -> 0.1152631579 | AK61: =Lazard!L79 -> 0.1152631579 | AL61: =Lazard!M79 -> 0.05754385965 | AM61: =Lazard!N79 -> 0
C63: Tax Rate | E63: % | F63: =INDEX(H63:AZ63,$E$1) -> 0.4 | H63: 0.4 | I63: 0.4 | J63: 0.4 | K63: 0.4 | L63: 0 | M63: 0 | N63: 0 | O63: 0 | P63: 0.4 | Q63: 0.4 | R63: 0.4 | AI63: 0.4 | AJ63: 0.4 | AK63: 0.4 | AL63: 0.4 | AM63: 0.4 | AN63: 0.4 | AO63: 0.4 | AP63: 0.4 | AQ63: 0.4 | AR63: 0.4 | AS63: 0.4 | AT63: 0.4 | AU63: 0.4 | AV63: 0.4 | AW63: 0.4 | AX63: 0.4 | AY63: 0.4
B65: Project Finance Debt Input
C66: Debt Size
D67: Apply Flat Debt Service (False is Sculpt) | E67: flag | F67: =INDEX(H67:AZ67,$E$1) -> TRUE | H67: =$F$67 -> TRUE | I67: TRUE | J67: FALSE | K67: FALSE | L67: FALSE | M67: FALSE | N67: FALSE | O67: FALSE | P67: =$F$67 -> TRUE | Q67: TRUE | R67: TRUE | AI67: TRUE | AJ67: TRUE | AK67: TRUE | AL67: TRUE | AM67: TRUE | AN67: TRUE | AO67: TRUE | AP67: TRUE | AQ67: TRUE | AR67: TRUE | AS67: TRUE | AT67: TRUE | AU67: TRUE | AV67: TRUE | AW67: TRUE | AX67: TRUE | AY67: TRUE
D68: Debt to Capital | E68: % | F68: =INDEX(H68:AZ68,$E$1) -> 0.6 | H68: 0.8373682116 | I68: 0.6 | J68: =I68 -> 0.6 | K68: =J68 -> 0.6 | L68: =K68 -> 0.6 | M68: 0.8 | N68: 0.8 | O68: 0.8 | P68: 0.8373682116 | Q68: 0.6 | R68: 0.6 | AI68: 0.7383448545 | AJ68: 0.7383448545 | AL68: 0.7387548904 | AM68: 0.4329416804 | AN68: 0.4329416804 | AO68: 0.7152755247 | AP68: 0.8 | AQ68: 0.7967023239 | AR68: 0.7967023239 | AS68: 0.7967023239 | AT68: =AI68 -> 0.7383448545 | AU68: =AL68 -> 0.7387548904 | AV68: 0.4329416804 | AW68: =AO68 -> 0.7152755247 | AX68: 0.8 | AY68: 0.7967023239
D69: Debt Tenure | E69: Years | F69: =F9 -> 30 | H69: =H9 -> 35 | I69: 30 | J69: 30 | K69: 30 | L69: 30 | M69: 30 | N69: 30 | O69: 30 | P69: 30 | Q69: 30 | R69: =R9 -> 30 | AI69: =AI9 -> 35 | AJ69: =AJ9 -> 35 | AL69: =AL9 -> 35 | AM69: 25 | AN69: 25 | AO69: =AO9 -> 25 | AP69: =AP9 -> 25 | AQ69: =AQ9 -> 70 | AR69: =AR9 -> 70 | AS69: =AS9 -> 70 | AT69: =AI69 -> 35 | AU69: 35 | AV69: 25 | AW69: 25 | AX69: 25 | AY69: 70
D70: Start of Repayment | E70: Date | F70: =INDEX(H70:XFD70,$E$1) -> 2027-07-01 | H70: =H8 -> 2027-07-01 | I70: 2027-07-01 | J70: 2027-07-01 | K70: 2027-07-01 | L70: 2027-07-01 | M70: 2027-07-01 | N70: 2027-07-01 | O70: 2027-07-01 | P70: 2027-07-01 | Q70: 2027-07-01 | R70: =R8 -> 2027-07-01 | AI70: =AI8 -> 2027-04-01 | AJ70: =AJ8 -> 2027-04-01 | AL70: =AL8 -> 2027-01-01 | AM70: 2027-01-01 | AN70: 2027-01-01 | AO70: 2027-01-01 | AP70: 2027-01-01 | AQ70: 2027-01-01 | AR70: 2027-01-01 | AS70: 2027-01-01 | AT70: 2027-04-01 | AU70: 2027-01-01 | AV70: 2027-01-01 | AW70: 2027-01-01 | AX70: 2027-01-01 | AY70: 2027-01-01
D71: End of Repayment | E71: Date | F71: =INDEX(H71:XFD71,$E$1) -> 2057-07-01 | H71: =EDATE(H70,H69*Months) -> 2062-07-01 | I71: 2057-07-01 | J71: =EDATE(J70,J69*Months) -> 2057-07-01 | K71: 2057-07-01 | L71: =EDATE(L70,L69*Months) -> 2057-07-01 | M71: 2057-07-01 | N71: =EDATE(N70,N69*Months) -> 2057-07-01 | O71: 2057-07-01 | P71: =EDATE(P70,P69*Months) -> 2057-07-01 | Q71: 2057-07-01 | R71: =EDATE(R70,R69*Months) -> 2057-07-01 | AI71: =EDATE(AI70,AI69*Months) -> 2062-04-01 | AJ71: =EDATE(AJ70,AJ69*Months) -> 2062-04-01 | AL71: =EDATE(AL70,AL69*Months) -> 2062-01-01 | AM71: 2052-01-01 | AN71: =EDATE(AN70,AN69*Months) -> 2052-01-01 | AO71: 2052-01-01 | AP71: =EDATE(AP70,AP69*Months) -> 2052-01-01 | AQ71: =EDATE(AQ70,AQ69*Months) -> 2097-01-01 | AR71: 2097-01-01 | AS71: =EDATE(AS70,AS69*Months) -> 2097-01-01 | AT71: 2062-04-01 | AU71: 2062-01-01 | AV71: 2052-01-01 | AW71: 2052-01-01 | AX71: 2052-01-01 | AY71: 2097-01-01
D72: Interest Rate | E72: % | F72: =INDEX(H72:AZ72,$E$1) -> 0.08 | H72: =F72 -> 0.08 | I72: 0.08 | J72: 0.08 | K72: 0.08 | L72: 0.08 | M72: 0.0525 | N72: 0.0525 | O72: 0.0525 | P72: =H72 -> 0.08 | Q72: 0.08 | R72: 0.08 | AI72: =I72 -> 0.08 | AJ72: =P72 -> 0.08 | AK72: =AI72 -> 0.08 | AL72: 0.08 | AM72: 0.08 | AN72: 0.08 | AO72: 0.08 | AP72: 0.08 | AQ72: 0.08 | AR72: 0.08 | AS72: 0.08 | AT72: 0.08 | AU72: 0.08 | AV72: 0.08 | AW72: 0.08 | AX72: 0.08 | AY72: 0.08
D73: Target DSCR for Debt Size | E73: x | F73: 1.2 | H73: =$F$73 -> 1.2 | I73: 1.2 | J73: 1.2 | K73: 1.2 | L73: 1.2 | M73: 1.2 | N73: 1.2 | O73: 1.2 | P73: 1.2 | Q73: 1.2 | R73: 1.2 | AI73: =$F$73 -> 1.2 | AJ73: 1.2 | AL73: 1.2 | AM73: 1.2 | AN73: 1.2 | AO73: 1.2 | AP73: 1.2 | AQ73: 1.2 | AR73: 1.2 | AS73: 1.2 | AT73: 1.2 | AU73: =AL73 -> 1.2 | AV73: =AM73 -> 1.2 | AW73: =AO73 -> 1.2 | AX73: 1.2 | AY73: 1.2
D74: Turn on Debt | E74: Flag | F74: =INDEX(H74:AQ74,Scenario) -> TRUE | H74: TRUE | I74: TRUE | J74: TRUE | K74: TRUE | L74: TRUE | M74: TRUE | N74: TRUE | O74: TRUE | P74: TRUE | Q74: TRUE | R74: TRUE | AI74: TRUE | AJ74: TRUE | AL74: TRUE | AM74: TRUE | AN74: TRUE | AO74: TRUE | AP74: TRUE | AQ74: TRUE | AR74: TRUE | AS74: TRUE | AT74: TRUE | AU74: =AL74 -> TRUE | AV74: =AM74 -> TRUE | AW74: TRUE | AX74: TRUE | AY74: TRUE
D75: Sculpt Debt | E75: Flag | F75: =INDEX(H75:AQ75,Scenario) -> FALSE | H75: =NOT(H67) -> FALSE | I75: =NOT(I67) -> FALSE | J75: TRUE | K75: =NOT(K67) -> TRUE | L75: TRUE | M75: =NOT(M67) -> TRUE | N75: TRUE | O75: =NOT(O67) -> TRUE | P75: FALSE | Q75: =NOT(Q67) -> FALSE | R75: FALSE | AI75: FALSE | AJ75: FALSE | AK75: FALSE | AL75: FALSE | AM75: FALSE | AN75: FALSE | AO75: FALSE | AP75: FALSE | AQ75: FALSE | AR75: FALSE | AS75: FALSE | AT75: FALSE | AU75: FALSE | AV75: FALSE | AW75: FALSE | AX75: FALSE | AY75: FALSE
D77: Target Project IRR | E77: % | F77: =G77/100 -> 0.096 | G77: =Lazard!G46*100 -> 9.6 | H77: =$F$77 -> 0.096 | I77: =$F$77 -> 0.096 | J77: =$F$77 -> 0.096 | K77: =$F$77 -> 0.096 | L77: =$F$77 -> 0.096 | M77: 0.06 | N77: 0.06 | O77: 0.06 | P77: =$F$77 -> 0.096 | Q77: =$F$77 -> 0.096 | R77: =$F$77 -> 0.096 | AI77: =$F$77 -> 0.096 | AJ77: 0.096 | AL77: 0.096 | AM77: 0.096 | AN77: 0.096 | AO77: 0.096 | AP77: 0.096 | AQ77: 0.096 | AR77: 0.096 | AS77: 0.096 | AT77: 0.096 | AU77: =AL77 -> 0.096 | AV77: =AM77 -> 0.096 | AW77: =AO77 -> 0.096 | AX77: =AP77 -> 0.096 | AY77: =AQ77 -> 0.096
D78: Target Equity IRR | F78: =G78/100 -> 0.12 | G78: =Lazard!G43*100 -> 12 | H78: =$F$78 -> 0.12 | I78: =$F$78 -> 0.12 | J78: =$F$78 -> 0.12 | K78: =$F$78 -> 0.12 | L78: =$F$78 -> 0.12 | M78: 0.06 | N78: 0.06 | O78: 0.06 | P78: =$F$78 -> 0.12 | Q78: =$F$78 -> 0.12 | R78: =$F$78 -> 0.12 | AI78: =$F$78 -> 0.12 | AJ78: 0.12 | AL78: 0.12 | AM78: 0.12 | AN78: 0.12 | AO78: 0.12 | AP78: 0.12 | AQ78: 0.12 | AR78: 0.12 | AS78: 0.12 | AT78: 0.12 | AU78: 0.12 | AV78: 0.12 | AW78: 0.12 | AX78: 0.12 | AY78: 0.12
D79: Inflation Rate | E79: % | F79: =G79/100 -> 0.0225 | G79: 2.25 | H79: =$F$79 -> 0.0225 | I79: 0.0225 | J79: 0.0225 | K79: 0.0225 | L79: 0.0225 | M79: 0.0225 | N79: 0.0225 | O79: 0.0225 | P79: 0.0225 | Q79: 0.0225 | R79: 0.0225 | AI79: =$F$79 -> 0.0225 | AJ79: 0.0225 | AL79: 0.0225 | AM79: 0.0225 | AN79: 0.0225 | AO79: 0.0225 | AP79: 0.0225 | AQ79: 0.0225 | AR79: 0.0225 | AS79: 0.0225 | AT79: 0.0225 | AU79: 0.0225 | AV79: 0.0225 | AW79: 0.0225 | AX79: 0.0225 | AY79: 0.0225
D81: Required IRR at FC | E81: 0 | F81: 0.07
D82: Required IRR at COD | E82: 1 | F82: 0.066
D83: Required IRR at COD + 2 | E83: 3 | F83: 0.05
D85: Purchase Date | E85: 2
D87: Required CAPEX at Purchase | F87: =F38*0.1 -> 147000000
D89: Months in Year | F89: 12 | G89: Months
C91: Method 3
D92: Capacity | E92: MW | F92: =F15 -> 1225 | H92: =H15 -> 300 | I92: 300 | J92: 300 | K92: 300 | L92: 300 | M92: 300 | N92: 300 | O92: 300 | P92: 300 | Q92: 1225 | R92: =R15 -> 750 | AI92: =AI15 -> 100 | AJ92: =AJ15 -> 100 | AL92: =AL15 -> 100 | AM92: 100 | AN92: 100 | AO92: 100 | AP92: 100 | AQ92: 100 | AR92: 100 | AS92: 100 | AT92: 100 | AU92: 384.2105263 | AV92: 484.2105263 | AW92: 100 | AX92: 0
D93: Capacity Facor | E93: % | F93: =F16 -> 0.9 | H93: =H16 -> 0.55 | I93: 0.55 | J93: 0.55 | K93: 0.55 | L93: 0.55 | M93: 0.55 | N93: 0.55 | O93: 0.55 | P93: 0.3 | Q93: 0.9 | R93: =R16 -> 0.9 | AI93: =AI16 -> 0.19 | AJ93: =AJ16 -> 0.19 | AL93: =AL16 -> 0.2584 | AM93: 0.3 | AN93: 0.3 | AO93: 0.92 | AP93: 0.92 | AQ93: 0.92 | AR93: 0.92 | AS93: 0.92 | AT93: 0.19 | AU93: 0.19 | AV93: 0 | AW93: 0
D94: Availability | E94: % | F94: =F20 -> 1 | H94: =H20 -> 1 | I94: 1 | J94: 1 | K94: 1 | L94: 1 | M94: 1 | N94: 1 | O94: 1 | P94: 1 | Q94: 1 | R94: =R20 -> 1 | AI94: =AI20 -> 1 | AJ94: =AJ20 -> 1 | AL94: =AL20 -> 1 | AM94: 1 | AN94: 1 | AO94: 1 | AP94: 1 | AQ94: 1 | AR94: 1 | AS94: 1 | AT94: 1 | AU94: 1 | AV94: 0 | AW94: 1
D95: Generation without Degradation | E95: MWH | F95: =F92*8760*F93*F94 -> 9657900 | H95: =H92*8760*H93*H94 -> 1445400 | I95: 1445400 | J95: =J92*8760*J93*J94 -> 1445400 | K95: 1445400 | L95: =L92*8760*L93*L94 -> 1445400 | M95: 1445400 | N95: =N92*8760*N93*N94 -> 1445400 | O95: 1445400 | P95: =P92*8760*P93*P94 -> 788400 | Q95: 9657900 | R95: =R92*8760*R93*R94 -> 5913000 | AI95: =AI92*8760*AI93*AI94 -> 166440 | AJ95: =AJ92*8760*AJ93*AJ94 -> 166440 | AL95: 226358.4 | AM95: 262800 | AN95: =AN92*8760*AN93*AN94 -> 262800 | AO95: 805920 | AP95: 805920 | AQ95: 805920 | AR95: =AR92*8760*AR93*AR94 -> 805920 | AS95: 805920 | AT95: 166440 | AU95: 639480 | AV95: 0 | AW95: 0
D97: Discount Rate Nominal | E97: % | F97: ='Financial Model'!$F$183 -> 0.109202646 | H97: ='Financial Model'!$F$183 -> 0.109202646 | I97: ='Financial Model'!$F$183 -> 0.109202646 | J97: ='Financial Model'!$F$183 -> 0.109202646 | K97: ='Financial Model'!$F$183 -> 0.109202646 | L97: ='Financial Model'!$F$183 -> 0.109202646 | M97: ='Financial Model'!$F$183 -> 0.109202646 | N97: ='Financial Model'!$F$183 -> 0.109202646 | O97: ='Financial Model'!$F$183 -> 0.109202646 | P97: ='Financial Model'!$F$183 -> 0.109202646 | Q97: ='Financial Model'!$F$183 -> 0.109202646 | R97: ='Financial Model'!$F$183 -> 0.109202646 | AI97: ='Financial Model'!$F$183 -> 0.109202646 | AJ97: ='Financial Model'!$F$183 -> 0.109202646 | AL97: ='Financial Model'!$F$183 -> 0.109202646 | AM97: ='Financial Model'!$F$183 -> 0.109202646 | AN97: ='Financial Model'!$F$183 -> 0.109202646 | AO97: ='Financial Model'!$F$183 -> 0.109202646 | AP97: ='Financial Model'!$F$183 -> 0.109202646 | AQ97: ='Financial Model'!$F$183 -> 0.109202646 | AR97: ='Financial Model'!$F$183 -> 0.109202646 | AS97: ='Financial Model'!$F$183 -> 0.109202646 | AT97: ='Financial Model'!$F$183 -> 0.109202646 | AU97: ='Financial Model'!$F$183 -> 0.109202646 | AV97: ='Financial Model'!$F$183 -> 0.109202646 | AW97: ='Financial Model'!$F$183 -> 0.109202646
D98: Inflation Rate | E98: % | F98: =F79 -> 0.0225 | H98: =H79 -> 0.0225 | I98: 0.0225 | J98: =J79 -> 0.0225 | K98: 0.0225 | L98: =L79 -> 0.0225 | M98: 0.0225 | N98: =N79 -> 0.0225 | O98: 0.0225 | P98: =P79 -> 0.0225 | Q98: 0.0225 | R98: =R79 -> 0.0225 | AI98: =AI79 -> 0.0225 | AJ98: =AJ79 -> 0.0225 | AL98: 0.0225 | AM98: 0.0225 | AN98: =AN79 -> 0.0225 | AO98: 0.0225 | AP98: 0.0225 | AQ98: 0.0225 | AR98: =AR79 -> 0.0225 | AS98: 0.0225 | AT98: 0.0225 | AU98: 0.0225 | AV98: 0.0225 | AW98: 0.0225
D99: Discount Rate Real | E99: % | F99: =(1+F97)/(1+F98)-1 -> 0.08479476377 | H99: =(1+H97)/(1+H98)-1 -> 0.08479476377 | I99: 0.08479476377 | J99: =(1+J97)/(1+J98)-1 -> 0.08479476377 | K99: 0.08479476377 | L99: =(1+L97)/(1+L98)-1 -> 0.08479476377 | M99: 0.08479476377 | N99: =(1+N97)/(1+N98)-1 -> 0.08479476377 | O99: 0.08479476377 | P99: =(1+P97)/(1+P98)-1 -> 0.08479476377 | Q99: 0.08479476377 | R99: =(1+R97)/(1+R98)-1 -> 0.08479476377 | AI99: =(1+AI97)/(1+AI98)-1 -> 0.08479476377 | AJ99: =(1+AJ97)/(1+AJ98)-1 -> 0.08479476377 | AL99: 0.08479476377 | AM99: 0.08479476377 | AN99: =(1+AN97)/(1+AN98)-1 -> 0.08479476377 | AO99: 0.08479476377 | AP99: 0.08479476377 | AQ99: 0.08479476377 | AR99: =(1+AR97)/(1+AR98)-1 -> 0.08479476377 | AS99: 0.08479476377 | AT99: 0.08479476377 | AU99: 0.08479476377 | AV99: 0.08479476377 | AW99: 0.08479476377
D100: Degradation | E100: % | F100: =F19 -> 0 | H100: =H19 -> 0.01 | I100: 0 | J100: 0 | K100: 0 | L100: 0 | M100: 0 | N100: 0 | O100: 0 | P100: 0 | Q100: 0 | R100: =R19 -> 0 | AI100: =AI19 -> 0.005 | AJ100: =AJ19 -> 0.005 | AL100: =AL19 -> 0.005 | AM100: 0 | AN100: 0 | AO100: 0 | AP100: 0 | AQ100: 0 | AR100: 0 | AS100: 0 | AT100: 0.005 | AU100: 0.005 | AV100: 0 | AW100: 0.02
D101: Adjusted for Degradation | E101: % | F101: =(1+F99)/(1-F100)-1 -> 0.08479476377 | H101: =(1+H99)/(1-H100)-1 -> 0.09575228664 | I101: 0.08479476377 | J101: =(1+J99)/(1-J100)-1 -> 0.08479476377 | K101: 0.08479476377 | L101: =(1+L99)/(1-L100)-1 -> 0.08479476377 | M101: 0.08479476377 | N101: =(1+N99)/(1-N100)-1 -> 0.08479476377 | O101: 0.08479476377 | P101: =(1+P99)/(1-P100)-1 -> 0.08479476377 | Q101: 0.08479476377 | R101: =(1+R99)/(1-R100)-1 -> 0.08479476377 | AI101: =(1+AI99)/(1-AI100)-1 -> 0.09024599374 | AJ101: =(1+AJ99)/(1-AJ100)-1 -> 0.09024599374 | AL101: 0.09024599374 | AM101: 0.08479476377 | AN101: =(1+AN99)/(1-AN100)-1 -> 0.08479476377 | AO101: 0.08479476377 | AP101: 0.08479476377 | AQ101: 0.08479476377 | AR101: =(1+AR99)/(1-AR100)-1 -> 0.08479476377 | AS101: 0.08479476377 | AT101: 0.09024599374 | AU101: 0.09024599374 | AV101: 0.08479476377 | AW101: 0.1069334324
D102: O&M Adjustment | E102: Factor | F102: =PV(F99,F9,1)/PV(F101,F9,1) -> 1 | H102: =PV(H99,H9,1)/PV(H101,H9,1) -> 1.109004025 | I102: 1 | J102: 1 | K102: 1 | L102: 1 | M102: 1 | N102: 1 | O102: 1 | P102: 1 | Q102: 1 | R102: =PV(R99,R9,1)/PV(R101,R9,1) -> 1 | AI102: =PV(AI99,AI9,1)/PV(AI101,AI9,1) -> 1.053861346 | AJ102: =PV(AJ99,AJ9,1)/PV(AJ101,AJ9,1) -> 1.053861346 | AL102: =PV(AL99,AL9,1)/PV(AL101,AL9,1) -> 1.053861346 | AM102: 1 | AN102: 1 | AO102: 1 | AP102: 1 | AQ102: 1 | AR102: 1 | AS102: 1 | AT102: 1.053861346 | AU102: 1.053861346 | AV102: 1 | AW102: 1.136747531
D104: Level Capital Recovery | E104: RM/year | F104: =PMT(F101,F9,-F38) -> 136527668.9 | H104: =PMT(H101,H9,-H38) -> 56897031.18 | I104: 52939300.18 | J104: 52939300.18 | K104: 52939300.18 | L104: 52939300.18 | M104: 52939300.18 | N104: 52939300.18 | O104: 52939300.18 | P104: 64084416.01 | Q104: 136527668.9 | R104: =PMT(R101,R9,-R38) -> 111451158.3 | AI104: =PMT(AI101,AI9,-AI38) -> 14987258.24 | AJ104: =PMT(AJ101,AJ9,-AJ38) -> 14987258.24 | AL104: =PMT(AL101,AL9,-AL38) -> 16929910.45 | AM104: 84921007.19 | AN104: 84921007.19 | AO104: 46821555.85 | AP104: 46821555.85 | AQ104: 221208500.8 | AR104: 221208500.8 | AS104: 221208500.8 | AT104: 14987258.24 | AU104: 57582623.78 | AV104: 0 | AW104: 0
D105: O&M Recovery | E105: RM/year | F105: =F42*F102 -> 12250000 | H105: =H42*H102 -> 3327012.074 | I105: 7350000 | J105: 7350000 | K105: 7350000 | L105: 7350000 | M105: 7350000 | N105: 7350000 | O105: 7350000 | P105: 12000000 | Q105: 12250000 | R105: =R42*R102 -> 19125000 | AI105: =AI42*AI102 -> 1053861.346 | AJ105: =AJ42*AJ102 -> 1053861.346 | AL105: =AL42*AL102 -> 1053861.346 | AM105: 3000000 | AN105: 3000000 | AO105: 1500000 | AP105: 1500000 | AQ105: 20000000 | AR105: 20000000 | AS105: 20000000 | AT105: 1053861.346 | AU105: 80980924.49 | AV105: 0 | AW105: 0
D106: Fuel Recovery | E106: RM/year | F106: =F48*F108 -> 215745413.6 | H106: =H48*H108 -> 0 | I106: 0 | J106: =J48*J108 -> 0 | K106: 0 | L106: =L48*L108 -> 0 | M106: 0 | N106: =N48*N108 -> 0 | O106: 0 | P106: =P48*P108 -> 0 | Q106: 215745413.6 | R106: =R48*R108 -> 387301500 | AI106: =AI48*AI108 -> 0 | AJ106: =AJ48*AJ108 -> 0 | AL106: 0 | AM106: 0 | AN106: =AN48*AN108 -> 0 | AO106: 231033086.4 | AQ106: 28634337.6 | AR106: =AR48*AR108 -> 28634337.6 | AS106: 28634337.6 | AT106: 0 | AU106: 0 | AV106: 0 | AW106: 0
D107: Total Recovery | E107: RM/year | F107: =SUM(F104:F106) -> 364523082.5 | H107: =SUM(H104:H106) -> 60224043.26 | I107: 60289300.18 | J107: =SUM(J104:J106) -> 60289300.18 | K107: 60289300.18 | L107: =SUM(L104:L106) -> 60289300.18 | M107: 60289300.18 | N107: =SUM(N104:N106) -> 60289300.18 | O107: 60289300.18 | P107: =SUM(P104:P106) -> 76084416.01 | Q107: 364523082.5 | R107: =SUM(R104:R106) -> 517877658.3 | AI107: =SUM(AI104:AI106) -> 16041119.59 | AJ107: =SUM(AJ104:AJ106) -> 16041119.59 | AL107: 17983771.8 | AM107: 87921007.19 | AN107: =SUM(AN104:AN106) -> 87921007.19 | AO107: 279354642.2 | AQ107: 269842838.4 | AR107: =SUM(AR104:AR106) -> 269842838.4 | AS107: 269842838.4 | AT107: 16041119.59 | AU107: 138563548.3 | AV107: 0 | AW107: 0
D108: Production | E108: MWh/year | F108: =F95 -> 9657900 | H108: =H95 -> 1445400 | I108: 1445400 | J108: =J95 -> 1445400 | K108: 1445400 | L108: =L95 -> 1445400 | M108: 1445400 | N108: =N95 -> 1445400 | O108: 1445400 | P108: =P95 -> 788400 | Q108: 9657900 | R108: =R95 -> 5913000 | AI108: =AI95 -> 166440 | AJ108: =AJ95 -> 166440 | AL108: 226358.4 | AM108: 262800 | AN108: =AN95 -> 262800 | AO108: 805920 | AP108: 805920 | AQ108: 805920 | AR108: =AR95 -> 805920 | AS108: 805920 | AT108: 166440 | AU108: 639480 | AV108: =AT108+AU108 -> 805920 | AW108: =AW95 -> 0 | AX108: =AX95 -> 0
D109: LCOE =Total Recovery / Production | E109: RM/MWh | F109: =F107/F108 -> 37.74351386 | H109: =H107/H108 -> 41.66600474 | I109: 41.71115275 | J109: =J107/J108 -> 41.71115275 | K109: 41.71115275 | L109: =L107/L108 -> 41.71115275 | M109: 41.71115275 | N109: =N107/N108 -> 41.71115275 | O109: 41.71115275 | P109: =P107/P108 -> 96.5048402 | Q109: 37.74351386 | R109: =R107/R108 -> 87.58289503 | AI109: =AI107/AI108 -> 96.37779133 | AJ109: =AJ107/AJ108 -> 96.37779133 | AL109: 79.44821927 | AM109: 334.5548219 | AN109: =AN107/AN108 -> 334.5548219 | AO109: 346.6282537 | AQ109: 334.8258368 | AR109: =AR107/AR108 -> 334.8258368 | AS109: 334.8258368 | AT109: 96.37779133 | AU109: 216.681598
D113: =TRANSPOSE(H3:AY3) -> Wind Project - Lazard Cost
D114: Wind On-shore Benchmark (Low)
D115: Wind On-shore Alternative Debt
D116: Wind On-shore SL Depreciation and Tax
D117: Wind On-shore No Taxes
D118: Wind On-shore No Low Cost of Capital
D119: Wind On-shore No Low Cost of Capital
D120: Wind On-shore No Inflation Adjustment
D121: Wind On-shore High
D122: Natural Gas Benchmark (Low)
D123: Natural Gas Mean Price (Low)
D124: 0
D125: 0
D126: 0
D127: 0
D128: 0
D129: 0 | F129: 5
D130: 0
D131: 0
D132: 0
D133: 0
D134: 0
D135: 0
D136: 0
D137: 0
D138: 0
D139: 0
D140: Utility Solar Project High
D141: Utility Solar Project Low
D142: 0
D143: Solar with Tracking
D144: Hyrdo Project
D145: Geothermal
D146: NGCC Project - Current Fuel
D147: NGCC Project Mean Reverted Price
D148: Nuclear Project - Lazard Cost
D149: Nuclear Project - Lazard Cost
D150: Nuclear Project - Lazard Cost
D151: Solar without BESS
D152: Solar for BESS
D153: Solar Subtotal
D154: BESS Project
D155: Solar + BESS
D156: Hydro + BESS

Sheet Lazard
E26: Geothermal | F26: Geothermal | G26: On-Shore | H26: On-Shore | I26: Off-Shore | J26: Off-Shore | S26: Utility Solar
G27: Wind | H27: Wind | I27: Wind | J27: Wind | S27: Low | T27: High | AL27: Nuclear | AN27: Coal | AP27: NGCC
C28: Capacity | D28: MW | E28: 250 | F28: 250 | G28: 300 | H28: 300 | I28: 900 | J28: 900 | AL28: 2200 | AM28: 2200 | AN28: 600 | AO28: 600 | AP28: 1225 | AQ28: 750
S29: 1150 | T29: 1600
C30: Cost/kW | D30: USD/kW | E30: 5000 | F30: 6450 | G30: 1900 | H30: 2300 | I30: 3450 | J30: 6550 | AL30: 9020 | AM30: 14820 | AN30: 3450 | AO30: 7210 | AP30: 1200 | AQ30: 1600
C31: Fixed O&M | D31: USD/Kwy | E31: 14.5 | F31: 14.5 | G31: 24.5 | H31: 40 | I31: 60 | J31: 91.5 | S31: 11 | T31: 14 | AL31: 136 | AM31: 158 | AN31: 40.85 | AO31: 94.35 | AP31: 10 | AQ31: 25.5
C32: Variable O&M | D32: USD/MWH | E32: 9.05 | F32: 24.8 | G32: 0 | H32: 0 | I32: 0 | J32: 0 | S32: 0 | T32: 0 | AL32: 4.4 | AM32: 5.15 | AN32: 3.1 | AO32: 5.7 | AP32: 2.75 | AQ32: 5
C33: Heat Rate | D33: MMBTU/MWH | G33: 0 | H33: 0 | I33: 0 | J33: 0 | AL33: 10.45 | AM33: 10.45 | AN33: 8.75 | AO33: 12 | AP33: 6.475 | AQ33: 6.55
C34: Capacity Factor | D34: % | E34: 0.9 | F34: 0.8 | G34: 0.55 | H34: 0.3 | I34: 0.55 | J34: 0.45 | S34: 0.3 | T34: 0.2 | AL34: 0.92 | AM34: 0.89 | AN34: 0.85 | AO34: 0.65 | AP34: 0.9 | AQ34: 0.3
C35: Fuel Price | D35: USD/MMBTU | AL35: 0.85 | AM35: 0.85 | AN35: 1.47 | AO35: 1.47 | AP35: 3.45 | AQ35: 3.45
C36: Construction | D36: Months | E36: 36 | F36: 36 | G36: 18 | H36: 18 | I36: 24 | J36: 24 | S36: 15 | T36: 15 | AL36: 84 | AM36: 84 | AN36: 60 | AO36: 66 | AP36: 24 | AQ36: 24
C37: Facility Life | D37: Years | E37: 25 | F37: 25 | G37: 30 | H37: 30 | I37: 30 | J37: 30 | S37: 35 | T37: 35 | AL37: 70 | AM37: 70 | AN37: 40 | AO37: 40 | AP37: 30 | AQ37: 30
C38: Levelized Cost | E38: 66 | F38: 109 | G38: 36.7 | H38: 86 | I38: 70 | J38: 157 | S38: 38 | T38: 78 | AL38: 141 | AM38: 220 | AN38: 71 | AO38: 173 | AP38: 48 | AQ38: 109
C40: O&M Escalation | G40: 0.0225 | H40: 0.0225 | I40: 0.0225 | J40: 0.0225 | S40: 0.0225 | T40: 0.0225
C41: Debt | G41: 0.6 | H41: 0.6 | I41: 0.6 | J41: 0.6 | S41: 0.6 | T41: 0.6
C42: Cost of Debt | G42: 0.08 | H42: 0.08 | I42: 0.08 | J42: 0.08 | S42: 0.08 | T42: 0.08
C43: Cost of Equity | G43: 0.12 | H43: 0.12 | I43: 0.12 | J43: 0.12 | S43: 0.12 | T43: 0.12
C44: Tax Rate | G44: 0.4 | H44: 0.4 | I44: 0.4 | J44: 0.4 | S44: 0.4 | T44: 0.4
C46: Weighted | G46: =G42*G41+G43*G44 -> 0.096 | H46: =H42*H41+H43*H44 -> 0.096 | I46: 0.096 | J46: 0.096
Q74: 1900
Q75: 300
Q76: =Q74*Q75 -> 570000
G77: 0 | H77: 1 | I77: 2 | J77: 3 | K77: 4 | L77: 5 | M77: 6 | N77: 7
F78: MACRS | H78: 114 | I78: 182.4 | J78: 109.4 | K78: 65.7 | L78: 65.7 | M78: =570-SUM(H78:L78) -> 32.8
F79: MACRS % | G79: 0 | H79: =H78/SUM($H$78:$M$78) -> 0.2 | I79: 0.32 | J79: 0.1919298246 | K79: 0.1152631579 | L79: 0.1152631579 | M79: 0.05754385965 | N79: 0

Sheet Financial Model
D1: ='Input C'!F3 -> Natural Gas Benchmark (Low) | F1: Target IRR | G1: =F38 -> 0.096 | I1: LCOE | J1: =LCOE -> 49.12250389 | M1: =NPV(F129,L258:DG258) -> 882000000 | N1: =N260 -> 809496098.7 | O1: =N1-N262 -> 773031349.1 | P1: 736475687.1 | Q1: 699871568.7 | R1: 663265119.3 | S1: 626706382.7 | T1: 590249584.2 | U1: 553953411.4 | V1: 517881312.3 | W1: 482101812.5 | X1: 446688851.7 | Y1: 411722141.8 | Z1: 377287547.7 | AA1: 343477491.4 | AB1: 310391381.6 | AC1: 278136070.5 | AD1: 246826338.5 | AE1: 216585410.2 | AF1: 187545501 | AG1: 159848399.7 | AH1: 133646085.7 | AI1: 109101385.5 | AJ1: 86388670 | AK1: 65694594.78 | AL1: 47218886.57 | AM1: 31175178.56 | AN1: 17791897.4 | AO1: 7313205.223 | AP1: 0.09046072979 | AQ1: 0.09769758817 | AR1: 0.1055133952 | AS1: 0.1139544668 | AT1: 0.1230708242 | AU1: 0.1329164901 | AV1: 0.1435498093 | AW1: 0.1550337941
M2: =L264/M1 -> 0.08
B3: Timeline | E3: Input Units | F3: Constant | G3: Constant | H3: Model Unit | I3: Sum
C4: Period | E4: Months/Year | F4: ='Input C'!F11 -> 12 | H4: Years | K4: 1 | L4: 2 | M4: 3 | N4: 4 | O4: 5 | P4: 6 | Q4: 7 | R4: 8 | S4: 9 | T4: 10 | U4: 11 | V4: 12 | W4: 13 | X4: 14 | Y4: 15 | Z4: 16 | AA4: 17 | AB4: 18 | AC4: 19 | AD4: 20 | AE4: 21 | AF4: 22 | AG4: 23 | AH4: 24 | AI4: 25 | AJ4: 26 | AK4: 27 | AL4: 28 | AM4: 29 | AN4: 30 | AO4: 31 | AP4: 32 | AQ4: 33 | AR4: 34 | AS4: 35 | AT4: 36 | AU4: 37 | AV4: 38 | AW4: 39 | AX4: 40 | AY4: 41 | AZ4: 42 | BA4: 43 | BB4: 44 | BC4: 45 | BD4: 46 | BE4: 47 | BF4: 48 | BG4: 49 | BH4: 50 | BI4: 51 | BJ4: 52 | BK4: 53 | BL4: 54 | BM4: 55 | BN4: 56 | BO4: 57 | BP4: 58 | BQ4: 59 | BR4: 60 | BS4: 61 | BT4: 62 | BU4: 63 | BV4: 64 | BW4: 65 | BX4: 66 | BY4: 67 | BZ4: 68 | CA4: 69 | CB4: 70 | CC4: 71 | CD4: 72 | CE4: 73 | CF4: 74 | CG4: 75 | CH4: 76 | CI4: 77 | CJ4: 78 | CK4: 79 | CL4: 80 | CM4: 81 | CN4: 82 | CO4: 83 | CP4: 84 | CQ4: 85 | CR4: 86 | CS4: 87 | CT4: 88 | CU4: 89 | CV4: 90 | CW4: 91 | CX4: 92 | CY4: 93 | CZ4: 94 | DA4: 95 | DB4: 96 | DC4: 97 | DD4: 98 | DE4: 99 | DF4: 100 | DG4: 101
D5: Construction Period | E5: Months | F5: ='Input C'!F6 -> 18 | G5: =IF('Input C'!F7,1,F5/F4) -> 1 | H5: Flag | I5: =SUM(K5:DG5) -> 1 | K5: =(K4<=$G$5)*1 -> 1 | L5: =(L4<=$G$5)*1 -> 0 | M5: 0 | N5: 0 | O5: 0 | P5: 0 | Q5: 0 | R5: 0 | S5: 0 | T5: 0 | U5: 0 | V5: 0 | W5: 0 | X5: 0 | Y5: 0 | Z5: 0 | AA5: 0 | AB5: 0 | AC5: 0 | AD5: 0 | AE5: 0 | AF5: 0 | AG5: 0 | AH5: 0 | AI5: 0 | AJ5: 0 | AK5: 0 | AL5: 0 | AM5: 0 | AN5: 0 | AO5: 0 | AP5: 0 | AQ5: 0 | AR5: 0 | AS5: 0 | AT5: 0 | AU5: 0 | AV5: 0 | AW5: 0 | AX5: 0 | AY5: 0 | AZ5: 0 | BA5: 0 | BB5: 0 | BC5: 0 | BD5: 0 | BE5: 0 | BF5: 0 | BG5: 0 | BH5: 0 | BI5: 0 | BJ5: 0 | BK5: 0 | BL5: 0 | BM5: 0 | BN5: 0 | BO5: 0 | BP5: 0 | BQ5: 0 | BR5: 0 | BS5: 0 | BT5: 0 | BU5: 0 | BV5: 0 | BW5: 0 | BX5: =(BX4<=$G$5)*1 -> 0 | BY5: 0 | BZ5: 0 | CA5: 0 | CB5: 0 | CC5: 0 | CD5: 0 | CE5: 0 | CF5: 0 | CG5: 0 | CH5: 0 | CI5: 0 | CJ5: 0 | CK5: 0 | CL5: 0 | CM5: 0 | CN5: 0 | CO5: 0 | CP5: 0 | CQ5: 0 | CR5: 0 | CS5: 0 | CT5: 0 | CU5: 0 | CV5: 0 | CW5: 0 | CX5: 0 | CY5: 0 | CZ5: 0 | DA5: 0 | DB5: 0 | DC5: 0 | DD5: 0 | DE5: 0 | DF5: 0 | DG5: 0
D6: Start of Period | K6: =J7+1 -> 2026-01-01 | L6: 2027-01-01 | M6: 2028-01-01 | N6: 2029-01-01 | O6: 2030-01-01 | P6: 2031-01-01 | Q6: 2032-01-01 | R6: 2033-01-01 | S6: 2034-01-01 | T6: 2035-01-01 | U6: 2036-01-01 | V6: 2037-01-01 | W6: 2038-01-01 | X6: 2039-01-01 | Y6: 2040-01-01 | Z6: 2041-01-01 | AA6: 2042-01-01 | AB6: 2043-01-01 | AC6: 2044-01-01 | AD6: 2045-01-01 | AE6: 2046-01-01 | AF6: 2047-01-01 | AG6: 2048-01-01 | AH6: 2049-01-01 | AI6: 2050-01-01 | AJ6: 2051-01-01 | AK6: 2052-01-01 | AL6: 2053-01-01 | AM6: 2054-01-01 | AN6: 2055-01-01 | AO6: 2056-01-01 | AP6: 2057-01-01 | AQ6: =AP7+1 -> 2058-01-01 | AR6: 2059-01-01 | AS6: 2060-01-01 | AT6: 2061-01-01 | AU6: 2062-01-01 | AV6: 2063-01-01 | AW6: 2064-01-01 | AX6: 2065-01-01 | AY6: 2066-01-01 | AZ6: 2067-01-01 | BA6: 2068-01-01 | BB6: 2069-01-01 | BC6: 2070-01-01 | BD6: 2071-01-01 | BE6: 2072-01-01 | BF6: 2073-01-01 | BG6: 2074-01-01 | BH6: 2075-01-01 | BI6: 2076-01-01 | BJ6: 2077-01-01 | BK6: 2078-01-01 | BL6: 2079-01-01 | BM6: 2080-01-01 | BN6: 2081-01-01 | BO6: 2082-01-01 | BP6: 2083-01-01 | BQ6: 2084-01-01 | BR6: 2085-01-01 | BS6: 2086-01-01 | BT6: 2087-01-01 | BU6: 2088-01-01 | BV6: 2089-01-01 | BW6: =BV7+1 -> 2090-01-01 | BX6: 2091-01-01 | BY6: 2092-01-01 | BZ6: 2093-01-01 | CA6: 2094-01-01 | CB6: 2095-01-01 | CC6: 2096-01-01 | CD6: 2097-01-01 | CE6: 2098-01-01 | CF6: 2099-01-01 | CG6: 2100-01-01 | CH6: 2101-01-01 | CI6: 2102-01-01 | CJ6: 2103-01-01 | CK6: 2104-01-01 | CL6: 2105-01-01 | CM6: 2106-01-01 | CN6: 2107-01-01 | CO6: 2108-01-01 | CP6: 2109-01-01 | CQ6: 2110-01-01 | CR6: 2111-01-01 | CS6: 2112-01-01 | CT6: 2113-01-01 | CU6: 2114-01-01 | CV6: 2115-01-01 | CW6: 2116-01-01 | CX6: 2117-01-01 | CY6: 2118-01-01 | CZ6: 2119-01-01 | DA6: 2120-01-01 | DB6: 2121-01-01 | DC6: 2122-01-01 | DD6: 2123-01-01 | DE6: 2124-01-01 | DF6: 2125-01-01 | DG6: 2126-01-01
D7: End of Period | J7: ='Input C'!F5-1 -> 2025-12-31 | K7: =EDATE(K6,Months)-1 -> 2026-12-31 | L7: 2027-12-31 | M7: 2028-12-31 | N7: 2029-12-31 | O7: 2030-12-31 | P7: 2031-12-31 | Q7: 2032-12-31 | R7: 2033-12-31 | S7: 2034-12-31 | T7: 2035-12-31 | U7: 2036-12-31 | V7: 2037-12-31 | W7: 2038-12-31 | X7: 2039-12-31 | Y7: 2040-12-31 | Z7: 2041-12-31 | AA7: 2042-12-31 | AB7: 2043-12-31 | AC7: 2044-12-31 | AD7: 2045-12-31 | AE7: 2046-12-31 | AF7: 2047-12-31 | AG7: 2048-12-31 | AH7: 2049-12-31 | AI7: 2050-12-31 | AJ7: 2051-12-31 | AK7: 2052-12-31 | AL7: 2053-12-31 | AM7: 2054-12-31 | AN7: 2055-12-31 | AO7: 2056-12-31 | AP7: 2057-12-31 | AQ7: =EDATE(AQ6,Months)-1 -> 2058-12-31 | AR7: 2059-12-31 | AS7: 2060-12-31 | AT7: 2061-12-31 | AU7: 2062-12-31 | AV7: 2063-12-31 | AW7: 2064-12-31 | AX7: 2065-12-31 | AY7: 2066-12-31 | AZ7: 2067-12-31 | BA7: 2068-12-31 | BB7: 2069-12-31 | BC7: 2070-12-31 | BD7: 2071-12-31 | BE7: 2072-12-31 | BF7: 2073-12-31 | BG7: 2074-12-31 | BH7: 2075-12-31 | BI7: 2076-12-31 | BJ7: 2077-12-31 | BK7: 2078-12-31 | BL7: 2079-12-31 | BM7: 2080-12-31 | BN7: 2081-12-31 | BO7: 2082-12-31 | BP7: 2083-12-31 | BQ7: 2084-12-31 | BR7: 2085-12-31 | BS7: 2086-12-31 | BT7: 2087-12-31 | BU7: 2088-12-31 | BV7: 2089-12-31 | BW7: =EDATE(BW6,Months)-1 -> 2090-12-31 | BX7: 2091-12-31 | BY7: 2092-12-31 | BZ7: 2093-12-31 | CA7: 2094-12-31 | CB7: 2095-12-31 | CC7: 2096-12-31 | CD7: 2097-12-31 | CE7: 2098-12-31 | CF7: 2099-12-31 | CG7: 2100-12-31 | CH7: 2101-12-31 | CI7: 2102-12-31 | CJ7: 2103-12-31 | CK7: 2104-12-31 | CL7: 2105-12-31 | CM7: 2106-12-31 | CN7: 2107-12-31 | CO7: 2108-12-31 | CP7: 2109-12-31 | CQ7: 2110-12-31 | CR7: 2111-12-31 | CS7: 2112-12-31 | CT7: 2113-12-31 | CU7: 2114-12-31 | CV7: 2115-12-31 | CW7: 2116-12-31 | CX7: 2117-12-31 | CY7: 2118-12-31 | CZ7: 2119-12-31 | DA7: 2120-12-31 | DB7: 2121-12-31 | DC7: =EDATE(DC6,Months)-1 -> 2122-12-31 | DD7: 2123-12-31 | DE7: 2124-12-31 | DF7: 2125-12-31 | DG7: 2126-12-31
K8: =K7 -> 2026-12-31 | L8: =AVERAGE(L6:L7) -> 2027-07-02 | M8: =AVERAGE(M6:M7) -> 2028-07-01T12:00:00 | N8: 2029-07-02 | O8: 2030-07-02 | P8: 2031-07-02 | Q8: 2032-07-01T12:00:00 | R8: 2033-07-02 | S8: 2034-07-02 | T8: 2035-07-02 | U8: 2036-07-01T12:00:00 | V8: 2037-07-02 | W8: 2038-07-02 | X8: 2039-07-02 | Y8: 2040-07-01T12:00:00 | Z8: 2041-07-02 | AA8: 2042-07-02 | AB8: 2043-07-02 | AC8: 2044-07-01T12:00:00 | AD8: 2045-07-02 | AE8: 2046-07-02 | AF8: 2047-07-02 | AG8: 2048-07-01T12:00:00 | AH8: 2049-07-02 | AI8: 2050-07-02 | AJ8: 2051-07-02 | AK8: 2052-07-01T12:00:00 | AL8: 2053-07-02 | AM8: 2054-07-02 | AN8: 2055-07-02 | AO8: 2056-07-01T12:00:00 | AP8: 2057-07-02 | AQ8: 2058-07-02 | AR8: 2059-07-02 | AS8: 2060-07-01T12:00:00 | AT8: 2061-07-02 | AU8: 2062-07-02 | AV8: 2063-07-02 | AW8: 2064-07-01T12:00:00 | AX8: 2065-07-02 | AY8: 2066-07-02 | AZ8: 2067-07-02 | BA8: 2068-07-01T12:00:00 | BB8: 2069-07-02 | BC8: 2070-07-02 | BD8: 2071-07-02 | BE8: 2072-07-01T12:00:00 | BF8: 2073-07-02 | BG8: 2074-07-02 | BH8: 2075-07-02 | BI8: 2076-07-01T12:00:00 | BJ8: 2077-07-02 | BK8: 2078-07-02 | BL8: 2079-07-02 | BM8: 2080-07-01T12:00:00 | BN8: 2081-07-02 | BO8: 2082-07-02 | BP8: 2083-07-02 | BQ8: 2084-07-01T12:00:00 | BR8: 2085-07-02 | BS8: 2086-07-02 | BT8: 2087-07-02 | BU8: 2088-07-01T12:00:00 | BV8: 2089-07-02 | BW8: 2090-07-02 | BX8: 2091-07-02 | BY8: =AVERAGE(BY6:BY7) -> 2092-07-01T12:00:00 | BZ8: 2093-07-02 | CA8: 2094-07-02 | CB8: 2095-07-02 | CC8: 2096-07-01T12:00:00 | CD8: 2097-07-02 | CE8: 2098-07-02 | CF8: 2099-07-02 | CG8: 2100-07-02 | CH8: 2101-07-02 | CI8: 2102-07-02 | CJ8: 2103-07-02 | CK8: 2104-07-01T12:00:00 | CL8: 2105-07-02 | CM8: 2106-07-02 | CN8: 2107-07-02 | CO8: 2108-07-01T12:00:00 | CP8: 2109-07-02 | CQ8: 2110-07-02 | CR8: 2111-07-02 | CS8: 2112-07-01T12:00:00 | CT8: 2113-07-02 | CU8: 2114-07-02 | CV8: 2115-07-02 | CW8: 2116-07-01T12:00:00 | CX8: 2117-07-02 | CY8: 2118-07-02 | CZ8: 2119-07-02 | DA8: 2120-07-01T12:00:00 | DB8: 2121-07-02 | DC8: 2122-07-02 | DD8: 2123-07-02 | DE8: 2124-07-01T12:00:00 | DF8: 2125-07-02 | DG8: 2126-07-02
D9: Operation Period | E9: Years | F9: ='Input C'!F9 -> 30 | G9: =F9+1 -> 31 | H9: Flag | I9: =SUM(K9:XFD9) -> 30 | K9: =AND(NOT(K5),K4<=$G$9)*1 -> 0 | L9: =AND(NOT(L5),L4<=$G$9)*1 -> 1 | M9: 1 | N9: 1 | O9: 1 | P9: 1 | Q9: 1 | R9: 1 | S9: 1 | T9: 1 | U9: 1 | V9: 1 | W9: 1 | X9: 1 | Y9: 1 | Z9: 1 | AA9: 1 | AB9: 1 | AC9: 1 | AD9: 1 | AE9: 1 | AF9: 1 | AG9: 1 | AH9: 1 | AI9: 1 | AJ9: 1 | AK9: 1 | AL9: 1 | AM9: 1 | AN9: 1 | AO9: 1 | AP9: 0 | AQ9: 0 | AR9: 0 | AS9: 0 | AT9: 0 | AU9: 0 | AV9: 0 | AW9: 0 | AX9: 0 | AY9: 0 | AZ9: 0 | BA9: 0 | BB9: 0 | BC9: 0 | BD9: 0 | BE9: 0 | BF9: 0 | BG9: 0 | BH9: 0 | BI9: 0 | BJ9: 0 | BK9: 0 | BL9: 0 | BM9: 0 | BN9: 0 | BO9: 0 | BP9: 0 | BQ9: 0 | BR9: 0 | BS9: 0 | BT9: 0 | BU9: 0 | BV9: 0 | BW9: 0 | BX9: =AND(NOT(BX5),BX4<=$G$9)*1 -> 0 | BY9: 0 | BZ9: 0 | CA9: 0 | CB9: 0 | CC9: 0 | CD9: 0 | CE9: 0 | CF9: 0 | CG9: 0 | CH9: 0 | CI9: 0 | CJ9: 0 | CK9: 0 | CL9: 0 | CM9: 0 | CN9: 0 | CO9: 0 | CP9: 0 | CQ9: 0 | CR9: 0 | CS9: 0 | CT9: 0 | CU9: 0 | CV9: 0 | CW9: 0 | CX9: 0 | CY9: 0 | CZ9: 0 | DA9: 0 | DB9: 0 | DC9: 0 | DD9: 0 | DE9: 0 | DF9: 0 | DG9: 0
B11: Operation
D12: Capacity | E12: MW | F12: ='Input C'!F15 -> 1225 | H12: MW | K12: =$F12*K$9 -> 0 | L12: =$F12*L9 -> 1225 | M12: 1225 | N12: 1225 | O12: 1225 | P12: 1225 | Q12: 1225 | R12: 1225 | S12: 1225 | T12: 1225 | U12: 1225 | V12: 1225 | W12: 1225 | X12: 1225 | Y12: 1225 | Z12: 1225 | AA12: 1225 | AB12: 1225 | AC12: 1225 | AD12: 1225 | AE12: 1225 | AF12: 1225 | AG12: 1225 | AH12: 1225 | AI12: 1225 | AJ12: 1225 | AK12: 1225 | AL12: 1225 | AM12: 1225 | AN12: 1225 | AO12: 1225 | AP12: 0 | AQ12: 0 | AR12: =$F12*AR9 -> 0 | AS12: 0 | AT12: 0 | AU12: 0 | AV12: 0 | AW12: 0 | AX12: 0 | AY12: 0 | AZ12: 0 | BA12: 0 | BB12: 0 | BC12: 0 | BD12: 0 | BE12: 0 | BF12: 0 | BG12: 0 | BH12: 0 | BI12: 0 | BJ12: 0 | BK12: 0 | BL12: 0 | BM12: 0 | BN12: 0 | BO12: 0 | BP12: 0 | BQ12: 0 | BR12: 0 | BS12: 0 | BT12: 0 | BU12: 0 | BV12: 0 | BW12: 0 | BX12: =$F12*BX9 -> 0 | BY12: 0 | BZ12: 0 | CA12: 0 | CB12: 0 | CC12: 0 | CD12: 0 | CE12: 0 | CF12: 0 | CG12: 0 | CH12: 0 | CI12: 0 | CJ12: 0 | CK12: 0 | CL12: 0 | CM12: 0 | CN12: 0 | CO12: 0 | CP12: 0 | CQ12: 0 | CR12: 0 | CS12: 0 | CT12: 0 | CU12: 0 | CV12: 0 | CW12: 0 | CX12: 0 | CY12: 0 | CZ12: 0 | DA12: 0 | DB12: 0 | DC12: 0 | DD12: 0 | DE12: 0 | DF12: 0 | DG12: 0
D13: Capacity Factor | E13: % | F13: ='Input C'!F16 -> 0.9 | H13: % | K13: =$F13*K$9 -> 0 | L13: =$F13*L$9 -> 0.9 | M13: 0.9 | N13: 0.9 | O13: 0.9 | P13: 0.9 | Q13: 0.9 | R13: 0.9 | S13: 0.9 | T13: 0.9 | U13: 0.9 | V13: 0.9 | W13: 0.9 | X13: 0.9 | Y13: 0.9 | Z13: 0.9 | AA13: 0.9 | AB13: 0.9 | AC13: 0.9 | AD13: 0.9 | AE13: 0.9 | AF13: 0.9 | AG13: 0.9 | AH13: 0.9 | AI13: 0.9 | AJ13: 0.9 | AK13: 0.9 | AL13: 0.9 | AM13: 0.9 | AN13: 0.9 | AO13: 0.9 | AP13: 0 | AQ13: 0 | AR13: =$F13*AR$9 -> 0 | AS13: 0 | AT13: 0 | AU13: 0 | AV13: 0 | AW13: 0 | AX13: 0 | AY13: 0 | AZ13: 0 | BA13: 0 | BB13: 0 | BC13: 0 | BD13: 0 | BE13: 0 | BF13: 0 | BG13: 0 | BH13: 0 | BI13: 0 | BJ13: 0 | BK13: 0 | BL13: 0 | BM13: 0 | BN13: 0 | BO13: 0 | BP13: 0 | BQ13: 0 | BR13: 0 | BS13: 0 | BT13: 0 | BU13: 0 | BV13: 0 | BW13: 0 | BX13: =$F13*BX$9 -> 0 | BY13: 0 | BZ13: 0 | CA13: 0 | CB13: 0 | CC13: 0 | CD13: 0 | CE13: 0 | CF13: 0 | CG13: 0 | CH13: 0 | CI13: 0 | CJ13: 0 | CK13: 0 | CL13: 0 | CM13: 0 | CN13: 0 | CO13: 0 | CP13: 0 | CQ13: 0 | CR13: 0 | CS13: 0 | CT13: 0 | CU13: 0 | CV13: 0 | CW13: 0 | CX13: 0 | CY13: 0 | CZ13: 0 | DA13: 0 | DB13: 0 | DC13: 0 | DD13: 0 | DE13: 0 | DF13: 0 | DG13: 0
D14: Generation Before Degredation | E14: Hours | F14: ='Input C'!F18 -> 8760 | H14: MWh | K14: =$F$14*K13*K12 -> 0 | L14: 9657900 | M14: 9657900 | N14: 9657900 | O14: 9657900 | P14: 9657900 | Q14: 9657900 | R14: 9657900 | S14: 9657900 | T14: 9657900 | U14: 9657900 | V14: 9657900 | W14: 9657900 | X14: 9657900 | Y14: 9657900 | Z14: 9657900 | AA14: 9657900 | AB14: 9657900 | AC14: 9657900 | AD14: 9657900 | AE14: 9657900 | AF14: 9657900 | AG14: 9657900 | AH14: 9657900 | AI14: 9657900 | AJ14: 9657900 | AK14: 9657900 | AL14: 9657900 | AM14: 9657900 | AN14: 9657900 | AO14: 9657900 | AP14: 0 | AQ14: =$F$14*AQ13*AQ12 -> 0 | AR14: 0 | AS14: 0 | AT14: 0 | AU14: 0 | AV14: 0 | AW14: 0 | AX14: 0 | AY14: 0 | AZ14: 0 | BA14: 0 | BB14: 0 | BC14: 0 | BD14: 0 | BE14: 0 | BF14: 0 | BG14: 0 | BH14: 0 | BI14: 0 | BJ14: 0 | BK14: 0 | BL14: 0 | BM14: 0 | BN14: 0 | BO14: 0 | BP14: 0 | BQ14: 0 | BR14: 0 | BS14: 0 | BT14: 0 | BU14: 0 | BV14: 0 | BW14: =$F$14*BW13*BW12 -> 0 | BX14: 0 | BY14: 0 | BZ14: 0 | CA14: 0 | CB14: 0 | CC14: 0 | CD14: 0 | CE14: 0 | CF14: 0 | CG14: 0 | CH14: 0 | CI14: 0 | CJ14: 0 | CK14: 0 | CL14: 0 | CM14: 0 | CN14: 0 | CO14: 0 | CP14: 0 | CQ14: 0 | CR14: 0 | CS14: 0 | CT14: 0 | CU14: 0 | CV14: 0 | CW14: 0 | CX14: 0 | CY14: 0 | CZ14: 0 | DA14: 0 | DB14: 0 | DC14: =$F$14*DC13*DC12 -> 0 | DD14: 0 | DE14: 0 | DF14: 0 | DG14: 0
D15: Degradation Index | E15: % | F15: ='Input C'!F19 -> 0 | H15: Index | J15: 1 | K15: =J15*(1-$F$15*K9) -> 1 | L15: 1 | M15: 1 | N15: 1 | O15: 1 | P15: 1 | Q15: 1 | R15: 1 | S15: 1 | T15: 1 | U15: 1 | V15: 1 | W15: 1 | X15: 1 | Y15: 1 | Z15: 1 | AA15: 1 | AB15: 1 | AC15: 1 | AD15: 1 | AE15: 1 | AF15: 1 | AG15: 1 | AH15: 1 | AI15: 1 | AJ15: 1 | AK15: 1 | AL15: 1 | AM15: 1 | AN15: 1 | AO15: 1 | AP15: 1 | AQ15: =AP15*(1-$F$15*AQ9) -> 1 | AR15: 1 | AS15: 1 | AT15: 1 | AU15: 1 | AV15: 1 | AW15: 1 | AX15: 1 | AY15: 1 | AZ15: 1 | BA15: 1 | BB15: 1 | BC15: 1 | BD15: 1 | BE15: 1 | BF15: 1 | BG15: 1 | BH15: 1 | BI15: 1 | BJ15: 1 | BK15: 1 | BL15: 1 | BM15: 1 | BN15: 1 | BO15: 1 | BP15: 1 | BQ15: 1 | BR15: 1 | BS15: 1 | BT15: 1 | BU15: 1 | BV15: 1 | BW15: =BV15*(1-$F$15*BW9) -> 1 | BX15: 1 | BY15: 1 | BZ15: 1 | CA15: 1 | CB15: 1 | CC15: 1 | CD15: 1 | CE15: 1 | CF15: 1 | CG15: 1 | CH15: 1 | CI15: 1 | CJ15: 1 | CK15: 1 | CL15: 1 | CM15: 1 | CN15: 1 | CO15: 1 | CP15: 1 | CQ15: 1 | CR15: 1 | CS15: 1 | CT15: 1 | CU15: 1 | CV15: 1 | CW15: 1 | CX15: 1 | CY15: 1 | CZ15: 1 | DA15: 1 | DB15: 1 | DC15: 1 | DD15: 1 | DE15: 1 | DF15: 1 | DG15: 1
D16: Generation After Degradation | H16: MWh | K16: =IF(K9,K14*K15) -> FALSE | L16: 9657900 | M16: 9657900 | N16: 9657900 | O16: 9657900 | P16: 9657900 | Q16: 9657900 | R16: 9657900 | S16: 9657900 | T16: 9657900 | U16: 9657900 | V16: 9657900 | W16: 9657900 | X16: 9657900 | Y16: 9657900 | Z16: 9657900 | AA16: 9657900 | AB16: 9657900 | AC16: 9657900 | AD16: 9657900 | AE16: 9657900 | AF16: 9657900 | AG16: 9657900 | AH16: 9657900 | AI16: 9657900 | AJ16: 9657900 | AK16: 9657900 | AL16: 9657900 | AM16: 9657900 | AN16: 9657900 | AO16: 9657900 | AP16: FALSE | AQ16: =IF(AQ9,AQ14*AQ15) -> FALSE | AR16: FALSE | AS16: FALSE | AT16: FALSE | AU16: FALSE | AV16: FALSE | AW16: FALSE | AX16: FALSE | AY16: FALSE | AZ16: FALSE | BA16: FALSE | BB16: FALSE | BC16: FALSE | BD16: FALSE | BE16: FALSE | BF16: FALSE | BG16: FALSE | BH16: FALSE | BI16: FALSE | BJ16: FALSE | BK16: FALSE | BL16: FALSE | BM16: FALSE | BN16: FALSE | BO16: FALSE | BP16: FALSE | BQ16: FALSE | BR16: FALSE | BS16: FALSE | BT16: FALSE | BU16: FALSE | BV16: FALSE | BW16: =IF(BW9,BW14*BW15) -> FALSE | BX16: FALSE | BY16: FALSE | BZ16: FALSE | CA16: FALSE | CB16: FALSE | CC16: FALSE | CD16: FALSE | CE16: FALSE | CF16: FALSE | CG16: FALSE | CH16: FALSE | CI16: FALSE | CJ16: FALSE | CK16: FALSE | CL16: FALSE | CM16: FALSE | CN16: FALSE | CO16: FALSE | CP16: FALSE | CQ16: FALSE | CR16: FALSE | CS16: FALSE | CT16: FALSE | CU16: FALSE | CV16: FALSE | CW16: FALSE | CX16: FALSE | CY16: FALSE | CZ16: FALSE | DA16: FALSE | DB16: FALSE | DC16: =IF(DC9,DC14*DC15) -> FALSE | DD16: FALSE | DE16: FALSE | DF16: FALSE | DG16: FALSE
D17: Generation After Availability | E17: % | F17: ='Input C'!F20 -> 1 | I17: =L16/L15*F17 -> 9657900 | K17: =IF(K9,K16*$F$17) -> FALSE | L17: 9657900 | M17: 9657900 | N17: 9657900 | O17: 9657900 | P17: 9657900 | Q17: 9657900 | R17: 9657900 | S17: 9657900 | T17: 9657900 | U17: 9657900 | V17: 9657900 | W17: 9657900 | X17: 9657900 | Y17: 9657900 | Z17: 9657900 | AA17: 9657900 | AB17: 9657900 | AC17: 9657900 | AD17: 9657900 | AE17: 9657900 | AF17: 9657900 | AG17: 9657900 | AH17: 9657900 | AI17: 9657900 | AJ17: 9657900 | AK17: 9657900 | AL17: 9657900 | AM17: 9657900 | AN17: 9657900 | AO17: 9657900 | AP17: FALSE | AQ17: =IF(AQ9,AQ16*$F$17) -> FALSE | AR17: FALSE | AS17: FALSE | AT17: FALSE | AU17: FALSE | AV17: FALSE | AW17: FALSE | AX17: FALSE | AY17: FALSE | AZ17: FALSE | BA17: FALSE | BB17: FALSE | BC17: FALSE | BD17: FALSE | BE17: FALSE | BF17: FALSE | BG17: FALSE | BH17: FALSE | BI17: FALSE | BJ17: FALSE | BK17: FALSE | BL17: FALSE | BM17: FALSE | BN17: FALSE | BO17: FALSE | BP17: FALSE | BQ17: FALSE | BR17: FALSE | BS17: FALSE | BT17: FALSE | BU17: FALSE | BV17: FALSE | BW17: =IF(BW9,BW16*$F$17) -> FALSE | BX17: FALSE | BY17: FALSE | BZ17: FALSE | CA17: FALSE | CB17: FALSE | CC17: FALSE | CD17: FALSE | CE17: FALSE | CF17: FALSE | CG17: FALSE | CH17: FALSE | CI17: FALSE | CJ17: FALSE | CK17: FALSE | CL17: FALSE | CM17: FALSE | CN17: FALSE | CO17: FALSE | CP17: FALSE | CQ17: FALSE | CR17: FALSE | CS17: FALSE | CT17: FALSE | CU17: FALSE | CV17: FALSE | CW17: FALSE | CX17: FALSE | CY17: FALSE | CZ17: FALSE | DA17: FALSE | DB17: FALSE | DC17: =IF(DC9,DC16*$F$17) -> FALSE | DD17: FALSE | DE17: FALSE | DF17: FALSE | DG17: FALSE
B19: Free Cashflow
D21: Inflation Index | E21: % | F21: ='Input C'!F79 -> 0.0225 | H21: Index | J21: 1 | K21: =J21*(1+$F$21*J9) -> 1 | L21: =K21*(1+$F$21*K9) -> 1 | M21: 1.0225 | N21: 1.04550625 | O21: 1.069030141 | P21: 1.093083319 | Q21: 1.117677693 | R21: 1.142825442 | S21: 1.168539014 | T21: 1.194831142 | U21: 1.221714843 | V21: 1.249203426 | W21: 1.277310504 | X21: 1.30604999 | Y21: 1.335436115 | Z21: 1.365483427 | AA21: 1.396206804 | AB21: 1.427621457 | AC21: 1.45974294 | AD21: 1.492587156 | AE21: 1.526170367 | AF21: 1.560509201 | AG21: 1.595620658 | AH21: 1.631522122 | AI21: 1.66823137 | AJ21: 1.705766576 | AK21: 1.744146324 | AL21: 1.783389616 | AM21: 1.823515883 | AN21: 1.86454499 | AO21: 1.906497252 | AP21: 1.949393441 | AQ21: 1.949393441 | AR21: 1.949393441 | AS21: 1.949393441 | AT21: 1.949393441 | AU21: 1.949393441 | AV21: 1.949393441 | AW21: 1.949393441 | AX21: 1.949393441 | AY21: 1.949393441 | AZ21: 1.949393441 | BA21: 1.949393441 | BB21: 1.949393441 | BC21: 1.949393441 | BD21: 1.949393441 | BE21: 1.949393441 | BF21: 1.949393441 | BG21: 1.949393441 | BH21: 1.949393441 | BI21: 1.949393441 | BJ21: 1.949393441 | BK21: 1.949393441 | BL21: 1.949393441 | BM21: 1.949393441 | BN21: 1.949393441 | BO21: 1.949393441 | BP21: 1.949393441 | BQ21: 1.949393441 | BR21: 1.949393441 | BS21: 1.949393441 | BT21: 1.949393441 | BU21: 1.949393441 | BV21: 1.949393441 | BW21: 1.949393441 | BX21: =BW21*(1+$F$21*BW9) -> 1.949393441 | BY21: 1.949393441 | BZ21: 1.949393441 | CA21: 1.949393441 | CB21: 1.949393441 | CC21: 1.949393441 | CD21: 1.949393441 | CE21: 1.949393441 | CF21: 1.949393441 | CG21: 1.949393441 | CH21: 1.949393441 | CI21: 1.949393441 | CJ21: 1.949393441 | CK21: 1.949393441 | CL21: 1.949393441 | CM21: 1.949393441 | CN21: 1.949393441 | CO21: 1.949393441 | CP21: 1.949393441 | CQ21: 1.949393441 | CR21: 1.949393441 | CS21: 1.949393441 | CT21: 1.949393441 | CU21: 1.949393441 | CV21: 1.949393441 | CW21: 1.949393441 | CX21: 1.949393441 | CY21: 1.949393441 | CZ21: 1.949393441 | DA21: 1.949393441 | DB21: 1.949393441 | DC21: 1.949393441 | DD21: 1.949393441 | DE21: 1.949393441 | DF21: 1.949393441 | DG21: 1.949393441
D22: CAPEX | E22: USD | F22: ='Input C'!F38 -> 1470000000 | H22: USD | I22: =SUM(K22:XFD22) -> 1470000000 | K22: =$F$22*K5 -> 1470000000 | L22: 0 | M22: 0 | N22: 0 | O22: 0 | P22: 0 | Q22: 0 | R22: 0 | S22: 0 | T22: 0 | U22: 0 | V22: 0 | W22: 0 | X22: 0 | Y22: 0 | Z22: 0 | AA22: 0 | AB22: 0 | AC22: 0 | AD22: 0 | AE22: 0 | AF22: 0 | AG22: 0 | AH22: 0 | AI22: 0 | AJ22: 0 | AK22: 0 | AL22: 0 | AM22: 0 | AN22: 0 | AO22: 0 | AP22: 0 | AQ22: =$F$22*AQ5 -> 0 | AR22: 0 | AS22: 0 | AT22: 0 | AU22: 0 | AV22: 0 | AW22: 0 | AX22: 0 | AY22: 0 | AZ22: 0 | BA22: 0 | BB22: 0 | BC22: 0 | BD22: 0 | BE22: 0 | BF22: 0 | BG22: 0 | BH22: 0 | BI22: 0 | BJ22: 0 | BK22: 0 | BL22: 0 | BM22: 0 | BN22: 0 | BO22: 0 | BP22: 0 | BQ22: 0 | BR22: 0 | BS22: 0 | BT22: 0 | BU22: 0 | BV22: 0 | BW22: =$F$22*BW5 -> 0 | BX22: 0 | BY22: 0 | BZ22: 0 | CA22: 0 | CB22: 0 | CC22: 0 | CD22: 0 | CE22: 0 | CF22: 0 | CG22: 0 | CH22: 0 | CI22: 0 | CJ22: 0 | CK22: 0 | CL22: 0 | CM22: 0 | CN22: 0 | CO22: 0 | CP22: 0 | CQ22: 0 | CR22: 0 | CS22: 0 | CT22: 0 | CU22: 0 | CV22: 0 | CW22: 0 | CX22: 0 | CY22: 0 | CZ22: 0 | DA22: 0 | DB22: 0 | DC22: 0 | DD22: 0 | DE22: 0 | DF22: 0 | DG22: 0
D24: LCOE | E24: USD/MWH | F24: 49.12250389 | G24: =F120 -> 0.1075019732 | H24: USD/MWH | K24: =LCOE -> 49.12250389 | L24: 49.12250389 | M24: 49.12250389 | N24: 49.12250389 | O24: 49.12250389 | P24: 49.12250389 | Q24: 49.12250389 | R24: 49.12250389 | S24: 49.12250389 | T24: 49.12250389 | U24: 49.12250389 | V24: 49.12250389 | W24: 49.12250389 | X24: 49.12250389 | Y24: 49.12250389 | Z24: 49.12250389 | AA24: 49.12250389 | AB24: 49.12250389 | AC24: 49.12250389 | AD24: 49.12250389 | AE24: 49.12250389 | AF24: 49.12250389 | AG24: 49.12250389 | AH24: 49.12250389 | AI24: 49.12250389 | AJ24: 49.12250389 | AK24: 49.12250389 | AL24: 49.12250389 | AM24: 49.12250389 | AN24: 49.12250389 | AO24: 49.12250389 | AP24: 49.12250389 | AQ24: =LCOE -> 49.12250389 | AR24: 49.12250389 | AS24: 49.12250389 | AT24: 49.12250389 | AU24: 49.12250389 | AV24: 49.12250389 | AW24: 49.12250389 | AX24: 49.12250389 | AY24: 49.12250389 | AZ24: 49.12250389 | BA24: 49.12250389 | BB24: 49.12250389 | BC24: 49.12250389 | BD24: 49.12250389 | BE24: 49.12250389 | BF24: 49.12250389 | BG24: 49.12250389 | BH24: 49.12250389 | BI24: 49.12250389 | BJ24: 49.12250389 | BK24: 49.12250389 | BL24: 49.12250389 | BM24: 49.12250389 | BN24: 49.12250389 | BO24: 49.12250389 | BP24: 49.12250389 | BQ24: 49.12250389 | BR24: 49.12250389 | BS24: 49.12250389 | BT24: 49.12250389 | BU24: 49.12250389 | BV24: 49.12250389 | BW24: =LCOE -> 49.12250389 | BX24: 49.12250389 | BY24: 49.12250389 | BZ24: 49.12250389 | CA24: 49.12250389 | CB24: 49.12250389 | CC24: 49.12250389 | CD24: 49.12250389 | CE24: 49.12250389 | CF24: 49.12250389 | CG24: 49.12250389 | CH24: 49.12250389 | CI24: 49.12250389 | CJ24: 49.12250389 | CK24: 49.12250389 | CL24: 49.12250389 | CM24: 49.12250389 | CN24: 49.12250389 | CO24: 49.12250389 | CP24: 49.12250389 | CQ24: 49.12250389 | CR24: 49.12250389 | CS24: 49.12250389 | CT24: 49.12250389 | CU24: 49.12250389 | CV24: 49.12250389 | CW24: 49.12250389 | CX24: 49.12250389 | CY24: 49.12250389 | CZ24: 49.12250389 | DA24: 49.12250389 | DB24: 49.12250389 | DC24: 49.12250389 | DD24: 49.12250389 | DE24: 49.12250389 | DF24: 49.12250389 | DG24: 49.12250389
D25: Inflate LCOE | E25: flag | F25: ='Input C'!F57 -> FALSE | H25: flag | K25: =IF($F$25,K21,1) -> 1 | L25: 1 | M25: 1 | N25: 1 | O25: 1 | P25: 1 | Q25: 1 | R25: 1 | S25: 1 | T25: 1 | U25: 1 | V25: 1 | W25: 1 | X25: 1 | Y25: 1 | Z25: 1 | AA25: 1 | AB25: 1 | AC25: 1 | AD25: 1 | AE25: 1 | AF25: 1 | AG25: 1 | AH25: 1 | AI25: 1 | AJ25: 1 | AK25: 1 | AL25: 1 | AM25: 1 | AN25: 1 | AO25: 1 | AP25: 1 | AQ25: =IF($F$25,AQ21,1) -> 1 | AR25: 1 | AS25: 1 | AT25: 1 | AU25: 1 | AV25: 1 | AW25: 1 | AX25: 1 | AY25: 1 | AZ25: 1 | BA25: 1 | BB25: 1 | BC25: 1 | BD25: 1 | BE25: 1 | BF25: 1 | BG25: 1 | BH25: 1 | BI25: 1 | BJ25: 1 | BK25: 1 | BL25: 1 | BM25: 1 | BN25: 1 | BO25: 1 | BP25: 1 | BQ25: 1 | BR25: 1 | BS25: 1 | BT25: 1 | BU25: 1 | BV25: 1 | BW25: =IF($F$25,BW21,1) -> 1 | BX25: 1 | BY25: 1 | BZ25: 1 | CA25: 1 | CB25: 1 | CC25: 1 | CD25: 1 | CE25: 1 | CF25: 1 | CG25: 1 | CH25: 1 | CI25: 1 | CJ25: 1 | CK25: 1 | CL25: 1 | CM25: 1 | CN25: 1 | CO25: 1 | CP25: 1 | CQ25: 1 | CR25: 1 | CS25: 1 | CT25: 1 | CU25: 1 | CV25: 1 | CW25: 1 | CX25: 1 | CY25: 1 | CZ25: 1 | DA25: 1 | DB25: 1 | DC25: 1 | DD25: 1 | DE25: 1 | DF25: 1 | DG25: 1
D26: Revenue | E26: USD | H26: USD | K26: =IF(K17,K25*K24*K17) -> FALSE | L26: =IF(L17,L25*L24*L17) -> 474420230.3 | M26: 474420230.3 | N26: 474420230.3 | O26: 474420230.3 | P26: 474420230.3 | Q26: 474420230.3 | R26: 474420230.3 | S26: 474420230.3 | T26: 474420230.3 | U26: 474420230.3 | V26: 474420230.3 | W26: 474420230.3 | X26: 474420230.3 | Y26: 474420230.3 | Z26: 474420230.3 | AA26: 474420230.3 | AB26: 474420230.3 | AC26: 474420230.3 | AD26: 474420230.3 | AE26: 474420230.3 | AF26: 474420230.3 | AG26: 474420230.3 | AH26: 474420230.3 | AI26: 474420230.3 | AJ26: 474420230.3 | AK26: 474420230.3 | AL26: 474420230.3 | AM26: 474420230.3 | AN26: 474420230.3 | AO26: 474420230.3 | AP26: FALSE | AQ26: FALSE | AR26: FALSE | AS26: FALSE | AT26: FALSE | AU26: FALSE | AV26: FALSE | AW26: FALSE | AX26: FALSE | AY26: FALSE | AZ26: FALSE | BA26: FALSE | BB26: FALSE | BC26: FALSE | BD26: FALSE | BE26: FALSE | BF26: FALSE | BG26: FALSE | BH26: FALSE | BI26: FALSE | BJ26: FALSE | BK26: FALSE | BL26: FALSE | BM26: FALSE | BN26: FALSE | BO26: FALSE | BP26: FALSE | BQ26: FALSE | BR26: FALSE | BS26: FALSE | BT26: FALSE | BU26: FALSE | BV26: FALSE | BW26: FALSE | BX26: =IF(BX17,BX25*BX24*BX17) -> FALSE | BY26: FALSE | BZ26: FALSE | CA26: FALSE | CB26: FALSE | CC26: FALSE | CD26: FALSE | CE26: FALSE | CF26: FALSE | CG26: FALSE | CH26: FALSE | CI26: FALSE | CJ26: FALSE | CK26: FALSE | CL26: FALSE | CM26: FALSE | CN26: FALSE | CO26: FALSE | CP26: FALSE | CQ26: FALSE | CR26: FALSE | CS26: FALSE | CT26: FALSE | CU26: FALSE | CV26: FALSE | CW26: FALSE | CX26: FALSE | CY26: FALSE | CZ26: FALSE | DA26: FALSE | DB26: FALSE | DC26: FALSE | DD26: FALSE | DE26: FALSE | DF26: FALSE | DG26: FALSE
D28: Variable O&M Expense | E28: USD/MWH | F28: ='Input C'!F40 -> 2.75 | H28: USD | K28: =IF(K9,$F$28*K21*K17) -> FALSE | L28: =IF(L9,$F$28*L21*L17) -> 26559225 | M28: 27156807.56 | N28: 27767835.73 | O28: 28392612.04 | P28: 29031445.81 | Q28: 29684653.34 | R28: 30352558.04 | S28: 31035490.59 | T28: 31733789.13 | U28: 32447799.39 | V28: 33177874.87 | W28: 33924377.06 | X28: 34687675.54 | Y28: 35468148.24 | Z28: 36266181.58 | AA28: 37082170.66 | AB28: 37916519.5 | AC28: 38769641.19 | AD28: 39641958.12 | AE28: 40533902.18 | AF28: 41445914.98 | AG28: 42378448.06 | AH28: 43331963.14 | AI28: 44306932.31 | AJ28: 45303838.29 | AK28: 46323174.65 | AL28: 47365446.08 | AM28: 48431168.62 | AN28: 49520869.91 | AO28: 50635089.49 | AP28: FALSE | AQ28: FALSE | AR28: FALSE | AS28: FALSE | AT28: FALSE | AU28: FALSE | AV28: FALSE | AW28: FALSE | AX28: FALSE | AY28: FALSE | AZ28: FALSE | BA28: FALSE | BB28: FALSE | BC28: FALSE | BD28: FALSE | BE28: FALSE | BF28: FALSE | BG28: FALSE | BH28: FALSE | BI28: FALSE | BJ28: FALSE | BK28: FALSE | BL28: FALSE | BM28: FALSE | BN28: FALSE | BO28: FALSE | BP28: FALSE | BQ28: FALSE | BR28: FALSE | BS28: FALSE | BT28: FALSE | BU28: FALSE | BV28: FALSE | BW28: FALSE | BX28: =IF(BX9,$F$28*BX21*BX17) -> FALSE | BY28: FALSE | BZ28: FALSE | CA28: FALSE | CB28: FALSE | CC28: FALSE | CD28: FALSE | CE28: FALSE | CF28: FALSE | CG28: FALSE | CH28: FALSE | CI28: FALSE | CJ28: FALSE | CK28: FALSE | CL28: FALSE | CM28: FALSE | CN28: FALSE | CO28: FALSE | CP28: FALSE | CQ28: FALSE | CR28: FALSE | CS28: FALSE | CT28: FALSE | CU28: FALSE | CV28: FALSE | CW28: FALSE | CX28: FALSE | CY28: FALSE | CZ28: FALSE | DA28: FALSE | DB28: FALSE | DC28: FALSE | DD28: FALSE | DE28: FALSE | DF28: FALSE | DG28: FALSE
D29: Fixed O&M Expense | E29: USD | F29: ='Input C'!F42 -> 12250000 | H29: USD | I29: =SUM(L29:XFD29) -> 516891984.3 | K29: =IF(K9,$F$29*K21) -> FALSE | L29: 12250000 | M29: 12525625 | N29: 12807451.56 | O29: 13095619.22 | P29: 13390270.66 | Q29: 13691551.74 | R29: 13999611.66 | S29: 14314602.92 | T29: 14636681.49 | U29: 14966006.82 | V29: 15302741.97 | W29: 15647053.67 | X29: 15999112.38 | Y29: 16359092.4 | Z29: 16727171.98 | AA29: 17103533.35 | AB29: 17488362.85 | AC29: 17881851.02 | AD29: 18284192.67 | AE29: 18695587 | AF29: 19116237.71 | AG29: 19546353.06 | AH29: 19986146 | AI29: 20435834.29 | AJ29: 20895640.56 | AK29: 21365792.47 | AL29: 21846522.8 | AM29: 22338069.56 | AN29: 22840676.13 | AO29: 23354591.34 | AP29: FALSE | AQ29: =IF(AQ9,$F$29*AQ21) -> FALSE | AR29: FALSE | AS29: FALSE | AT29: FALSE | AU29: FALSE | AV29: FALSE | AW29: FALSE | AX29: FALSE | AY29: FALSE | AZ29: FALSE | BA29: FALSE | BB29: FALSE | BC29: FALSE | BD29: FALSE | BE29: FALSE | BF29: FALSE | BG29: FALSE | BH29: FALSE | BI29: FALSE | BJ29: FALSE | BK29: FALSE | BL29: FALSE | BM29: FALSE | BN29: FALSE | BO29: FALSE | BP29: FALSE | BQ29: FALSE | BR29: FALSE | BS29: FALSE | BT29: FALSE | BU29: FALSE | BV29: FALSE | BW29: =IF(BW9,$F$29*BW21) -> FALSE | BX29: FALSE | BY29: FALSE | BZ29: FALSE | CA29: FALSE | CB29: FALSE | CC29: FALSE | CD29: FALSE | CE29: FALSE | CF29: FALSE | CG29: FALSE | CH29: FALSE | CI29: FALSE | CJ29: FALSE | CK29: FALSE | CL29: FALSE | CM29: FALSE | CN29: FALSE | CO29: FALSE | CP29: FALSE | CQ29: FALSE | CR29: FALSE | CS29: FALSE | CT29: FALSE | CU29: FALSE | CV29: FALSE | CW29: FALSE | CX29: FALSE | CY29: FALSE | CZ29: FALSE | DA29: FALSE | DB29: FALSE | DC29: FALSE | DD29: FALSE | DE29: FALSE | DF29: FALSE | DG29: FALSE
D30: Fuel Expense | E30: USD/MWH | F30: ='Input C'!F48 -> 22.33875 | H30: USD | I30: =SUM(L30:XFD30) -> 9103434690 | K30: =IF(K9,$F$30*K16*K21) -> FALSE | L30: 215745413.6 | M30: 220599685.4 | N30: 225563178.4 | O30: 230638349.9 | P30: 235827712.7 | Q30: 241133836.3 | R30: 246559347.6 | S30: 252106932.9 | T30: 257779338.9 | U30: 263579374 | V30: 269509909.9 | W30: 275573882.9 | X30: 281774295.3 | Y30: 288114216.9 | Z30: 294596786.8 | AA30: 301225214.5 | AB30: 308002781.8 | AC30: 314932844.4 | AD30: 322018833.4 | AE30: 329264257.2 | AF30: 336672703 | AG30: 344247838.8 | AH30: 351993415.2 | AI30: 359913267 | AJ30: 368011315.5 | AK30: 376291570.1 | AL30: 384758130.4 | AM30: 393415188.4 | AN30: 402267030.1 | AO30: 411318038.3 | AP30: FALSE | AQ30: FALSE | AR30: FALSE | AS30: FALSE | AT30: FALSE | AU30: FALSE | AV30: FALSE | AW30: FALSE | AX30: FALSE | AY30: FALSE | AZ30: FALSE | BA30: FALSE | BB30: FALSE | BC30: FALSE | BD30: FALSE | BE30: FALSE | BF30: FALSE | BG30: FALSE | BH30: FALSE | BI30: FALSE | BJ30: FALSE | BK30: FALSE | BL30: FALSE | BM30: FALSE | BN30: FALSE | BO30: FALSE | BP30: FALSE | BQ30: FALSE | BR30: FALSE | BS30: FALSE | BT30: FALSE | BU30: FALSE | BV30: FALSE | BW30: =IF(BW9,$F$30*BW16*BW21) -> FALSE | BX30: FALSE | BY30: FALSE | BZ30: FALSE | CA30: FALSE | CB30: FALSE | CC30: FALSE | CD30: FALSE | CE30: FALSE | CF30: FALSE | CG30: FALSE | CH30: FALSE | CI30: FALSE | CJ30: FALSE | CK30: FALSE | CL30: FALSE | CM30: FALSE | CN30: FALSE | CO30: FALSE | CP30: FALSE | CQ30: FALSE | CR30: FALSE | CS30: FALSE | CT30: FALSE | CU30: FALSE | CV30: FALSE | CW30: FALSE | CX30: FALSE | CY30: FALSE | CZ30: FALSE | DA30: FALSE | DB30: FALSE | DC30: FALSE | DD30: FALSE | DE30: FALSE | DF30: FALSE | DG30: FALSE
D31: Total O&M Cost | E31: USD | H31: USD | I31: =SUM(L31:XFD31) -> 1.074100019e+10 | K31: =SUM(K28:K30) -> 0 | L31: =SUM(L28:L30) -> 254554638.6 | M31: 260282118 | N31: 266138465.6 | O31: 272126581.1 | P31: 278249429.2 | Q31: 284510041.4 | R31: 290911517.3 | S31: 297457026.4 | T31: 304149809.5 | U31: 310993180.2 | V31: 317990526.8 | W31: 325145313.6 | X31: 332461083.2 | Y31: 339941457.6 | Z31: 347590140.4 | AA31: 355410918.5 | AB31: 363407664.2 | AC31: 371584336.6 | AD31: 379944984.2 | AE31: 388493746.4 | AF31: 397234855.7 | AG31: 406172639.9 | AH31: 415311524.3 | AI31: 424656033.6 | AJ31: 434210794.4 | AK31: 443980537.2 | AL31: 453970099.3 | AM31: 464184426.5 | AN31: 474628576.1 | AO31: 485307719.1 | AP31: 0 | AQ31: 0 | AR31: 0 | AS31: 0 | AT31: 0 | AU31: 0 | AV31: 0 | AW31: 0 | AX31: 0 | AY31: 0 | AZ31: 0 | BA31: 0 | BB31: 0 | BC31: 0 | BD31: 0 | BE31: 0 | BF31: 0 | BG31: 0 | BH31: 0 | BI31: 0 | BJ31: 0 | BK31: 0 | BL31: 0 | BM31: 0 | BN31: 0 | BO31: 0 | BP31: 0 | BQ31: 0 | BR31: 0 | BS31: 0 | BT31: 0 | BU31: 0 | BV31: 0 | BW31: 0 | BX31: =SUM(BX28:BX30) -> 0 | BY31: 0 | BZ31: 0 | CA31: 0 | CB31: 0 | CC31: 0 | CD31: 0 | CE31: 0 | CF31: 0 | CG31: 0 | CH31: 0 | CI31: 0 | CJ31: 0 | CK31: 0 | CL31: 0 | CM31: 0 | CN31: 0 | CO31: 0 | CP31: 0 | CQ31: 0 | CR31: 0 | CS31: 0 | CT31: 0 | CU31: 0 | CV31: 0 | CW31: 0 | CX31: 0 | CY31: 0 | CZ31: 0 | DA31: 0 | DB31: 0 | DC31: 0 | DD31: 0 | DE31: 0 | DF31: 0 | DG31: 0
D33: EBITDA | E33: USD | H33: USD | K33: =K26-K31 -> 0 | L33: =L26-L31 -> 219865591.7 | M33: 214138112.3 | N33: 208281764.7 | O33: 202293649.2 | P33: 196170801.1 | Q33: 189910189 | R33: 183508713 | S33: 176963203.9 | T33: 170270420.8 | U33: 163427050.1 | V33: 156429703.5 | W33: 149274916.7 | X33: 141959147.1 | Y33: 134478772.8 | Z33: 126830090 | AA33: 119009311.8 | AB33: 111012566.1 | AC33: 102835893.7 | AD33: 94475246.11 | AE33: 85926483.97 | AF33: 77185374.68 | AG33: 68247590.42 | AH33: 59108706.03 | AI33: 49764196.73 | AJ33: 40209435.97 | AK33: 30439693.1 | AL33: 20450131.01 | AM33: 10235803.78 | AN33: -208345.8193 | AO33: -10887488.78 | AP33: 0 | AQ33: 0 | AR33: 0 | AS33: 0 | AT33: 0 | AU33: 0 | AV33: 0 | AW33: 0 | AX33: 0 | AY33: 0 | AZ33: 0 | BA33: 0 | BB33: 0 | BC33: 0 | BD33: 0 | BE33: 0 | BF33: 0 | BG33: 0 | BH33: 0 | BI33: 0 | BJ33: 0 | BK33: 0 | BL33: 0 | BM33: 0 | BN33: 0 | BO33: 0 | BP33: 0 | BQ33: 0 | BR33: 0 | BS33: 0 | BT33: 0 | BU33: 0 | BV33: 0 | BW33: 0 | BX33: =BX26-BX31 -> 0 | BY33: 0 | BZ33: 0 | CA33: 0 | CB33: 0 | CC33: 0 | CD33: 0 | CE33: 0 | CF33: 0 | CG33: 0 | CH33: 0 | CI33: 0 | CJ33: 0 | CK33: 0 | CL33: 0 | CM33: 0 | CN33: 0 | CO33: 0 | CP33: 0 | CQ33: 0 | CR33: 0 | CS33: 0 | CT33: 0 | CU33: 0 | CV33: 0 | CW33: 0 | CX33: 0 | CY33: 0 | CZ33: 0 | DA33: 0 | DB33: 0 | DC33: 0 | DD33: 0 | DE33: 0 | DF33: 0 | DG33: 0
D34: Free Cashflow | E34: USD | H34: USD | K34: =K33-K22 -> -1470000000 | L34: 219865591.7 | M34: 214138112.3 | N34: 208281764.7 | O34: 202293649.2 | P34: 196170801.1 | Q34: 189910189 | R34: 183508713 | S34: 176963203.9 | T34: 170270420.8 | U34: 163427050.1 | V34: 156429703.5 | W34: 149274916.7 | X34: 141959147.1 | Y34: 134478772.8 | Z34: 126830090 | AA34: 119009311.8 | AB34: 111012566.1 | AC34: 102835893.7 | AD34: 94475246.11 | AE34: 85926483.97 | AF34: 77185374.68 | AG34: 68247590.42 | AH34: 59108706.03 | AI34: 49764196.73 | AJ34: 40209435.97 | AK34: 30439693.1 | AL34: 20450131.01 | AM34: 10235803.78 | AN34: -208345.8193 | AO34: -10887488.78 | AP34: 0 | AQ34: =AQ33-AQ22 -> 0 | AR34: 0 | AS34: 0 | AT34: 0 | AU34: 0 | AV34: 0 | AW34: 0 | AX34: 0 | AY34: 0 | AZ34: 0 | BA34: 0 | BB34: 0 | BC34: 0 | BD34: 0 | BE34: 0 | BF34: 0 | BG34: 0 | BH34: 0 | BI34: 0 | BJ34: 0 | BK34: 0 | BL34: 0 | BM34: 0 | BN34: 0 | BO34: 0 | BP34: 0 | BQ34: 0 | BR34: 0 | BS34: 0 | BT34: 0 | BU34: 0 | BV34: 0 | BW34: =BW33-BW22 -> 0 | BX34: 0 | BY34: 0 | BZ34: 0 | CA34: 0 | CB34: 0 | CC34: 0 | CD34: 0 | CE34: 0 | CF34: 0 | CG34: 0 | CH34: 0 | CI34: 0 | CJ34: 0 | CK34: 0 | CL34: 0 | CM34: 0 | CN34: 0 | CO34: 0 | CP34: 0 | CQ34: 0 | CR34: 0 | CS34: 0 | CT34: 0 | CU34: 0 | CV34: 0 | CW34: 0 | CX34: 0 | CY34: 0 | CZ34: 0 | DA34: 0 | DB34: 0 | DC34: =DC33-DC22 -> 0 | DD34: 0 | DE34: 0 | DF34: 0 | DG34: 0
D35: Pre-Tax Project IRR | E35: % | F35: =IRR(K34:DG34) -> 0.109202646 | H35: %
D36: Pre-Tax Project xIRR | E36: % | F36: =XIRR(K34:DG34,K7:DG7) -> 0.109118551
D38: Target IRR | E38: % | F38: ='Input C'!F77 -> 0.096 | H38: %
D40: NPV @ Target IRR | E40: USD | F40: =NPV(F38,K34:DG34) -> 113344363.7 | H40: USD
D41: LCOE | E41: USD/MWH | F41: =F24 -> 49.12250389
B43: Depreciation and Taxes
D44: Project Age | E44: Age | K44: =J44+K9 -> 0 | L44: =K44+L9 -> 1 | M44: 2 | N44: 3 | O44: 4 | P44: 5 | Q44: 6 | R44: 7 | S44: 8 | T44: 9 | U44: 10 | V44: 11 | W44: 12 | X44: 13 | Y44: 14 | Z44: 15 | AA44: 16 | AB44: 17 | AC44: 18 | AD44: 19 | AE44: 20 | AF44: 21 | AG44: 22 | AH44: 23 | AI44: 24 | AJ44: 25 | AK44: 26 | AL44: 27 | AM44: 28 | AN44: 29 | AO44: 30 | AP44: 30 | AQ44: 30 | AR44: 30 | AS44: 30 | AT44: 30 | AU44: 30 | AV44: 30 | AW44: 30 | AX44: 30 | AY44: 30 | AZ44: 30 | BA44: 30 | BB44: 30 | BC44: 30 | BD44: 30 | BE44: 30 | BF44: 30 | BG44: 30 | BH44: 30 | BI44: 30 | BJ44: 30 | BK44: 30 | BL44: 30 | BM44: 30 | BN44: 30 | BO44: 30 | BP44: 30 | BQ44: 30 | BR44: 30 | BS44: 30 | BT44: 30 | BU44: 30 | BV44: 30 | BW44: 30 | BX44: =BW44+BX9 -> 30 | BY44: 30 | BZ44: 30 | CA44: 30 | CB44: 30 | CC44: 30 | CD44: 30 | CE44: 30 | CF44: 30 | CG44: 30 | CH44: 30 | CI44: 30 | CJ44: 30 | CK44: 30 | CL44: 30 | CM44: 30 | CN44: 30 | CO44: 30 | CP44: 30 | CQ44: 30 | CR44: 30 | CS44: 30 | CT44: 30 | CU44: 30 | CV44: 30 | CW44: 30 | CX44: 30 | CY44: 30 | CZ44: 30 | DA44: 30 | DB44: 30 | DC44: 30 | DD44: 30 | DE44: 30 | DF44: 30 | DG44: 30
D45: MACRS Rate | E45: % | I45: =SUM(K45:XFD45) -> 1 | K45: =LOOKUP(K44,Lazard!77:77,Lazard!79:79) -> 0 | L45: =LOOKUP(L44,Lazard!77:77,Lazard!79:79) -> 0.2 | M45: =LOOKUP(M44,Lazard!77:77,Lazard!79:79) -> 0.32 | N45: =LOOKUP(N44,Lazard!77:77,Lazard!79:79) -> 0.1919298246 | O45: =LOOKUP(O44,Lazard!77:77,Lazard!79:79) -> 0.1152631579 | P45: =LOOKUP(P44,Lazard!77:77,Lazard!79:79) -> 0.1152631579 | Q45: =LOOKUP(Q44,Lazard!77:77,Lazard!79:79) -> 0.05754385965 | R45: =LOOKUP(R44,Lazard!77:77,Lazard!79:79) -> 0 | S45: =LOOKUP(S44,Lazard!77:77,Lazard!79:79) -> 0 | T45: =LOOKUP(T44,Lazard!77:77,Lazard!79:79) -> 0 | U45: =LOOKUP(U44,Lazard!77:77,Lazard!79:79) -> 0 | V45: =LOOKUP(V44,Lazard!77:77,Lazard!79:79) -> 0 | W45: =LOOKUP(W44,Lazard!77:77,Lazard!79:79) -> 0 | X45: =LOOKUP(X44,Lazard!77:77,Lazard!79:79) -> 0 | Y45: =LOOKUP(Y44,Lazard!77:77,Lazard!79:79) -> 0 | Z45: =LOOKUP(Z44,Lazard!77:77,Lazard!79:79) -> 0 | AA45: =LOOKUP(AA44,Lazard!77:77,Lazard!79:79) -> 0 | AB45: =LOOKUP(AB44,Lazard!77:77,Lazard!79:79) -> 0 | AC45: =LOOKUP(AC44,Lazard!77:77,Lazard!79:79) -> 0 | AD45: =LOOKUP(AD44,Lazard!77:77,Lazard!79:79) -> 0 | AE45: =LOOKUP(AE44,Lazard!77:77,Lazard!79:79) -> 0 | AF45: =LOOKUP(AF44,Lazard!77:77,Lazard!79:79) -> 0 | AG45: =LOOKUP(AG44,Lazard!77:77,Lazard!79:79) -> 0 | AH45: =LOOKUP(AH44,Lazard!77:77,Lazard!79:79) -> 0 | AI45: =LOOKUP(AI44,Lazard!77:77,Lazard!79:79) -> 0 | AJ45: =LOOKUP(AJ44,Lazard!77:77,Lazard!79:79) -> 0 | AK45: =LOOKUP(AK44,Lazard!77:77,Lazard!79:79) -> 0 | AL45: =LOOKUP(AL44,Lazard!77:77,Lazard!79:79) -> 0 | AM45: =LOOKUP(AM44,Lazard!77:77,Lazard!79:79) -> 0 | AN45: =LOOKUP(AN44,Lazard!77:77,Lazard!79:79) -> 0 | AO45: =LOOKUP(AO44,Lazard!77:77,Lazard!79:79) -> 0 | AP45: =LOOKUP(AP44,Lazard!77:77,Lazard!79:79) -> 0 | AQ45: =LOOKUP(AQ44,Lazard!77:77,Lazard!79:79) -> 0 | AR45: =LOOKUP(AR44,Lazard!77:77,Lazard!79:79) -> 0 | AS45: =LOOKUP(AS44,Lazard!77:77,Lazard!79:79) -> 0 | AT45: =LOOKUP(AT44,Lazard!77:77,Lazard!79:79) -> 0 | AU45: =LOOKUP(AU44,Lazard!77:77,Lazard!79:79) -> 0 | AV45: =LOOKUP(AV44,Lazard!77:77,Lazard!79:79) -> 0 | AW45: =LOOKUP(AW44,Lazard!77:77,Lazard!79:79) -> 0 | AX45: =LOOKUP(AX44,Lazard!77:77,Lazard!79:79) -> 0 | AY45: =LOOKUP(AY44,Lazard!77:77,Lazard!79:79) -> 0 | AZ45: =LOOKUP(AZ44,Lazard!77:77,Lazard!79:79) -> 0 | BA45: =LOOKUP(BA44,Lazard!77:77,Lazard!79:79) -> 0 | BB45: =LOOKUP(BB44,Lazard!77:77,Lazard!79:79) -> 0 | BC45: =LOOKUP(BC44,Lazard!77:77,Lazard!79:79) -> 0 | BD45: =LOOKUP(BD44,Lazard!77:77,Lazard!79:79) -> 0 | BE45: =LOOKUP(BE44,Lazard!77:77,Lazard!79:79) -> 0 | BF45: =LOOKUP(BF44,Lazard!77:77,Lazard!79:79) -> 0 | BG45: =LOOKUP(BG44,Lazard!77:77,Lazard!79:79) -> 0 | BH45: =LOOKUP(BH44,Lazard!77:77,Lazard!79:79) -> 0 | BI45: =LOOKUP(BI44,Lazard!77:77,Lazard!79:79) -> 0 | BJ45: =LOOKUP(BJ44,Lazard!77:77,Lazard!79:79) -> 0 | BK45: =LOOKUP(BK44,Lazard!77:77,Lazard!79:79) -> 0 | BL45: =LOOKUP(BL44,Lazard!77:77,Lazard!79:79) -> 0 | BM45: =LOOKUP(BM44,Lazard!77:77,Lazard!79:79) -> 0 | BN45: =LOOKUP(BN44,Lazard!77:77,Lazard!79:79) -> 0 | BO45: =LOOKUP(BO44,Lazard!77:77,Lazard!79:79) -> 0 | BP45: =LOOKUP(BP44,Lazard!77:77,Lazard!79:79) -> 0 | BQ45: =LOOKUP(BQ44,Lazard!77:77,Lazard!79:79) -> 0 | BR45: =LOOKUP(BR44,Lazard!77:77,Lazard!79:79) -> 0 | BS45: =LOOKUP(BS44,Lazard!77:77,Lazard!79:79) -> 0 | BT45: =LOOKUP(BT44,Lazard!77:77,Lazard!79:79) -> 0 | BU45: =LOOKUP(BU44,Lazard!77:77,Lazard!79:79) -> 0 | BV45: =LOOKUP(BV44,Lazard!77:77,Lazard!79:79) -> 0 | BW45: =LOOKUP(BW44,Lazard!77:77,Lazard!79:79) -> 0 | BX45: =LOOKUP(BX44,Lazard!77:77,Lazard!79:79) -> 0 | BY45: =LOOKUP(BY44,Lazard!77:77,Lazard!79:79) -> 0 | BZ45: =LOOKUP(BZ44,Lazard!77:77,Lazard!79:79) -> 0 | CA45: =LOOKUP(CA44,Lazard!77:77,Lazard!79:79) -> 0 | CB45: =LOOKUP(CB44,Lazard!77:77,Lazard!79:79) -> 0 | CC45: =LOOKUP(CC44,Lazard!77:77,Lazard!79:79) -> 0 | CD45: =LOOKUP(CD44,Lazard!77:77,Lazard!79:79) -> 0 | CE45: =LOOKUP(CE44,Lazard!77:77,Lazard!79:79) -> 0 | CF45: =LOOKUP(CF44,Lazard!77:77,Lazard!79:79) -> 0 | CG45: =LOOKUP(CG44,Lazard!77:77,Lazard!79:79) -> 0 | CH45: =LOOKUP(CH44,Lazard!77:77,Lazard!79:79) -> 0 | CI45: =LOOKUP(CI44,Lazard!77:77,Lazard!79:79) -> 0 | CJ45: =LOOKUP(CJ44,Lazard!77:77,Lazard!79:79) -> 0 | CK45: =LOOKUP(CK44,Lazard!77:77,Lazard!79:79) -> 0 | CL45: =LOOKUP(CL44,Lazard!77:77,Lazard!79:79) -> 0 | CM45: =LOOKUP(CM44,Lazard!77:77,Lazard!79:79) -> 0 | CN45: =LOOKUP(CN44,Lazard!77:77,Lazard!79:79) -> 0 | CO45: =LOOKUP(CO44,Lazard!77:77,Lazard!79:79) -> 0 | CP45: =LOOKUP(CP44,Lazard!77:77,Lazard!79:79) -> 0 | CQ45: =LOOKUP(CQ44,Lazard!77:77,Lazard!79:79) -> 0 | CR45: =LOOKUP(CR44,Lazard!77:77,Lazard!79:79) -> 0 | CS45: =LOOKUP(CS44,Lazard!77:77,Lazard!79:79) -> 0 | CT45: =LOOKUP(CT44,Lazard!77:77,Lazard!79:79) -> 0 | CU45: =LOOKUP(CU44,Lazard!77:77,Lazard!79:79) -> 0 | CV45: =LOOKUP(CV44,Lazard!77:77,Lazard!79:79) -> 0 | CW45: =LOOKUP(CW44,Lazard!77:77,Lazard!79:79) -> 0 | CX45: =LOOKUP(CX44,Lazard!77:77,Lazard!79:79) -> 0 | CY45: =LOOKUP(CY44,Lazard!77:77,Lazard!79:79) -> 0 | CZ45: =LOOKUP(CZ44,Lazard!77:77,Lazard!79:79) -> 0 | DA45: =LOOKUP(DA44,Lazard!77:77,Lazard!79:79) -> 0 | DB45: =LOOKUP(DB44,Lazard!77:77,Lazard!79:79) -> 0 | DC45: =LOOKUP(DC44,Lazard!77:77,Lazard!79:79) -> 0 | DD45: =LOOKUP(DD44,Lazard!77:77,Lazard!79:79) -> 0 | DE45: =LOOKUP(DE44,Lazard!77:77,Lazard!79:79) -> 0 | DF45: =LOOKUP(DF44,Lazard!77:77,Lazard!79:79) -> 0 | DG45: =LOOKUP(DG44,Lazard!77:77,Lazard!79:79) -> 0
D46: Accumulated Plant | E46: USD | K46: =J46+K22 -> 1470000000 | L46: =K46+L22 -> 1470000000 | M46: 1470000000 | N46: 1470000000 | O46: 1470000000 | P46: 1470000000 | Q46: 1470000000 | R46: 1470000000 | S46: 1470000000 | T46: 1470000000 | U46: 1470000000 | V46: 1470000000 | W46: 1470000000 | X46: 1470000000 | Y46: 1470000000 | Z46: 1470000000 | AA46: 1470000000 | AB46: 1470000000 | AC46: 1470000000 | AD46: 1470000000 | AE46: 1470000000 | AF46: 1470000000 | AG46: 1470000000 | AH46: 1470000000 | AI46: 1470000000 | AJ46: 1470000000 | AK46: 1470000000 | AL46: 1470000000 | AM46: 1470000000 | AN46: 1470000000 | AO46: 1470000000 | AP46: 1470000000 | AQ46: 1470000000 | AR46: 1470000000 | AS46: 1470000000 | AT46: 1470000000 | AU46: 1470000000 | AV46: 1470000000 | AW46: 1470000000 | AX46: 1470000000 | AY46: 1470000000 | AZ46: 1470000000 | BA46: 1470000000 | BB46: 1470000000 | BC46: 1470000000 | BD46: 1470000000 | BE46: 1470000000 | BF46: 1470000000 | BG46: 1470000000 | BH46: 1470000000 | BI46: 1470000000 | BJ46: 1470000000 | BK46: 1470000000 | BL46: 1470000000 | BM46: 1470000000 | BN46: 1470000000 | BO46: 1470000000 | BP46: 1470000000 | BQ46: 1470000000 | BR46: 1470000000 | BS46: 1470000000 | BT46: 1470000000 | BU46: 1470000000 | BV46: 1470000000 | BW46: 1470000000 | BX46: =BW46+BX22 -> 1470000000 | BY46: 1470000000 | BZ46: 1470000000 | CA46: 1470000000 | CB46: 1470000000 | CC46: 1470000000 | CD46: 1470000000 | CE46: 1470000000 | CF46: 1470000000 | CG46: 1470000000 | CH46: 1470000000 | CI46: 1470000000 | CJ46: 1470000000 | CK46: 1470000000 | CL46: 1470000000 | CM46: 1470000000 | CN46: 1470000000 | CO46: 1470000000 | CP46: 1470000000 | CQ46: 1470000000 | CR46: 1470000000 | CS46: 1470000000 | CT46: 1470000000 | CU46: 1470000000 | CV46: 1470000000 | CW46: 1470000000 | CX46: 1470000000 | CY46: 1470000000 | CZ46: 1470000000 | DA46: 1470000000 | DB46: 1470000000 | DC46: 1470000000 | DD46: 1470000000 | DE46: 1470000000 | DF46: 1470000000 | DG46: 1470000000
D47: Depreciation | E47: USD | I47: =SUM(K47:XFD47) -> 1470000000 | K47: =K46*K45 -> 0 | L47: =L46*L45 -> 294000000 | M47: 470400000 | N47: 282136842.1 | O47: 169436842.1 | P47: 169436842.1 | Q47: 84589473.68 | R47: 0 | S47: 0 | T47: 0 | U47: 0 | V47: 0 | W47: 0 | X47: 0 | Y47: 0 | Z47: 0 | AA47: 0 | AB47: 0 | AC47: 0 | AD47: 0 | AE47: 0 | AF47: 0 | AG47: 0 | AH47: 0 | AI47: 0 | AJ47: 0 | AK47: 0 | AL47: 0 | AM47: 0 | AN47: 0 | AO47: 0 | AP47: 0 | AQ47: 0 | AR47: 0 | AS47: 0 | AT47: 0 | AU47: 0 | AV47: 0 | AW47: 0 | AX47: 0 | AY47: 0 | AZ47: 0 | BA47: 0 | BB47: 0 | BC47: 0 | BD47: 0 | BE47: 0 | BF47: 0 | BG47: 0 | BH47: 0 | BI47: 0 | BJ47: 0 | BK47: 0 | BL47: 0 | BM47: 0 | BN47: 0 | BO47: 0 | BP47: 0 | BQ47: 0 | BR47: 0 | BS47: 0 | BT47: 0 | BU47: 0 | BV47: 0 | BW47: 0 | BX47: =BX46*BX45 -> 0 | BY47: 0 | BZ47: 0 | CA47: 0 | CB47: 0 | CC47: 0 | CD47: 0 | CE47: 0 | CF47: 0 | CG47: 0 | CH47: 0 | CI47: 0 | CJ47: 0 | CK47: 0 | CL47: 0 | CM47: 0 | CN47: 0 | CO47: 0 | CP47: 0 | CQ47: 0 | CR47: 0 | CS47: 0 | CT47: 0 | CU47: 0 | CV47: 0 | CW47: 0 | CX47: 0 | CY47: 0 | CZ47: 0 | DA47: 0 | DB47: 0 | DC47: 0 | DD47: 0 | DE47: 0 | DF47: 0 | DG47: 0
D48: Accumulated Depreciation - MACRS | E48: USD | K48: =J48+K47 -> 0 | L48: =K48+L47 -> 294000000 | M48: 764400000 | N48: 1046536842 | O48: 1215973684 | P48: 1385410526 | Q48: 1470000000 | R48: 1470000000 | S48: 1470000000 | T48: 1470000000 | U48: 1470000000 | V48: 1470000000 | W48: 1470000000 | X48: 1470000000 | Y48: 1470000000 | Z48: 1470000000 | AA48: 1470000000 | AB48: 1470000000 | AC48: 1470000000 | AD48: 1470000000 | AE48: 1470000000 | AF48: 1470000000 | AG48: 1470000000 | AH48: 1470000000 | AI48: 1470000000 | AJ48: 1470000000 | AK48: 1470000000 | AL48: 1470000000 | AM48: 1470000000 | AN48: 1470000000 | AO48: 1470000000 | AP48: 1470000000 | AQ48: 1470000000 | AR48: 1470000000 | AS48: 1470000000 | AT48: 1470000000 | AU48: 1470000000 | AV48: 1470000000 | AW48: 1470000000 | AX48: 1470000000 | AY48: 1470000000 | AZ48: 1470000000 | BA48: 1470000000 | BB48: 1470000000 | BC48: 1470000000 | BD48: 1470000000 | BE48: 1470000000 | BF48: 1470000000 | BG48: 1470000000 | BH48: 1470000000 | BI48: 1470000000 | BJ48: 1470000000 | BK48: 1470000000 | BL48: 1470000000 | BM48: 1470000000 | BN48: 1470000000 | BO48: 1470000000 | BP48: 1470000000 | BQ48: 1470000000 | BR48: 1470000000 | BS48: 1470000000 | BT48: 1470000000 | BU48: 1470000000 | BV48: 1470000000 | BW48: 1470000000 | BX48: =BW48+BX47 -> 1470000000 | BY48: 1470000000 | BZ48: 1470000000 | CA48: 1470000000 | CB48: 1470000000 | CC48: 1470000000 | CD48: 1470000000 | CE48: 1470000000 | CF48: 1470000000 | CG48: 1470000000 | CH48: 1470000000 | CI48: 1470000000 | CJ48: 1470000000 | CK48: 1470000000 | CL48: 1470000000 | CM48: 1470000000 | CN48: 1470000000 | CO48: 1470000000 | CP48: 1470000000 | CQ48: 1470000000 | CR48: 1470000000 | CS48: 1470000000 | CT48: 1470000000 | CU48: 1470000000 | CV48: 1470000000 | CW48: 1470000000 | CX48: 1470000000 | CY48: 1470000000 | CZ48: 1470000000 | DA48: 1470000000 | DB48: 1470000000 | DC48: 1470000000 | DD48: 1470000000 | DE48: 1470000000 | DF48: 1470000000 | DG48: 1470000000
D50: Straight Line Depreciation Rate | E50: % | F50: =1/F9 -> 0.03333333333 | I50: =SUM(K50:XFD50) -> 1 | K50: =$F$50*K9 -> 0 | L50: =$F$50*L9 -> 0.03333333333 | M50: 0.03333333333 | N50: 0.03333333333 | O50: 0.03333333333 | P50: 0.03333333333 | Q50: 0.03333333333 | R50: 0.03333333333 | S50: 0.03333333333 | T50: 0.03333333333 | U50: 0.03333333333 | V50: 0.03333333333 | W50: 0.03333333333 | X50: 0.03333333333 | Y50: 0.03333333333 | Z50: 0.03333333333 | AA50: 0.03333333333 | AB50: 0.03333333333 | AC50: 0.03333333333 | AD50: 0.03333333333 | AE50: 0.03333333333 | AF50: 0.03333333333 | AG50: 0.03333333333 | AH50: 0.03333333333 | AI50: 0.03333333333 | AJ50: 0.03333333333 | AK50: 0.03333333333 | AL50: 0.03333333333 | AM50: 0.03333333333 | AN50: 0.03333333333 | AO50: 0.03333333333 | AP50: 0 | AQ50: 0 | AR50: 0 | AS50: 0 | AT50: 0 | AU50: 0 | AV50: 0 | AW50: 0 | AX50: 0 | AY50: 0 | AZ50: 0 | BA50: 0 | BB50: 0 | BC50: 0 | BD50: 0 | BE50: 0 | BF50: 0 | BG50: 0 | BH50: 0 | BI50: 0 | BJ50: 0 | BK50: 0 | BL50: 0 | BM50: 0 | BN50: 0 | BO50: 0 | BP50: 0 | BQ50: 0 | BR50: 0 | BS50: 0 | BT50: 0 | BU50: 0 | BV50: 0 | BW50: 0 | BX50: =$F$50*BX9 -> 0 | BY50: 0 | BZ50: 0 | CA50: 0 | CB50: 0 | CC50: 0 | CD50: 0 | CE50: 0 | CF50: 0 | CG50: 0 | CH50: 0 | CI50: 0 | CJ50: 0 | CK50: 0 | CL50: 0 | CM50: 0 | CN50: 0 | CO50: 0 | CP50: 0 | CQ50: 0 | CR50: 0 | CS50: 0 | CT50: 0 | CU50: 0 | CV50: 0 | CW50: 0 | CX50: 0 | CY50: 0 | CZ50: 0 | DA50: 0 | DB50: 0 | DC50: 0 | DD50: 0 | DE50: 0 | DF50: 0 | DG50: 0
D51: Straight Line Depreciation | E51: USD | I51: =SUM(K51:XFD51) -> 1470000000 | K51: =K50*K46 -> 0 | L51: =L50*L46 -> 49000000 | M51: 49000000 | N51: 49000000 | O51: 49000000 | P51: 49000000 | Q51: 49000000 | R51: 49000000 | S51: 49000000 | T51: 49000000 | U51: 49000000 | V51: 49000000 | W51: 49000000 | X51: 49000000 | Y51: 49000000 | Z51: 49000000 | AA51: 49000000 | AB51: 49000000 | AC51: 49000000 | AD51: 49000000 | AE51: 49000000 | AF51: 49000000 | AG51: 49000000 | AH51: 49000000 | AI51: 49000000 | AJ51: 49000000 | AK51: 49000000 | AL51: 49000000 | AM51: 49000000 | AN51: 49000000 | AO51: 49000000 | AP51: 0 | AQ51: 0 | AR51: 0 | AS51: 0 | AT51: 0 | AU51: 0 | AV51: 0 | AW51: 0 | AX51: 0 | AY51: 0 | AZ51: 0 | BA51: 0 | BB51: 0 | BC51: 0 | BD51: 0 | BE51: 0 | BF51: 0 | BG51: 0 | BH51: 0 | BI51: 0 | BJ51: 0 | BK51: 0 | BL51: 0 | BM51: 0 | BN51: 0 | BO51: 0 | BP51: 0 | BQ51: 0 | BR51: 0 | BS51: 0 | BT51: 0 | BU51: 0 | BV51: 0 | BW51: 0 | BX51: =BX50*BX46 -> 0 | BY51: 0 | BZ51: 0 | CA51: 0 | CB51: 0 | CC51: 0 | CD51: 0 | CE51: 0 | CF51: 0 | CG51: 0 | CH51: 0 | CI51: 0 | CJ51: 0 | CK51: 0 | CL51: 0 | CM51: 0 | CN51: 0 | CO51: 0 | CP51: 0 | CQ51: 0 | CR51: 0 | CS51: 0 | CT51: 0 | CU51: 0 | CV51: 0 | CW51: 0 | CX51: 0 | CY51: 0 | CZ51: 0 | DA51: 0 | DB51: 0 | DC51: 0 | DD51: 0 | DE51: 0 | DF51: 0 | DG51: 0
D53: Depreciation Applied | E53: Flag | F53: ='Input C'!F58 -> FALSE | K53: =IF($F$53,K47,K51) -> 0 | L53: =IF($F$53,L47,L51) -> 49000000 | M53: 49000000 | N53: 49000000 | O53: 49000000 | P53: 49000000 | Q53: 49000000 | R53: 49000000 | S53: 49000000 | T53: 49000000 | U53: 49000000 | V53: 49000000 | W53: 49000000 | X53: 49000000 | Y53: 49000000 | Z53: 49000000 | AA53: 49000000 | AB53: 49000000 | AC53: 49000000 | AD53: 49000000 | AE53: 49000000 | AF53: 49000000 | AG53: 49000000 | AH53: 49000000 | AI53: 49000000 | AJ53: 49000000 | AK53: 49000000 | AL53: 49000000 | AM53: 49000000 | AN53: 49000000 | AO53: 49000000 | AP53: 0 | AQ53: 0 | AR53: 0 | AS53: 0 | AT53: 0 | AU53: 0 | AV53: 0 | AW53: 0 | AX53: 0 | AY53: 0 | AZ53: 0 | BA53: 0 | BB53: 0 | BC53: 0 | BD53: 0 | BE53: 0 | BF53: 0 | BG53: 0 | BH53: 0 | BI53: 0 | BJ53: 0 | BK53: 0 | BL53: 0 | BM53: 0 | BN53: 0 | BO53: 0 | BP53: 0 | BQ53: 0 | BR53: 0 | BS53: 0 | BT53: 0 | BU53: 0 | BV53: 0 | BW53: 0 | BX53: =IF($F$53,BX47,BX51) -> 0 | BY53: 0 | BZ53: 0 | CA53: 0 | CB53: 0 | CC53: 0 | CD53: 0 | CE53: 0 | CF53: 0 | CG53: 0 | CH53: 0 | CI53: 0 | CJ53: 0 | CK53: 0 | CL53: 0 | CM53: 0 | CN53: 0 | CO53: 0 | CP53: 0 | CQ53: 0 | CR53: 0 | CS53: 0 | CT53: 0 | CU53: 0 | CV53: 0 | CW53: 0 | CX53: 0 | CY53: 0 | CZ53: 0 | DA53: 0 | DB53: 0 | DC53: 0 | DD53: 0 | DE53: 0 | DF53: 0 | DG53: 0
D55: EBIT | E55: USD | I55: =SUM(K55:XFD55) -> 2021606725 | K55: =K33-K53 -> 0 | L55: =L33-L53 -> 170865591.7 | M55: 165138112.3 | N55: 159281764.7 | O55: 153293649.2 | P55: 147170801.1 | Q55: 140910189 | R55: 134508713 | S55: 127963203.9 | T55: 121270420.8 | U55: 114427050.1 | V55: 107429703.5 | W55: 100274916.7 | X55: 92959147.13 | Y55: 85478772.75 | Z55: 77830089.96 | AA55: 70009311.8 | AB55: 62012566.13 | AC55: 53835893.69 | AD55: 45475246.11 | AE55: 36926483.97 | AF55: 28185374.68 | AG55: 19247590.42 | AH55: 10108706.03 | AI55: 764196.7292 | AJ55: -8790564.027 | AK55: -18560306.9 | AL55: -28549868.99 | AM55: -38764196.22 | AN55: -49208345.82 | AO55: -59887488.78 | AP55: 0 | AQ55: 0 | AR55: 0 | AS55: 0 | AT55: 0 | AU55: 0 | AV55: 0 | AW55: 0 | AX55: 0 | AY55: 0 | AZ55: 0 | BA55: 0 | BB55: 0 | BC55: 0 | BD55: 0 | BE55: 0 | BF55: 0 | BG55: 0 | BH55: 0 | BI55: 0 | BJ55: 0 | BK55: 0 | BL55: 0 | BM55: 0 | BN55: 0 | BO55: 0 | BP55: 0 | BQ55: 0 | BR55: 0 | BS55: 0 | BT55: 0 | BU55: 0 | BV55: 0 | BW55: 0 | BX55: =BX33-BX53 -> 0 | BY55: 0 | BZ55: 0 | CA55: 0 | CB55: 0 | CC55: 0 | CD55: 0 | CE55: 0 | CF55: 0 | CG55: 0 | CH55: 0 | CI55: 0 | CJ55: 0 | CK55: 0 | CL55: 0 | CM55: 0 | CN55: 0 | CO55: 0 | CP55: 0 | CQ55: 0 | CR55: 0 | CS55: 0 | CT55: 0 | CU55: 0 | CV55: 0 | CW55: 0 | CX55: 0 | CY55: 0 | CZ55: 0 | DA55: 0 | DB55: 0 | DC55: 0 | DD55: 0 | DE55: 0 | DF55: 0 | DG55: 0
D56: Taxes on EBIT | E56: USD | F56: ='Input C'!F63 -> 0.4 | K56: =$F$56*K55 -> 0 | L56: =$F$56*L55 -> 68346236.68 | M56: 66055244.93 | N56: 63712705.87 | O56: 61317459.68 | P56: 58868320.45 | Q56: 56364075.59 | R56: 53803485.22 | S56: 51185281.56 | T56: 48508168.32 | U56: 45770820.04 | V56: 42971881.41 | W56: 40109966.67 | X56: 37183658.85 | Y56: 34191509.1 | Z56: 31132035.98 | AA56: 28003724.72 | AB56: 24805026.45 | AC56: 21534357.48 | AD56: 18190098.45 | AE56: 14770593.59 | AF56: 11274149.87 | AG56: 7699036.17 | AH56: 4043482.41 | AI56: 305678.6917 | AJ56: -3516225.611 | AK56: -7424122.76 | AL56: -11419947.59 | AM56: -15505678.49 | AN56: -19683338.33 | AO56: -23954995.51 | AP56: 0 | AQ56: 0 | AR56: 0 | AS56: 0 | AT56: 0 | AU56: 0 | AV56: 0 | AW56: 0 | AX56: 0 | AY56: 0 | AZ56: 0 | BA56: 0 | BB56: 0 | BC56: 0 | BD56: 0 | BE56: 0 | BF56: 0 | BG56: 0 | BH56: 0 | BI56: 0 | BJ56: 0 | BK56: 0 | BL56: 0 | BM56: 0 | BN56: 0 | BO56: 0 | BP56: 0 | BQ56: 0 | BR56: 0 | BS56: 0 | BT56: 0 | BU56: 0 | BV56: 0 | BW56: 0 | BX56: =$F$56*BX55 -> 0 | BY56: 0 | BZ56: 0 | CA56: 0 | CB56: 0 | CC56: 0 | CD56: 0 | CE56: 0 | CF56: 0 | CG56: 0 | CH56: 0 | CI56: 0 | CJ56: 0 | CK56: 0 | CL56: 0 | CM56: 0 | CN56: 0 | CO56: 0 | CP56: 0 | CQ56: 0 | CR56: 0 | CS56: 0 | CT56: 0 | CU56: 0 | CV56: 0 | CW56: 0 | CX56: 0 | CY56: 0 | CZ56: 0 | DA56: 0 | DB56: 0 | DC56: 0 | DD56: 0 | DE56: 0 | DF56: 0 | DG56: 0
D58: Interest Expense | E58: USD | K58: =K95 -> 0 | L58: =L95 -> 70560000 | M58: 69937136.3 | N58: 69264443.5 | O58: 68537935.28 | P58: 67753306.41 | Q58: 66905907.22 | R58: 65990716.1 | S58: 65002309.69 | T58: 63934830.76 | U58: 62781953.52 | V58: 61536846.11 | W58: 60192130.09 | X58: 58739836.8 | Y58: 57171360.05 | Z58: 55477405.15 | AA58: 53647933.86 | AB58: 51672104.87 | AC58: 49538209.56 | AD58: 47233602.63 | AE58: 44744627.14 | AF58: 42056533.61 | AG58: 39153392.6 | AH58: 36018000.3 | AI58: 32631776.63 | AJ58: 28974655.06 | AK58: 25024963.76 | AL58: 20759297.16 | AM58: 16152377.24 | AN58: 11176903.72 | AO58: 5803392.315 | AP58: -6.794929504e-08 | AQ58: -7.338523865e-08 | AR58: -7.925605774e-08 | AS58: -8.559654236e-08 | AT58: -9.244426575e-08 | AU58: -9.983980701e-08 | AV58: -1.078269916e-07 | AW58: -1.164531509e-07 | AX58: -1.25769403e-07 | AY58: -1.358309552e-07 | AZ58: -1.466974316e-07 | BA58: -1.584332261e-07 | BB58: -1.711078842e-07 | BC58: -1.84796515e-07 | BD58: -1.995802362e-07 | BE58: -2.155466551e-07 | BF58: -2.327903875e-07 | BG58: -2.514136185e-07 | BH58: -2.71526708e-07 | BI58: -2.932488446e-07 | BJ58: -3.167087522e-07 | BK58: -3.420454523e-07 | BL58: -3.694090885e-07 | BM58: -3.989618156e-07 | BN58: -4.308787608e-07 | BO58: -4.653490617e-07 | BP58: -5.025769866e-07 | BQ58: -5.427831456e-07 | BR58: -5.862057972e-07 | BS58: -6.33102261e-07 | BT58: -6.837504419e-07 | BU58: -7.384504772e-07 | BV58: -7.975265154e-07 | BW58: -8.613286366e-07 | BX58: =BX95 -> -9.302349276e-07 | BY58: -1.004653722e-06 | BZ58: -1.08502602e-06 | CA58: -1.171828101e-06 | CB58: -1.265574349e-06 | CC58: -1.366820297e-06 | CD58: -1.476165921e-06 | CE58: -1.594259195e-06 | CF58: -1.72179993e-06 | CG58: -1.859543925e-06 | CH58: -2.008307438e-06 | CI58: -2.168972034e-06 | CJ58: -2.342489796e-06 | CK58: -2.52988898e-06 | CL58: -2.732280098e-06 | CM58: -2.950862506e-06 | CN58: -3.186931507e-06 | CO58: -3.441886027e-06 | CP58: -3.717236909e-06 | CQ58: -4.014615862e-06 | CR58: -4.335785131e-06 | CS58: -4.682647942e-06 | CT58: -5.057259777e-06 | CU58: -5.461840559e-06 | CV58: -5.898787804e-06 | CW58: -6.370690828e-06 | CX58: -6.880346094e-06 | CY58: -7.430773782e-06 | CZ58: -8.025235685e-06 | DA58: -8.667254539e-06 | DB58: -9.360634902e-06 | DC58: -1.010948569e-05 | DD58: -1.091824455e-05 | DE58: -1.179170411e-05 | DF58: -1.273504044e-05 | DG58: -1.375384368e-05
D59: EBT | K59: =K55-K58 -> 0 | L59: =L55-L58 -> 100305591.7 | M59: 95200976.03 | N59: 90017321.17 | O59: 84755713.92 | P59: 79417494.72 | Q59: 74004281.75 | R59: 68517996.94 | S59: 62960894.21 | T59: 57335590.04 | U59: 51645096.57 | V59: 45892857.43 | W59: 40082786.59 | X59: 34219310.32 | Y59: 28307412.71 | Z59: 22352684.81 | AA59: 16361377.94 | AB59: 10340461.26 | AC59: 4297684.128 | AD59: -1758356.512 | AE59: -7818143.167 | AF59: -13871158.93 | AG59: -19905802.17 | AH59: -25909294.28 | AI59: -31867579.9 | AJ59: -37765219.09 | AK59: -43585270.66 | AL59: -49309166.15 | AM59: -54916573.46 | AN59: -60385249.54 | AO59: -65690881.1 | AP59: 6.794929504e-08 | AQ59: 7.338523865e-08 | AR59: 7.925605774e-08 | AS59: 8.559654236e-08 | AT59: 9.244426575e-08 | AU59: 9.983980701e-08 | AV59: 1.078269916e-07 | AW59: 1.164531509e-07 | AX59: 1.25769403e-07 | AY59: 1.358309552e-07 | AZ59: 1.466974316e-07 | BA59: 1.584332261e-07 | BB59: 1.711078842e-07 | BC59: 1.84796515e-07 | BD59: 1.995802362e-07 | BE59: 2.155466551e-07 | BF59: 2.327903875e-07 | BG59: 2.514136185e-07 | BH59: 2.71526708e-07 | BI59: 2.932488446e-07 | BJ59: 3.167087522e-07 | BK59: 3.420454523e-07 | BL59: 3.694090885e-07 | BM59: 3.989618156e-07 | BN59: 4.308787608e-07 | BO59: 4.653490617e-07 | BP59: 5.025769866e-07 | BQ59: 5.427831456e-07 | BR59: 5.862057972e-07 | BS59: 6.33102261e-07 | BT59: 6.837504419e-07 | BU59: 7.384504772e-07 | BV59: 7.975265154e-07 | BW59: 8.613286366e-07 | BX59: =BX55-BX58 -> 9.302349276e-07 | BY59: 1.004653722e-06 | BZ59: 1.08502602e-06 | CA59: 1.171828101e-06 | CB59: 1.265574349e-06 | CC59: 1.366820297e-06 | CD59: 1.476165921e-06 | CE59: 1.594259195e-06 | CF59: 1.72179993e-06 | CG59: 1.859543925e-06 | CH59: 2.008307438e-06 | CI59: 2.168972034e-06 | CJ59: 2.342489796e-06 | CK59: 2.52988898e-06 | CL59: 2.732280098e-06 | CM59: 2.950862506e-06 | CN59: 3.186931507e-06 | CO59: 3.441886027e-06 | CP59: 3.717236909e-06 | CQ59: 4.014615862e-06 | CR59: 4.335785131e-06 | CS59: 4.682647942e-06 | CT59: 5.057259777e-06 | CU59: 5.461840559e-06 | CV59: 5.898787804e-06 | CW59: 6.370690828e-06 | CX59: 6.880346094e-06 | CY59: 7.430773782e-06 | CZ59: 8.025235685e-06 | DA59: 8.667254539e-06 | DB59: 9.360634902e-06 | DC59: 1.010948569e-05 | DD59: 1.091824455e-05 | DE59: 1.179170411e-05 | DF59: 1.273504044e-05 | DG59: 1.375384368e-05
D60: Taxes Computed | E60: USD | F60: ='Input C'!F63 -> 0.4 | I60: =SUM(K60:XFD60) -> 221293134.9 | K60: =K59*$F$60 -> 0 | L60: =L59*$F$60 -> 40122236.68 | M60: 38080390.41 | N60: 36006928.47 | O60: 33902285.57 | P60: 31766997.89 | Q60: 29601712.7 | R60: 27407198.78 | S60: 25184357.69 | T60: 22934236.02 | U60: 20658038.63 | V60: 18357142.97 | W60: 16033114.64 | X60: 13687724.13 | Y60: 11322965.08 | Z60: 8941073.923 | AA60: 6544551.175 | AB60: 4136184.505 | AC60: 1719073.651 | AD60: -703342.6047 | AE60: -3127257.267 | AF60: -5548463.572 | AG60: -7962320.869 | AH60: -10363717.71 | AI60: -12747031.96 | AJ60: -15106087.63 | AK60: -17434108.27 | AL60: -19723666.46 | AM60: -21966629.38 | AN60: -24154099.81 | AO60: -26276352.44 | AP60: 2.717971802e-08 | AQ60: 2.935409546e-08 | AR60: 3.17024231e-08 | AS60: 3.423861694e-08 | AT60: 3.69777063e-08 | AU60: 3.99359228e-08 | AV60: 4.313079663e-08 | AW60: 4.658126036e-08 | AX60: 5.030776119e-08 | AY60: 5.433238208e-08 | AZ60: 5.867897265e-08 | BA60: 6.337329046e-08 | BB60: 6.84431537e-08 | BC60: 7.391860599e-08 | BD60: 7.983209447e-08 | BE60: 8.621866203e-08 | BF60: 9.311615499e-08 | BG60: 1.005654474e-07 | BH60: 1.086106832e-07 | BI60: 1.172995378e-07 | BJ60: 1.266835009e-07 | BK60: 1.368181809e-07 | BL60: 1.477636354e-07 | BM60: 1.595847262e-07 | BN60: 1.723515043e-07 | BO60: 1.861396247e-07 | BP60: 2.010307947e-07 | BQ60: 2.171132582e-07 | BR60: 2.344823189e-07 | BS60: 2.532409044e-07 | BT60: 2.735001768e-07 | BU60: 2.953801909e-07 | BV60: 3.190106062e-07 | BW60: 3.445314547e-07 | BX60: =BX59*$F$60 -> 3.72093971e-07 | BY60: 4.018614887e-07 | BZ60: 4.340104078e-07 | CA60: 4.687312404e-07 | CB60: 5.062297397e-07 | CC60: 5.467281188e-07 | CD60: 5.904663683e-07 | CE60: 6.377036778e-07 | CF60: 6.88719972e-07 | CG60: 7.438175698e-07 | CH60: 8.033229754e-07 | CI60: 8.675888134e-07 | CJ60: 9.369959185e-07 | CK60: 1.011955592e-06 | CL60: 1.092912039e-06 | CM60: 1.180345002e-06 | CN60: 1.274772603e-06 | CO60: 1.376754411e-06 | CP60: 1.486894764e-06 | CQ60: 1.605846345e-06 | CR60: 1.734314052e-06 | CS60: 1.873059177e-06 | CT60: 2.022903911e-06 | CU60: 2.184736224e-06 | CV60: 2.359515122e-06 | CW60: 2.548276331e-06 | CX60: 2.752138438e-06 | CY60: 2.972309513e-06 | CZ60: 3.210094274e-06 | DA60: 3.466901816e-06 | DB60: 3.744253961e-06 | DC60: 4.043794278e-06 | DD60: 4.36729782e-06 | DE60: 4.716681646e-06 | DF60: 5.094016177e-06 | DG60: 5.501537472e-06
D61: Taxes from UDF | E61: USD | I61: =SUM(K61:XFD61) -> 435596216.9 | K61: =K251 -> 0 | L61: =L251 -> 40122236.68 | M61: 38988655.61 | N61: 37808830.71 | O61: 36580456.51 | P61: 35301098.46 | Q61: 33968185.39 | R61: 32579001.4 | S61: 31130677.31 | T61: 29620181.63 | U61: 28044310.87 | V61: 26399679.42 | W61: 24682708.67 | X61: 22889615.59 | Y61: 21016400.56 | Z61: 19058834.45 | AA61: 17012444.99 | AB61: 14872502.24 | AC61: 12634003.22 | AD61: 10291655.61 | AE61: 7839860.461 | AF61: 5272693.836 | AG61: 2583887.377 | AH61: -233192.3332 | AI61: -3185565.646 | AJ61: -6280663.053 | AK61: -9526349.795 | AL61: -12930951.97 | AM61: -16503284.21 | AN61: -20252679.05 | AO61: -24189018.08 | AP61: 0 | AQ61: 0 | AR61: 0 | AS61: 0 | AT61: 0 | AU61: 0 | AV61: 0 | AW61: 0 | AX61: 0 | AY61: 0 | AZ61: 0 | BA61: 0 | BB61: 0 | BC61: 0 | BD61: 0 | BE61: 0 | BF61: 0 | BG61: 0 | BH61: 0 | BI61: 0 | BJ61: 0 | BK61: 0 | BL61: 0 | BM61: 0 | BN61: 0 | BO61: 0 | BP61: 0 | BQ61: 0 | BR61: 0 | BS61: 0 | BT61: 0 | BU61: 0 | BV61: 0 | BW61: 0 | BX61: =BX251 -> 0 | BY61: 0 | BZ61: 0 | CA61: 0 | CB61: 0 | CC61: 0 | CD61: 0 | CE61: 0 | CF61: 0 | CG61: 0 | CH61: 0 | CI61: 0 | CJ61: 0 | CK61: 0 | CL61: 0 | CM61: 0 | CN61: 0 | CO61: 0 | CP61: 0 | CQ61: 0 | CR61: 0 | CS61: 0 | CT61: 0 | CU61: 0 | CV61: 0 | CW61: 0 | CX61: 0 | CY61: 0 | CZ61: 0 | DA61: 0 | DB61: 0 | DC61: 0 | DD61: 0 | DE61: 0 | DF61: 0
C63: CFADS
D64: EBITDA | E64: USD | K64: =K33 -> 0 | L64: =L33 -> 219865591.7 | M64: 214138112.3 | N64: 208281764.7 | O64: 202293649.2 | P64: 196170801.1 | Q64: 189910189 | R64: 183508713 | S64: 176963203.9 | T64: 170270420.8 | U64: 163427050.1 | V64: 156429703.5 | W64: 149274916.7 | X64: 141959147.1 | Y64: 134478772.8 | Z64: 126830090 | AA64: 119009311.8 | AB64: 111012566.1 | AC64: 102835893.7 | AD64: 94475246.11 | AE64: 85926483.97 | AF64: 77185374.68 | AG64: 68247590.42 | AH64: 59108706.03 | AI64: 49764196.73 | AJ64: 40209435.97 | AK64: 30439693.1 | AL64: 20450131.01 | AM64: 10235803.78 | AN64: -208345.8193 | AO64: -10887488.78 | AP64: 0 | AQ64: 0 | AR64: 0 | AS64: 0 | AT64: 0 | AU64: 0 | AV64: 0 | AW64: 0 | AX64: 0 | AY64: 0 | AZ64: 0 | BA64: 0 | BB64: 0 | BC64: 0 | BD64: 0 | BE64: 0 | BF64: 0 | BG64: 0 | BH64: 0 | BI64: 0 | BJ64: 0 | BK64: 0 | BL64: 0 | BM64: 0 | BN64: 0 | BO64: 0 | BP64: 0 | BQ64: 0 | BR64: 0 | BS64: 0 | BT64: 0 | BU64: 0 | BV64: 0 | BW64: 0 | BX64: =BX33 -> 0 | BY64: 0 | BZ64: 0 | CA64: 0 | CB64: 0 | CC64: 0 | CD64: 0 | CE64: 0 | CF64: 0 | CG64: 0 | CH64: 0 | CI64: 0 | CJ64: 0 | CK64: 0 | CL64: 0 | CM64: 0 | CN64: 0 | CO64: 0 | CP64: 0 | CQ64: 0 | CR64: 0 | CS64: 0 | CT64: 0 | CU64: 0 | CV64: 0 | CW64: 0 | CX64: 0 | CY64: 0 | CZ64: 0 | DA64: 0 | DB64: 0 | DC64: 0 | DD64: 0 | DE64: 0 | DF64: 0 | DG64: 0
D65: Less: Tax | E65: USD | F65: ='Input C'!F67 -> TRUE | K65: =IF($F$65,K60,K61) -> 0 | L65: =IF($F$65,L60,L61) -> 40122236.68 | M65: 38080390.41 | N65: 36006928.47 | O65: 33902285.57 | P65: 31766997.89 | Q65: 29601712.7 | R65: 27407198.78 | S65: 25184357.69 | T65: 22934236.02 | U65: 20658038.63 | V65: 18357142.97 | W65: 16033114.64 | X65: 13687724.13 | Y65: 11322965.08 | Z65: 8941073.923 | AA65: 6544551.175 | AB65: 4136184.505 | AC65: 1719073.651 | AD65: -703342.6047 | AE65: -3127257.267 | AF65: -5548463.572 | AG65: -7962320.869 | AH65: -10363717.71 | AI65: -12747031.96 | AJ65: -15106087.63 | AK65: -17434108.27 | AL65: -19723666.46 | AM65: -21966629.38 | AN65: -24154099.81 | AO65: -26276352.44 | AP65: 2.717971802e-08 | AQ65: 2.935409546e-08 | AR65: 3.17024231e-08 | AS65: 3.423861694e-08 | AT65: 3.69777063e-08 | AU65: 3.99359228e-08 | AV65: 4.313079663e-08 | AW65: 4.658126036e-08 | AX65: 5.030776119e-08 | AY65: 5.433238208e-08 | AZ65: 5.867897265e-08 | BA65: 6.337329046e-08 | BB65: 6.84431537e-08 | BC65: 7.391860599e-08 | BD65: 7.983209447e-08 | BE65: 8.621866203e-08 | BF65: 9.311615499e-08 | BG65: 1.005654474e-07 | BH65: 1.086106832e-07 | BI65: 1.172995378e-07 | BJ65: 1.266835009e-07 | BK65: 1.368181809e-07 | BL65: 1.477636354e-07 | BM65: 1.595847262e-07 | BN65: 1.723515043e-07 | BO65: 1.861396247e-07 | BP65: 2.010307947e-07 | BQ65: 2.171132582e-07 | BR65: 2.344823189e-07 | BS65: 2.532409044e-07 | BT65: 2.735001768e-07 | BU65: 2.953801909e-07 | BV65: 3.190106062e-07 | BW65: 3.445314547e-07 | BX65: =IF($F$65,BX60,BX61) -> 3.72093971e-07 | BY65: 4.018614887e-07 | BZ65: 4.340104078e-07 | CA65: 4.687312404e-07 | CB65: 5.062297397e-07 | CC65: 5.467281188e-07 | CD65: 5.904663683e-07 | CE65: 6.377036778e-07 | CF65: 6.88719972e-07 | CG65: 7.438175698e-07 | CH65: 8.033229754e-07 | CI65: 8.675888134e-07 | CJ65: 9.369959185e-07 | CK65: 1.011955592e-06 | CL65: 1.092912039e-06 | CM65: 1.180345002e-06 | CN65: 1.274772603e-06 | CO65: 1.376754411e-06 | CP65: 1.486894764e-06 | CQ65: 1.605846345e-06 | CR65: 1.734314052e-06 | CS65: 1.873059177e-06 | CT65: 2.022903911e-06 | CU65: 2.184736224e-06 | CV65: 2.359515122e-06 | CW65: 2.548276331e-06 | CX65: 2.752138438e-06 | CY65: 2.972309513e-06 | CZ65: 3.210094274e-06 | DA65: 3.466901816e-06 | DB65: 3.744253961e-06 | DC65: 4.043794278e-06 | DD65: 4.36729782e-06 | DE65: 4.716681646e-06 | DF65: 5.094016177e-06 | DG65: 5.501537472e-06
D66: CFADS | E66: USD | K66: =K64-K65 -> 0 | L66: =L64-L65 -> 179743355 | M66: 176057721.9 | N66: 172274836.2 | O66: 168391363.6 | P66: 164403803.2 | Q66: 160308476.3 | R66: 156101514.3 | S66: 151778846.2 | T66: 147336184.8 | U66: 142769011.5 | V66: 138072560.6 | W66: 133241802 | X66: 128271423 | Y66: 123155807.7 | Z66: 117889016 | AA66: 112464760.6 | AB66: 106876381.6 | AC66: 101116820 | AD66: 95178588.72 | AE66: 89053741.24 | AF66: 82733838.25 | AG66: 76209911.29 | AH66: 69472423.74 | AI66: 62511228.69 | AJ66: 55315523.61 | AK66: 47873801.37 | AL66: 40173797.47 | AM66: 32202433.16 | AN66: 23945754 | AO66: 15388863.66 | AP66: -2.717971802e-08 | AQ66: -2.935409546e-08 | AR66: -3.17024231e-08 | AS66: -3.423861694e-08 | AT66: -3.69777063e-08 | AU66: -3.99359228e-08 | AV66: -4.313079663e-08 | AW66: -4.658126036e-08 | AX66: -5.030776119e-08 | AY66: -5.433238208e-08 | AZ66: -5.867897265e-08 | BA66: -6.337329046e-08 | BB66: -6.84431537e-08 | BC66: -7.391860599e-08 | BD66: -7.983209447e-08 | BE66: -8.621866203e-08 | BF66: -9.311615499e-08 | BG66: -1.005654474e-07 | BH66: -1.086106832e-07 | BI66: -1.172995378e-07 | BJ66: -1.266835009e-07 | BK66: -1.368181809e-07 | BL66: -1.477636354e-07 | BM66: -1.595847262e-07 | BN66: -1.723515043e-07 | BO66: -1.861396247e-07 | BP66: -2.010307947e-07 | BQ66: -2.171132582e-07 | BR66: -2.344823189e-07 | BS66: -2.532409044e-07 | BT66: -2.735001768e-07 | BU66: -2.953801909e-07 | BV66: -3.190106062e-07 | BW66: -3.445314547e-07 | BX66: =BX64-BX65 -> -3.72093971e-07 | BY66: -4.018614887e-07 | BZ66: -4.340104078e-07 | CA66: -4.687312404e-07 | CB66: -5.062297397e-07 | CC66: -5.467281188e-07 | CD66: -5.904663683e-07 | CE66: -6.377036778e-07 | CF66: -6.88719972e-07 | CG66: -7.438175698e-07 | CH66: -8.033229754e-07 | CI66: -8.675888134e-07 | CJ66: -9.369959185e-07 | CK66: -1.011955592e-06 | CL66: -1.092912039e-06 | CM66: -1.180345002e-06 | CN66: -1.274772603e-06 | CO66: -1.376754411e-06 | CP66: -1.486894764e-06 | CQ66: -1.605846345e-06 | CR66: -1.734314052e-06 | CS66: -1.873059177e-06 | CT66: -2.022903911e-06 | CU66: -2.184736224e-06 | CV66: -2.359515122e-06 | CW66: -2.548276331e-06 | CX66: -2.752138438e-06 | CY66: -2.972309513e-06 | CZ66: -3.210094274e-06 | DA66: -3.466901816e-06 | DB66: -3.744253961e-06 | DC66: -4.043794278e-06 | DD66: -4.36729782e-06 | DE66: -4.716681646e-06 | DF66: -5.094016177e-06
D68: Interest Rate Factor | E68: factor | K68: 1 | L68: =K68*(1+$F$70/2) -> 1.04 | M68: =L68*(1+$F$70) -> 1.1232 | N68: =M68*(1+$F$70) -> 1.213056 | O68: 1.31010048 | P68: 1.414908518 | Q68: 1.5281012 | R68: 1.650349296 | S68: 1.78237724 | T68: 1.924967419 | U68: 2.078964812 | V68: 2.245281997 | W68: 2.424904557 | X68: 2.618896921 | Y68: 2.828408675 | Z68: 3.054681369 | AA68: 3.299055879 | AB68: 3.562980349 | AC68: 3.848018777 | AD68: 4.155860279 | AE68: 4.488329101 | AF68: 4.84739543 | AG68: 5.235187064 | AH68: 5.654002029 | AI68: 6.106322191 | AJ68: 6.594827967 | AK68: 7.122414204 | AL68: 7.69220734 | AM68: 8.307583928 | AN68: 8.972190642 | AO68: 9.689965893 | AP68: 10.46516316 | AQ68: 11.30237622 | AR68: 12.20656632 | AS68: 13.18309162 | AT68: 14.23773895 | AU68: 15.37675807 | AV68: 16.60689871 | AW68: 17.93545061 | AX68: 19.37028666 | AY68: 20.91990959 | AZ68: 22.59350236 | BA68: 24.40098255 | BB68: 26.35306115 | BC68: 28.46130604 | BD68: 30.73821052 | BE68: 33.19726737 | BF68: 35.85304876 | BG68: 38.72129266 | BH68: 41.81899607 | BI68: 45.16451575 | BJ68: 48.77767701 | BK68: 52.67989117 | BL68: 56.89428247 | BM68: 61.44582507 | BN68: 66.36149107 | BO68: 71.67041036 | BP68: 77.40404319 | BQ68: 83.59636664 | BR68: 90.28407597 | BS68: 97.50680205 | BT68: 105.3073462 | BU68: 113.7319339 | BV68: 122.8304886 | BW68: 132.6569277 | BX68: 143.2694819 | BY68: 154.7310405 | BZ68: =BY68*(1+$F$70) -> 167.1095237 | CA68: 180.4782856 | CB68: 194.9165485 | CC68: 210.5098723 | CD68: 227.3506621 | CE68: 245.5387151 | CF68: 265.1818123 | CG68: 286.3963573 | CH68: 309.3080659 | CI68: 334.0527112 | CJ68: 360.7769281 | CK68: 389.6390823 | CL68: 420.8102089 | CM68: 454.4750256 | CN68: 490.8330276 | CO68: 530.0996698 | CP68: 572.5076434 | CQ68: 618.3082549 | CR68: 667.7729153 | CS68: 721.1947485 | CT68: 778.8903284 | CU68: 841.2015547 | CV68: 908.4976791 | CW68: 981.1774934 | CX68: 1059.671693 | CY68: 1144.445428 | CZ68: 1236.001063 | DA68: 1334.881148 | DB68: 1441.671639 | DC68: 1557.00537 | DD68: 1681.5658 | DE68: 1816.091064 | DF68: 1961.378349 | DG68: 2118.288617
D69: Interest Rate Factor | E69: factor | K69: 1 | L69: =K69*(1+$F$70) -> 1.08 | M69: =L69*(1+$F$70) -> 1.1664 | N69: 1.259712 | O69: 1.36048896 | P69: 1.469328077 | Q69: 1.586874323 | R69: 1.713824269 | S69: 1.85093021 | T69: 1.999004627 | U69: 2.158924997 | V69: 2.331638997 | W69: 2.518170117 | X69: 2.719623726 | Y69: 2.937193624 | Z69: 3.172169114 | AA69: 3.425942643 | AB69: 3.700018055 | AC69: 3.996019499 | AD69: 4.315701059 | AE69: 4.660957144 | AF69: 5.033833715 | AG69: 5.436540413 | AH69: 5.871463646 | AI69: 6.341180737 | AJ69: 6.848475196 | AK69: 7.396353212 | AL69: 7.988061469 | AM69: 8.627106386 | AN69: 9.317274897 | AO69: 10.06265689 | AP69: 10.86766944 | AQ69: 11.737083 | AR69: 12.67604964 | AS69: 13.69013361 | AT69: 14.78534429 | AU69: 15.96817184 | AV69: 17.24562558 | AW69: 18.62527563 | AX69: 20.11529768 | AY69: 21.7245215 | AZ69: 23.46248322 | BA69: 25.33948187 | BB69: 27.36664042 | BC69: 29.55597166 | BD69: 31.92044939 | BE69: 34.47408534 | BF69: 37.23201217 | BG69: 40.21057314 | BH69: 43.42741899 | BI69: 46.90161251 | BJ69: 50.65374151 | BK69: 54.70604084 | BL69: 59.0825241 | BM69: 63.80912603 | BN69: 68.91385611 | BO69: 74.4269646 | BP69: 80.38112177 | BQ69: 86.81161151 | BR69: 93.75654043 | BS69: 101.2570637 | BT69: 109.3576288 | BU69: 118.1062391 | BV69: 127.5547382 | BW69: 137.7591172 | BX69: 148.7798466 | BY69: =BX69*(1+$F$70) -> 160.6822344 | BZ69: 173.5368131 | CA69: 187.4197581 | CB69: 202.4133388 | CC69: 218.6064059 | CD69: 236.0949184 | CE69: 254.9825118 | CF69: 275.3811128 | CG69: 297.4116018 | CH69: 321.20453 | CI69: 346.9008924 | CJ69: 374.6529637 | CK69: 404.6252008 | CL69: 436.9952169 | CM69: 471.9548343 | CN69: 509.711221 | CO69: 550.4881187 | CP69: 594.5271682 | CQ69: 642.0893416 | CR69: 693.456489 | CS69: 748.9330081 | CT69: 808.8476487 | CU69: 873.5554606 | CV69: 943.4398975 | CW69: 1018.915089 | CX69: 1100.428296 | CY69: 1188.46256 | CZ69: 1283.539565 | DA69: 1386.22273 | DB69: 1497.120549 | DC69: 1616.890192 | DD69: 1746.241408 | DE69: 1885.94072 | DF69: 2036.815978 | DG69: 2199.761256
D70: Interest Rate | E70: % | F70: ='Input C'!F72 -> 0.08
D71: PV of CFADS at Interest Rate | E71: USD | F71: =NPV(F70,L66:DG66) -> 1549851540 | G71: =SUMPRODUCT(K66:DG66/K69:DG69) -> 1549851540
B74: Debt Financing
D75: Turn on Debt | E75: Flag | F75: ='Input C'!F74 -> TRUE | K75: =$F$75 -> TRUE | L75: TRUE | M75: TRUE | N75: TRUE | O75: TRUE | P75: TRUE | Q75: TRUE | R75: TRUE | S75: TRUE | T75: TRUE | U75: TRUE | V75: TRUE | W75: TRUE | X75: TRUE | Y75: TRUE | Z75: TRUE | AA75: TRUE | AB75: TRUE | AC75: TRUE | AD75: TRUE | AE75: TRUE | AF75: TRUE | AG75: TRUE | AH75: TRUE | AI75: TRUE | AJ75: TRUE | AK75: TRUE | AL75: TRUE | AM75: TRUE | AN75: TRUE | AO75: TRUE | AP75: TRUE | AQ75: =$F$75 -> TRUE | AR75: TRUE | AS75: TRUE | AT75: TRUE | AU75: TRUE | AV75: TRUE | AW75: TRUE | AX75: TRUE | AY75: TRUE | AZ75: TRUE | BA75: TRUE | BB75: TRUE | BC75: TRUE | BD75: TRUE | BE75: TRUE | BF75: TRUE | BG75: TRUE | BH75: TRUE | BI75: TRUE | BJ75: TRUE | BK75: TRUE | BL75: TRUE | BM75: TRUE | BN75: TRUE | BO75: TRUE | BP75: TRUE | BQ75: TRUE | BR75: TRUE | BS75: TRUE | BT75: TRUE | BU75: TRUE | BV75: TRUE | BW75: =$F$75 -> TRUE | BX75: TRUE | BY75: TRUE | BZ75: TRUE | CA75: TRUE | CB75: TRUE | CC75: TRUE | CD75: TRUE | CE75: TRUE | CF75: TRUE | CG75: TRUE | CH75: TRUE | CI75: TRUE | CJ75: TRUE | CK75: TRUE | CL75: TRUE | CM75: TRUE | CN75: TRUE | CO75: TRUE | CP75: TRUE | CQ75: TRUE | CR75: TRUE | CS75: TRUE | CT75: TRUE | CU75: TRUE | CV75: TRUE | CW75: TRUE | CX75: TRUE | CY75: TRUE | CZ75: TRUE | DA75: TRUE | DB75: TRUE | DC75: TRUE | DD75: TRUE | DE75: TRUE | DF75: TRUE | DG75: TRUE
D76: Repayment Period | E76: Date | F76: ='Input C'!F5 -> 2026-01-01 | G76: ='Input C'!F71 -> 2057-07-01 | H76: Flag | I76: =SUM(K76:DG76) -> 30 | K76: =(AND(K$6>=$F76,K$6<$G76))*K9 -> 0 | L76: =(AND(L$6>=$F76,L$6<$G76))*L9 -> 1 | M76: 1 | N76: 1 | O76: 1 | P76: 1 | Q76: 1 | R76: 1 | S76: 1 | T76: 1 | U76: 1 | V76: 1 | W76: 1 | X76: 1 | Y76: 1 | Z76: 1 | AA76: 1 | AB76: 1 | AC76: 1 | AD76: 1 | AE76: 1 | AF76: 1 | AG76: 1 | AH76: 1 | AI76: 1 | AJ76: 1 | AK76: 1 | AL76: 1 | AM76: 1 | AN76: 1 | AO76: 1 | AP76: 0 | AQ76: 0 | AR76: 0 | AS76: 0 | AT76: 0 | AU76: 0 | AV76: 0 | AW76: 0 | AX76: 0 | AY76: 0 | AZ76: 0 | BA76: 0 | BB76: 0 | BC76: 0 | BD76: 0 | BE76: 0 | BF76: 0 | BG76: 0 | BH76: 0 | BI76: 0 | BJ76: 0 | BK76: 0 | BL76: 0 | BM76: 0 | BN76: 0 | BO76: 0 | BP76: 0 | BQ76: 0 | BR76: 0 | BS76: 0 | BT76: 0 | BU76: 0 | BV76: 0 | BW76: 0 | BX76: =(AND(BX$6>=$F76,BX$6<$G76))*BX9 -> 0 | BY76: 0 | BZ76: 0 | CA76: 0 | CB76: 0 | CC76: 0 | CD76: 0 | CE76: 0 | CF76: 0 | CG76: 0 | CH76: 0 | CI76: 0 | CJ76: 0 | CK76: 0 | CL76: 0 | CM76: 0 | CN76: 0 | CO76: 0 | CP76: 0 | CQ76: 0 | CR76: 0 | CS76: 0 | CT76: 0 | CU76: 0 | CV76: 0 | CW76: 0 | CX76: 0 | CY76: 0 | CZ76: 0 | DA76: 0 | DB76: 0 | DC76: 0 | DD76: 0 | DE76: 0 | DF76: 0 | DG76: 0
D77: Capital Expenditure | E77: USD | I77: =SUM(K77:DG77) -> 1470000000 | K77: =K22 -> 1470000000 | L77: 0 | M77: 0 | N77: 0 | O77: 0 | P77: 0 | Q77: 0 | R77: 0 | S77: 0 | T77: 0 | U77: 0 | V77: 0 | W77: 0 | X77: 0 | Y77: 0 | Z77: 0 | AA77: 0 | AB77: 0 | AC77: 0 | AD77: 0 | AE77: 0 | AF77: 0 | AG77: 0 | AH77: 0 | AI77: 0 | AJ77: 0 | AK77: 0 | AL77: 0 | AM77: 0 | AN77: 0 | AO77: 0 | AP77: 0 | AQ77: =AQ22 -> 0 | AR77: 0 | AS77: 0 | AT77: 0 | AU77: 0 | AV77: 0 | AW77: 0 | AX77: 0 | AY77: 0 | AZ77: 0 | BA77: 0 | BB77: 0 | BC77: 0 | BD77: 0 | BE77: 0 | BF77: 0 | BG77: 0 | BH77: 0 | BI77: 0 | BJ77: 0 | BK77: 0 | BL77: 0 | BM77: 0 | BN77: 0 | BO77: 0 | BP77: 0 | BQ77: 0 | BR77: 0 | BS77: 0 | BT77: 0 | BU77: 0 | BV77: 0 | BW77: =BW22 -> 0 | BX77: 0 | BY77: 0 | BZ77: 0 | CA77: 0 | CB77: 0 | CC77: 0 | CD77: 0 | CE77: 0 | CF77: 0 | CG77: 0 | CH77: 0 | CI77: 0 | CJ77: 0 | CK77: 0 | CL77: 0 | CM77: 0 | CN77: 0 | CO77: 0 | CP77: 0 | CQ77: 0 | CR77: 0 | CS77: 0 | CT77: 0 | CU77: 0 | CV77: 0 | CW77: 0 | CX77: 0 | CY77: 0 | CZ77: 0 | DA77: 0 | DB77: 0 | DC77: 0 | DD77: 0 | DE77: 0 | DF77: 0 | DG77: 0
D78: Debt Borrowing | E78: % | F78: ='Input C'!F68 -> 0.6 | H78: USD | I78: =SUM(K78:DG78) -> 882000000 | K78: =K77*$F$78*K75 -> 882000000 | L78: 0 | M78: 0 | N78: 0 | O78: 0 | P78: 0 | Q78: 0 | R78: 0 | S78: 0 | T78: 0 | U78: 0 | V78: 0 | W78: 0 | X78: 0 | Y78: 0 | Z78: 0 | AA78: 0 | AB78: 0 | AC78: 0 | AD78: 0 | AE78: 0 | AF78: 0 | AG78: 0 | AH78: 0 | AI78: 0 | AJ78: 0 | AK78: 0 | AL78: 0 | AM78: 0 | AN78: 0 | AO78: 0 | AP78: 0 | AQ78: =AQ77*$F$78*AQ75 -> 0 | AR78: 0 | AS78: 0 | AT78: 0 | AU78: 0 | AV78: 0 | AW78: 0 | AX78: 0 | AY78: 0 | AZ78: 0 | BA78: 0 | BB78: 0 | BC78: 0 | BD78: 0 | BE78: 0 | BF78: 0 | BG78: 0 | BH78: 0 | BI78: 0 | BJ78: 0 | BK78: 0 | BL78: 0 | BM78: 0 | BN78: 0 | BO78: 0 | BP78: 0 | BQ78: 0 | BR78: 0 | BS78: 0 | BT78: 0 | BU78: 0 | BV78: 0 | BW78: =BW77*$F$78*BW75 -> 0 | BX78: 0 | BY78: 0 | BZ78: 0 | CA78: 0 | CB78: 0 | CC78: 0 | CD78: 0 | CE78: 0 | CF78: 0 | CG78: 0 | CH78: 0 | CI78: 0 | CJ78: 0 | CK78: 0 | CL78: 0 | CM78: 0 | CN78: 0 | CO78: 0 | CP78: 0 | CQ78: 0 | CR78: 0 | CS78: 0 | CT78: 0 | CU78: 0 | CV78: 0 | CW78: 0 | CX78: 0 | CY78: 0 | CZ78: 0 | DA78: 0 | DB78: 0 | DC78: =DC77*$F$78*DC75 -> 0 | DD78: 0 | DE78: 0 | DF78: 0 | DG78: 0
D79: Flat Debt Service | E79: USD | F79: =PMT(F80,I76,-I78) -> 78345796.25 | H79: USD | I79: =SUM(K79:XFD79) -> 2350373887 | K79: =$F$79*K76 -> 0 | L79: 78345796.25 | M79: 78345796.25 | N79: 78345796.25 | O79: 78345796.25 | P79: 78345796.25 | Q79: 78345796.25 | R79: 78345796.25 | S79: 78345796.25 | T79: 78345796.25 | U79: 78345796.25 | V79: 78345796.25 | W79: 78345796.25 | X79: 78345796.25 | Y79: 78345796.25 | Z79: 78345796.25 | AA79: 78345796.25 | AB79: 78345796.25 | AC79: 78345796.25 | AD79: 78345796.25 | AE79: 78345796.25 | AF79: 78345796.25 | AG79: 78345796.25 | AH79: 78345796.25 | AI79: 78345796.25 | AJ79: 78345796.25 | AK79: 78345796.25 | AL79: 78345796.25 | AM79: 78345796.25 | AN79: 78345796.25 | AO79: 78345796.25 | AP79: 0 | AQ79: =$F$79*AQ76 -> 0 | AR79: 0 | AS79: 0 | AT79: 0 | AU79: 0 | AV79: 0 | AW79: 0 | AX79: 0 | AY79: 0 | AZ79: 0 | BA79: 0 | BB79: 0 | BC79: 0 | BD79: 0 | BE79: 0 | BF79: 0 | BG79: 0 | BH79: 0 | BI79: 0 | BJ79: 0 | BK79: 0 | BL79: 0 | BM79: 0 | BN79: 0 | BO79: 0 | BP79: 0 | BQ79: 0 | BR79: 0 | BS79: 0 | BT79: 0 | BU79: 0 | BV79: 0 | BW79: =$F$79*BW76 -> 0 | BX79: 0 | BY79: 0 | BZ79: 0 | CA79: 0 | CB79: 0 | CC79: 0 | CD79: 0 | CE79: 0 | CF79: 0 | CG79: 0 | CH79: 0 | CI79: 0 | CJ79: 0 | CK79: 0 | CL79: 0 | CM79: 0 | CN79: 0 | CO79: 0 | CP79: 0 | CQ79: 0 | CR79: 0 | CS79: 0 | CT79: 0 | CU79: 0 | CV79: 0 | CW79: 0 | CX79: 0 | CY79: 0 | CZ79: 0 | DA79: 0 | DB79: 0 | DC79: 0 | DD79: 0 | DE79: 0 | DF79: 0 | DG79: 0
D80: Interest Rate | E80: % | F80: ='Input C'!F72 -> 0.08 | H80: % | K80: =$F$80 -> 0.08 | L80: 0.08 | M80: 0.08 | N80: 0.08 | O80: 0.08 | P80: 0.08 | Q80: 0.08 | R80: 0.08 | S80: 0.08 | T80: 0.08 | U80: 0.08 | V80: 0.08 | W80: 0.08 | X80: 0.08 | Y80: 0.08 | Z80: 0.08 | AA80: 0.08 | AB80: 0.08 | AC80: 0.08 | AD80: 0.08 | AE80: 0.08 | AF80: 0.08 | AG80: 0.08 | AH80: 0.08 | AI80: 0.08 | AJ80: 0.08 | AK80: 0.08 | AL80: 0.08 | AM80: 0.08 | AN80: 0.08 | AO80: 0.08 | AP80: 0.08 | AQ80: =$F$80 -> 0.08 | AR80: 0.08 | AS80: 0.08 | AT80: 0.08 | AU80: 0.08 | AV80: 0.08 | AW80: 0.08 | AX80: 0.08 | AY80: 0.08 | AZ80: 0.08 | BA80: 0.08 | BB80: 0.08 | BC80: 0.08 | BD80: 0.08 | BE80: 0.08 | BF80: 0.08 | BG80: 0.08 | BH80: 0.08 | BI80: 0.08 | BJ80: 0.08 | BK80: 0.08 | BL80: 0.08 | BM80: 0.08 | BN80: 0.08 | BO80: 0.08 | BP80: 0.08 | BQ80: 0.08 | BR80: 0.08 | BS80: 0.08 | BT80: 0.08 | BU80: 0.08 | BV80: 0.08 | BW80: =$F$80 -> 0.08 | BX80: 0.08 | BY80: 0.08 | BZ80: 0.08 | CA80: 0.08 | CB80: 0.08 | CC80: 0.08 | CD80: 0.08 | CE80: 0.08 | CF80: 0.08 | CG80: 0.08 | CH80: 0.08 | CI80: 0.08 | CJ80: 0.08 | CK80: 0.08 | CL80: 0.08 | CM80: 0.08 | CN80: 0.08 | CO80: 0.08 | CP80: 0.08 | CQ80: 0.08 | CR80: 0.08 | CS80: 0.08 | CT80: 0.08 | CU80: 0.08 | CV80: 0.08 | CW80: 0.08 | CX80: 0.08 | CY80: 0.08 | CZ80: 0.08 | DA80: 0.08 | DB80: 0.08 | DC80: 0.08 | DD80: 0.08 | DE80: 0.08 | DF80: 0.08 | DG80: 0.08
D81: Flat Debt Payment | E81: USD | F81: =I78/I76 -> 29400000 | H81: USD | I81: =SUM(K81:DG81) -> 882000000 | K81: =$F$81*K76 -> 0 | L81: 29400000 | M81: 29400000 | N81: 29400000 | O81: 29400000 | P81: 29400000 | Q81: 29400000 | R81: 29400000 | S81: 29400000 | T81: 29400000 | U81: 29400000 | V81: 29400000 | W81: 29400000 | X81: 29400000 | Y81: 29400000 | Z81: 29400000 | AA81: 29400000 | AB81: 29400000 | AC81: 29400000 | AD81: 29400000 | AE81: 29400000 | AF81: 29400000 | AG81: 29400000 | AH81: 29400000 | AI81: 29400000 | AJ81: 29400000 | AK81: 29400000 | AL81: 29400000 | AM81: 29400000 | AN81: 29400000 | AO81: 29400000 | AP81: 0 | AQ81: =$F$81*AQ76 -> 0 | AR81: 0 | AS81: 0 | AT81: 0 | AU81: 0 | AV81: 0 | AW81: 0 | AX81: 0 | AY81: 0 | AZ81: 0 | BA81: 0 | BB81: 0 | BC81: 0 | BD81: 0 | BE81: 0 | BF81: 0 | BG81: 0 | BH81: 0 | BI81: 0 | BJ81: 0 | BK81: 0 | BL81: 0 | BM81: 0 | BN81: 0 | BO81: 0 | BP81: 0 | BQ81: 0 | BR81: 0 | BS81: 0 | BT81: 0 | BU81: 0 | BV81: 0 | BW81: =$F$81*BW76 -> 0 | BX81: 0 | BY81: 0 | BZ81: 0 | CA81: 0 | CB81: 0 | CC81: 0 | CD81: 0 | CE81: 0 | CF81: 0 | CG81: 0 | CH81: 0 | CI81: 0 | CJ81: 0 | CK81: 0 | CL81: 0 | CM81: 0 | CN81: 0 | CO81: 0 | CP81: 0 | CQ81: 0 | CR81: 0 | CS81: 0 | CT81: 0 | CU81: 0 | CV81: 0 | CW81: 0 | CX81: 0 | CY81: 0 | CZ81: 0 | DA81: 0 | DB81: 0 | DC81: 0 | DD81: 0 | DE81: 0 | DF81: 0 | DG81: 0
D83: PV of CFADS | E83: USD | F83: =F71 -> 1549851540
D84: Debt | E84: USD | F84: =I78 -> 882000000
D85: Sculpted Debt Service | E85: x | F85: =F83/F84 -> 1.757201293
D87: CFADS Repeated | E87: USD | K87: =K66 -> 0 | L87: =L66 -> 179743355 | M87: 176057721.9 | N87: 172274836.2 | O87: 168391363.6 | P87: 164403803.2 | Q87: 160308476.3 | R87: 156101514.3 | S87: 151778846.2 | T87: 147336184.8 | U87: 142769011.5 | V87: 138072560.6 | W87: 133241802 | X87: 128271423 | Y87: 123155807.7 | Z87: 117889016 | AA87: 112464760.6 | AB87: 106876381.6 | AC87: 101116820 | AD87: 95178588.72 | AE87: 89053741.24 | AF87: 82733838.25 | AG87: 76209911.29 | AH87: 69472423.74 | AI87: 62511228.69 | AJ87: 55315523.61 | AK87: 47873801.37 | AL87: 40173797.47 | AM87: 32202433.16 | AN87: 23945754 | AO87: 15388863.66 | AP87: -2.717971802e-08 | AQ87: -2.935409546e-08 | AR87: -3.17024231e-08 | AS87: -3.423861694e-08 | AT87: -3.69777063e-08 | AU87: -3.99359228e-08 | AV87: -4.313079663e-08 | AW87: -4.658126036e-08 | AX87: -5.030776119e-08 | AY87: -5.433238208e-08 | AZ87: -5.867897265e-08 | BA87: -6.337329046e-08 | BB87: -6.84431537e-08 | BC87: -7.391860599e-08 | BD87: -7.983209447e-08 | BE87: -8.621866203e-08 | BF87: -9.311615499e-08 | BG87: -1.005654474e-07 | BH87: -1.086106832e-07 | BI87: -1.172995378e-07 | BJ87: -1.266835009e-07 | BK87: -1.368181809e-07 | BL87: -1.477636354e-07 | BM87: -1.595847262e-07 | BN87: -1.723515043e-07 | BO87: -1.861396247e-07 | BP87: -2.010307947e-07 | BQ87: -2.171132582e-07 | BR87: -2.344823189e-07 | BS87: -2.532409044e-07 | BT87: -2.735001768e-07 | BU87: -2.953801909e-07 | BV87: -3.190106062e-07 | BW87: -3.445314547e-07 | BX87: =BX66 -> -3.72093971e-07 | BY87: -4.018614887e-07 | BZ87: -4.340104078e-07 | CA87: -4.687312404e-07 | CB87: -5.062297397e-07 | CC87: -5.467281188e-07 | CD87: -5.904663683e-07 | CE87: -6.377036778e-07 | CF87: -6.88719972e-07 | CG87: -7.438175698e-07 | CH87: -8.033229754e-07 | CI87: -8.675888134e-07 | CJ87: -9.369959185e-07 | CK87: -1.011955592e-06 | CL87: -1.092912039e-06 | CM87: -1.180345002e-06 | CN87: -1.274772603e-06 | CO87: -1.376754411e-06 | CP87: -1.486894764e-06 | CQ87: -1.605846345e-06 | CR87: -1.734314052e-06 | CS87: -1.873059177e-06 | CT87: -2.022903911e-06 | CU87: -2.184736224e-06 | CV87: -2.359515122e-06 | CW87: -2.548276331e-06 | CX87: -2.752138438e-06 | CY87: -2.972309513e-06 | CZ87: -3.210094274e-06 | DA87: -3.466901816e-06 | DB87: -3.744253961e-06 | DC87: -4.043794278e-06 | DD87: -4.36729782e-06 | DE87: -4.716681646e-06 | DF87: -5.094016177e-06 | DG87: 0
D88: Apply Flat | E88: flag | F88: ='Input C'!F67 -> TRUE | H88: flag | K88: =$F$88 -> TRUE | L88: =$F$88 -> TRUE | M88: TRUE | N88: TRUE | O88: TRUE | P88: TRUE | Q88: TRUE | R88: TRUE | S88: TRUE | T88: TRUE | U88: TRUE | V88: TRUE | W88: TRUE | X88: TRUE | Y88: TRUE | Z88: TRUE | AA88: TRUE | AB88: TRUE | AC88: TRUE | AD88: TRUE | AE88: TRUE | AF88: TRUE | AG88: TRUE | AH88: TRUE | AI88: TRUE | AJ88: TRUE | AK88: TRUE | AL88: TRUE | AM88: TRUE | AN88: TRUE | AO88: TRUE | AP88: TRUE | AQ88: TRUE | AR88: TRUE | AS88: TRUE | AT88: TRUE | AU88: TRUE | AV88: TRUE | AW88: TRUE | AX88: TRUE | AY88: TRUE | AZ88: TRUE | BA88: TRUE | BB88: TRUE | BC88: TRUE | BD88: TRUE | BE88: TRUE | BF88: TRUE | BG88: TRUE | BH88: TRUE | BI88: TRUE | BJ88: TRUE | BK88: TRUE | BL88: TRUE | BM88: TRUE | BN88: TRUE | BO88: TRUE | BP88: TRUE | BQ88: TRUE | BR88: TRUE | BS88: TRUE | BT88: TRUE | BU88: TRUE | BV88: TRUE | BW88: TRUE | BX88: =$F$88 -> TRUE | BY88: TRUE | BZ88: TRUE | CA88: TRUE | CB88: TRUE | CC88: TRUE | CD88: TRUE | CE88: TRUE | CF88: TRUE | CG88: TRUE | CH88: TRUE | CI88: TRUE | CJ88: TRUE | CK88: TRUE | CL88: TRUE | CM88: TRUE | CN88: TRUE | CO88: TRUE | CP88: TRUE | CQ88: TRUE | CR88: TRUE | CS88: TRUE | CT88: TRUE | CU88: TRUE | CV88: TRUE | CW88: TRUE | CX88: TRUE | CY88: TRUE | CZ88: TRUE | DA88: TRUE | DB88: TRUE | DC88: TRUE | DD88: TRUE | DE88: TRUE | DF88: TRUE | DG88: TRUE
D89: Debt Service Applied | E89: USD | F89: =F85 -> 1.757201293 | G89: 1 | K89: =IF(K88,K79,K87/$F$89) -> 0 | L89: =IF(L88,L79,L87/$F$89) -> 78345796.25 | M89: 78345796.25 | N89: 78345796.25 | O89: 78345796.25 | P89: 78345796.25 | Q89: 78345796.25 | R89: 78345796.25 | S89: 78345796.25 | T89: 78345796.25 | U89: 78345796.25 | V89: 78345796.25 | W89: 78345796.25 | X89: 78345796.25 | Y89: 78345796.25 | Z89: 78345796.25 | AA89: 78345796.25 | AB89: 78345796.25 | AC89: 78345796.25 | AD89: 78345796.25 | AE89: 78345796.25 | AF89: 78345796.25 | AG89: 78345796.25 | AH89: 78345796.25 | AI89: 78345796.25 | AJ89: 78345796.25 | AK89: 78345796.25 | AL89: 78345796.25 | AM89: 78345796.25 | AN89: 78345796.25 | AO89: 78345796.25 | AP89: 0 | AQ89: 0 | AR89: 0 | AS89: 0 | AT89: 0 | AU89: 0 | AV89: 0 | AW89: 0 | AX89: 0 | AY89: 0 | AZ89: 0 | BA89: 0 | BB89: 0 | BC89: 0 | BD89: 0 | BE89: 0 | BF89: 0 | BG89: 0 | BH89: 0 | BI89: 0 | BJ89: 0 | BK89: 0 | BL89: 0 | BM89: 0 | BN89: 0 | BO89: 0 | BP89: 0 | BQ89: 0 | BR89: 0 | BS89: 0 | BT89: 0 | BU89: 0 | BV89: 0 | BW89: 0 | BX89: =IF(BX88,BX79,BX87/$F$89) -> 0 | BY89: 0 | BZ89: 0 | CA89: 0 | CB89: 0 | CC89: 0 | CD89: 0 | CE89: 0 | CF89: 0 | CG89: 0 | CH89: 0 | CI89: 0 | CJ89: 0 | CK89: 0 | CL89: 0 | CM89: 0 | CN89: 0 | CO89: 0 | CP89: 0 | CQ89: 0 | CR89: 0 | CS89: 0 | CT89: 0 | CU89: 0 | CV89: 0 | CW89: 0 | CX89: 0 | CY89: 0 | CZ89: 0 | DA89: 0 | DB89: 0 | DC89: 0 | DD89: 0 | DE89: 0 | DF89: 0 | DG89: 0
D91: Opening Debt Balance | E91: USD | H91: USD | K91: =J94 -> 0 | L91: 882000000 | M91: 874214203.8 | N91: 865805543.8 | O91: 856724191.1 | P91: 846916330.1 | Q91: 836323840.3 | R91: 824883951.2 | S91: 812528871.1 | T91: 799185384.5 | U91: 784774419 | V91: 769210576.3 | W91: 752401626.2 | X91: 734247960 | Y91: 714642000.6 | Z91: 693467564.4 | AA91: 670599173.3 | AB91: 645901310.9 | AC91: 619227619.5 | AD91: 590420032.8 | AE91: 559307839.2 | AF91: 525706670.1 | AG91: 489417407.4 | AH91: 450225003.8 | AI91: 407897207.8 | AJ91: 362183188.2 | AK91: 312812047 | AL91: 259491214.6 | AM91: 201904715.5 | AN91: 139711296.5 | AO91: 72542403.93 | AP91: -8.49366188e-07 | AQ91: =AP94 -> -9.173154831e-07 | AR91: -9.907007217e-07 | AS91: -1.069956779e-06 | AT91: -1.155553322e-06 | AU91: -1.247997588e-06 | AV91: -1.347837395e-06 | AW91: -1.455664386e-06 | AX91: -1.572117537e-06 | AY91: -1.69788694e-06 | AZ91: -1.833717895e-06 | BA91: -1.980415327e-06 | BB91: -2.138848553e-06 | BC91: -2.309956437e-06 | BD91: -2.494752952e-06 | BE91: -2.694333188e-06 | BF91: -2.909879843e-06 | BG91: -3.142670231e-06 | BH91: -3.394083849e-06 | BI91: -3.665610557e-06 | BJ91: -3.958859402e-06 | BK91: -4.275568154e-06 | BL91: -4.617613606e-06 | BM91: -4.987022695e-06 | BN91: -5.385984511e-06 | BO91: -5.816863271e-06 | BP91: -6.282212333e-06 | BQ91: -6.78478932e-06 | BR91: -7.327572465e-06 | BS91: -7.913778263e-06 | BT91: -8.546880524e-06 | BU91: -9.230630965e-06 | BV91: -9.969081443e-06 | BW91: =BV94 -> -1.076660796e-05 | BX91: -1.162793659e-05 | BY91: -1.255817152e-05 | BZ91: -1.356282524e-05 | CA91: -1.464785126e-05 | CB91: -1.581967936e-05 | CC91: -1.708525371e-05 | CD91: -1.845207401e-05 | CE91: -1.992823993e-05 | CF91: -2.152249913e-05 | CG91: -2.324429906e-05 | CH91: -2.510384298e-05 | CI91: -2.711215042e-05 | CJ91: -2.928112245e-05 | CK91: -3.162361225e-05 | CL91: -3.415350123e-05 | CM91: -3.688578133e-05 | CN91: -3.983664383e-05 | CO91: -4.302357534e-05 | CP91: -4.646546137e-05 | CQ91: -5.018269828e-05 | CR91: -5.419731414e-05 | CS91: -5.853309927e-05 | CT91: -6.321574721e-05 | CU91: -6.827300699e-05 | CV91: -7.373484755e-05 | CW91: -7.963363535e-05 | CX91: -8.600432618e-05 | CY91: -9.288467227e-05 | CZ91: -0.0001003154461 | DA91: -0.0001083406817 | DB91: -0.0001170079363 | DC91: -0.0001263685712 | DD91: -0.0001364780569 | DE91: -0.0001473963014 | DF91: -0.0001591880055 | DG91: -0.000171923046
D92: Debt Borrowings | E92: USD | H92: USD | I92: =SUM(K92:XFD92) -> 882000000 | K92: =K78 -> 882000000 | L92: 0 | M92: 0 | N92: 0 | O92: 0 | P92: 0 | Q92: 0 | R92: 0 | S92: 0 | T92: 0 | U92: 0 | V92: 0 | W92: 0 | X92: 0 | Y92: 0 | Z92: 0 | AA92: 0 | AB92: 0 | AC92: 0 | AD92: 0 | AE92: 0 | AF92: 0 | AG92: 0 | AH92: 0 | AI92: 0 | AJ92: 0 | AK92: 0 | AL92: 0 | AM92: 0 | AN92: 0 | AO92: 0 | AP92: 0 | AQ92: =AQ78 -> 0 | AR92: 0 | AS92: 0 | AT92: 0 | AU92: 0 | AV92: 0 | AW92: 0 | AX92: 0 | AY92: 0 | AZ92: 0 | BA92: 0 | BB92: 0 | BC92: 0 | BD92: 0 | BE92: 0 | BF92: 0 | BG92: 0 | BH92: 0 | BI92: 0 | BJ92: 0 | BK92: 0 | BL92: 0 | BM92: 0 | BN92: 0 | BO92: 0 | BP92: 0 | BQ92: 0 | BR92: 0 | BS92: 0 | BT92: 0 | BU92: 0 | BV92: 0 | BW92: =BW78 -> 0 | BX92: 0 | BY92: 0 | BZ92: 0 | CA92: 0 | CB92: 0 | CC92: 0 | CD92: 0 | CE92: 0 | CF92: 0 | CG92: 0 | CH92: 0 | CI92: 0 | CJ92: 0 | CK92: 0 | CL92: 0 | CM92: 0 | CN92: 0 | CO92: 0 | CP92: 0 | CQ92: 0 | CR92: 0 | CS92: 0 | CT92: 0 | CU92: 0 | CV92: 0 | CW92: 0 | CX92: 0 | CY92: 0 | CZ92: 0 | DA92: 0 | DB92: 0 | DC92: 0 | DD92: 0 | DE92: 0 | DF92: 0 | DG92: 0
D93: Debt Repayment | E93: USD | H93: USD | I93: =SUM(K93:XFD93) -> 882000000 | K93: =K89-K95 -> 0 | L93: =L89-L95 -> 7785796.248 | M93: 8408659.947 | N93: 9081352.743 | O93: 9807860.963 | P93: 10592489.84 | Q93: 11439889.03 | R93: 12355080.15 | S93: 13343486.56 | T93: 14410965.49 | U93: 15563842.72 | V93: 16808950.14 | W93: 18153666.15 | X93: 19605959.45 | Y93: 21174436.2 | Z93: 22868391.1 | AA93: 24697862.39 | AB93: 26673691.38 | AC93: 28807586.69 | AD93: 31112193.62 | AE93: 33601169.11 | AF93: 36289262.64 | AG93: 39192403.65 | AH93: 42327795.94 | AI93: 45714019.62 | AJ93: 49371141.19 | AK93: 53320832.48 | AL93: 57586499.08 | AM93: 62193419.01 | AN93: 67168892.53 | AO93: 72542403.93 | AP93: 6.794929504e-08 | AQ93: 7.338523865e-08 | AR93: 7.925605774e-08 | AS93: 8.559654236e-08 | AT93: 9.244426575e-08 | AU93: 9.983980701e-08 | AV93: 1.078269916e-07 | AW93: 1.164531509e-07 | AX93: 1.25769403e-07 | AY93: 1.358309552e-07 | AZ93: 1.466974316e-07 | BA93: 1.584332261e-07 | BB93: 1.711078842e-07 | BC93: 1.84796515e-07 | BD93: 1.995802362e-07 | BE93: 2.155466551e-07 | BF93: 2.327903875e-07 | BG93: 2.514136185e-07 | BH93: 2.71526708e-07 | BI93: 2.932488446e-07 | BJ93: 3.167087522e-07 | BK93: 3.420454523e-07 | BL93: 3.694090885e-07 | BM93: 3.989618156e-07 | BN93: 4.308787608e-07 | BO93: 4.653490617e-07 | BP93: 5.025769866e-07 | BQ93: 5.427831456e-07 | BR93: 5.862057972e-07 | BS93: 6.33102261e-07 | BT93: 6.837504419e-07 | BU93: 7.384504772e-07 | BV93: 7.975265154e-07 | BW93: 8.613286366e-07 | BX93: =BX89-BX95 -> 9.302349276e-07 | BY93: 1.004653722e-06 | BZ93: 1.08502602e-06 | CA93: 1.171828101e-06 | CB93: 1.265574349e-06 | CC93: 1.366820297e-06 | CD93: 1.476165921e-06 | CE93: 1.594259195e-06 | CF93: 1.72179993e-06 | CG93: 1.859543925e-06 | CH93: 2.008307438e-06 | CI93: 2.168972034e-06 | CJ93: 2.342489796e-06 | CK93: 2.52988898e-06 | CL93: 2.732280098e-06 | CM93: 2.950862506e-06 | CN93: 3.186931507e-06 | CO93: 3.441886027e-06 | CP93: 3.717236909e-06 | CQ93: 4.014615862e-06 | CR93: 4.335785131e-06 | CS93: 4.682647942e-06 | CT93: 5.057259777e-06 | CU93: 5.461840559e-06 | CV93: 5.898787804e-06 | CW93: 6.370690828e-06 | CX93: 6.880346094e-06 | CY93: 7.430773782e-06 | CZ93: 8.025235685e-06 | DA93: 8.667254539e-06 | DB93: 9.360634902e-06 | DC93: 1.010948569e-05 | DD93: 1.091824455e-05 | DE93: 1.179170411e-05 | DF93: 1.273504044e-05 | DG93: 1.375384368e-05
D94: Closing Debt Balance | E94: USD | H94: USD | K94: =K91+K92-K93 -> 882000000 | L94: 874214203.8 | M94: 865805543.8 | N94: 856724191.1 | O94: 846916330.1 | P94: 836323840.3 | Q94: 824883951.2 | R94: 812528871.1 | S94: 799185384.5 | T94: 784774419 | U94: 769210576.3 | V94: 752401626.2 | W94: 734247960 | X94: 714642000.6 | Y94: 693467564.4 | Z94: 670599173.3 | AA94: 645901310.9 | AB94: 619227619.5 | AC94: 590420032.8 | AD94: 559307839.2 | AE94: 525706670.1 | AF94: 489417407.4 | AG94: 450225003.8 | AH94: 407897207.8 | AI94: 362183188.2 | AJ94: 312812047 | AK94: 259491214.6 | AL94: 201904715.5 | AM94: 139711296.5 | AN94: 72542403.93 | AO94: -8.49366188e-07 | AP94: -9.173154831e-07 | AQ94: =AQ91+AQ92-AQ93 -> -9.907007217e-07 | AR94: -1.069956779e-06 | AS94: -1.155553322e-06 | AT94: -1.247997588e-06 | AU94: -1.347837395e-06 | AV94: -1.455664386e-06 | AW94: -1.572117537e-06 | AX94: -1.69788694e-06 | AY94: -1.833717895e-06 | AZ94: -1.980415327e-06 | BA94: -2.138848553e-06 | BB94: -2.309956437e-06 | BC94: -2.494752952e-06 | BD94: -2.694333188e-06 | BE94: -2.909879843e-06 | BF94: -3.142670231e-06 | BG94: -3.394083849e-06 | BH94: -3.665610557e-06 | BI94: -3.958859402e-06 | BJ94: -4.275568154e-06 | BK94: -4.617613606e-06 | BL94: -4.987022695e-06 | BM94: -5.385984511e-06 | BN94: -5.816863271e-06 | BO94: -6.282212333e-06 | BP94: -6.78478932e-06 | BQ94: -7.327572465e-06 | BR94: -7.913778263e-06 | BS94: -8.546880524e-06 | BT94: -9.230630965e-06 | BU94: -9.969081443e-06 | BV94: -1.076660796e-05 | BW94: =BW91+BW92-BW93 -> -1.162793659e-05 | BX94: -1.255817152e-05 | BY94: -1.356282524e-05 | BZ94: -1.464785126e-05 | CA94: -1.581967936e-05 | CB94: -1.708525371e-05 | CC94: -1.845207401e-05 | CD94: -1.992823993e-05 | CE94: -2.152249913e-05 | CF94: -2.324429906e-05 | CG94: -2.510384298e-05 | CH94: -2.711215042e-05 | CI94: -2.928112245e-05 | CJ94: -3.162361225e-05 | CK94: -3.415350123e-05 | CL94: -3.688578133e-05 | CM94: -3.983664383e-05 | CN94: -4.302357534e-05 | CO94: -4.646546137e-05 | CP94: -5.018269828e-05 | CQ94: -5.419731414e-05 | CR94: -5.853309927e-05 | CS94: -6.321574721e-05 | CT94: -6.827300699e-05 | CU94: -7.373484755e-05 | CV94: -7.963363535e-05 | CW94: -8.600432618e-05 | CX94: -9.288467227e-05 | CY94: -0.0001003154461 | CZ94: -0.0001083406817 | DA94: -0.0001170079363 | DB94: -0.0001263685712 | DC94: =DC91+DC92-DC93 -> -0.0001364780569 | DD94: -0.0001473963014 | DE94: -0.0001591880055 | DF94: -0.000171923046 | DG94: -0.0001856768897
D95: Interest | E95: % | F95: =F80 -> 0.08 | H95: USD | K95: =K91*$F$95 -> 0 | L95: 70560000 | M95: 69937136.3 | N95: 69264443.5 | O95: 68537935.28 | P95: 67753306.41 | Q95: 66905907.22 | R95: 65990716.1 | S95: 65002309.69 | T95: 63934830.76 | U95: 62781953.52 | V95: 61536846.11 | W95: 60192130.09 | X95: 58739836.8 | Y95: 57171360.05 | Z95: 55477405.15 | AA95: 53647933.86 | AB95: 51672104.87 | AC95: 49538209.56 | AD95: 47233602.63 | AE95: 44744627.14 | AF95: 42056533.61 | AG95: 39153392.6 | AH95: 36018000.3 | AI95: 32631776.63 | AJ95: 28974655.06 | AK95: 25024963.76 | AL95: 20759297.16 | AM95: 16152377.24 | AN95: 11176903.72 | AO95: 5803392.315 | AP95: -6.794929504e-08 | AQ95: =AQ91*$F$95 -> -7.338523865e-08 | AR95: -7.925605774e-08 | AS95: -8.559654236e-08 | AT95: -9.244426575e-08 | AU95: -9.983980701e-08 | AV95: -1.078269916e-07 | AW95: -1.164531509e-07 | AX95: -1.25769403e-07 | AY95: -1.358309552e-07 | AZ95: -1.466974316e-07 | BA95: -1.584332261e-07 | BB95: -1.711078842e-07 | BC95: -1.84796515e-07 | BD95: -1.995802362e-07 | BE95: -2.155466551e-07 | BF95: -2.327903875e-07 | BG95: -2.514136185e-07 | BH95: -2.71526708e-07 | BI95: -2.932488446e-07 | BJ95: -3.167087522e-07 | BK95: -3.420454523e-07 | BL95: -3.694090885e-07 | BM95: -3.989618156e-07 | BN95: -4.308787608e-07 | BO95: -4.653490617e-07 | BP95: -5.025769866e-07 | BQ95: -5.427831456e-07 | BR95: -5.862057972e-07 | BS95: -6.33102261e-07 | BT95: -6.837504419e-07 | BU95: -7.384504772e-07 | BV95: -7.975265154e-07 | BW95: =BW91*$F$95 -> -8.613286366e-07 | BX95: -9.302349276e-07 | BY95: -1.004653722e-06 | BZ95: -1.08502602e-06 | CA95: -1.171828101e-06 | CB95: -1.265574349e-06 | CC95: -1.366820297e-06 | CD95: -1.476165921e-06 | CE95: -1.594259195e-06 | CF95: -1.72179993e-06 | CG95: -1.859543925e-06 | CH95: -2.008307438e-06 | CI95: -2.168972034e-06 | CJ95: -2.342489796e-06 | CK95: -2.52988898e-06 | CL95: -2.732280098e-06 | CM95: -2.950862506e-06 | CN95: -3.186931507e-06 | CO95: -3.441886027e-06 | CP95: -3.717236909e-06 | CQ95: -4.014615862e-06 | CR95: -4.335785131e-06 | CS95: -4.682647942e-06 | CT95: -5.057259777e-06 | CU95: -5.461840559e-06 | CV95: -5.898787804e-06 | CW95: -6.370690828e-06 | CX95: -6.880346094e-06 | CY95: -7.430773782e-06 | CZ95: -8.025235685e-06 | DA95: -8.667254539e-06 | DB95: -9.360634902e-06 | DC95: -1.010948569e-05 | DD95: -1.091824455e-05 | DE95: -1.179170411e-05 | DF95: -1.273504044e-05 | DG95: -1.375384368e-05
D96: Test of Closing Balance | E96: Test | F96: =ROUND(LOOKUP(G76,6:6,91:91),0) -> 0 | G96: =F96=0 -> TRUE
B98: Cash Flow Calculations
C99: Financing Requirement
D100: CAPEX | E100: USD | H100: USD | I100: =SUM(K100:XFD100) -> 1470000000 | K100: =K22 -> 1470000000 | L100: 0 | M100: 0 | N100: 0 | O100: 0 | P100: 0 | Q100: 0 | R100: 0 | S100: 0 | T100: 0 | U100: 0 | V100: 0 | W100: 0 | X100: 0 | Y100: 0 | Z100: 0 | AA100: 0 | AB100: 0 | AC100: 0 | AD100: 0 | AE100: 0 | AF100: 0 | AG100: 0 | AH100: 0 | AI100: 0 | AJ100: 0 | AK100: 0 | AL100: 0 | AM100: 0 | AN100: 0 | AO100: 0 | AP100: 0 | AQ100: =AQ22 -> 0 | AR100: 0 | AS100: 0 | AT100: 0 | AU100: 0 | AV100: 0 | AW100: 0 | AX100: 0 | AY100: 0 | AZ100: 0 | BA100: 0 | BB100: 0 | BC100: 0 | BD100: 0 | BE100: 0 | BF100: 0 | BG100: 0 | BH100: 0 | BI100: 0 | BJ100: 0 | BK100: 0 | BL100: 0 | BM100: 0 | BN100: 0 | BO100: 0 | BP100: 0 | BQ100: 0 | BR100: 0 | BS100: 0 | BT100: 0 | BU100: 0 | BV100: 0 | BW100: =BW22 -> 0 | BX100: 0 | BY100: 0 | BZ100: 0 | CA100: 0 | CB100: 0 | CC100: 0 | CD100: 0 | CE100: 0 | CF100: 0 | CG100: 0 | CH100: 0 | CI100: 0 | CJ100: 0 | CK100: 0 | CL100: 0 | CM100: 0 | CN100: 0 | CO100: 0 | CP100: 0 | CQ100: 0 | CR100: 0 | CS100: 0 | CT100: 0 | CU100: 0 | CV100: 0 | CW100: 0 | CX100: 0 | CY100: 0 | CZ100: 0 | DA100: 0 | DB100: 0 | DC100: 0 | DD100: 0 | DE100: 0 | DF100: 0 | DG100: 0
D101: Interest During Construction (IDC) | E101: USD | H101: USD
D102: Fees | E102: USD | H102: USD
D103: Debt Service Reserves Account (DSRA) | E103: USD | H103: USD
D104: Total Financing Requirement (Pre-COD) | E104: USD | H104: USD | I104: =SUM(K104:XFD104) -> 1470000000 | K104: =SUM(K100:K103) -> 1470000000 | L104: 0 | M104: 0 | N104: 0 | O104: 0 | P104: 0 | Q104: 0 | R104: 0 | S104: 0 | T104: 0 | U104: 0 | V104: 0 | W104: 0 | X104: 0 | Y104: 0 | Z104: 0 | AA104: 0 | AB104: 0 | AC104: 0 | AD104: 0 | AE104: 0 | AF104: 0 | AG104: 0 | AH104: 0 | AI104: 0 | AJ104: 0 | AK104: 0 | AL104: 0 | AM104: 0 | AN104: 0 | AO104: 0 | AP104: 0 | AQ104: =SUM(AQ100:AQ103) -> 0 | AR104: 0 | AS104: 0 | AT104: 0 | AU104: 0 | AV104: 0 | AW104: 0 | AX104: 0 | AY104: 0 | AZ104: 0 | BA104: 0 | BB104: 0 | BC104: 0 | BD104: 0 | BE104: 0 | BF104: 0 | BG104: 0 | BH104: 0 | BI104: 0 | BJ104: 0 | BK104: 0 | BL104: 0 | BM104: 0 | BN104: 0 | BO104: 0 | BP104: 0 | BQ104: 0 | BR104: 0 | BS104: 0 | BT104: 0 | BU104: 0 | BV104: 0 | BW104: =SUM(BW100:BW103) -> 0 | BX104: 0 | BY104: 0 | BZ104: 0 | CA104: 0 | CB104: 0 | CC104: 0 | CD104: 0 | CE104: 0 | CF104: 0 | CG104: 0 | CH104: 0 | CI104: 0 | CJ104: 0 | CK104: 0 | CL104: 0 | CM104: 0 | CN104: 0 | CO104: 0 | CP104: 0 | CQ104: 0 | CR104: 0 | CS104: 0 | CT104: 0 | CU104: 0 | CV104: 0 | CW104: 0 | CX104: 0 | CY104: 0 | CZ104: 0 | DA104: 0 | DB104: 0 | DC104: =SUM(DC100:DC103) -> 0 | DD104: 0 | DE104: 0 | DF104: 0 | DG104: 0
D106: Financing Sources
D107: Debt Financing | E107: USD | H107: USD | I107: =SUM(K107:XFD107) -> 882000000 | K107: =K92 -> 882000000 | L107: 0 | M107: 0 | N107: 0 | O107: 0 | P107: 0 | Q107: 0 | R107: 0 | S107: 0 | T107: 0 | U107: 0 | V107: 0 | W107: 0 | X107: 0 | Y107: 0 | Z107: 0 | AA107: 0 | AB107: 0 | AC107: 0 | AD107: 0 | AE107: 0 | AF107: 0 | AG107: 0 | AH107: 0 | AI107: 0 | AJ107: 0 | AK107: 0 | AL107: 0 | AM107: 0 | AN107: 0 | AO107: 0 | AP107: 0 | AQ107: =AQ92 -> 0 | AR107: 0 | AS107: 0 | AT107: 0 | AU107: 0 | AV107: 0 | AW107: 0 | AX107: 0 | AY107: 0 | AZ107: 0 | BA107: 0 | BB107: 0 | BC107: 0 | BD107: 0 | BE107: 0 | BF107: 0 | BG107: 0 | BH107: 0 | BI107: 0 | BJ107: 0 | BK107: 0 | BL107: 0 | BM107: 0 | BN107: 0 | BO107: 0 | BP107: 0 | BQ107: 0 | BR107: 0 | BS107: 0 | BT107: 0 | BU107: 0 | BV107: 0 | BW107: =BW92 -> 0 | BX107: 0 | BY107: 0 | BZ107: 0 | CA107: 0 | CB107: 0 | CC107: 0 | CD107: 0 | CE107: 0 | CF107: 0 | CG107: 0 | CH107: 0 | CI107: 0 | CJ107: 0 | CK107: 0 | CL107: 0 | CM107: 0 | CN107: 0 | CO107: 0 | CP107: 0 | CQ107: 0 | CR107: 0 | CS107: 0 | CT107: 0 | CU107: 0 | CV107: 0 | CW107: 0 | CX107: 0 | CY107: 0 | CZ107: 0 | DA107: 0 | DB107: 0 | DC107: 0 | DD107: 0 | DE107: 0 | DF107: 0 | DG107: 0
D108: Equity Financing | E108: USD | H108: USD | I108: =SUM(K108:XFD108) -> 588000000 | K108: =K104-K107 -> 588000000 | L108: 0 | M108: 0 | N108: 0 | O108: 0 | P108: 0 | Q108: 0 | R108: 0 | S108: 0 | T108: 0 | U108: 0 | V108: 0 | W108: 0 | X108: 0 | Y108: 0 | Z108: 0 | AA108: 0 | AB108: 0 | AC108: 0 | AD108: 0 | AE108: 0 | AF108: 0 | AG108: 0 | AH108: 0 | AI108: 0 | AJ108: 0 | AK108: 0 | AL108: 0 | AM108: 0 | AN108: 0 | AO108: 0 | AP108: 0 | AQ108: =AQ104-AQ107 -> 0 | AR108: 0 | AS108: 0 | AT108: 0 | AU108: 0 | AV108: 0 | AW108: 0 | AX108: 0 | AY108: 0 | AZ108: 0 | BA108: 0 | BB108: 0 | BC108: 0 | BD108: 0 | BE108: 0 | BF108: 0 | BG108: 0 | BH108: 0 | BI108: 0 | BJ108: 0 | BK108: 0 | BL108: 0 | BM108: 0 | BN108: 0 | BO108: 0 | BP108: 0 | BQ108: 0 | BR108: 0 | BS108: 0 | BT108: 0 | BU108: 0 | BV108: 0 | BW108: =BW104-BW107 -> 0 | BX108: 0 | BY108: 0 | BZ108: 0 | CA108: 0 | CB108: 0 | CC108: 0 | CD108: 0 | CE108: 0 | CF108: 0 | CG108: 0 | CH108: 0 | CI108: 0 | CJ108: 0 | CK108: 0 | CL108: 0 | CM108: 0 | CN108: 0 | CO108: 0 | CP108: 0 | CQ108: 0 | CR108: 0 | CS108: 0 | CT108: 0 | CU108: 0 | CV108: 0 | CW108: 0 | CX108: 0 | CY108: 0 | CZ108: 0 | DA108: 0 | DB108: 0 | DC108: =DC104-DC107 -> 0 | DD108: 0 | DE108: 0 | DF108: 0 | DG108: 0
D109: Total Financing Sources | E109: USD | H109: USD | I109: =SUM(K109:XFD109) -> 1470000000 | K109: =SUM(K107:K108) -> 1470000000 | L109: 0 | M109: 0 | N109: 0 | O109: 0 | P109: 0 | Q109: 0 | R109: 0 | S109: 0 | T109: 0 | U109: 0 | V109: 0 | W109: 0 | X109: 0 | Y109: 0 | Z109: 0 | AA109: 0 | AB109: 0 | AC109: 0 | AD109: 0 | AE109: 0 | AF109: 0 | AG109: 0 | AH109: 0 | AI109: 0 | AJ109: 0 | AK109: 0 | AL109: 0 | AM109: 0 | AN109: 0 | AO109: 0 | AP109: 0 | AQ109: =SUM(AQ107:AQ108) -> 0 | AR109: 0 | AS109: 0 | AT109: 0 | AU109: 0 | AV109: 0 | AW109: 0 | AX109: 0 | AY109: 0 | AZ109: 0 | BA109: 0 | BB109: 0 | BC109: 0 | BD109: 0 | BE109: 0 | BF109: 0 | BG109: 0 | BH109: 0 | BI109: 0 | BJ109: 0 | BK109: 0 | BL109: 0 | BM109: 0 | BN109: 0 | BO109: 0 | BP109: 0 | BQ109: 0 | BR109: 0 | BS109: 0 | BT109: 0 | BU109: 0 | BV109: 0 | BW109: =SUM(BW107:BW108) -> 0 | BX109: 0 | BY109: 0 | BZ109: 0 | CA109: 0 | CB109: 0 | CC109: 0 | CD109: 0 | CE109: 0 | CF109: 0 | CG109: 0 | CH109: 0 | CI109: 0 | CJ109: 0 | CK109: 0 | CL109: 0 | CM109: 0 | CN109: 0 | CO109: 0 | CP109: 0 | CQ109: 0 | CR109: 0 | CS109: 0 | CT109: 0 | CU109: 0 | CV109: 0 | CW109: 0 | CX109: 0 | CY109: 0 | CZ109: 0 | DA109: 0 | DB109: 0 | DC109: =SUM(DC107:DC108) -> 0 | DD109: 0 | DE109: 0 | DF109: 0 | DG109: 0
C111: Post COD Cashflow
D112: EBITDA | E112: USD | H112: USD | I112: =SUM(K112:XFD112) -> 3491606725 | K112: =K33 -> 0 | L112: 219865591.7 | M112: 214138112.3 | N112: 208281764.7 | O112: 202293649.2 | P112: 196170801.1 | Q112: 189910189 | R112: 183508713 | S112: 176963203.9 | T112: 170270420.8 | U112: 163427050.1 | V112: 156429703.5 | W112: 149274916.7 | X112: 141959147.1 | Y112: 134478772.8 | Z112: 126830090 | AA112: 119009311.8 | AB112: 111012566.1 | AC112: 102835893.7 | AD112: 94475246.11 | AE112: 85926483.97 | AF112: 77185374.68 | AG112: 68247590.42 | AH112: 59108706.03 | AI112: 49764196.73 | AJ112: 40209435.97 | AK112: 30439693.1 | AL112: 20450131.01 | AM112: 10235803.78 | AN112: -208345.8193 | AO112: -10887488.78 | AP112: 0 | AQ112: =AQ33 -> 0 | AR112: 0 | AS112: 0 | AT112: 0 | AU112: 0 | AV112: 0 | AW112: 0 | AX112: 0 | AY112: 0 | AZ112: 0 | BA112: 0 | BB112: 0 | BC112: 0 | BD112: 0 | BE112: 0 | BF112: 0 | BG112: 0 | BH112: 0 | BI112: 0 | BJ112: 0 | BK112: 0 | BL112: 0 | BM112: 0 | BN112: 0 | BO112: 0 | BP112: 0 | BQ112: 0 | BR112: 0 | BS112: 0 | BT112: 0 | BU112: 0 | BV112: 0 | BW112: =BW33 -> 0 | BX112: 0 | BY112: 0 | BZ112: 0 | CA112: 0 | CB112: 0 | CC112: 0 | CD112: 0 | CE112: 0 | CF112: 0 | CG112: 0 | CH112: 0 | CI112: 0 | CJ112: 0 | CK112: 0 | CL112: 0 | CM112: 0 | CN112: 0 | CO112: 0 | CP112: 0 | CQ112: 0 | CR112: 0 | CS112: 0 | CT112: 0 | CU112: 0 | CV112: 0 | CW112: 0 | CX112: 0 | CY112: 0 | CZ112: 0 | DA112: 0 | DB112: 0 | DC112: 0 | DD112: 0 | DE112: 0 | DF112: 0 | DG112: 0
D113: Taxes | E113: USD | H113: USD | K113: =K65 -> 0 | L113: =L65 -> 40122236.68 | M113: 38080390.41 | N113: 36006928.47 | O113: 33902285.57 | P113: 31766997.89 | Q113: 29601712.7 | R113: 27407198.78 | S113: 25184357.69 | T113: 22934236.02 | U113: 20658038.63 | V113: 18357142.97 | W113: 16033114.64 | X113: 13687724.13 | Y113: 11322965.08 | Z113: 8941073.923 | AA113: 6544551.175 | AB113: 4136184.505 | AC113: 1719073.651 | AD113: -703342.6047 | AE113: -3127257.267 | AF113: -5548463.572 | AG113: -7962320.869 | AH113: -10363717.71 | AI113: -12747031.96 | AJ113: -15106087.63 | AK113: -17434108.27 | AL113: -19723666.46 | AM113: -21966629.38 | AN113: -24154099.81 | AO113: -26276352.44 | AP113: 2.717971802e-08 | AQ113: 2.935409546e-08 | AR113: 3.17024231e-08 | AS113: 3.423861694e-08 | AT113: 3.69777063e-08 | AU113: 3.99359228e-08 | AV113: 4.313079663e-08 | AW113: 4.658126036e-08 | AX113: 5.030776119e-08 | AY113: 5.433238208e-08 | AZ113: 5.867897265e-08 | BA113: 6.337329046e-08 | BB113: 6.84431537e-08 | BC113: 7.391860599e-08 | BD113: 7.983209447e-08 | BE113: 8.621866203e-08 | BF113: 9.311615499e-08 | BG113: 1.005654474e-07 | BH113: 1.086106832e-07 | BI113: 1.172995378e-07 | BJ113: 1.266835009e-07 | BK113: 1.368181809e-07 | BL113: 1.477636354e-07 | BM113: 1.595847262e-07 | BN113: 1.723515043e-07 | BO113: 1.861396247e-07 | BP113: 2.010307947e-07 | BQ113: 2.171132582e-07 | BR113: 2.344823189e-07 | BS113: 2.532409044e-07 | BT113: 2.735001768e-07 | BU113: 2.953801909e-07 | BV113: 3.190106062e-07 | BW113: 3.445314547e-07 | BX113: =BX65 -> 3.72093971e-07 | BY113: 4.018614887e-07 | BZ113: 4.340104078e-07 | CA113: 4.687312404e-07 | CB113: 5.062297397e-07 | CC113: 5.467281188e-07 | CD113: 5.904663683e-07 | CE113: 6.377036778e-07 | CF113: 6.88719972e-07 | CG113: 7.438175698e-07 | CH113: 8.033229754e-07 | CI113: 8.675888134e-07 | CJ113: 9.369959185e-07 | CK113: 1.011955592e-06 | CL113: 1.092912039e-06 | CM113: 1.180345002e-06 | CN113: 1.274772603e-06 | CO113: 1.376754411e-06 | CP113: 1.486894764e-06 | CQ113: 1.605846345e-06 | CR113: 1.734314052e-06 | CS113: 1.873059177e-06 | CT113: 2.022903911e-06 | CU113: 2.184736224e-06 | CV113: 2.359515122e-06 | CW113: 2.548276331e-06 | CX113: 2.752138438e-06 | CY113: 2.972309513e-06 | CZ113: 3.210094274e-06 | DA113: 3.466901816e-06 | DB113: 3.744253961e-06 | DC113: 4.043794278e-06 | DD113: 4.36729782e-06 | DE113: 4.716681646e-06 | DF113: 5.094016177e-06 | DG113: 5.501537472e-06
D114: Repayment of Debt | E114: USD | H114: USD | I114: =SUM(K114:XFD114) -> 882000000 | K114: =K93 -> 0 | L114: 7785796.248 | M114: 8408659.947 | N114: 9081352.743 | O114: 9807860.963 | P114: 10592489.84 | Q114: 11439889.03 | R114: 12355080.15 | S114: 13343486.56 | T114: 14410965.49 | U114: 15563842.72 | V114: 16808950.14 | W114: 18153666.15 | X114: 19605959.45 | Y114: 21174436.2 | Z114: 22868391.1 | AA114: 24697862.39 | AB114: 26673691.38 | AC114: 28807586.69 | AD114: 31112193.62 | AE114: 33601169.11 | AF114: 36289262.64 | AG114: 39192403.65 | AH114: 42327795.94 | AI114: 45714019.62 | AJ114: 49371141.19 | AK114: 53320832.48 | AL114: 57586499.08 | AM114: 62193419.01 | AN114: 67168892.53 | AO114: 72542403.93 | AP114: 6.794929504e-08 | AQ114: =AQ93 -> 7.338523865e-08 | AR114: 7.925605774e-08 | AS114: 8.559654236e-08 | AT114: 9.244426575e-08 | AU114: 9.983980701e-08 | AV114: 1.078269916e-07 | AW114: 1.164531509e-07 | AX114: 1.25769403e-07 | AY114: 1.358309552e-07 | AZ114: 1.466974316e-07 | BA114: 1.584332261e-07 | BB114: 1.711078842e-07 | BC114: 1.84796515e-07 | BD114: 1.995802362e-07 | BE114: 2.155466551e-07 | BF114: 2.327903875e-07 | BG114: 2.514136185e-07 | BH114: 2.71526708e-07 | BI114: 2.932488446e-07 | BJ114: 3.167087522e-07 | BK114: 3.420454523e-07 | BL114: 3.694090885e-07 | BM114: 3.989618156e-07 | BN114: 4.308787608e-07 | BO114: 4.653490617e-07 | BP114: 5.025769866e-07 | BQ114: 5.427831456e-07 | BR114: 5.862057972e-07 | BS114: 6.33102261e-07 | BT114: 6.837504419e-07 | BU114: 7.384504772e-07 | BV114: 7.975265154e-07 | BW114: =BW93 -> 8.613286366e-07 | BX114: 9.302349276e-07 | BY114: 1.004653722e-06 | BZ114: 1.08502602e-06 | CA114: 1.171828101e-06 | CB114: 1.265574349e-06 | CC114: 1.366820297e-06 | CD114: 1.476165921e-06 | CE114: 1.594259195e-06 | CF114: 1.72179993e-06 | CG114: 1.859543925e-06 | CH114: 2.008307438e-06 | CI114: 2.168972034e-06 | CJ114: 2.342489796e-06 | CK114: 2.52988898e-06 | CL114: 2.732280098e-06 | CM114: 2.950862506e-06 | CN114: 3.186931507e-06 | CO114: 3.441886027e-06 | CP114: 3.717236909e-06 | CQ114: 4.014615862e-06 | CR114: 4.335785131e-06 | CS114: 4.682647942e-06 | CT114: 5.057259777e-06 | CU114: 5.461840559e-06 | CV114: 5.898787804e-06 | CW114: 6.370690828e-06 | CX114: 6.880346094e-06 | CY114: 7.430773782e-06 | CZ114: 8.025235685e-06 | DA114: 8.667254539e-06 | DB114: 9.360634902e-06 | DC114: 1.010948569e-05 | DD114: 1.091824455e-05 | DE114: 1.179170411e-05 | DF114: 1.273504044e-05 | DG114: 1.375384368e-05
D115: Interest Expense (After Cons.) | E115: USD | H115: USD | I115: =SUM(K115:XFD115) -> 1468373887 | K115: =K95 -> 0 | L115: 70560000 | M115: 69937136.3 | N115: 69264443.5 | O115: 68537935.28 | P115: 67753306.41 | Q115: 66905907.22 | R115: 65990716.1 | S115: 65002309.69 | T115: 63934830.76 | U115: 62781953.52 | V115: 61536846.11 | W115: 60192130.09 | X115: 58739836.8 | Y115: 57171360.05 | Z115: 55477405.15 | AA115: 53647933.86 | AB115: 51672104.87 | AC115: 49538209.56 | AD115: 47233602.63 | AE115: 44744627.14 | AF115: 42056533.61 | AG115: 39153392.6 | AH115: 36018000.3 | AI115: 32631776.63 | AJ115: 28974655.06 | AK115: 25024963.76 | AL115: 20759297.16 | AM115: 16152377.24 | AN115: 11176903.72 | AO115: 5803392.315 | AP115: -6.794929504e-08 | AQ115: =AQ95 -> -7.338523865e-08 | AR115: -7.925605774e-08 | AS115: -8.559654236e-08 | AT115: -9.244426575e-08 | AU115: -9.983980701e-08 | AV115: -1.078269916e-07 | AW115: -1.164531509e-07 | AX115: -1.25769403e-07 | AY115: -1.358309552e-07 | AZ115: -1.466974316e-07 | BA115: -1.584332261e-07 | BB115: -1.711078842e-07 | BC115: -1.84796515e-07 | BD115: -1.995802362e-07 | BE115: -2.155466551e-07 | BF115: -2.327903875e-07 | BG115: -2.514136185e-07 | BH115: -2.71526708e-07 | BI115: -2.932488446e-07 | BJ115: -3.167087522e-07 | BK115: -3.420454523e-07 | BL115: -3.694090885e-07 | BM115: -3.989618156e-07 | BN115: -4.308787608e-07 | BO115: -4.653490617e-07 | BP115: -5.025769866e-07 | BQ115: -5.427831456e-07 | BR115: -5.862057972e-07 | BS115: -6.33102261e-07 | BT115: -6.837504419e-07 | BU115: -7.384504772e-07 | BV115: -7.975265154e-07 | BW115: =BW95 -> -8.613286366e-07 | BX115: -9.302349276e-07 | BY115: -1.004653722e-06 | BZ115: -1.08502602e-06 | CA115: -1.171828101e-06 | CB115: -1.265574349e-06 | CC115: -1.366820297e-06 | CD115: -1.476165921e-06 | CE115: -1.594259195e-06 | CF115: -1.72179993e-06 | CG115: -1.859543925e-06 | CH115: -2.008307438e-06 | CI115: -2.168972034e-06 | CJ115: -2.342489796e-06 | CK115: -2.52988898e-06 | CL115: -2.732280098e-06 | CM115: -2.950862506e-06 | CN115: -3.186931507e-06 | CO115: -3.441886027e-06 | CP115: -3.717236909e-06 | CQ115: -4.014615862e-06 | CR115: -4.335785131e-06 | CS115: -4.682647942e-06 | CT115: -5.057259777e-06 | CU115: -5.461840559e-06 | CV115: -5.898787804e-06 | CW115: -6.370690828e-06 | CX115: -6.880346094e-06 | CY115: -7.430773782e-06 | CZ115: -8.025235685e-06 | DA115: -8.667254539e-06 | DB115: -9.360634902e-06 | DC115: -1.010948569e-05 | DD115: -1.091824455e-05 | DE115: -1.179170411e-05 | DF115: -1.273504044e-05 | DG115: -1.375384368e-05
D116: Dividend | E116: USD | H116: USD | I116: =SUM(K116:XFD116) -> 919939702.4 | K116: =K112-K114-K115-K113 -> 0 | L116: =L112-L114-L115-L113 -> 101397558.8 | M116: 97711925.67 | N116: 93929039.96 | O116: 90045567.39 | P116: 86058006.99 | Q116: 81962680.02 | R116: 77755718.01 | S116: 73433049.97 | T116: 68990388.54 | U116: 64423215.22 | V116: 59726764.32 | W116: 54896005.8 | X116: 49925626.75 | Y116: 44810011.42 | Z116: 39543219.79 | AA116: 34118964.38 | AB116: 28530585.38 | AC116: 22771023.79 | AD116: 16832792.47 | AE116: 10707944.99 | AF116: 4388042.001 | AG116: -2135884.955 | AH116: -8873372.511 | AI116: -15834567.56 | AJ116: -23030272.64 | AK116: -30471994.88 | AL116: -38171998.77 | AM116: -46143363.09 | AN116: -54400042.25 | AO116: -62956932.59 | AP116: -2.717971802e-08 | AQ116: -2.935409546e-08 | AR116: -3.17024231e-08 | AS116: -3.423861694e-08 | AT116: -3.69777063e-08 | AU116: -3.99359228e-08 | AV116: -4.313079663e-08 | AW116: -4.658126036e-08 | AX116: -5.030776119e-08 | AY116: -5.433238208e-08 | AZ116: -5.867897265e-08 | BA116: -6.337329046e-08 | BB116: -6.84431537e-08 | BC116: -7.391860599e-08 | BD116: -7.983209447e-08 | BE116: -8.621866203e-08 | BF116: -9.311615499e-08 | BG116: -1.005654474e-07 | BH116: -1.086106832e-07 | BI116: -1.172995378e-07 | BJ116: -1.266835009e-07 | BK116: -1.368181809e-07 | BL116: -1.477636354e-07 | BM116: -1.595847262e-07 | BN116: -1.723515043e-07 | BO116: -1.861396247e-07 | BP116: -2.010307947e-07 | BQ116: -2.171132582e-07 | BR116: -2.344823189e-07 | BS116: -2.532409044e-07 | BT116: -2.735001768e-07 | BU116: -2.953801909e-07 | BV116: -3.190106062e-07 | BW116: -3.445314547e-07 | BX116: =BX112-BX114-BX115-BX113 -> -3.72093971e-07 | BY116: -4.018614887e-07 | BZ116: -4.340104078e-07 | CA116: -4.687312404e-07 | CB116: -5.062297397e-07 | CC116: -5.467281188e-07 | CD116: -5.904663683e-07 | CE116: -6.377036778e-07 | CF116: -6.88719972e-07 | CG116: -7.438175698e-07 | CH116: -8.033229754e-07 | CI116: -8.675888134e-07 | CJ116: -9.369959185e-07 | CK116: -1.011955592e-06 | CL116: -1.092912039e-06 | CM116: -1.180345002e-06 | CN116: -1.274772603e-06 | CO116: -1.376754411e-06 | CP116: -1.486894764e-06 | CQ116: -1.605846345e-06 | CR116: -1.734314052e-06 | CS116: -1.873059177e-06 | CT116: -2.022903911e-06 | CU116: -2.184736224e-06 | CV116: -2.359515122e-06 | CW116: -2.548276331e-06 | CX116: -2.752138438e-06 | CY116: -2.972309513e-06 | CZ116: -3.210094274e-06 | DA116: -3.466901816e-06 | DB116: -3.744253961e-06 | DC116: -4.043794278e-06 | DD116: -4.36729782e-06 | DE116: -4.716681646e-06 | DF116: -5.094016177e-06
D118: Equity Cashflow | E118: USD | H118: USD | I118: =SUM(K118:XFD118) -> 331939702.4 | K118: =K116-K108 -> -588000000 | L118: 101397558.8 | M118: 97711925.67 | N118: 93929039.96 | O118: 90045567.39 | P118: 86058006.99 | Q118: 81962680.02 | R118: 77755718.01 | S118: 73433049.97 | T118: 68990388.54 | U118: 64423215.22 | V118: 59726764.32 | W118: 54896005.8 | X118: 49925626.75 | Y118: 44810011.42 | Z118: 39543219.79 | AA118: 34118964.38 | AB118: 28530585.38 | AC118: 22771023.79 | AD118: 16832792.47 | AE118: 10707944.99 | AF118: 4388042.001 | AG118: -2135884.955 | AH118: -8873372.511 | AI118: -15834567.56 | AJ118: -23030272.64 | AK118: -30471994.88 | AL118: -38171998.77 | AM118: -46143363.09 | AN118: -54400042.25 | AO118: -62956932.59 | AP118: -2.717971802e-08 | AQ118: =AQ116-AQ108 -> -2.935409546e-08 | AR118: -3.17024231e-08 | AS118: -3.423861694e-08 | AT118: -3.69777063e-08 | AU118: -3.99359228e-08 | AV118: -4.313079663e-08 | AW118: -4.658126036e-08 | AX118: -5.030776119e-08 | AY118: -5.433238208e-08 | AZ118: -5.867897265e-08 | BA118: -6.337329046e-08 | BB118: -6.84431537e-08 | BC118: -7.391860599e-08 | BD118: -7.983209447e-08 | BE118: -8.621866203e-08 | BF118: -9.311615499e-08 | BG118: -1.005654474e-07 | BH118: -1.086106832e-07 | BI118: -1.172995378e-07 | BJ118: -1.266835009e-07 | BK118: -1.368181809e-07 | BL118: -1.477636354e-07 | BM118: -1.595847262e-07 | BN118: -1.723515043e-07 | BO118: -1.861396247e-07 | BP118: -2.010307947e-07 | BQ118: -2.171132582e-07 | BR118: -2.344823189e-07 | BS118: -2.532409044e-07 | BT118: -2.735001768e-07 | BU118: -2.953801909e-07 | BV118: -3.190106062e-07 | BW118: =BW116-BW108 -> -3.445314547e-07 | BX118: -3.72093971e-07 | BY118: -4.018614887e-07 | BZ118: -4.340104078e-07 | CA118: -4.687312404e-07 | CB118: -5.062297397e-07 | CC118: -5.467281188e-07 | CD118: -5.904663683e-07 | CE118: -6.377036778e-07 | CF118: -6.88719972e-07 | CG118: -7.438175698e-07 | CH118: -8.033229754e-07 | CI118: -8.675888134e-07 | CJ118: -9.369959185e-07 | CK118: -1.011955592e-06 | CL118: -1.092912039e-06 | CM118: -1.180345002e-06 | CN118: -1.274772603e-06 | CO118: -1.376754411e-06 | CP118: -1.486894764e-06 | CQ118: -1.605846345e-06 | CR118: -1.734314052e-06 | CS118: -1.873059177e-06 | CT118: -2.022903911e-06 | CU118: -2.184736224e-06 | CV118: -2.359515122e-06 | CW118: -2.548276331e-06 | CX118: -2.752138438e-06 | CY118: -2.972309513e-06 | CZ118: -3.210094274e-06 | DA118: -3.466901816e-06 | DB118: -3.744253961e-06 | DC118: -4.043794278e-06 | DD118: -4.36729782e-06 | DE118: -4.716681646e-06 | DF118: -5.094016177e-06 | DG118: 0
D120: Equity IRR | F120: =IRR(K118:DG118) -> 0.1075019732 | G120: =XIRR(K118:DG118,K8:DG8) -> 0.1199999988
D122: Target Equity IRR
D123: Discount Factor | F123: ='Input C'!F78 -> 0.12 | K123: 1 | L123: =K123*(1+$F$123/2) -> 1.06 | M123: =L123*(1+$F$123) -> 1.1872 | N123: 1.329664 | O123: 1.48922368 | P123: 1.667930522 | Q123: 1.868082184 | R123: 2.092252046 | S123: 2.343322292 | T123: 2.624520967 | U123: 2.939463483 | V123: 3.292199101 | W123: 3.687262993 | X123: 4.129734552 | Y123: 4.625302698 | Z123: 5.180339022 | AA123: 5.801979705 | AB123: 6.498217269 | AC123: 7.278003342 | AD123: 8.151363743 | AE123: 9.129527392 | AF123: 10.22507068 | AG123: 11.45207916 | AH123: 12.82632866 | AI123: 14.3654881 | AJ123: 16.08934667 | AK123: 18.02006827 | AL123: 20.18247646 | AM123: 22.60437364 | AN123: 25.31689848 | AO123: 28.35492629 | AP123: 31.75751745 | AQ123: 35.56841954 | AR123: 39.83662989 | AS123: =AR123*(1+$F$123) -> 44.61702547 | AT123: 49.97106853 | AU123: 55.96759675 | AV123: 62.68370836 | AW123: 70.20575337 | AX123: 78.63044377 | AY123: 88.06609702 | AZ123: 98.63402867 | BA123: 110.4701121 | BB123: 123.7265256 | BC123: 138.5737086 | BD123: 155.2025537 | BE123: 173.8268601 | BF123: 194.6860833 | BG123: 218.0484133 | BH123: 244.2142229 | BI123: 273.5199297 | BJ123: 306.3423212 | BK123: 343.1033998 | BL123: 384.2758077 | BM123: 430.3889047 | BN123: 482.0355732 | BO123: 539.879842 | BP123: 604.6654231 | BQ123: 677.2252738 | BR123: 758.4923067 | BS123: 849.5113835 | BT123: 951.4527495 | BU123: 1065.627079 | BV123: 1193.502329 | BW123: 1336.722608 | BX123: 1497.129321 | BY123: =BX123*(1+$F$123) -> 1676.78484 | BZ123: 1877.999021 | CA123: 2103.358903 | CB123: 2355.761972 | CC123: 2638.453408 | CD123: 2955.067817 | CE123: 3309.675955 | CF123: 3706.83707 | CG123: 4151.657519 | CH123: 4649.856421 | CI123: 5207.839191 | CJ123: 5832.779894 | CK123: 6532.713481 | CL123: 7316.639099 | CM123: 8194.635791 | CN123: 9177.992086 | CO123: 10279.35114 | CP123: 11512.87327 | CQ123: 12894.41807 | CR123: 14441.74823 | CS123: 16174.75802 | CT123: 18115.72898 | CU123: 20289.61646 | CV123: 22724.37044 | CW123: 25451.29489 | CX123: 28505.45028 | CY123: 31926.10431 | CZ123: 35757.23683 | DA123: 40048.10525 | DB123: 44853.87788 | DC123: 50236.34322 | DD123: 56264.70441 | DE123: 63016.46894 | DF123: 70578.44521 | DG123: 79047.85863
D124: Sumproduct | F124: =SUMPRODUCT(K118:DG118/K123:DG123) -> -653437.5287
D126: NPV at Target Equity IRR | F126: =XNPV(F123,K118:DG118,K8:DG8) -> 1.414139318e-06 | H126: =LCOE -> 49.12250389
K127: =IF(K9,K7,NA()) ->  | L127: 2027-12-31 | M127: 2028-12-31 | N127: 2029-12-31 | O127: 2030-12-31 | P127: 2031-12-31 | Q127: 2032-12-31 | R127: 2033-12-31 | S127: 2034-12-31 | T127: 2035-12-31 | U127: 2036-12-31 | V127: 2037-12-31 | W127: 2038-12-31 | X127: 2039-12-31 | Y127: 2040-12-31 | Z127: 2041-12-31 | AA127: 2042-12-31 | AB127: 2043-12-31 | AC127: 2044-12-31 | AD127: 2045-12-31 | AE127: 2046-12-31 | AF127: 2047-12-31 | AG127: 2048-12-31 | AH127: 2049-12-31 | AI127: 2050-12-31 | AJ127: 2051-12-31 | AK127: 2052-12-31 | AL127: 2053-12-31 | AM127: 2054-12-31 | AN127: 2055-12-31 | AO127: 2056-12-31 | AQ127: =IF(AQ9,AQ7,NA()) ->  | BW127: =IF(BW9,BW7,NA()) -> 
D128: Cashflow Available (CFADS) | K128: =K112 -> 0 | L128: 219865591.7 | M128: 214138112.3 | N128: 208281764.7 | O128: 202293649.2 | P128: 196170801.1 | Q128: 189910189 | R128: 183508713 | S128: 176963203.9 | T128: 170270420.8 | U128: 163427050.1 | V128: 156429703.5 | W128: 149274916.7 | X128: 141959147.1 | Y128: 134478772.8 | Z128: 126830090 | AA128: 119009311.8 | AB128: 111012566.1 | AC128: 102835893.7 | AD128: 94475246.11 | AE128: 85926483.97 | AF128: 77185374.68 | AG128: 68247590.42 | AH128: 59108706.03 | AI128: 49764196.73 | AJ128: 40209435.97 | AK128: 30439693.1 | AL128: 20450131.01 | AM128: 10235803.78 | AN128: -208345.8193 | AO128: -10887488.78 | AP128: 0 | AQ128: =AQ112 -> 0 | AR128: 0 | AS128: 0 | AT128: 0 | AU128: 0 | AV128: 0 | AW128: 0 | AX128: 0 | AY128: 0 | AZ128: 0 | BA128: 0 | BB128: 0 | BC128: 0 | BD128: 0 | BE128: 0 | BF128: 0 | BG128: 0 | BH128: 0 | BI128: 0 | BJ128: 0 | BK128: 0 | BL128: 0 | BM128: 0 | BN128: 0 | BO128: 0 | BP128: 0 | BQ128: 0 | BR128: 0 | BS128: 0 | BT128: 0 | BU128: 0 | BV128: 0 | BW128: =BW112 -> 0 | BX128: 0 | BY128: 0 | BZ128: 0 | CA128: 0 | CB128: 0 | CC128: 0 | CD128: 0 | CE128: 0 | CF128: 0 | CG128: 0 | CH128: 0 | CI128: 0 | CJ128: 0 | CK128: 0 | CL128: 0 | CM128: 0 | CN128: 0 | CO128: 0 | CP128: 0 | CQ128: 0 | CR128: 0 | CS128: 0 | CT128: 0 | CU128: 0 | CV128: 0 | CW128: 0 | CX128: 0 | CY128: 0 | CZ128: 0 | DA128: 0 | DB128: 0 | DC128: 0 | DD128: 0 | DE128: 0 | DF128: 0 | DG128: 0
D129: Debt Service | F129: =F95 -> 0.08 | G129: =NPV(F129,K129:DG129) -> 882000000 | K129: =IF(K9,K115+K114) -> FALSE | L129: 78345796.25 | M129: 78345796.25 | N129: 78345796.25 | O129: 78345796.25 | P129: 78345796.25 | Q129: 78345796.25 | R129: 78345796.25 | S129: 78345796.25 | T129: 78345796.25 | U129: 78345796.25 | V129: 78345796.25 | W129: 78345796.25 | X129: 78345796.25 | Y129: 78345796.25 | Z129: 78345796.25 | AA129: 78345796.25 | AB129: 78345796.25 | AC129: 78345796.25 | AD129: 78345796.25 | AE129: 78345796.25 | AF129: 78345796.25 | AG129: 78345796.25 | AH129: 78345796.25 | AI129: 78345796.25 | AJ129: 78345796.25 | AK129: 78345796.25 | AL129: 78345796.25 | AM129: 78345796.25 | AN129: 78345796.25 | AO129: 78345796.25 | AP129: FALSE | AQ129: =IF(AQ9,AQ115+AQ114) -> FALSE | AR129: FALSE | AS129: FALSE | AT129: FALSE | AU129: FALSE | AV129: FALSE | AW129: FALSE | AX129: FALSE | AY129: FALSE | AZ129: FALSE | BA129: FALSE | BB129: FALSE | BC129: FALSE | BD129: FALSE | BE129: FALSE | BF129: FALSE | BG129: FALSE | BH129: FALSE | BI129: FALSE | BJ129: FALSE | BK129: FALSE | BL129: FALSE | BM129: FALSE | BN129: FALSE | BO129: FALSE | BP129: FALSE | BQ129: FALSE | BR129: FALSE | BS129: FALSE | BT129: FALSE | BU129: FALSE | BV129: FALSE | BW129: =IF(BW9,BW115+BW114) -> FALSE | BX129: FALSE | BY129: FALSE | BZ129: FALSE | CA129: FALSE | CB129: FALSE | CC129: FALSE | CD129: FALSE | CE129: FALSE | CF129: FALSE | CG129: FALSE | CH129: FALSE | CI129: FALSE | CJ129: FALSE | CK129: FALSE | CL129: FALSE | CM129: FALSE | CN129: FALSE | CO129: FALSE | CP129: FALSE | CQ129: FALSE | CR129: FALSE | CS129: FALSE | CT129: FALSE | CU129: FALSE | CV129: FALSE | CW129: FALSE | CX129: FALSE | CY129: FALSE | CZ129: FALSE | DA129: FALSE | DB129: FALSE | DC129: FALSE | DD129: FALSE | DE129: FALSE | DF129: FALSE | DG129: FALSE
D132: DSCR | F132: =MIN(K132:DG132) -> -0.1389671087 | K132: =IF(K129,IF(K129>0.1,K128/K129)) -> FALSE | L132: =IF(L129,IF(L129>0.1,L128/L129)) -> 2.806348295 | M132: 2.733243168 | N132: 2.658493176 | O132: 2.582061309 | P132: 2.503909725 | Q132: 2.42399973 | R132: 2.342291761 | S132: 2.258745362 | T132: 2.173319169 | U132: 2.085970887 | V132: 1.996657269 | W132: 1.905334094 | X132: 1.811956147 | Y132: 1.716477197 | Z132: 1.618849971 | AA132: 1.519026132 | AB132: 1.416956256 | AC132: 1.312589808 | AD132: 1.205875116 | AE132: 1.096759342 | AF132: 0.9851884641 | AG132: 0.8711072411 | AH132: 0.7544591906 | AI132: 0.635186559 | AJ132: 0.5132302931 | AK132: 0.3885300113 | AL132: 0.2610239731 | AM132: 0.1306490491 | AN132: -0.002659310764 | AO132: -0.1389671087 | AP132: FALSE | AQ132: FALSE | AR132: FALSE | AS132: FALSE | AT132: FALSE | AU132: FALSE | AV132: FALSE | AW132: FALSE | AX132: FALSE | AY132: FALSE | AZ132: FALSE | BA132: FALSE | BB132: FALSE | BC132: FALSE | BD132: FALSE | BE132: FALSE | BF132: FALSE | BG132: FALSE | BH132: FALSE | BI132: FALSE | BJ132: FALSE | BK132: FALSE | BL132: FALSE | BM132: FALSE | BN132: FALSE | BO132: FALSE | BP132: FALSE | BQ132: FALSE | BR132: FALSE | BS132: FALSE | BT132: FALSE | BU132: FALSE | BV132: FALSE | BW132: FALSE | BX132: =IF(BX129,IF(BX129>0.1,BX128/BX129)) -> FALSE | BY132: FALSE | BZ132: FALSE | CA132: FALSE | CB132: FALSE | CC132: FALSE | CD132: FALSE | CE132: FALSE | CF132: FALSE | CG132: FALSE | CH132: FALSE | CI132: FALSE | CJ132: FALSE | CK132: FALSE | CL132: FALSE | CM132: FALSE | CN132: FALSE | CO132: FALSE | CP132: FALSE | CQ132: FALSE | CR132: FALSE | CS132: FALSE | CT132: FALSE | CU132: FALSE | CV132: FALSE | CW132: FALSE | CX132: FALSE | CY132: FALSE | CZ132: FALSE | DA132: FALSE | DB132: FALSE | DC132: FALSE | DD132: FALSE | DE132: FALSE | DF132: FALSE | DG132: FALSE
B134: Graphs
D135: DSCR | F135: =F132 -> -0.1389671087 | G135: Equity IRR | H135: =F120 -> 0.1075019732 | I135: Project IRR | J135: =F36 -> 0.109118551 | K135: Interest Rate | L135: =F95 -> 0.08 | M135: LCOE | N135: =LCOE -> 49.12250389 | O135: Debt to Capital | P135: =F78 -> 0.6
D136: Target DSCR | E136: x | F136: ='Input C'!F73 -> 1.2
D137: Difference | F137: =F135-F136 -> -1.338967109
B139: Financial Statements: Income Statement
C140: EBITDA | K140: =K112 -> 0 | L140: =L112 -> 219865591.7 | M140: 214138112.3 | N140: 208281764.7 | O140: 202293649.2 | P140: 196170801.1 | Q140: 189910189 | R140: 183508713 | S140: 176963203.9 | T140: 170270420.8 | U140: 163427050.1 | V140: 156429703.5 | W140: 149274916.7 | X140: 141959147.1 | Y140: 134478772.8 | Z140: 126830090 | AA140: 119009311.8 | AB140: 111012566.1 | AC140: 102835893.7 | AD140: 94475246.11 | AE140: 85926483.97 | AF140: 77185374.68 | AG140: 68247590.42 | AH140: 59108706.03 | AI140: 49764196.73 | AJ140: 40209435.97 | AK140: 30439693.1 | AL140: 20450131.01 | AM140: 10235803.78 | AN140: -208345.8193 | AO140: -10887488.78 | AP140: 0 | AQ140: 0 | AR140: 0 | AS140: 0 | AT140: 0 | AU140: 0 | AV140: 0 | AW140: 0 | AX140: 0 | AY140: 0 | AZ140: 0 | BA140: 0 | BB140: 0 | BC140: 0 | BD140: 0 | BE140: 0 | BF140: 0 | BG140: 0 | BH140: 0 | BI140: 0 | BJ140: 0 | BK140: 0 | BL140: 0 | BM140: 0 | BN140: 0 | BO140: 0 | BP140: 0 | BQ140: 0 | BR140: 0 | BS140: 0 | BT140: 0 | BU140: 0 | BV140: 0 | BW140: 0 | BX140: =BX112 -> 0 | BY140: 0 | BZ140: 0 | CA140: 0 | CB140: 0 | CC140: 0 | CD140: 0 | CE140: 0 | CF140: 0 | CG140: 0 | CH140: 0 | CI140: 0 | CJ140: 0 | CK140: 0 | CL140: 0 | CM140: 0 | CN140: 0 | CO140: 0 | CP140: 0 | CQ140: 0 | CR140: 0 | CS140: 0 | CT140: 0 | CU140: 0 | CV140: 0 | CW140: 0 | CX140: 0 | CY140: 0 | CZ140: 0 | DA140: 0 | DB140: 0 | DC140: 0 | DD140: 0 | DE140: 0 | DF140: 0 | DG140: 0
C141: Less: Depreciation | K141: =K53 -> 0 | L141: =L53 -> 49000000 | M141: 49000000 | N141: 49000000 | O141: 49000000 | P141: 49000000 | Q141: 49000000 | R141: 49000000 | S141: 49000000 | T141: 49000000 | U141: 49000000 | V141: 49000000 | W141: 49000000 | X141: 49000000 | Y141: 49000000 | Z141: 49000000 | AA141: 49000000 | AB141: 49000000 | AC141: 49000000 | AD141: 49000000 | AE141: 49000000 | AF141: 49000000 | AG141: 49000000 | AH141: 49000000 | AI141: 49000000 | AJ141: 49000000 | AK141: 49000000 | AL141: 49000000 | AM141: 49000000 | AN141: 49000000 | AO141: 49000000 | AP141: 0 | AQ141: 0 | AR141: 0 | AS141: 0 | AT141: 0 | AU141: 0 | AV141: 0 | AW141: 0 | AX141: 0 | AY141: 0 | AZ141: 0 | BA141: 0 | BB141: 0 | BC141: 0 | BD141: 0 | BE141: 0 | BF141: 0 | BG141: 0 | BH141: 0 | BI141: 0 | BJ141: 0 | BK141: 0 | BL141: 0 | BM141: 0 | BN141: 0 | BO141: 0 | BP141: 0 | BQ141: 0 | BR141: 0 | BS141: 0 | BT141: 0 | BU141: 0 | BV141: 0 | BW141: 0 | BX141: =BX53 -> 0 | BY141: 0 | BZ141: 0 | CA141: 0 | CB141: 0 | CC141: 0 | CD141: 0 | CE141: 0 | CF141: 0 | CG141: 0 | CH141: 0 | CI141: 0 | CJ141: 0 | CK141: 0 | CL141: 0 | CM141: 0 | CN141: 0 | CO141: 0 | CP141: 0 | CQ141: 0 | CR141: 0 | CS141: 0 | CT141: 0 | CU141: 0 | CV141: 0 | CW141: 0 | CX141: 0 | CY141: 0 | CZ141: 0 | DA141: 0 | DB141: 0 | DC141: 0 | DD141: 0 | DE141: 0 | DF141: 0 | DG141: 0
C142: EBIT | K142: =K140-K141 -> 0 | L142: =L140-L141 -> 170865591.7 | M142: 165138112.3 | N142: 159281764.7 | O142: 153293649.2 | P142: 147170801.1 | Q142: 140910189 | R142: 134508713 | S142: 127963203.9 | T142: 121270420.8 | U142: 114427050.1 | V142: 107429703.5 | W142: 100274916.7 | X142: 92959147.13 | Y142: 85478772.75 | Z142: 77830089.96 | AA142: 70009311.8 | AB142: 62012566.13 | AC142: 53835893.69 | AD142: 45475246.11 | AE142: 36926483.97 | AF142: 28185374.68 | AG142: 19247590.42 | AH142: 10108706.03 | AI142: 764196.7292 | AJ142: -8790564.027 | AK142: -18560306.9 | AL142: -28549868.99 | AM142: -38764196.22 | AN142: -49208345.82 | AO142: -59887488.78 | AP142: 0 | AQ142: 0 | AR142: 0 | AS142: 0 | AT142: 0 | AU142: 0 | AV142: 0 | AW142: 0 | AX142: 0 | AY142: 0 | AZ142: 0 | BA142: 0 | BB142: 0 | BC142: 0 | BD142: 0 | BE142: 0 | BF142: 0 | BG142: 0 | BH142: 0 | BI142: 0 | BJ142: 0 | BK142: 0 | BL142: 0 | BM142: 0 | BN142: 0 | BO142: 0 | BP142: 0 | BQ142: 0 | BR142: 0 | BS142: 0 | BT142: 0 | BU142: 0 | BV142: 0 | BW142: 0 | BX142: =BX140-BX141 -> 0 | BY142: 0 | BZ142: 0 | CA142: 0 | CB142: 0 | CC142: 0 | CD142: 0 | CE142: 0 | CF142: 0 | CG142: 0 | CH142: 0 | CI142: 0 | CJ142: 0 | CK142: 0 | CL142: 0 | CM142: 0 | CN142: 0 | CO142: 0 | CP142: 0 | CQ142: 0 | CR142: 0 | CS142: 0 | CT142: 0 | CU142: 0 | CV142: 0 | CW142: 0 | CX142: 0 | CY142: 0 | CZ142: 0 | DA142: 0 | DB142: 0 | DC142: 0 | DD142: 0 | DE142: 0 | DF142: 0 | DG142: 0
C143: Less Interest | K143: =K115 -> 0 | L143: =L115 -> 70560000 | M143: 69937136.3 | N143: 69264443.5 | O143: 68537935.28 | P143: 67753306.41 | Q143: 66905907.22 | R143: 65990716.1 | S143: 65002309.69 | T143: 63934830.76 | U143: 62781953.52 | V143: 61536846.11 | W143: 60192130.09 | X143: 58739836.8 | Y143: 57171360.05 | Z143: 55477405.15 | AA143: 53647933.86 | AB143: 51672104.87 | AC143: 49538209.56 | AD143: 47233602.63 | AE143: 44744627.14 | AF143: 42056533.61 | AG143: 39153392.6 | AH143: 36018000.3 | AI143: 32631776.63 | AJ143: 28974655.06 | AK143: 25024963.76 | AL143: 20759297.16 | AM143: 16152377.24 | AN143: 11176903.72 | AO143: 5803392.315 | AP143: -6.794929504e-08 | AQ143: -7.338523865e-08 | AR143: -7.925605774e-08 | AS143: -8.559654236e-08 | AT143: -9.244426575e-08 | AU143: -9.983980701e-08 | AV143: -1.078269916e-07 | AW143: -1.164531509e-07 | AX143: -1.25769403e-07 | AY143: -1.358309552e-07 | AZ143: -1.466974316e-07 | BA143: -1.584332261e-07 | BB143: -1.711078842e-07 | BC143: -1.84796515e-07 | BD143: -1.995802362e-07 | BE143: -2.155466551e-07 | BF143: -2.327903875e-07 | BG143: -2.514136185e-07 | BH143: -2.71526708e-07 | BI143: -2.932488446e-07 | BJ143: -3.167087522e-07 | BK143: -3.420454523e-07 | BL143: -3.694090885e-07 | BM143: -3.989618156e-07 | BN143: -4.308787608e-07 | BO143: -4.653490617e-07 | BP143: -5.025769866e-07 | BQ143: -5.427831456e-07 | BR143: -5.862057972e-07 | BS143: -6.33102261e-07 | BT143: -6.837504419e-07 | BU143: -7.384504772e-07 | BV143: -7.975265154e-07 | BW143: -8.613286366e-07 | BX143: =BX115 -> -9.302349276e-07 | BY143: -1.004653722e-06 | BZ143: -1.08502602e-06 | CA143: -1.171828101e-06 | CB143: -1.265574349e-06 | CC143: -1.366820297e-06 | CD143: -1.476165921e-06 | CE143: -1.594259195e-06 | CF143: -1.72179993e-06 | CG143: -1.859543925e-06 | CH143: -2.008307438e-06 | CI143: -2.168972034e-06 | CJ143: -2.342489796e-06 | CK143: -2.52988898e-06 | CL143: -2.732280098e-06 | CM143: -2.950862506e-06 | CN143: -3.186931507e-06 | CO143: -3.441886027e-06 | CP143: -3.717236909e-06 | CQ143: -4.014615862e-06 | CR143: -4.335785131e-06 | CS143: -4.682647942e-06 | CT143: -5.057259777e-06 | CU143: -5.461840559e-06 | CV143: -5.898787804e-06 | CW143: -6.370690828e-06 | CX143: -6.880346094e-06 | CY143: -7.430773782e-06 | CZ143: -8.025235685e-06 | DA143: -8.667254539e-06 | DB143: -9.360634902e-06 | DC143: -1.010948569e-05 | DD143: -1.091824455e-05 | DE143: -1.179170411e-05 | DF143: -1.273504044e-05 | DG143: -1.375384368e-05
C144: EBT | K144: =K142-K143 -> 0 | L144: =L142-L143 -> 100305591.7 | M144: 95200976.03 | N144: 90017321.17 | O144: 84755713.92 | P144: 79417494.72 | Q144: 74004281.75 | R144: 68517996.94 | S144: 62960894.21 | T144: 57335590.04 | U144: 51645096.57 | V144: 45892857.43 | W144: 40082786.59 | X144: 34219310.32 | Y144: 28307412.71 | Z144: 22352684.81 | AA144: 16361377.94 | AB144: 10340461.26 | AC144: 4297684.128 | AD144: -1758356.512 | AE144: -7818143.167 | AF144: -13871158.93 | AG144: -19905802.17 | AH144: -25909294.28 | AI144: -31867579.9 | AJ144: -37765219.09 | AK144: -43585270.66 | AL144: -49309166.15 | AM144: -54916573.46 | AN144: -60385249.54 | AO144: -65690881.1 | AP144: 6.794929504e-08 | AQ144: 7.338523865e-08 | AR144: 7.925605774e-08 | AS144: 8.559654236e-08 | AT144: 9.244426575e-08 | AU144: 9.983980701e-08 | AV144: 1.078269916e-07 | AW144: 1.164531509e-07 | AX144: 1.25769403e-07 | AY144: 1.358309552e-07 | AZ144: 1.466974316e-07 | BA144: 1.584332261e-07 | BB144: 1.711078842e-07 | BC144: 1.84796515e-07 | BD144: 1.995802362e-07 | BE144: 2.155466551e-07 | BF144: 2.327903875e-07 | BG144: 2.514136185e-07 | BH144: 2.71526708e-07 | BI144: 2.932488446e-07 | BJ144: 3.167087522e-07 | BK144: 3.420454523e-07 | BL144: 3.694090885e-07 | BM144: 3.989618156e-07 | BN144: 4.308787608e-07 | BO144: 4.653490617e-07 | BP144: 5.025769866e-07 | BQ144: 5.427831456e-07 | BR144: 5.862057972e-07 | BS144: 6.33102261e-07 | BT144: 6.837504419e-07 | BU144: 7.384504772e-07 | BV144: 7.975265154e-07 | BW144: 8.613286366e-07 | BX144: =BX142-BX143 -> 9.302349276e-07 | BY144: 1.004653722e-06 | BZ144: 1.08502602e-06 | CA144: 1.171828101e-06 | CB144: 1.265574349e-06 | CC144: 1.366820297e-06 | CD144: 1.476165921e-06 | CE144: 1.594259195e-06 | CF144: 1.72179993e-06 | CG144: 1.859543925e-06 | CH144: 2.008307438e-06 | CI144: 2.168972034e-06 | CJ144: 2.342489796e-06 | CK144: 2.52988898e-06 | CL144: 2.732280098e-06 | CM144: 2.950862506e-06 | CN144: 3.186931507e-06 | CO144: 3.441886027e-06 | CP144: 3.717236909e-06 | CQ144: 4.014615862e-06 | CR144: 4.335785131e-06 | CS144: 4.682647942e-06 | CT144: 5.057259777e-06 | CU144: 5.461840559e-06 | CV144: 5.898787804e-06 | CW144: 6.370690828e-06 | CX144: 6.880346094e-06 | CY144: 7.430773782e-06 | CZ144: 8.025235685e-06 | DA144: 8.667254539e-06 | DB144: 9.360634902e-06 | DC144: 1.010948569e-05 | DD144: 1.091824455e-05 | DE144: 1.179170411e-05 | DF144: 1.273504044e-05 | DG144: 1.375384368e-05
C145: Less: Taxes | K145: =K113 -> 0 | L145: =L113 -> 40122236.68 | M145: 38080390.41 | N145: 36006928.47 | O145: 33902285.57 | P145: 31766997.89 | Q145: 29601712.7 | R145: 27407198.78 | S145: 25184357.69 | T145: 22934236.02 | U145: 20658038.63 | V145: 18357142.97 | W145: 16033114.64 | X145: 13687724.13 | Y145: 11322965.08 | Z145: 8941073.923 | AA145: 6544551.175 | AB145: 4136184.505 | AC145: 1719073.651 | AD145: -703342.6047 | AE145: -3127257.267 | AF145: -5548463.572 | AG145: -7962320.869 | AH145: -10363717.71 | AI145: -12747031.96 | AJ145: -15106087.63 | AK145: -17434108.27 | AL145: -19723666.46 | AM145: -21966629.38 | AN145: -24154099.81 | AO145: -26276352.44 | AP145: 2.717971802e-08 | AQ145: 2.935409546e-08 | AR145: 3.17024231e-08 | AS145: 3.423861694e-08 | AT145: 3.69777063e-08 | AU145: 3.99359228e-08 | AV145: 4.313079663e-08 | AW145: 4.658126036e-08 | AX145: 5.030776119e-08 | AY145: 5.433238208e-08 | AZ145: 5.867897265e-08 | BA145: 6.337329046e-08 | BB145: 6.84431537e-08 | BC145: 7.391860599e-08 | BD145: 7.983209447e-08 | BE145: 8.621866203e-08 | BF145: 9.311615499e-08 | BG145: 1.005654474e-07 | BH145: 1.086106832e-07 | BI145: 1.172995378e-07 | BJ145: 1.266835009e-07 | BK145: 1.368181809e-07 | BL145: 1.477636354e-07 | BM145: 1.595847262e-07 | BN145: 1.723515043e-07 | BO145: 1.861396247e-07 | BP145: 2.010307947e-07 | BQ145: 2.171132582e-07 | BR145: 2.344823189e-07 | BS145: 2.532409044e-07 | BT145: 2.735001768e-07 | BU145: 2.953801909e-07 | BV145: 3.190106062e-07 | BW145: 3.445314547e-07 | BX145: =BX113 -> 3.72093971e-07 | BY145: 4.018614887e-07 | BZ145: 4.340104078e-07 | CA145: 4.687312404e-07 | CB145: 5.062297397e-07 | CC145: 5.467281188e-07 | CD145: 5.904663683e-07 | CE145: 6.377036778e-07 | CF145: 6.88719972e-07 | CG145: 7.438175698e-07 | CH145: 8.033229754e-07 | CI145: 8.675888134e-07 | CJ145: 9.369959185e-07 | CK145: 1.011955592e-06 | CL145: 1.092912039e-06 | CM145: 1.180345002e-06 | CN145: 1.274772603e-06 | CO145: 1.376754411e-06 | CP145: 1.486894764e-06 | CQ145: 1.605846345e-06 | CR145: 1.734314052e-06 | CS145: 1.873059177e-06 | CT145: 2.022903911e-06 | CU145: 2.184736224e-06 | CV145: 2.359515122e-06 | CW145: 2.548276331e-06 | CX145: 2.752138438e-06 | CY145: 2.972309513e-06 | CZ145: 3.210094274e-06 | DA145: 3.466901816e-06 | DB145: 3.744253961e-06 | DC145: 4.043794278e-06 | DD145: 4.36729782e-06 | DE145: 4.716681646e-06 | DF145: 5.094016177e-06 | DG145: 5.501537472e-06
C146: Earnings | K146: =K144-K145 -> 0 | L146: =L144-L145 -> 60183355.02 | M146: 57120585.62 | N146: 54010392.7 | O146: 50853428.35 | P146: 47650496.83 | Q146: 44402569.05 | R146: 41110798.16 | S146: 37776536.53 | T146: 34401354.03 | U146: 30987057.94 | V146: 27535714.46 | W146: 24049671.95 | X146: 20531586.19 | Y146: 16984447.62 | Z146: 13411610.88 | AA146: 9816826.763 | AB146: 6204276.757 | AC146: 2578610.477 | AD146: -1055013.907 | AE146: -4690885.9 | AF146: -8322695.359 | AG146: -11943481.3 | AH146: -15545576.57 | AI146: -19120547.94 | AJ146: -22659131.45 | AK146: -26151162.4 | AL146: -29585499.69 | AM146: -32949944.08 | AN146: -36231149.72 | AO146: -39414528.66 | AP146: 4.076957703e-08 | AQ146: 4.403114319e-08 | AR146: 4.755363464e-08 | AS146: 5.135792542e-08 | AT146: 5.546655945e-08 | AU146: 5.99038842e-08 | AV146: 6.469619494e-08 | AW146: 6.987189054e-08 | AX146: 7.546164178e-08 | AY146: 8.149857312e-08 | AZ146: 8.801845897e-08 | BA146: 9.505993569e-08 | BB146: 1.026647305e-07 | BC146: 1.10877909e-07 | BD146: 1.197481417e-07 | BE146: 1.29327993e-07 | BF146: 1.396742325e-07 | BG146: 1.508481711e-07 | BH146: 1.629160248e-07 | BI146: 1.759493068e-07 | BJ146: 1.900252513e-07 | BK146: 2.052272714e-07 | BL146: 2.216454531e-07 | BM146: 2.393770894e-07 | BN146: 2.585272565e-07 | BO146: 2.79209437e-07 | BP146: 3.01546192e-07 | BQ146: 3.256698873e-07 | BR146: 3.517234783e-07 | BS146: 3.798613566e-07 | BT146: 4.102502651e-07 | BU146: 4.430702863e-07 | BV146: 4.785159092e-07 | BW146: 5.16797182e-07 | BX146: =BX144-BX145 -> 5.581409565e-07 | BY146: 6.027922331e-07 | BZ146: 6.510156117e-07 | CA146: 7.030968607e-07 | CB146: 7.593446095e-07 | CC146: 8.200921783e-07 | CD146: 8.856995525e-07 | CE146: 9.565555167e-07 | CF146: 1.033079958e-06 | CG146: 1.115726355e-06 | CH146: 1.204984463e-06 | CI146: 1.30138322e-06 | CJ146: 1.405493878e-06 | CK146: 1.517933388e-06 | CL146: 1.639368059e-06 | CM146: 1.770517504e-06 | CN146: 1.912158904e-06 | CO146: 2.065131616e-06 | CP146: 2.230342146e-06 | CQ146: 2.408769517e-06 | CR146: 2.601471079e-06 | CS146: 2.809588765e-06 | CT146: 3.034355866e-06 | CU146: 3.277104335e-06 | CV146: 3.539272682e-06 | CW146: 3.822414497e-06 | CX146: 4.128207657e-06 | CY146: 4.458464269e-06 | CZ146: 4.815141411e-06 | DA146: 5.200352724e-06 | DB146: 5.616380941e-06 | DC146: 6.065691417e-06 | DD146: 6.55094673e-06 | DE146: 7.075022469e-06 | DF146: 7.641024266e-06
B148: Cash Flow
C149: EBITDA | K149: =K140 -> 0 | L149: =L140 -> 219865591.7 | M149: 214138112.3 | N149: 208281764.7 | O149: 202293649.2 | P149: 196170801.1 | Q149: 189910189 | R149: 183508713 | S149: 176963203.9 | T149: 170270420.8 | U149: 163427050.1 | V149: 156429703.5 | W149: 149274916.7 | X149: 141959147.1 | Y149: 134478772.8 | Z149: 126830090 | AA149: 119009311.8 | AB149: 111012566.1 | AC149: 102835893.7 | AD149: 94475246.11 | AE149: 85926483.97 | AF149: 77185374.68 | AG149: 68247590.42 | AH149: 59108706.03 | AI149: 49764196.73 | AJ149: 40209435.97 | AK149: 30439693.1 | AL149: 20450131.01 | AM149: 10235803.78 | AN149: -208345.8193 | AO149: -10887488.78 | AP149: 0 | AQ149: 0 | AR149: 0 | AS149: 0 | AT149: 0 | AU149: 0 | AV149: 0 | AW149: 0 | AX149: 0 | AY149: 0 | AZ149: 0 | BA149: 0 | BB149: 0 | BC149: 0 | BD149: 0 | BE149: 0 | BF149: 0 | BG149: 0 | BH149: 0 | BI149: 0 | BJ149: 0 | BK149: 0 | BL149: 0 | BM149: 0 | BN149: 0 | BO149: 0 | BP149: 0 | BQ149: 0 | BR149: 0 | BS149: 0 | BT149: 0 | BU149: 0 | BV149: 0 | BW149: 0 | BX149: =BX140 -> 0 | BY149: 0 | BZ149: 0 | CA149: 0 | CB149: 0 | CC149: 0 | CD149: 0 | CE149: 0 | CF149: 0 | CG149: 0 | CH149: 0 | CI149: 0 | CJ149: 0 | CK149: 0 | CL149: 0 | CM149: 0 | CN149: 0 | CO149: 0 | CP149: 0 | CQ149: 0 | CR149: 0 | CS149: 0 | CT149: 0 | CU149: 0 | CV149: 0 | CW149: 0 | CX149: 0 | CY149: 0 | CZ149: 0 | DA149: 0 | DB149: 0 | DC149: 0 | DD149: 0 | DE149: 0 | DF149: 0 | DG149: 0
C150: Less: Taxes | K150: =K145 -> 0 | L150: =L145 -> 40122236.68 | M150: 38080390.41 | N150: 36006928.47 | O150: 33902285.57 | P150: 31766997.89 | Q150: 29601712.7 | R150: 27407198.78 | S150: 25184357.69 | T150: 22934236.02 | U150: 20658038.63 | V150: 18357142.97 | W150: 16033114.64 | X150: 13687724.13 | Y150: 11322965.08 | Z150: 8941073.923 | AA150: 6544551.175 | AB150: 4136184.505 | AC150: 1719073.651 | AD150: -703342.6047 | AE150: -3127257.267 | AF150: -5548463.572 | AG150: -7962320.869 | AH150: -10363717.71 | AI150: -12747031.96 | AJ150: -15106087.63 | AK150: -17434108.27 | AL150: -19723666.46 | AM150: -21966629.38 | AN150: -24154099.81 | AO150: -26276352.44 | AP150: 2.717971802e-08 | AQ150: 2.935409546e-08 | AR150: 3.17024231e-08 | AS150: 3.423861694e-08 | AT150: 3.69777063e-08 | AU150: 3.99359228e-08 | AV150: 4.313079663e-08 | AW150: 4.658126036e-08 | AX150: 5.030776119e-08 | AY150: 5.433238208e-08 | AZ150: 5.867897265e-08 | BA150: 6.337329046e-08 | BB150: 6.84431537e-08 | BC150: 7.391860599e-08 | BD150: 7.983209447e-08 | BE150: 8.621866203e-08 | BF150: 9.311615499e-08 | BG150: 1.005654474e-07 | BH150: 1.086106832e-07 | BI150: 1.172995378e-07 | BJ150: 1.266835009e-07 | BK150: 1.368181809e-07 | BL150: 1.477636354e-07 | BM150: 1.595847262e-07 | BN150: 1.723515043e-07 | BO150: 1.861396247e-07 | BP150: 2.010307947e-07 | BQ150: 2.171132582e-07 | BR150: 2.344823189e-07 | BS150: 2.532409044e-07 | BT150: 2.735001768e-07 | BU150: 2.953801909e-07 | BV150: 3.190106062e-07 | BW150: 3.445314547e-07 | BX150: =BX145 -> 3.72093971e-07 | BY150: 4.018614887e-07 | BZ150: 4.340104078e-07 | CA150: 4.687312404e-07 | CB150: 5.062297397e-07 | CC150: 5.467281188e-07 | CD150: 5.904663683e-07 | CE150: 6.377036778e-07 | CF150: 6.88719972e-07 | CG150: 7.438175698e-07 | CH150: 8.033229754e-07 | CI150: 8.675888134e-07 | CJ150: 9.369959185e-07 | CK150: 1.011955592e-06 | CL150: 1.092912039e-06 | CM150: 1.180345002e-06 | CN150: 1.274772603e-06 | CO150: 1.376754411e-06 | CP150: 1.486894764e-06 | CQ150: 1.605846345e-06 | CR150: 1.734314052e-06 | CS150: 1.873059177e-06 | CT150: 2.022903911e-06 | CU150: 2.184736224e-06 | CV150: 2.359515122e-06 | CW150: 2.548276331e-06 | CX150: 2.752138438e-06 | CY150: 2.972309513e-06 | CZ150: 3.210094274e-06 | DA150: 3.466901816e-06 | DB150: 3.744253961e-06 | DC150: 4.043794278e-06 | DD150: 4.36729782e-06 | DE150: 4.716681646e-06 | DF150: 5.094016177e-06 | DG150: 5.501537472e-06
C151: Operating Cash Flow | K151: =K149-K150 -> 0 | L151: =L149-L150 -> 179743355 | M151: 176057721.9 | N151: 172274836.2 | O151: 168391363.6 | P151: 164403803.2 | Q151: 160308476.3 | R151: 156101514.3 | S151: 151778846.2 | T151: 147336184.8 | U151: 142769011.5 | V151: 138072560.6 | W151: 133241802 | X151: 128271423 | Y151: 123155807.7 | Z151: 117889016 | AA151: 112464760.6 | AB151: 106876381.6 | AC151: 101116820 | AD151: 95178588.72 | AE151: 89053741.24 | AF151: 82733838.25 | AG151: 76209911.29 | AH151: 69472423.74 | AI151: 62511228.69 | AJ151: 55315523.61 | AK151: 47873801.37 | AL151: 40173797.47 | AM151: 32202433.16 | AN151: 23945754 | AO151: 15388863.66 | AP151: -2.717971802e-08 | AQ151: -2.935409546e-08 | AR151: -3.17024231e-08 | AS151: -3.423861694e-08 | AT151: -3.69777063e-08 | AU151: -3.99359228e-08 | AV151: -4.313079663e-08 | AW151: -4.658126036e-08 | AX151: -5.030776119e-08 | AY151: -5.433238208e-08 | AZ151: -5.867897265e-08 | BA151: -6.337329046e-08 | BB151: -6.84431537e-08 | BC151: -7.391860599e-08 | BD151: -7.983209447e-08 | BE151: -8.621866203e-08 | BF151: -9.311615499e-08 | BG151: -1.005654474e-07 | BH151: -1.086106832e-07 | BI151: -1.172995378e-07 | BJ151: -1.266835009e-07 | BK151: -1.368181809e-07 | BL151: -1.477636354e-07 | BM151: -1.595847262e-07 | BN151: -1.723515043e-07 | BO151: -1.861396247e-07 | BP151: -2.010307947e-07 | BQ151: -2.171132582e-07 | BR151: -2.344823189e-07 | BS151: -2.532409044e-07 | BT151: -2.735001768e-07 | BU151: -2.953801909e-07 | BV151: -3.190106062e-07 | BW151: -3.445314547e-07 | BX151: =BX149-BX150 -> -3.72093971e-07 | BY151: -4.018614887e-07 | BZ151: -4.340104078e-07 | CA151: -4.687312404e-07 | CB151: -5.062297397e-07 | CC151: -5.467281188e-07 | CD151: -5.904663683e-07 | CE151: -6.377036778e-07 | CF151: -6.88719972e-07 | CG151: -7.438175698e-07 | CH151: -8.033229754e-07 | CI151: -8.675888134e-07 | CJ151: -9.369959185e-07 | CK151: -1.011955592e-06 | CL151: -1.092912039e-06 | CM151: -1.180345002e-06 | CN151: -1.274772603e-06 | CO151: -1.376754411e-06 | CP151: -1.486894764e-06 | CQ151: -1.605846345e-06 | CR151: -1.734314052e-06 | CS151: -1.873059177e-06 | CT151: -2.022903911e-06 | CU151: -2.184736224e-06 | CV151: -2.359515122e-06 | CW151: -2.548276331e-06 | CX151: -2.752138438e-06 | CY151: -2.972309513e-06 | CZ151: -3.210094274e-06 | DA151: -3.466901816e-06 | DB151: -3.744253961e-06 | DC151: -4.043794278e-06 | DD151: -4.36729782e-06 | DE151: -4.716681646e-06 | DF151: -5.094016177e-06 | DG151: -5.501537472e-06
C153: Capital Expenditures for Investing | K153: =-K100 -> -1470000000 | L153: =-L100 -> 0 | M153: 0 | N153: 0 | O153: 0 | P153: 0 | Q153: 0 | R153: 0 | S153: 0 | T153: 0 | U153: 0 | V153: 0 | W153: 0 | X153: 0 | Y153: 0 | Z153: 0 | AA153: 0 | AB153: 0 | AC153: 0 | AD153: 0 | AE153: 0 | AF153: 0 | AG153: 0 | AH153: 0 | AI153: 0 | AJ153: 0 | AK153: 0 | AL153: 0 | AM153: 0 | AN153: 0 | AO153: 0 | AP153: 0 | AQ153: 0 | AR153: 0 | AS153: 0 | AT153: 0 | AU153: 0 | AV153: 0 | AW153: 0 | AX153: 0 | AY153: 0 | AZ153: 0 | BA153: 0 | BB153: 0 | BC153: 0 | BD153: 0 | BE153: 0 | BF153: 0 | BG153: 0 | BH153: 0 | BI153: 0 | BJ153: 0 | BK153: 0 | BL153: 0 | BM153: 0 | BN153: 0 | BO153: 0 | BP153: 0 | BQ153: 0 | BR153: 0 | BS153: 0 | BT153: 0 | BU153: 0 | BV153: 0 | BW153: 0 | BX153: =-BX100 -> 0 | BY153: 0 | BZ153: 0 | CA153: 0 | CB153: 0 | CC153: 0 | CD153: 0 | CE153: 0 | CF153: 0 | CG153: 0 | CH153: 0 | CI153: 0 | CJ153: 0 | CK153: 0 | CL153: 0 | CM153: 0 | CN153: 0 | CO153: 0 | CP153: 0 | CQ153: 0 | CR153: 0 | CS153: 0 | CT153: 0 | CU153: 0 | CV153: 0 | CW153: 0 | CX153: 0 | CY153: 0 | CZ153: 0 | DA153: 0 | DB153: 0 | DC153: 0 | DD153: 0 | DE153: 0 | DF153: 0 | DG153: 0
C155: Debt Capital Invested | K155: =K107 -> 882000000 | L155: =L107 -> 0 | M155: 0 | N155: 0 | O155: 0 | P155: 0 | Q155: 0 | R155: 0 | S155: 0 | T155: 0 | U155: 0 | V155: 0 | W155: 0 | X155: 0 | Y155: 0 | Z155: 0 | AA155: 0 | AB155: 0 | AC155: 0 | AD155: 0 | AE155: 0 | AF155: 0 | AG155: 0 | AH155: 0 | AI155: 0 | AJ155: 0 | AK155: 0 | AL155: 0 | AM155: 0 | AN155: 0 | AO155: 0 | AP155: 0 | AQ155: 0 | AR155: 0 | AS155: 0 | AT155: 0 | AU155: 0 | AV155: 0 | AW155: 0 | AX155: 0 | AY155: 0 | AZ155: 0 | BA155: 0 | BB155: 0 | BC155: 0 | BD155: 0 | BE155: 0 | BF155: 0 | BG155: 0 | BH155: 0 | BI155: 0 | BJ155: 0 | BK155: 0 | BL155: 0 | BM155: 0 | BN155: 0 | BO155: 0 | BP155: 0 | BQ155: 0 | BR155: 0 | BS155: 0 | BT155: 0 | BU155: 0 | BV155: 0 | BW155: 0 | BX155: =BX107 -> 0 | BY155: 0 | BZ155: 0 | CA155: 0 | CB155: 0 | CC155: 0 | CD155: 0 | CE155: 0 | CF155: 0 | CG155: 0 | CH155: 0 | CI155: 0 | CJ155: 0 | CK155: 0 | CL155: 0 | CM155: 0 | CN155: 0 | CO155: 0 | CP155: 0 | CQ155: 0 | CR155: 0 | CS155: 0 | CT155: 0 | CU155: 0 | CV155: 0 | CW155: 0 | CX155: 0 | CY155: 0 | CZ155: 0 | DA155: 0 | DB155: 0 | DC155: 0 | DD155: 0 | DE155: 0 | DF155: 0 | DG155: 0
C156: Equity Capital Invested | K156: =K108 -> 588000000 | L156: =L108 -> 0 | M156: 0 | N156: 0 | O156: 0 | P156: 0 | Q156: 0 | R156: 0 | S156: 0 | T156: 0 | U156: 0 | V156: 0 | W156: 0 | X156: 0 | Y156: 0 | Z156: 0 | AA156: 0 | AB156: 0 | AC156: 0 | AD156: 0 | AE156: 0 | AF156: 0 | AG156: 0 | AH156: 0 | AI156: 0 | AJ156: 0 | AK156: 0 | AL156: 0 | AM156: 0 | AN156: 0 | AO156: 0 | AP156: 0 | AQ156: 0 | AR156: 0 | AS156: 0 | AT156: 0 | AU156: 0 | AV156: 0 | AW156: 0 | AX156: 0 | AY156: 0 | AZ156: 0 | BA156: 0 | BB156: 0 | BC156: 0 | BD156: 0 | BE156: 0 | BF156: 0 | BG156: 0 | BH156: 0 | BI156: 0 | BJ156: 0 | BK156: 0 | BL156: 0 | BM156: 0 | BN156: 0 | BO156: 0 | BP156: 0 | BQ156: 0 | BR156: 0 | BS156: 0 | BT156: 0 | BU156: 0 | BV156: 0 | BW156: 0 | BX156: =BX108 -> 0 | BY156: 0 | BZ156: 0 | CA156: 0 | CB156: 0 | CC156: 0 | CD156: 0 | CE156: 0 | CF156: 0 | CG156: 0 | CH156: 0 | CI156: 0 | CJ156: 0 | CK156: 0 | CL156: 0 | CM156: 0 | CN156: 0 | CO156: 0 | CP156: 0 | CQ156: 0 | CR156: 0 | CS156: 0 | CT156: 0 | CU156: 0 | CV156: 0 | CW156: 0 | CX156: 0 | CY156: 0 | CZ156: 0 | DA156: 0 | DB156: 0 | DC156: 0 | DD156: 0 | DE156: 0 | DF156: 0 | DG156: 0
C157: Interest Expense | K157: =-K115 -> 0 | L157: =-L115 -> -70560000 | M157: -69937136.3 | N157: -69264443.5 | O157: -68537935.28 | P157: -67753306.41 | Q157: -66905907.22 | R157: -65990716.1 | S157: -65002309.69 | T157: -63934830.76 | U157: -62781953.52 | V157: -61536846.11 | W157: -60192130.09 | X157: -58739836.8 | Y157: -57171360.05 | Z157: -55477405.15 | AA157: -53647933.86 | AB157: -51672104.87 | AC157: -49538209.56 | AD157: -47233602.63 | AE157: -44744627.14 | AF157: -42056533.61 | AG157: -39153392.6 | AH157: -36018000.3 | AI157: -32631776.63 | AJ157: -28974655.06 | AK157: -25024963.76 | AL157: -20759297.16 | AM157: -16152377.24 | AN157: -11176903.72 | AO157: -5803392.315 | AP157: 6.794929504e-08 | AQ157: 7.338523865e-08 | AR157: 7.925605774e-08 | AS157: 8.559654236e-08 | AT157: 9.244426575e-08 | AU157: 9.983980701e-08 | AV157: 1.078269916e-07 | AW157: 1.164531509e-07 | AX157: 1.25769403e-07 | AY157: 1.358309552e-07 | AZ157: 1.466974316e-07 | BA157: 1.584332261e-07 | BB157: 1.711078842e-07 | BC157: 1.84796515e-07 | BD157: 1.995802362e-07 | BE157: 2.155466551e-07 | BF157: 2.327903875e-07 | BG157: 2.514136185e-07 | BH157: 2.71526708e-07 | BI157: 2.932488446e-07 | BJ157: 3.167087522e-07 | BK157: 3.420454523e-07 | BL157: 3.694090885e-07 | BM157: 3.989618156e-07 | BN157: 4.308787608e-07 | BO157: 4.653490617e-07 | BP157: 5.025769866e-07 | BQ157: 5.427831456e-07 | BR157: 5.862057972e-07 | BS157: 6.33102261e-07 | BT157: 6.837504419e-07 | BU157: 7.384504772e-07 | BV157: 7.975265154e-07 | BW157: 8.613286366e-07 | BX157: =-BX115 -> 9.302349276e-07 | BY157: 1.004653722e-06 | BZ157: 1.08502602e-06 | CA157: 1.171828101e-06 | CB157: 1.265574349e-06 | CC157: 1.366820297e-06 | CD157: 1.476165921e-06 | CE157: 1.594259195e-06 | CF157: 1.72179993e-06 | CG157: 1.859543925e-06 | CH157: 2.008307438e-06 | CI157: 2.168972034e-06 | CJ157: 2.342489796e-06 | CK157: 2.52988898e-06 | CL157: 2.732280098e-06 | CM157: 2.950862506e-06 | CN157: 3.186931507e-06 | CO157: 3.441886027e-06 | CP157: 3.717236909e-06 | CQ157: 4.014615862e-06 | CR157: 4.335785131e-06 | CS157: 4.682647942e-06 | CT157: 5.057259777e-06 | CU157: 5.461840559e-06 | CV157: 5.898787804e-06 | CW157: 6.370690828e-06 | CX157: 6.880346094e-06 | CY157: 7.430773782e-06 | CZ157: 8.025235685e-06 | DA157: 8.667254539e-06 | DB157: 9.360634902e-06 | DC157: 1.010948569e-05 | DD157: 1.091824455e-05 | DE157: 1.179170411e-05 | DF157: 1.273504044e-05 | DG157: 1.375384368e-05
C158: Debt Repayment | K158: =-K114 -> 0 | L158: =-L114 -> -7785796.248 | M158: -8408659.947 | N158: -9081352.743 | O158: -9807860.963 | P158: -10592489.84 | Q158: -11439889.03 | R158: -12355080.15 | S158: -13343486.56 | T158: -14410965.49 | U158: -15563842.72 | V158: -16808950.14 | W158: -18153666.15 | X158: -19605959.45 | Y158: -21174436.2 | Z158: -22868391.1 | AA158: -24697862.39 | AB158: -26673691.38 | AC158: -28807586.69 | AD158: -31112193.62 | AE158: -33601169.11 | AF158: -36289262.64 | AG158: -39192403.65 | AH158: -42327795.94 | AI158: -45714019.62 | AJ158: -49371141.19 | AK158: -53320832.48 | AL158: -57586499.08 | AM158: -62193419.01 | AN158: -67168892.53 | AO158: -72542403.93 | AP158: -6.794929504e-08 | AQ158: -7.338523865e-08 | AR158: -7.925605774e-08 | AS158: -8.559654236e-08 | AT158: -9.244426575e-08 | AU158: -9.983980701e-08 | AV158: -1.078269916e-07 | AW158: -1.164531509e-07 | AX158: -1.25769403e-07 | AY158: -1.358309552e-07 | AZ158: -1.466974316e-07 | BA158: -1.584332261e-07 | BB158: -1.711078842e-07 | BC158: -1.84796515e-07 | BD158: -1.995802362e-07 | BE158: -2.155466551e-07 | BF158: -2.327903875e-07 | BG158: -2.514136185e-07 | BH158: -2.71526708e-07 | BI158: -2.932488446e-07 | BJ158: -3.167087522e-07 | BK158: -3.420454523e-07 | BL158: -3.694090885e-07 | BM158: -3.989618156e-07 | BN158: -4.308787608e-07 | BO158: -4.653490617e-07 | BP158: -5.025769866e-07 | BQ158: -5.427831456e-07 | BR158: -5.862057972e-07 | BS158: -6.33102261e-07 | BT158: -6.837504419e-07 | BU158: -7.384504772e-07 | BV158: -7.975265154e-07 | BW158: -8.613286366e-07 | BX158: =-BX114 -> -9.302349276e-07 | BY158: -1.004653722e-06 | BZ158: -1.08502602e-06 | CA158: -1.171828101e-06 | CB158: -1.265574349e-06 | CC158: -1.366820297e-06 | CD158: -1.476165921e-06 | CE158: -1.594259195e-06 | CF158: -1.72179993e-06 | CG158: -1.859543925e-06 | CH158: -2.008307438e-06 | CI158: -2.168972034e-06 | CJ158: -2.342489796e-06 | CK158: -2.52988898e-06 | CL158: -2.732280098e-06 | CM158: -2.950862506e-06 | CN158: -3.186931507e-06 | CO158: -3.441886027e-06 | CP158: -3.717236909e-06 | CQ158: -4.014615862e-06 | CR158: -4.335785131e-06 | CS158: -4.682647942e-06 | CT158: -5.057259777e-06 | CU158: -5.461840559e-06 | CV158: -5.898787804e-06 | CW158: -6.370690828e-06 | CX158: -6.880346094e-06 | CY158: -7.430773782e-06 | CZ158: -8.025235685e-06 | DA158: -8.667254539e-06 | DB158: -9.360634902e-06 | DC158: -1.010948569e-05 | DD158: -1.091824455e-05 | DE158: -1.179170411e-05 | DF158: -1.273504044e-05 | DG158: -1.375384368e-05
C159: Dividends | K159: =-K116 -> 0 | L159: =-L116 -> -101397558.8 | M159: -97711925.67 | N159: -93929039.96 | O159: -90045567.39 | P159: -86058006.99 | Q159: -81962680.02 | R159: -77755718.01 | S159: -73433049.97 | T159: -68990388.54 | U159: -64423215.22 | V159: -59726764.32 | W159: -54896005.8 | X159: -49925626.75 | Y159: -44810011.42 | Z159: -39543219.79 | AA159: -34118964.38 | AB159: -28530585.38 | AC159: -22771023.79 | AD159: -16832792.47 | AE159: -10707944.99 | AF159: -4388042.001 | AG159: 2135884.955 | AH159: 8873372.511 | AI159: 15834567.56 | AJ159: 23030272.64 | AK159: 30471994.88 | AL159: 38171998.77 | AM159: 46143363.09 | AN159: 54400042.25 | AO159: 62956932.59 | AP159: 2.717971802e-08 | AQ159: 2.935409546e-08 | AR159: 3.17024231e-08 | AS159: 3.423861694e-08 | AT159: 3.69777063e-08 | AU159: 3.99359228e-08 | AV159: 4.313079663e-08 | AW159: 4.658126036e-08 | AX159: 5.030776119e-08 | AY159: 5.433238208e-08 | AZ159: 5.867897265e-08 | BA159: 6.337329046e-08 | BB159: 6.84431537e-08 | BC159: 7.391860599e-08 | BD159: 7.983209447e-08 | BE159: 8.621866203e-08 | BF159: 9.311615499e-08 | BG159: 1.005654474e-07 | BH159: 1.086106832e-07 | BI159: 1.172995378e-07 | BJ159: 1.266835009e-07 | BK159: 1.368181809e-07 | BL159: 1.477636354e-07 | BM159: 1.595847262e-07 | BN159: 1.723515043e-07 | BO159: 1.861396247e-07 | BP159: 2.010307947e-07 | BQ159: 2.171132582e-07 | BR159: 2.344823189e-07 | BS159: 2.532409044e-07 | BT159: 2.735001768e-07 | BU159: 2.953801909e-07 | BV159: 3.190106062e-07 | BW159: 3.445314547e-07 | BX159: =-BX116 -> 3.72093971e-07 | BY159: 4.018614887e-07 | BZ159: 4.340104078e-07 | CA159: 4.687312404e-07 | CB159: 5.062297397e-07 | CC159: 5.467281188e-07 | CD159: 5.904663683e-07 | CE159: 6.377036778e-07 | CF159: 6.88719972e-07 | CG159: 7.438175698e-07 | CH159: 8.033229754e-07 | CI159: 8.675888134e-07 | CJ159: 9.369959185e-07 | CK159: 1.011955592e-06 | CL159: 1.092912039e-06 | CM159: 1.180345002e-06 | CN159: 1.274772603e-06 | CO159: 1.376754411e-06 | CP159: 1.486894764e-06 | CQ159: 1.605846345e-06 | CR159: 1.734314052e-06 | CS159: 1.873059177e-06 | CT159: 2.022903911e-06 | CU159: 2.184736224e-06 | CV159: 2.359515122e-06 | CW159: 2.548276331e-06 | CX159: 2.752138438e-06 | CY159: 2.972309513e-06 | CZ159: 3.210094274e-06 | DA159: 3.466901816e-06 | DB159: 3.744253961e-06 | DC159: 4.043794278e-06 | DD159: 4.36729782e-06 | DE159: 4.716681646e-06 | DF159: 5.094016177e-06 | DG159: 0
B161: Balance Sheet
C162: Assets
C163: Accumulated Cap Exp | K163: =J163-K153 -> 1470000000 | L163: =K163-L153 -> 1470000000 | M163: 1470000000 | N163: 1470000000 | O163: 1470000000 | P163: 1470000000 | Q163: 1470000000 | R163: 1470000000 | S163: 1470000000 | T163: 1470000000 | U163: 1470000000 | V163: 1470000000 | W163: 1470000000 | X163: 1470000000 | Y163: 1470000000 | Z163: 1470000000 | AA163: 1470000000 | AB163: 1470000000 | AC163: 1470000000 | AD163: 1470000000 | AE163: 1470000000 | AF163: 1470000000 | AG163: 1470000000 | AH163: 1470000000 | AI163: 1470000000 | AJ163: 1470000000 | AK163: 1470000000 | AL163: 1470000000 | AM163: 1470000000 | AN163: 1470000000 | AO163: 1470000000 | AP163: 1470000000 | AQ163: 1470000000 | AR163: 1470000000 | AS163: 1470000000 | AT163: 1470000000 | AU163: 1470000000 | AV163: 1470000000 | AW163: 1470000000 | AX163: 1470000000 | AY163: 1470000000 | AZ163: 1470000000 | BA163: 1470000000 | BB163: 1470000000 | BC163: 1470000000 | BD163: 1470000000 | BE163: 1470000000 | BF163: 1470000000 | BG163: 1470000000 | BH163: 1470000000 | BI163: 1470000000 | BJ163: 1470000000 | BK163: 1470000000 | BL163: 1470000000 | BM163: 1470000000 | BN163: 1470000000 | BO163: 1470000000 | BP163: 1470000000 | BQ163: 1470000000 | BR163: 1470000000 | BS163: 1470000000 | BT163: 1470000000 | BU163: 1470000000 | BV163: 1470000000 | BW163: 1470000000 | BX163: =BW163-BX153 -> 1470000000 | BY163: 1470000000 | BZ163: 1470000000 | CA163: 1470000000 | CB163: 1470000000 | CC163: 1470000000 | CD163: 1470000000 | CE163: 1470000000 | CF163: 1470000000 | CG163: 1470000000 | CH163: 1470000000 | CI163: 1470000000 | CJ163: 1470000000 | CK163: 1470000000 | CL163: 1470000000 | CM163: 1470000000 | CN163: 1470000000 | CO163: 1470000000 | CP163: 1470000000 | CQ163: 1470000000 | CR163: 1470000000 | CS163: 1470000000 | CT163: 1470000000 | CU163: 1470000000 | CV163: 1470000000 | CW163: 1470000000 | CX163: 1470000000 | CY163: 1470000000 | CZ163: 1470000000 | DA163: 1470000000 | DB163: 1470000000 | DC163: 1470000000 | DD163: 1470000000 | DE163: 1470000000 | DF163: 1470000000 | DG163: 1470000000
C164: Accumulated Depreciation | K164: =J164+K141 -> 0 | L164: =K164+L141 -> 49000000 | M164: 98000000 | N164: 147000000 | O164: 196000000 | P164: 245000000 | Q164: 294000000 | R164: 343000000 | S164: 392000000 | T164: 441000000 | U164: 490000000 | V164: 539000000 | W164: 588000000 | X164: 637000000 | Y164: 686000000 | Z164: 735000000 | AA164: 784000000 | AB164: 833000000 | AC164: 882000000 | AD164: 931000000 | AE164: 980000000 | AF164: 1029000000 | AG164: 1078000000 | AH164: 1127000000 | AI164: 1176000000 | AJ164: 1225000000 | AK164: 1274000000 | AL164: 1323000000 | AM164: 1372000000 | AN164: 1421000000 | AO164: 1470000000 | AP164: 1470000000 | AQ164: 1470000000 | AR164: 1470000000 | AS164: 1470000000 | AT164: 1470000000 | AU164: 1470000000 | AV164: 1470000000 | AW164: 1470000000 | AX164: 1470000000 | AY164: 1470000000 | AZ164: 1470000000 | BA164: 1470000000 | BB164: 1470000000 | BC164: 1470000000 | BD164: 1470000000 | BE164: 1470000000 | BF164: 1470000000 | BG164: 1470000000 | BH164: 1470000000 | BI164: 1470000000 | BJ164: 1470000000 | BK164: 1470000000 | BL164: 1470000000 | BM164: 1470000000 | BN164: 1470000000 | BO164: 1470000000 | BP164: 1470000000 | BQ164: 1470000000 | BR164: 1470000000 | BS164: 1470000000 | BT164: 1470000000 | BU164: 1470000000 | BV164: 1470000000 | BW164: 1470000000 | BX164: =BW164+BX141 -> 1470000000 | BY164: 1470000000 | BZ164: 1470000000 | CA164: 1470000000 | CB164: 1470000000 | CC164: 1470000000 | CD164: 1470000000 | CE164: 1470000000 | CF164: 1470000000 | CG164: 1470000000 | CH164: 1470000000 | CI164: 1470000000 | CJ164: 1470000000 | CK164: 1470000000 | CL164: 1470000000 | CM164: 1470000000 | CN164: 1470000000 | CO164: 1470000000 | CP164: 1470000000 | CQ164: 1470000000 | CR164: 1470000000 | CS164: 1470000000 | CT164: 1470000000 | CU164: 1470000000 | CV164: 1470000000 | CW164: 1470000000 | CX164: 1470000000 | CY164: 1470000000 | CZ164: 1470000000 | DA164: 1470000000 | DB164: 1470000000 | DC164: 1470000000 | DD164: 1470000000 | DE164: 1470000000 | DF164: 1470000000 | DG164: 1470000000
C165: Net Assets | K165: =K163-K164 -> 1470000000 | L165: =L163-L164 -> 1421000000 | M165: 1372000000 | N165: 1323000000 | O165: 1274000000 | P165: 1225000000 | Q165: 1176000000 | R165: 1127000000 | S165: 1078000000 | T165: 1029000000 | U165: 980000000 | V165: 931000000 | W165: 882000000 | X165: 833000000 | Y165: 784000000 | Z165: 735000000 | AA165: 686000000 | AB165: 637000000 | AC165: 588000000 | AD165: 539000000 | AE165: 490000000 | AF165: 441000000 | AG165: 392000000 | AH165: 343000000 | AI165: 294000000 | AJ165: 245000000 | AK165: 196000000 | AL165: 147000000 | AM165: 98000000 | AN165: 49000000 | AO165: 0 | AP165: 0 | AQ165: 0 | AR165: 0 | AS165: 0 | AT165: 0 | AU165: 0 | AV165: 0 | AW165: 0 | AX165: 0 | AY165: 0 | AZ165: 0 | BA165: 0 | BB165: 0 | BC165: 0 | BD165: 0 | BE165: 0 | BF165: 0 | BG165: 0 | BH165: 0 | BI165: 0 | BJ165: 0 | BK165: 0 | BL165: 0 | BM165: 0 | BN165: 0 | BO165: 0 | BP165: 0 | BQ165: 0 | BR165: 0 | BS165: 0 | BT165: 0 | BU165: 0 | BV165: 0 | BW165: 0 | BX165: =BX163-BX164 -> 0 | BY165: 0 | BZ165: 0 | CA165: 0 | CB165: 0 | CC165: 0 | CD165: 0 | CE165: 0 | CF165: 0 | CG165: 0 | CH165: 0 | CI165: 0 | CJ165: 0 | CK165: 0 | CL165: 0 | CM165: 0 | CN165: 0 | CO165: 0 | CP165: 0 | CQ165: 0 | CR165: 0 | CS165: 0 | CT165: 0 | CU165: 0 | CV165: 0 | CW165: 0 | CX165: 0 | CY165: 0 | CZ165: 0 | DA165: 0 | DB165: 0 | DC165: 0 | DD165: 0 | DE165: 0 | DF165: 0 | DG165: 0
C167: Debt Financing | K167: =K94 -> 882000000 | L167: =L94 -> 874214203.8 | M167: 865805543.8 | N167: 856724191.1 | O167: 846916330.1 | P167: 836323840.3 | Q167: 824883951.2 | R167: 812528871.1 | S167: 799185384.5 | T167: 784774419 | U167: 769210576.3 | V167: 752401626.2 | W167: 734247960 | X167: 714642000.6 | Y167: 693467564.4 | Z167: 670599173.3 | AA167: 645901310.9 | AB167: 619227619.5 | AC167: 590420032.8 | AD167: 559307839.2 | AE167: 525706670.1 | AF167: 489417407.4 | AG167: 450225003.8 | AH167: 407897207.8 | AI167: 362183188.2 | AJ167: 312812047 | AK167: 259491214.6 | AL167: 201904715.5 | AM167: 139711296.5 | AN167: 72542403.93 | AO167: -8.49366188e-07 | AP167: -9.173154831e-07 | AQ167: -9.907007217e-07 | AR167: -1.069956779e-06 | AS167: -1.155553322e-06 | AT167: -1.247997588e-06 | AU167: -1.347837395e-06 | AV167: -1.455664386e-06 | AW167: -1.572117537e-06 | AX167: -1.69788694e-06 | AY167: -1.833717895e-06 | AZ167: -1.980415327e-06 | BA167: -2.138848553e-06 | BB167: -2.309956437e-06 | BC167: -2.494752952e-06 | BD167: -2.694333188e-06 | BE167: -2.909879843e-06 | BF167: -3.142670231e-06 | BG167: -3.394083849e-06 | BH167: -3.665610557e-06 | BI167: -3.958859402e-06 | BJ167: -4.275568154e-06 | BK167: -4.617613606e-06 | BL167: -4.987022695e-06 | BM167: -5.385984511e-06 | BN167: -5.816863271e-06 | BO167: -6.282212333e-06 | BP167: -6.78478932e-06 | BQ167: -7.327572465e-06 | BR167: -7.913778263e-06 | BS167: -8.546880524e-06 | BT167: -9.230630965e-06 | BU167: -9.969081443e-06 | BV167: -1.076660796e-05 | BW167: -1.162793659e-05 | BX167: =BX94 -> -1.255817152e-05 | BY167: -1.356282524e-05 | BZ167: -1.464785126e-05 | CA167: -1.581967936e-05 | CB167: -1.708525371e-05 | CC167: -1.845207401e-05 | CD167: -1.992823993e-05 | CE167: -2.152249913e-05 | CF167: -2.324429906e-05 | CG167: -2.510384298e-05 | CH167: -2.711215042e-05 | CI167: -2.928112245e-05 | CJ167: -3.162361225e-05 | CK167: -3.415350123e-05 | CL167: -3.688578133e-05 | CM167: -3.983664383e-05 | CN167: -4.302357534e-05 | CO167: -4.646546137e-05 | CP167: -5.018269828e-05 | CQ167: -5.419731414e-05 | CR167: -5.853309927e-05 | CS167: -6.321574721e-05 | CT167: -6.827300699e-05 | CU167: -7.373484755e-05 | CV167: -7.963363535e-05 | CW167: -8.600432618e-05 | CX167: -9.288467227e-05 | CY167: -0.0001003154461 | CZ167: -0.0001083406817 | DA167: -0.0001170079363 | DB167: -0.0001263685712 | DC167: -0.0001364780569 | DD167: -0.0001473963014 | DE167: -0.0001591880055 | DF167: -0.000171923046 | DG167: -0.0001856768897
C169: Opening Equity | K169: =J173 -> 0 | L169: =K173 -> 588000000 | M169: 546785796.2 | N169: 506194456.2 | O169: 466275808.9 | P169: 427083669.9 | Q169: 388676159.7 | R169: 351116048.8 | S169: 314471128.9 | T169: 278814615.5 | U169: 244225581 | V169: 210789423.7 | W169: 178598373.8 | X169: 147752040 | Y169: 118357999.4 | Z169: 90532435.63 | AA169: 64400826.73 | AB169: 40098689.12 | AC169: 17772380.49 | AD169: -2420032.82 | AE169: -20307839.2 | AF169: -35706670.09 | AG169: -48417407.45 | AH169: -58225003.79 | AI169: -64897207.85 | AJ169: -68183188.23 | AK169: -67812047.04 | AL169: -63491214.56 | AM169: -54904715.47 | AN169: -41711296.46 | AO169: -23542403.93 | AP169: 6.854534149e-07 | AQ169: 7.5340271e-07 | AR169: 8.267879486e-07 | AS169: 9.060440063e-07 | AT169: 9.916405487e-07 | AU169: 1.084084814e-06 | AV169: 1.183924621e-06 | AW169: 1.291751613e-06 | AX169: 1.408204764e-06 | AY169: 1.533974167e-06 | AZ169: 1.669805122e-06 | BA169: 1.816502554e-06 | BB169: 1.97493578e-06 | BC169: 2.146043664e-06 | BD169: 2.330840179e-06 | BE169: 2.530420415e-06 | BF169: 2.74596707e-06 | BG169: 2.978757458e-06 | BH169: 3.230171076e-06 | BI169: 3.501697784e-06 | BJ169: 3.794946629e-06 | BK169: 4.111655381e-06 | BL169: 4.453700833e-06 | BM169: 4.823109922e-06 | BN169: 5.222071737e-06 | BO169: 5.652950498e-06 | BP169: 6.11829956e-06 | BQ169: 6.620876547e-06 | BR169: 7.163659692e-06 | BS169: 7.749865489e-06 | BT169: 8.38296775e-06 | BU169: 9.066718192e-06 | BV169: 9.80516867e-06 | BW169: 1.060269518e-05 | BX169: =BW173 -> 1.146402382e-05 | BY169: 1.239425875e-05 | BZ169: 1.339891247e-05 | CA169: 1.448393849e-05 | CB169: 1.565576659e-05 | CC169: 1.692134094e-05 | CD169: 1.828816124e-05 | CE169: 1.976432716e-05 | CF169: 2.135858635e-05 | CG169: 2.308038628e-05 | CH169: 2.493993021e-05 | CI169: 2.694823765e-05 | CJ169: 2.911720968e-05 | CK169: 3.145969948e-05 | CL169: 3.398958846e-05 | CM169: 3.672186855e-05 | CN169: 3.967273106e-05 | CO169: 4.285966257e-05 | CP169: 4.630154859e-05 | CQ169: 5.00187855e-05 | CR169: 5.403340137e-05 | CS169: 5.83691865e-05 | CT169: 6.305183444e-05 | CU169: 6.810909422e-05 | CV169: 7.357093477e-05 | CW169: 7.946972258e-05 | CX169: 8.584041341e-05 | CY169: 9.27207595e-05 | CZ169: 0.0001001515333 | DA169: 0.000108176769 | DB169: 0.0001168440235 | DC169: 0.0001262046584 | DD169: 0.0001363141441 | DE169: 0.0001472323887 | DF169: 0.0001590240928 | DG169: 0.0001717591332
C170: Add: Net Income | K170: =K146 -> 0 | L170: =L146 -> 60183355.02 | M170: 57120585.62 | N170: 54010392.7 | O170: 50853428.35 | P170: 47650496.83 | Q170: 44402569.05 | R170: 41110798.16 | S170: 37776536.53 | T170: 34401354.03 | U170: 30987057.94 | V170: 27535714.46 | W170: 24049671.95 | X170: 20531586.19 | Y170: 16984447.62 | Z170: 13411610.88 | AA170: 9816826.763 | AB170: 6204276.757 | AC170: 2578610.477 | AD170: -1055013.907 | AE170: -4690885.9 | AF170: -8322695.359 | AG170: -11943481.3 | AH170: -15545576.57 | AI170: -19120547.94 | AJ170: -22659131.45 | AK170: -26151162.4 | AL170: -29585499.69 | AM170: -32949944.08 | AN170: -36231149.72 | AO170: -39414528.66 | AP170: 4.076957703e-08 | AQ170: 4.403114319e-08 | AR170: 4.755363464e-08 | AS170: 5.135792542e-08 | AT170: 5.546655945e-08 | AU170: 5.99038842e-08 | AV170: 6.469619494e-08 | AW170: 6.987189054e-08 | AX170: 7.546164178e-08 | AY170: 8.149857312e-08 | AZ170: 8.801845897e-08 | BA170: 9.505993569e-08 | BB170: 1.026647305e-07 | BC170: 1.10877909e-07 | BD170: 1.197481417e-07 | BE170: 1.29327993e-07 | BF170: 1.396742325e-07 | BG170: 1.508481711e-07 | BH170: 1.629160248e-07 | BI170: 1.759493068e-07 | BJ170: 1.900252513e-07 | BK170: 2.052272714e-07 | BL170: 2.216454531e-07 | BM170: 2.393770894e-07 | BN170: 2.585272565e-07 | BO170: 2.79209437e-07 | BP170: 3.01546192e-07 | BQ170: 3.256698873e-07 | BR170: 3.517234783e-07 | BS170: 3.798613566e-07 | BT170: 4.102502651e-07 | BU170: 4.430702863e-07 | BV170: 4.785159092e-07 | BW170: 5.16797182e-07 | BX170: =BX146 -> 5.581409565e-07 | BY170: 6.027922331e-07 | BZ170: 6.510156117e-07 | CA170: 7.030968607e-07 | CB170: 7.593446095e-07 | CC170: 8.200921783e-07 | CD170: 8.856995525e-07 | CE170: 9.565555167e-07 | CF170: 1.033079958e-06 | CG170: 1.115726355e-06 | CH170: 1.204984463e-06 | CI170: 1.30138322e-06 | CJ170: 1.405493878e-06 | CK170: 1.517933388e-06 | CL170: 1.639368059e-06 | CM170: 1.770517504e-06 | CN170: 1.912158904e-06 | CO170: 2.065131616e-06 | CP170: 2.230342146e-06 | CQ170: 2.408769517e-06 | CR170: 2.601471079e-06 | CS170: 2.809588765e-06 | CT170: 3.034355866e-06 | CU170: 3.277104335e-06 | CV170: 3.539272682e-06 | CW170: 3.822414497e-06 | CX170: 4.128207657e-06 | CY170: 4.458464269e-06 | CZ170: 4.815141411e-06 | DA170: 5.200352724e-06 | DB170: 5.616380941e-06 | DC170: 6.065691417e-06 | DD170: 6.55094673e-06 | DE170: 7.075022469e-06 | DF170: 7.641024266e-06 | DG170: 0
C171: Add: Paid in Capital | K171: =K156 -> 588000000 | L171: =L156 -> 0 | M171: 0 | N171: 0 | O171: 0 | P171: 0 | Q171: 0 | R171: 0 | S171: 0 | T171: 0 | U171: 0 | V171: 0 | W171: 0 | X171: 0 | Y171: 0 | Z171: 0 | AA171: 0 | AB171: 0 | AC171: 0 | AD171: 0 | AE171: 0 | AF171: 0 | AG171: 0 | AH171: 0 | AI171: 0 | AJ171: 0 | AK171: 0 | AL171: 0 | AM171: 0 | AN171: 0 | AO171: 0 | AP171: 0 | AQ171: 0 | AR171: 0 | AS171: 0 | AT171: 0 | AU171: 0 | AV171: 0 | AW171: 0 | AX171: 0 | AY171: 0 | AZ171: 0 | BA171: 0 | BB171: 0 | BC171: 0 | BD171: 0 | BE171: 0 | BF171: 0 | BG171: 0 | BH171: 0 | BI171: 0 | BJ171: 0 | BK171: 0 | BL171: 0 | BM171: 0 | BN171: 0 | BO171: 0 | BP171: 0 | BQ171: 0 | BR171: 0 | BS171: 0 | BT171: 0 | BU171: 0 | BV171: 0 | BW171: 0 | BX171: =BX156 -> 0 | BY171: 0 | BZ171: 0 | CA171: 0 | CB171: 0 | CC171: 0 | CD171: 0 | CE171: 0 | CF171: 0 | CG171: 0 | CH171: 0 | CI171: 0 | CJ171: 0 | CK171: 0 | CL171: 0 | CM171: 0 | CN171: 0 | CO171: 0 | CP171: 0 | CQ171: 0 | CR171: 0 | CS171: 0 | CT171: 0 | CU171: 0 | CV171: 0 | CW171: 0 | CX171: 0 | CY171: 0 | CZ171: 0 | DA171: 0 | DB171: 0 | DC171: 0 | DD171: 0 | DE171: 0 | DF171: 0 | DG171: 0
C172: Less: Dividends | K172: =-K159 -> 0 | L172: =-L159 -> 101397558.8 | M172: 97711925.67 | N172: 93929039.96 | O172: 90045567.39 | P172: 86058006.99 | Q172: 81962680.02 | R172: 77755718.01 | S172: 73433049.97 | T172: 68990388.54 | U172: 64423215.22 | V172: 59726764.32 | W172: 54896005.8 | X172: 49925626.75 | Y172: 44810011.42 | Z172: 39543219.79 | AA172: 34118964.38 | AB172: 28530585.38 | AC172: 22771023.79 | AD172: 16832792.47 | AE172: 10707944.99 | AF172: 4388042.001 | AG172: -2135884.955 | AH172: -8873372.511 | AI172: -15834567.56 | AJ172: -23030272.64 | AK172: -30471994.88 | AL172: -38171998.77 | AM172: -46143363.09 | AN172: -54400042.25 | AO172: -62956932.59 | AP172: -2.717971802e-08 | AQ172: -2.935409546e-08 | AR172: -3.17024231e-08 | AS172: -3.423861694e-08 | AT172: -3.69777063e-08 | AU172: -3.99359228e-08 | AV172: -4.313079663e-08 | AW172: -4.658126036e-08 | AX172: -5.030776119e-08 | AY172: -5.433238208e-08 | AZ172: -5.867897265e-08 | BA172: -6.337329046e-08 | BB172: -6.84431537e-08 | BC172: -7.391860599e-08 | BD172: -7.983209447e-08 | BE172: -8.621866203e-08 | BF172: -9.311615499e-08 | BG172: -1.005654474e-07 | BH172: -1.086106832e-07 | BI172: -1.172995378e-07 | BJ172: -1.266835009e-07 | BK172: -1.368181809e-07 | BL172: -1.477636354e-07 | BM172: -1.595847262e-07 | BN172: -1.723515043e-07 | BO172: -1.861396247e-07 | BP172: -2.010307947e-07 | BQ172: -2.171132582e-07 | BR172: -2.344823189e-07 | BS172: -2.532409044e-07 | BT172: -2.735001768e-07 | BU172: -2.953801909e-07 | BV172: -3.190106062e-07 | BW172: -3.445314547e-07 | BX172: =-BX159 -> -3.72093971e-07 | BY172: -4.018614887e-07 | BZ172: -4.340104078e-07 | CA172: -4.687312404e-07 | CB172: -5.062297397e-07 | CC172: -5.467281188e-07 | CD172: -5.904663683e-07 | CE172: -6.377036778e-07 | CF172: -6.88719972e-07 | CG172: -7.438175698e-07 | CH172: -8.033229754e-07 | CI172: -8.675888134e-07 | CJ172: -9.369959185e-07 | CK172: -1.011955592e-06 | CL172: -1.092912039e-06 | CM172: -1.180345002e-06 | CN172: -1.274772603e-06 | CO172: -1.376754411e-06 | CP172: -1.486894764e-06 | CQ172: -1.605846345e-06 | CR172: -1.734314052e-06 | CS172: -1.873059177e-06 | CT172: -2.022903911e-06 | CU172: -2.184736224e-06 | CV172: -2.359515122e-06 | CW172: -2.548276331e-06 | CX172: -2.752138438e-06 | CY172: -2.972309513e-06 | CZ172: -3.210094274e-06 | DA172: -3.466901816e-06 | DB172: -3.744253961e-06 | DC172: -4.043794278e-06 | DD172: -4.36729782e-06 | DE172: -4.716681646e-06 | DF172: -5.094016177e-06 | DG172: 0
C173: Closing Balance | K173: =K169+K170+K171-K172 -> 588000000 | L173: =L169+L170+L171-L172 -> 546785796.2 | M173: 506194456.2 | N173: 466275808.9 | O173: 427083669.9 | P173: 388676159.7 | Q173: 351116048.8 | R173: 314471128.9 | S173: 278814615.5 | T173: 244225581 | U173: 210789423.7 | V173: 178598373.8 | W173: 147752040 | X173: 118357999.4 | Y173: 90532435.63 | Z173: 64400826.73 | AA173: 40098689.12 | AB173: 17772380.49 | AC173: -2420032.82 | AD173: -20307839.2 | AE173: -35706670.09 | AF173: -48417407.45 | AG173: -58225003.79 | AH173: -64897207.85 | AI173: -68183188.23 | AJ173: -67812047.04 | AK173: -63491214.56 | AL173: -54904715.47 | AM173: -41711296.46 | AN173: -23542403.93 | AO173: 6.854534149e-07 | AP173: 7.5340271e-07 | AQ173: 8.267879486e-07 | AR173: 9.060440063e-07 | AS173: 9.916405487e-07 | AT173: 1.084084814e-06 | AU173: 1.183924621e-06 | AV173: 1.291751613e-06 | AW173: 1.408204764e-06 | AX173: 1.533974167e-06 | AY173: 1.669805122e-06 | AZ173: 1.816502554e-06 | BA173: 1.97493578e-06 | BB173: 2.146043664e-06 | BC173: 2.330840179e-06 | BD173: 2.530420415e-06 | BE173: 2.74596707e-06 | BF173: 2.978757458e-06 | BG173: 3.230171076e-06 | BH173: 3.501697784e-06 | BI173: 3.794946629e-06 | BJ173: 4.111655381e-06 | BK173: 4.453700833e-06 | BL173: 4.823109922e-06 | BM173: 5.222071737e-06 | BN173: 5.652950498e-06 | BO173: 6.11829956e-06 | BP173: 6.620876547e-06 | BQ173: 7.163659692e-06 | BR173: 7.749865489e-06 | BS173: 8.38296775e-06 | BT173: 9.066718192e-06 | BU173: 9.80516867e-06 | BV173: 1.060269518e-05 | BW173: 1.146402382e-05 | BX173: =BX169+BX170+BX171-BX172 -> 1.239425875e-05 | BY173: 1.339891247e-05 | BZ173: 1.448393849e-05 | CA173: 1.565576659e-05 | CB173: 1.692134094e-05 | CC173: 1.828816124e-05 | CD173: 1.976432716e-05 | CE173: 2.135858635e-05 | CF173: 2.308038628e-05 | CG173: 2.493993021e-05 | CH173: 2.694823765e-05 | CI173: 2.911720968e-05 | CJ173: 3.145969948e-05 | CK173: 3.398958846e-05 | CL173: 3.672186855e-05 | CM173: 3.967273106e-05 | CN173: 4.285966257e-05 | CO173: 4.630154859e-05 | CP173: 5.00187855e-05 | CQ173: 5.403340137e-05 | CR173: 5.83691865e-05 | CS173: 6.305183444e-05 | CT173: 6.810909422e-05 | CU173: 7.357093477e-05 | CV173: 7.946972258e-05 | CW173: 8.584041341e-05 | CX173: 9.27207595e-05 | CY173: 0.0001001515333 | CZ173: 0.000108176769 | DA173: 0.0001168440235 | DB173: 0.0001262046584 | DC173: 0.0001363141441 | DD173: 0.0001472323887 | DE173: 0.0001590240928 | DF173: 0.0001717591332 | DG173: 0.0001717591332
C175: Equity and Debt | K175: =K173+K167 -> 1470000000 | L175: =L173+L167 -> 1421000000 | M175: 1372000000 | N175: 1323000000 | O175: 1274000000 | P175: 1225000000 | Q175: 1176000000 | R175: 1127000000 | S175: 1078000000 | T175: 1029000000 | U175: 980000000 | V175: 931000000 | W175: 882000000 | X175: 833000000 | Y175: 784000000 | Z175: 735000000 | AA175: 686000000 | AB175: 637000000 | AC175: 588000000 | AD175: 539000000 | AE175: 490000000 | AF175: 441000000 | AG175: 392000000 | AH175: 343000000 | AI175: 294000000 | AJ175: 245000000 | AK175: 196000000 | AL175: 147000000 | AM175: 98000000 | AN175: 49000000 | AO175: -1.639127731e-07 | AP175: -1.639127731e-07 | AQ175: -1.639127731e-07 | AR175: -1.639127731e-07 | AS175: -1.639127731e-07 | AT175: -1.639127731e-07 | AU175: -1.639127731e-07 | AV175: -1.639127731e-07 | AW175: -1.639127731e-07 | AX175: -1.639127731e-07 | AY175: -1.639127731e-07 | AZ175: -1.639127731e-07 | BA175: -1.639127731e-07 | BB175: -1.639127731e-07 | BC175: -1.639127731e-07 | BD175: -1.639127731e-07 | BE175: -1.639127731e-07 | BF175: -1.639127731e-07 | BG175: -1.639127731e-07 | BH175: -1.639127731e-07 | BI175: -1.639127731e-07 | BJ175: -1.639127731e-07 | BK175: -1.639127731e-07 | BL175: -1.639127731e-07 | BM175: -1.639127731e-07 | BN175: -1.639127731e-07 | BO175: -1.639127731e-07 | BP175: -1.639127731e-07 | BQ175: -1.639127731e-07 | BR175: -1.639127731e-07 | BS175: -1.639127731e-07 | BT175: -1.639127731e-07 | BU175: -1.639127731e-07 | BV175: -1.639127731e-07 | BW175: -1.639127731e-07 | BX175: =BX173+BX167 -> -1.639127731e-07 | BY175: -1.639127731e-07 | BZ175: -1.639127731e-07 | CA175: -1.639127731e-07 | CB175: -1.639127731e-07 | CC175: -1.639127731e-07 | CD175: -1.639127731e-07 | CE175: -1.639127731e-07 | CF175: -1.639127731e-07 | CG175: -1.639127731e-07 | CH175: -1.639127731e-07 | CI175: -1.639127731e-07 | CJ175: -1.639127731e-07 | CK175: -1.639127731e-07 | CL175: -1.639127731e-07 | CM175: -1.639127731e-07 | CN175: -1.639127731e-07 | CO175: -1.639127731e-07 | CP175: -1.639127731e-07 | CQ175: -1.639127731e-07 | CR175: -1.639127731e-07 | CS175: -1.639127731e-07 | CT175: -1.639127731e-07 | CU175: -1.639127731e-07 | CV175: -1.639127731e-07 | CW175: -1.639127731e-07 | CX175: -1.639127731e-07 | CY175: -1.639127731e-07 | CZ175: -1.639127731e-07 | DA175: -1.639127731e-07 | DB175: -1.639127731e-07 | DC175: -1.639127731e-07 | DD175: -1.639127731e-07 | DE175: -1.639127731e-07 | DF175: -1.639127731e-07 | DG175: -1.391775645e-05
C177: Debt to Capital | K177: =K167/K175 -> 0.6 | L177: =L167/L175 -> 0.6152105586 | M177: 0.6310536034 | N177: 0.6475617468 | O177: 0.6647694899 | P177: 0.682713339 | Q177: 0.7014319313 | R177: 0.7209661678 | S177: 0.7413593548 | T177: 0.7626573557 | U177: 0.7849087513 | V177: 0.808165012 | W177: 0.8324806803 | X177: 0.8579135661 | Y177: 0.8845249546 | Z177: 0.9123798276 | AA177: 0.9415471004 | AB177: 0.9720998736 | AC177: 1.004115702 | AD177: 1.037676882 | AE177: 1.072870755 | AF177: 1.10979004 | AG177: 1.148533173 | AH177: 1.189204688 | AI177: 1.231915606 | AJ177: 1.276783865 | AK177: 1.323934768 | AL177: 1.373501466 | AM177: 1.425625474 | AN177: 1.480457223 | AO177: 5.181818182 | AP177: 5.596363636 | AQ177: 6.044072727 | AR177: 6.527598545 | AS177: 7.049806429 | AT177: 7.613790943 | AU177: 8.222894219 | AV177: 8.880725756 | AW177: 9.591183817 | AX177: 10.35847852 | AY177: 11.1871568 | AZ177: 12.08212935 | BA177: 13.0486997 | BB177: 14.09259567 | BC177: 15.22000333 | BD177: 16.43760359 | BE177: 17.75261188 | BF177: 19.17282083 | BG177: 20.7066465 | BH177: 22.36317822 | BI177: 24.15223247 | BJ177: 26.08441107 | BK177: 28.17116396 | BL177: 30.42485707 | BM177: 32.85884564 | BN177: 35.48755329 | BO177: 38.32655755 | BP177: 41.39268216 | BQ177: 44.70409673 | BR177: 48.28042447 | BS177: 52.14285843 | BT177: 56.3142871 | BU177: 60.81943007 | BV177: 65.68498447 | BW177: 70.93978323 | BX177: =BX167/BX175 -> 76.61496589 | BY177: 82.74416316 | BZ177: 89.36369621 | CA177: 96.51279191 | CB177: 104.2338153 | CC177: 112.5725205 | CD177: 121.5783221 | CE177: 131.3045879 | CF177: 141.8089549 | CG177: 153.1536713 | CH177: 165.405965 | CI177: 178.6384422 | CJ177: 192.9295176 | CK177: 208.363879 | CL177: 225.0329893 | CM177: 243.0356285 | CN177: 262.4784788 | CO177: 283.4767571 | CP177: 306.1548976 | CQ177: 330.6472894 | CR177: 357.0990726 | CS177: 385.6669984 | CT177: 416.5203583 | CU177: 449.8419869 | CV177: 485.8293459 | CW177: 524.6956935 | CX177: 566.671349 | CY177: 612.005057 | CZ177: 660.9654615 | DA177: 713.8426984 | DB177: 770.9501143 | DC177: 832.6261235 | DD177: 899.2362133 | DE177: 971.1751104 | DF177: 1048.869119 | DG177: 13.34100725
B179: LCOE Calculation
C181: Goal Seek LCOE | E181: USD/MWH | F181: =LCOE -> 49.12250389
D182: Level Cost in USD | E182: USD/MWH | F182: =F181/4 -> 12.28062597
D183: Discount Rate (PIRR) | E183: % | F183: =F35 -> 0.109202646
D184: Inflation Rate | E184: % | F184: =F21 -> 0.0225
D185: Real Discount Rate | E185: % | F185: =(1+F183)/(1+F184)-1 -> 0.08479476377
C187: Method 1
D188: NPV of Revenue | E188: USD | F188: =NPV(F183,K26:DG26) -> 4150491031
D189: NPV of Generation | E189: USD | F189: =NPV(F185,K17:DG17) -> 103987075.4
D190: LCOE =Revenue / Generation | E190: USD/MWh | F190: =F188/F189 -> 39.91352786
C192: Method 2
D193: CAPEX (Value at COD) | E193: USD | F193: =F22 -> 1470000000
D194: NPV of OPEX | E194: USD | F194: =NPV(F183,K31:DG31) -> 2416592713
D195: Total Cost | E195: USD | F195: =SUM(F193:F194) -> 3886592713
D196: NPV of Generation | E196: MWh | F196: =F189 -> 103987075.4
D197: LCOE =Total Cost / Generation | E197: USD/MWH | F197: =F195/F196 -> 37.37572864
C199: Method 3
D200: Capacity | E200: MW | F200: =F12 -> 1225
D201: Capacity Facor | E201: % | F201: =F13 -> 0.9
D202: Availability | E202: % | F202: =F17 -> 1
D203: Generation without Degradation 1st | E203: MWH | F203: =F200*F201*F202*8760 -> 9657900
D205: Discount Rate Nominal | E205: %
D206: Discount Rate Real | E206: %
D207: Adjusted for Degradation | E207: %
D208: O&M Adjustment | E208: Factor
D210: Level Capital Recovery | E210: USD/Year
D211: O&M Recovery | E211: USD/Year
D212: Fuel Recovery | E212: USD/Year
D213: Total Recovery | E213: USD/Year
D214: Production | E214: MWh/year
D215: LCOE =Total Recovery / Production | E215: USD/MWH
B217: Project Valuation
D219: Purchase Date | F219: ='Input C'!E85 -> 2 | K219: =($F$219=K4)*1 -> 0 | L219: 1 | M219: 0 | N219: 0 | O219: 0 | P219: 0 | Q219: 0 | R219: 0 | S219: 0 | T219: 0 | U219: 0 | V219: 0 | W219: 0 | X219: 0 | Y219: 0 | Z219: 0 | AA219: 0 | AB219: 0 | AC219: 0 | AD219: 0 | AE219: 0 | AF219: 0 | AG219: 0 | AH219: 0 | AI219: 0 | AJ219: 0 | AK219: 0 | AL219: 0 | AM219: 0 | AN219: 0 | AO219: 0 | AP219: 0 | AQ219: =($F$219=AQ4)*1 -> 0 | AR219: 0 | AS219: 0 | AT219: 0 | AU219: 0 | AV219: 0 | AW219: 0 | AX219: 0 | AY219: 0 | AZ219: 0 | BA219: 0 | BB219: 0 | BC219: 0 | BD219: 0 | BE219: 0 | BF219: 0 | BG219: 0 | BH219: 0 | BI219: 0 | BJ219: 0 | BK219: 0 | BL219: 0 | BM219: 0 | BN219: 0 | BO219: 0 | BP219: 0 | BQ219: 0 | BR219: 0 | BS219: 0 | BT219: 0 | BU219: 0 | BV219: 0 | BW219: =($F$219=BW4)*1 -> 0 | BX219: 0 | BY219: 0 | BZ219: 0 | CA219: 0 | CB219: 0 | CC219: 0 | CD219: 0 | CE219: 0 | CF219: 0 | CG219: 0 | CH219: 0 | CI219: 0 | CJ219: 0 | CK219: 0 | CL219: 0 | CM219: 0 | CN219: 0 | CO219: 0 | CP219: 0 | CQ219: 0 | CR219: 0 | CS219: 0 | CT219: 0 | CU219: 0 | CV219: 0 | CW219: 0 | CX219: 0 | CY219: 0 | CZ219: 0 | DA219: 0 | DB219: 0 | DC219: 0 | DD219: 0 | DE219: 0 | DF219: 0 | DG219: 0
D220: Preiod After Purchase Date | F220: =F219 -> 2 | K220: =(K4>$F$220)*1 -> 0 | L220: 0 | M220: 1 | N220: 1 | O220: 1 | P220: 1 | Q220: 1 | R220: 1 | S220: 1 | T220: 1 | U220: 1 | V220: 1 | W220: 1 | X220: 1 | Y220: 1 | Z220: 1 | AA220: 1 | AB220: 1 | AC220: 1 | AD220: 1 | AE220: 1 | AF220: 1 | AG220: 1 | AH220: 1 | AI220: 1 | AJ220: 1 | AK220: 1 | AL220: 1 | AM220: 1 | AN220: 1 | AO220: 1 | AP220: 1 | AQ220: =(AQ4>$F$220)*1 -> 1 | AR220: 1 | AS220: 1 | AT220: 1 | AU220: 1 | AV220: 1 | AW220: 1 | AX220: 1 | AY220: 1 | AZ220: 1 | BA220: 1 | BB220: 1 | BC220: 1 | BD220: 1 | BE220: 1 | BF220: 1 | BG220: 1 | BH220: 1 | BI220: 1 | BJ220: 1 | BK220: 1 | BL220: 1 | BM220: 1 | BN220: 1 | BO220: 1 | BP220: 1 | BQ220: 1 | BR220: 1 | BS220: 1 | BT220: 1 | BU220: 1 | BV220: 1 | BW220: =(BW4>$F$220)*1 -> 1 | BX220: 1 | BY220: 1 | BZ220: 1 | CA220: 1 | CB220: 1 | CC220: 1 | CD220: 1 | CE220: 1 | CF220: 1 | CG220: 1 | CH220: 1 | CI220: 1 | CJ220: 1 | CK220: 1 | CL220: 1 | CM220: 1 | CN220: 1 | CO220: 1 | CP220: 1 | CQ220: 1 | CR220: 1 | CS220: 1 | CT220: 1 | CU220: 1 | CV220: 1 | CW220: 1 | CX220: 1 | CY220: 1 | CZ220: 1 | DA220: 1 | DB220: 1 | DC220: 1 | DD220: 1 | DE220: 1 | DF220: 1 | DG220: 1
D221: Target IRR for Buyer | F221: =LOOKUP(F219,'Input C'!E81:E83,'Input C'!F81:F83) -> 0.066
D223: Cashflow From Project | K223: =K34 -> -1470000000 | L223: 219865591.7 | M223: 214138112.3 | N223: 208281764.7 | O223: 202293649.2 | P223: 196170801.1 | Q223: 189910189 | R223: 183508713 | S223: 176963203.9 | T223: 170270420.8 | U223: 163427050.1 | V223: 156429703.5 | W223: 149274916.7 | X223: 141959147.1 | Y223: 134478772.8 | Z223: 126830090 | AA223: 119009311.8 | AB223: 111012566.1 | AC223: 102835893.7 | AD223: 94475246.11 | AE223: 85926483.97 | AF223: 77185374.68 | AG223: 68247590.42 | AH223: 59108706.03 | AI223: 49764196.73 | AJ223: 40209435.97 | AK223: 30439693.1 | AL223: 20450131.01 | AM223: 10235803.78 | AN223: -208345.8193 | AO223: -10887488.78 | AP223: 0 | AQ223: =AQ34 -> 0 | AR223: 0 | AS223: 0 | AT223: 0 | AU223: 0 | AV223: 0 | AW223: 0 | AX223: 0 | AY223: 0 | AZ223: 0 | BA223: 0 | BB223: 0 | BC223: 0 | BD223: 0 | BE223: 0 | BF223: 0 | BG223: 0 | BH223: 0 | BI223: 0 | BJ223: 0 | BK223: 0 | BL223: 0 | BM223: 0 | BN223: 0 | BO223: 0 | BP223: 0 | BQ223: 0 | BR223: 0 | BS223: 0 | BT223: 0 | BU223: 0 | BV223: 0 | BW223: =BW34 -> 0 | BX223: 0 | BY223: 0 | BZ223: 0 | CA223: 0 | CB223: 0 | CC223: 0 | CD223: 0 | CE223: 0 | CF223: 0 | CG223: 0 | CH223: 0 | CI223: 0 | CJ223: 0 | CK223: 0 | CL223: 0 | CM223: 0 | CN223: 0 | CO223: 0 | CP223: 0 | CQ223: 0 | CR223: 0 | CS223: 0 | CT223: 0 | CU223: 0 | CV223: 0 | CW223: 0 | CX223: 0 | CY223: 0 | CZ223: 0 | DA223: 0 | DB223: 0 | DC223: 0 | DD223: 0 | DE223: 0 | DF223: 0 | DG223: 0
D224: Cash Received From Project | K224: =IF(K220,K223) -> FALSE | L224: =IF(L220,L223) -> FALSE | M224: 214138112.3 | N224: 208281764.7 | O224: 202293649.2 | P224: 196170801.1 | Q224: 189910189 | R224: 183508713 | S224: 176963203.9 | T224: 170270420.8 | U224: 163427050.1 | V224: 156429703.5 | W224: 149274916.7 | X224: 141959147.1 | Y224: 134478772.8 | Z224: 126830090 | AA224: 119009311.8 | AB224: 111012566.1 | AC224: 102835893.7 | AD224: 94475246.11 | AE224: 85926483.97 | AF224: 77185374.68 | AG224: 68247590.42 | AH224: 59108706.03 | AI224: 49764196.73 | AJ224: 40209435.97 | AK224: 30439693.1 | AL224: 20450131.01 | AM224: 10235803.78 | AN224: -208345.8193 | AO224: -10887488.78 | AP224: 0 | AQ224: 0 | AR224: 0 | AS224: 0 | AT224: 0 | AU224: 0 | AV224: 0 | AW224: 0 | AX224: 0 | AY224: 0 | AZ224: 0 | BA224: 0 | BB224: 0 | BC224: 0 | BD224: 0 | BE224: 0 | BF224: 0 | BG224: 0 | BH224: 0 | BI224: 0 | BJ224: 0 | BK224: 0 | BL224: 0 | BM224: 0 | BN224: 0 | BO224: 0 | BP224: 0 | BQ224: 0 | BR224: 0 | BS224: 0 | BT224: 0 | BU224: 0 | BV224: 0 | BW224: 0 | BX224: =IF(BX220,BX223) -> 0 | BY224: 0 | BZ224: 0 | CA224: 0 | CB224: 0 | CC224: 0 | CD224: 0 | CE224: 0 | CF224: 0 | CG224: 0 | CH224: 0 | CI224: 0 | CJ224: 0 | CK224: 0 | CL224: 0 | CM224: 0 | CN224: 0 | CO224: 0 | CP224: 0 | CQ224: 0 | CR224: 0 | CS224: 0 | CT224: 0 | CU224: 0 | CV224: 0 | CW224: 0 | CX224: 0 | CY224: 0 | CZ224: 0 | DA224: 0 | DB224: 0 | DC224: 0 | DD224: 0 | DE224: 0 | DF224: 0 | DG224: 0
D225: Value of Project Before Expenditure | F225: =NPV(F221,K224:DG224) -> 1865815648
D226: CAPEX at Purchase | F226: ='Input C'!F87 -> 147000000 | K226: =$F$226*K219 -> 0 | L226: =$F$226*L219 -> 147000000 | M226: 0 | N226: 0 | O226: 0 | P226: 0 | Q226: 0 | R226: 0 | S226: 0 | T226: 0 | U226: 0 | V226: 0 | W226: 0 | X226: 0 | Y226: 0 | Z226: 0 | AA226: 0 | AB226: 0 | AC226: 0 | AD226: 0 | AE226: 0 | AF226: 0 | AG226: 0 | AH226: 0 | AI226: 0 | AJ226: 0 | AK226: 0 | AL226: 0 | AM226: 0 | AN226: 0 | AO226: 0 | AP226: 0 | AQ226: 0 | AR226: 0 | AS226: 0 | AT226: 0 | AU226: 0 | AV226: 0 | AW226: 0 | AX226: 0 | AY226: 0 | AZ226: 0 | BA226: 0 | BB226: 0 | BC226: 0 | BD226: 0 | BE226: 0 | BF226: 0 | BG226: 0 | BH226: 0 | BI226: 0 | BJ226: 0 | BK226: 0 | BL226: 0 | BM226: 0 | BN226: 0 | BO226: 0 | BP226: 0 | BQ226: 0 | BR226: 0 | BS226: 0 | BT226: 0 | BU226: 0 | BV226: 0 | BW226: 0 | BX226: =$F$226*BX219 -> 0 | BY226: 0 | BZ226: 0 | CA226: 0 | CB226: 0 | CC226: 0 | CD226: 0 | CE226: 0 | CF226: 0 | CG226: 0 | CH226: 0 | CI226: 0 | CJ226: 0 | CK226: 0 | CL226: 0 | CM226: 0 | CN226: 0 | CO226: 0 | CP226: 0 | CQ226: 0 | CR226: 0 | CS226: 0 | CT226: 0 | CU226: 0 | CV226: 0 | CW226: 0 | CX226: 0 | CY226: 0 | CZ226: 0 | DA226: 0 | DB226: 0 | DC226: 0 | DD226: 0 | DE226: 0 | DF226: 0 | DG226: 0
D227: Buyer's Perspective | K227: =-$F$225*K219+K224-K226 -> 0 | L227: =-$F$225*L219+L224-L226 -> -2012815648 | M227: 214138112.3 | N227: =-$F$225*N219+N224-N226 -> 208281764.7 | O227: =-$F$225*O219+O224-O226 -> 202293649.2 | P227: =-$F$225*P219+P224-P226 -> 196170801.1 | Q227: =-$F$225*Q219+Q224-Q226 -> 189910189 | R227: =-$F$225*R219+R224-R226 -> 183508713 | S227: =-$F$225*S219+S224-S226 -> 176963203.9 | T227: =-$F$225*T219+T224-T226 -> 170270420.8 | U227: =-$F$225*U219+U224-U226 -> 163427050.1 | V227: =-$F$225*V219+V224-V226 -> 156429703.5 | W227: =-$F$225*W219+W224-W226 -> 149274916.7 | X227: =-$F$225*X219+X224-X226 -> 141959147.1 | Y227: =-$F$225*Y219+Y224-Y226 -> 134478772.8 | Z227: =-$F$225*Z219+Z224-Z226 -> 126830090 | AA227: =-$F$225*AA219+AA224-AA226 -> 119009311.8 | AB227: =-$F$225*AB219+AB224-AB226 -> 111012566.1 | AC227: =-$F$225*AC219+AC224-AC226 -> 102835893.7 | AD227: =-$F$225*AD219+AD224-AD226 -> 94475246.11 | AE227: =-$F$225*AE219+AE224-AE226 -> 85926483.97 | AF227: =-$F$225*AF219+AF224-AF226 -> 77185374.68 | AG227: =-$F$225*AG219+AG224-AG226 -> 68247590.42 | AH227: =-$F$225*AH219+AH224-AH226 -> 59108706.03 | AI227: =-$F$225*AI219+AI224-AI226 -> 49764196.73 | AJ227: =-$F$225*AJ219+AJ224-AJ226 -> 40209435.97 | AK227: =-$F$225*AK219+AK224-AK226 -> 30439693.1 | AL227: =-$F$225*AL219+AL224-AL226 -> 20450131.01 | AM227: =-$F$225*AM219+AM224-AM226 -> 10235803.78 | AN227: =-$F$225*AN219+AN224-AN226 -> -208345.8193 | AO227: =-$F$225*AO219+AO224-AO226 -> -10887488.78 | AP227: =-$F$225*AP219+AP224-AP226 -> 0 | AQ227: =-$F$225*AQ219+AQ224-AQ226 -> 0 | AR227: =-$F$225*AR219+AR224-AR226 -> 0 | AS227: =-$F$225*AS219+AS224-AS226 -> 0 | AT227: =-$F$225*AT219+AT224-AT226 -> 0 | AU227: =-$F$225*AU219+AU224-AU226 -> 0 | AV227: =-$F$225*AV219+AV224-AV226 -> 0 | AW227: =-$F$225*AW219+AW224-AW226 -> 0 | AX227: =-$F$225*AX219+AX224-AX226 -> 0 | AY227: =-$F$225*AY219+AY224-AY226 -> 0 | AZ227: =-$F$225*AZ219+AZ224-AZ226 -> 0 | BA227: =-$F$225*BA219+BA224-BA226 -> 0 | BB227: =-$F$225*BB219+BB224-BB226 -> 0 | BC227: =-$F$225*BC219+BC224-BC226 -> 0 | BD227: =-$F$225*BD219+BD224-BD226 -> 0 | BE227: =-$F$225*BE219+BE224-BE226 -> 0 | BF227: =-$F$225*BF219+BF224-BF226 -> 0 | BG227: =-$F$225*BG219+BG224-BG226 -> 0 | BH227: =-$F$225*BH219+BH224-BH226 -> 0 | BI227: =-$F$225*BI219+BI224-BI226 -> 0 | BJ227: =-$F$225*BJ219+BJ224-BJ226 -> 0 | BK227: =-$F$225*BK219+BK224-BK226 -> 0 | BL227: =-$F$225*BL219+BL224-BL226 -> 0 | BM227: =-$F$225*BM219+BM224-BM226 -> 0 | BN227: =-$F$225*BN219+BN224-BN226 -> 0 | BO227: =-$F$225*BO219+BO224-BO226 -> 0 | BP227: =-$F$225*BP219+BP224-BP226 -> 0 | BQ227: =-$F$225*BQ219+BQ224-BQ226 -> 0 | BR227: =-$F$225*BR219+BR224-BR226 -> 0 | BS227: =-$F$225*BS219+BS224-BS226 -> 0 | BT227: =-$F$225*BT219+BT224-BT226 -> 0 | BU227: =-$F$225*BU219+BU224-BU226 -> 0 | BV227: =-$F$225*BV219+BV224-BV226 -> 0 | BW227: =-$F$225*BW219+BW224-BW226 -> 0 | BX227: =-$F$225*BX219+BX224-BX226 -> 0 | BY227: =-$F$225*BY219+BY224-BY226 -> 0 | BZ227: =-$F$225*BZ219+BZ224-BZ226 -> 0 | CA227: =-$F$225*CA219+CA224-CA226 -> 0 | CB227: =-$F$225*CB219+CB224-CB226 -> 0 | CC227: =-$F$225*CC219+CC224-CC226 -> 0 | CD227: =-$F$225*CD219+CD224-CD226 -> 0 | CE227: =-$F$225*CE219+CE224-CE226 -> 0 | CF227: =-$F$225*CF219+CF224-CF226 -> 0 | CG227: =-$F$225*CG219+CG224-CG226 -> 0 | CH227: =-$F$225*CH219+CH224-CH226 -> 0 | CI227: =-$F$225*CI219+CI224-CI226 -> 0 | CJ227: =-$F$225*CJ219+CJ224-CJ226 -> 0 | CK227: =-$F$225*CK219+CK224-CK226 -> 0 | CL227: =-$F$225*CL219+CL224-CL226 -> 0 | CM227: =-$F$225*CM219+CM224-CM226 -> 0 | CN227: =-$F$225*CN219+CN224-CN226 -> 0 | CO227: =-$F$225*CO219+CO224-CO226 -> 0 | CP227: =-$F$225*CP219+CP224-CP226 -> 0 | CQ227: =-$F$225*CQ219+CQ224-CQ226 -> 0 | CR227: =-$F$225*CR219+CR224-CR226 -> 0 | CS227: =-$F$225*CS219+CS224-CS226 -> 0 | CT227: =-$F$225*CT219+CT224-CT226 -> 0 | CU227: =-$F$225*CU219+CU224-CU226 -> 0 | CV227: =-$F$225*CV219+CV224-CV226 -> 0 | CW227: =-$F$225*CW219+CW224-CW226 -> 0 | CX227: =-$F$225*CX219+CX224-CX226 -> 0 | CY227: =-$F$225*CY219+CY224-CY226 -> 0 | CZ227: =-$F$225*CZ219+CZ224-CZ226 -> 0 | DA227: =-$F$225*DA219+DA224-DA226 -> 0 | DB227: =-$F$225*DB219+DB224-DB226 -> 0 | DC227: =-$F$225*DC219+DC224-DC226 -> 0 | DD227: =-$F$225*DD219+DD224-DD226 -> 0 | DE227: =-$F$225*DE219+DE224-DE226 -> 0 | DF227: =-$F$225*DF219+DF224-DF226 -> 0 | DG227: =-$F$225*DG219+DG224-DG226 -> 0
D228: Purchase Price Willing to Pay | F228: =F225-F226 -> 1718815648
D229: Buyer's IRR | F229: =IRR(K227:DG227) -> 0.05568539417
B232: UDF Inputs
C233: EBITDA | K233: =K112 -> 0 | L233: 219865591.7 | M233: 214138112.3 | N233: 208281764.7 | O233: 202293649.2 | P233: 196170801.1 | Q233: 189910189 | R233: 183508713 | S233: 176963203.9 | T233: 170270420.8 | U233: 163427050.1 | V233: 156429703.5 | W233: 149274916.7 | X233: 141959147.1 | Y233: 134478772.8 | Z233: 126830090 | AA233: 119009311.8 | AB233: 111012566.1 | AC233: 102835893.7 | AD233: 94475246.11 | AE233: 85926483.97 | AF233: 77185374.68 | AG233: 68247590.42 | AH233: 59108706.03 | AI233: 49764196.73 | AJ233: 40209435.97 | AK233: 30439693.1 | AL233: 20450131.01 | AM233: 10235803.78 | AN233: -208345.8193 | AO233: -10887488.78 | AP233: 0 | AQ233: =AQ112 -> 0 | AR233: 0 | AS233: 0 | AT233: 0 | AU233: 0 | AV233: 0 | AW233: 0 | AX233: 0 | AY233: 0 | AZ233: 0 | BA233: 0 | BB233: 0 | BC233: 0 | BD233: 0 | BE233: 0 | BF233: 0 | BG233: 0 | BH233: 0 | BI233: 0 | BJ233: 0 | BK233: 0 | BL233: 0 | BM233: 0 | BN233: 0 | BO233: 0 | BP233: 0 | BQ233: 0 | BR233: 0 | BS233: 0 | BT233: 0 | BU233: 0 | BV233: 0 | BW233: =BW112 -> 0 | BX233: 0 | BY233: 0 | BZ233: 0 | CA233: 0 | CB233: 0 | CC233: 0 | CD233: 0 | CE233: 0 | CF233: 0 | CG233: 0 | CH233: 0 | CI233: 0 | CJ233: 0 | CK233: 0 | CL233: 0 | CM233: 0 | CN233: 0 | CO233: 0 | CP233: 0 | CQ233: 0 | CR233: 0 | CS233: 0 | CT233: 0 | CU233: 0 | CV233: 0 | CW233: 0 | CX233: 0 | CY233: 0 | CZ233: 0 | DA233: 0 | DB233: 0 | DC233: 0 | DD233: 0 | DE233: 0 | DF233: 0 | DG233: 0
C234: Depreciation | K234: =K53 -> 0 | L234: 49000000 | M234: 49000000 | N234: 49000000 | O234: 49000000 | P234: 49000000 | Q234: 49000000 | R234: 49000000 | S234: 49000000 | T234: 49000000 | U234: 49000000 | V234: 49000000 | W234: 49000000 | X234: 49000000 | Y234: 49000000 | Z234: 49000000 | AA234: 49000000 | AB234: 49000000 | AC234: 49000000 | AD234: 49000000 | AE234: 49000000 | AF234: 49000000 | AG234: 49000000 | AH234: 49000000 | AI234: 49000000 | AJ234: 49000000 | AK234: 49000000 | AL234: 49000000 | AM234: 49000000 | AN234: 49000000 | AO234: 49000000 | AP234: 0 | AQ234: =AQ53 -> 0 | AR234: 0 | AS234: 0 | AT234: 0 | AU234: 0 | AV234: 0 | AW234: 0 | AX234: 0 | AY234: 0 | AZ234: 0 | BA234: 0 | BB234: 0 | BC234: 0 | BD234: 0 | BE234: 0 | BF234: 0 | BG234: 0 | BH234: 0 | BI234: 0 | BJ234: 0 | BK234: 0 | BL234: 0 | BM234: 0 | BN234: 0 | BO234: 0 | BP234: 0 | BQ234: 0 | BR234: 0 | BS234: 0 | BT234: 0 | BU234: 0 | BV234: 0 | BW234: =BW53 -> 0 | BX234: 0 | BY234: 0 | BZ234: 0 | CA234: 0 | CB234: 0 | CC234: 0 | CD234: 0 | CE234: 0 | CF234: 0 | CG234: 0 | CH234: 0 | CI234: 0 | CJ234: 0 | CK234: 0 | CL234: 0 | CM234: 0 | CN234: 0 | CO234: 0 | CP234: 0 | CQ234: 0 | CR234: 0 | CS234: 0 | CT234: 0 | CU234: 0 | CV234: 0 | CW234: 0 | CX234: 0 | CY234: 0 | CZ234: 0 | DA234: 0 | DB234: 0 | DC234: 0 | DD234: 0 | DE234: 0 | DF234: 0 | DG234: 0
C235: Tax Rate | K235: ='Input C'!$F$63 -> 0.4 | L235: ='Input C'!$F$63 -> 0.4 | M235: ='Input C'!$F$63 -> 0.4 | N235: ='Input C'!$F$63 -> 0.4 | O235: ='Input C'!$F$63 -> 0.4 | P235: ='Input C'!$F$63 -> 0.4 | Q235: ='Input C'!$F$63 -> 0.4 | R235: ='Input C'!$F$63 -> 0.4 | S235: ='Input C'!$F$63 -> 0.4 | T235: ='Input C'!$F$63 -> 0.4 | U235: ='Input C'!$F$63 -> 0.4 | V235: ='Input C'!$F$63 -> 0.4 | W235: ='Input C'!$F$63 -> 0.4 | X235: ='Input C'!$F$63 -> 0.4 | Y235: ='Input C'!$F$63 -> 0.4 | Z235: ='Input C'!$F$63 -> 0.4 | AA235: ='Input C'!$F$63 -> 0.4 | AB235: ='Input C'!$F$63 -> 0.4 | AC235: ='Input C'!$F$63 -> 0.4 | AD235: ='Input C'!$F$63 -> 0.4 | AE235: ='Input C'!$F$63 -> 0.4 | AF235: ='Input C'!$F$63 -> 0.4 | AG235: ='Input C'!$F$63 -> 0.4 | AH235: ='Input C'!$F$63 -> 0.4 | AI235: ='Input C'!$F$63 -> 0.4 | AJ235: ='Input C'!$F$63 -> 0.4 | AK235: ='Input C'!$F$63 -> 0.4 | AL235: ='Input C'!$F$63 -> 0.4 | AM235: ='Input C'!$F$63 -> 0.4 | AN235: ='Input C'!$F$63 -> 0.4 | AO235: ='Input C'!$F$63 -> 0.4 | AP235: ='Input C'!$F$63 -> 0.4 | AQ235: ='Input C'!$F$63 -> 0.4 | AR235: ='Input C'!$F$63 -> 0.4 | AS235: ='Input C'!$F$63 -> 0.4 | AT235: ='Input C'!$F$63 -> 0.4 | AU235: ='Input C'!$F$63 -> 0.4 | AV235: ='Input C'!$F$63 -> 0.4 | AW235: ='Input C'!$F$63 -> 0.4 | AX235: ='Input C'!$F$63 -> 0.4 | AY235: ='Input C'!$F$63 -> 0.4 | AZ235: ='Input C'!$F$63 -> 0.4 | BA235: ='Input C'!$F$63 -> 0.4 | BB235: ='Input C'!$F$63 -> 0.4 | BC235: ='Input C'!$F$63 -> 0.4 | BD235: ='Input C'!$F$63 -> 0.4 | BE235: ='Input C'!$F$63 -> 0.4 | BF235: ='Input C'!$F$63 -> 0.4 | BG235: ='Input C'!$F$63 -> 0.4 | BH235: ='Input C'!$F$63 -> 0.4 | BI235: ='Input C'!$F$63 -> 0.4 | BJ235: ='Input C'!$F$63 -> 0.4 | BK235: ='Input C'!$F$63 -> 0.4 | BL235: ='Input C'!$F$63 -> 0.4 | BM235: ='Input C'!$F$63 -> 0.4 | BN235: ='Input C'!$F$63 -> 0.4 | BO235: ='Input C'!$F$63 -> 0.4 | BP235: ='Input C'!$F$63 -> 0.4 | BQ235: ='Input C'!$F$63 -> 0.4 | BR235: ='Input C'!$F$63 -> 0.4 | BS235: ='Input C'!$F$63 -> 0.4 | BT235: ='Input C'!$F$63 -> 0.4 | BU235: ='Input C'!$F$63 -> 0.4 | BV235: ='Input C'!$F$63 -> 0.4 | BW235: ='Input C'!$F$63 -> 0.4 | BX235: ='Input C'!$F$63 -> 0.4 | BY235: ='Input C'!$F$63 -> 0.4 | BZ235: ='Input C'!$F$63 -> 0.4 | CA235: ='Input C'!$F$63 -> 0.4 | CB235: ='Input C'!$F$63 -> 0.4 | CC235: ='Input C'!$F$63 -> 0.4 | CD235: ='Input C'!$F$63 -> 0.4 | CE235: ='Input C'!$F$63 -> 0.4 | CF235: ='Input C'!$F$63 -> 0.4 | CG235: ='Input C'!$F$63 -> 0.4 | CH235: ='Input C'!$F$63 -> 0.4 | CI235: ='Input C'!$F$63 -> 0.4 | CJ235: ='Input C'!$F$63 -> 0.4 | CK235: ='Input C'!$F$63 -> 0.4 | CL235: ='Input C'!$F$63 -> 0.4 | CM235: ='Input C'!$F$63 -> 0.4 | CN235: ='Input C'!$F$63 -> 0.4 | CO235: ='Input C'!$F$63 -> 0.4 | CP235: ='Input C'!$F$63 -> 0.4 | CQ235: ='Input C'!$F$63 -> 0.4 | CR235: ='Input C'!$F$63 -> 0.4 | CS235: ='Input C'!$F$63 -> 0.4 | CT235: ='Input C'!$F$63 -> 0.4 | CU235: ='Input C'!$F$63 -> 0.4 | CV235: ='Input C'!$F$63 -> 0.4 | CW235: ='Input C'!$F$63 -> 0.4 | CX235: ='Input C'!$F$63 -> 0.4 | CY235: ='Input C'!$F$63 -> 0.4 | CZ235: ='Input C'!$F$63 -> 0.4 | DA235: ='Input C'!$F$63 -> 0.4 | DB235: ='Input C'!$F$63 -> 0.4 | DC235: ='Input C'!$F$63 -> 0.4 | DD235: ='Input C'!$F$63 -> 0.4 | DE235: ='Input C'!$F$63 -> 0.4 | DF235: ='Input C'!$F$63 -> 0.4 | DG235: ='Input C'!$F$63 -> 0.4
C236: PV Factor | K236: =K69 -> 1 | L236: 1.08 | M236: 1.1664 | N236: 1.259712 | O236: 1.36048896 | P236: 1.469328077 | Q236: 1.586874323 | R236: 1.713824269 | S236: 1.85093021 | T236: 1.999004627 | U236: 2.158924997 | V236: 2.331638997 | W236: 2.518170117 | X236: 2.719623726 | Y236: 2.937193624 | Z236: 3.172169114 | AA236: 3.425942643 | AB236: 3.700018055 | AC236: 3.996019499 | AD236: 4.315701059 | AE236: 4.660957144 | AF236: 5.033833715 | AG236: 5.436540413 | AH236: 5.871463646 | AI236: 6.341180737 | AJ236: 6.848475196 | AK236: 7.396353212 | AL236: 7.988061469 | AM236: 8.627106386 | AN236: 9.317274897 | AO236: 10.06265689 | AP236: 10.86766944 | AQ236: =AQ69 -> 11.737083 | AR236: 12.67604964 | AS236: 13.69013361 | AT236: 14.78534429 | AU236: 15.96817184 | AV236: 17.24562558 | AW236: 18.62527563 | AX236: 20.11529768 | AY236: 21.7245215 | AZ236: 23.46248322 | BA236: 25.33948187 | BB236: 27.36664042 | BC236: 29.55597166 | BD236: 31.92044939 | BE236: 34.47408534 | BF236: 37.23201217 | BG236: 40.21057314 | BH236: 43.42741899 | BI236: 46.90161251 | BJ236: 50.65374151 | BK236: 54.70604084 | BL236: 59.0825241 | BM236: 63.80912603 | BN236: 68.91385611 | BO236: 74.4269646 | BP236: 80.38112177 | BQ236: 86.81161151 | BR236: 93.75654043 | BS236: 101.2570637 | BT236: 109.3576288 | BU236: 118.1062391 | BV236: 127.5547382 | BW236: =BW69 -> 137.7591172 | BX236: 148.7798466 | BY236: 160.6822344 | BZ236: 173.5368131 | CA236: 187.4197581 | CB236: 202.4133388 | CC236: 218.6064059 | CD236: 236.0949184 | CE236: 254.9825118 | CF236: 275.3811128 | CG236: 297.4116018 | CH236: 321.20453 | CI236: 346.9008924 | CJ236: 374.6529637 | CK236: 404.6252008 | CL236: 436.9952169 | CM236: 471.9548343 | CN236: 509.711221 | CO236: 550.4881187 | CP236: 594.5271682 | CQ236: 642.0893416 | CR236: 693.456489 | CS236: 748.9330081 | CT236: 808.8476487 | CU236: 873.5554606 | CV236: 943.4398975 | CW236: 1018.915089 | CX236: 1100.428296 | CY236: 1188.46256 | CZ236: 1283.539565 | DA236: 1386.22273 | DB236: 1497.120549 | DC236: 1616.890192 | DD236: 1746.241408 | DE236: 1885.94072 | DF236: 2036.815978 | DG236: 2199.761256
C237: Total Debt | K237: =$I$78 -> 882000000 | L237: =$I$78 -> 882000000 | M237: 882000000 | N237: 882000000 | O237: 882000000 | P237: 882000000 | Q237: 882000000 | R237: 882000000 | S237: 882000000 | T237: 882000000 | U237: 882000000 | V237: 882000000 | W237: 882000000 | X237: 882000000 | Y237: 882000000 | Z237: 882000000 | AA237: 882000000 | AB237: 882000000 | AC237: 882000000 | AD237: 882000000 | AE237: 882000000 | AF237: 882000000 | AG237: 882000000 | AH237: 882000000 | AI237: 882000000 | AJ237: 882000000 | AK237: 882000000 | AL237: 882000000 | AM237: 882000000 | AN237: 882000000 | AO237: 882000000 | AP237: 882000000 | AQ237: 882000000 | AR237: 882000000 | AS237: 882000000 | AT237: 882000000 | AU237: 882000000 | AV237: 882000000 | AW237: 882000000 | AX237: 882000000 | AY237: 882000000 | AZ237: 882000000 | BA237: 882000000 | BB237: 882000000 | BC237: 882000000 | BD237: 882000000 | BE237: 882000000 | BF237: 882000000 | BG237: 882000000 | BH237: 882000000 | BI237: 882000000 | BJ237: 882000000 | BK237: 882000000 | BL237: 882000000 | BM237: 882000000 | BN237: 882000000 | BO237: 882000000 | BP237: 882000000 | BQ237: 882000000 | BR237: 882000000 | BS237: 882000000 | BT237: 882000000 | BU237: 882000000 | BV237: 882000000 | BW237: 882000000 | BX237: =$I$78 -> 882000000 | BY237: 882000000 | BZ237: 882000000 | CA237: 882000000 | CB237: 882000000 | CC237: 882000000 | CD237: 882000000 | CE237: 882000000 | CF237: 882000000 | CG237: 882000000 | CH237: 882000000 | CI237: 882000000 | CJ237: 882000000 | CK237: 882000000 | CL237: 882000000 | CM237: 882000000 | CN237: 882000000 | CO237: 882000000 | CP237: 882000000 | CQ237: 882000000 | CR237: 882000000 | CS237: 882000000 | CT237: 882000000 | CU237: 882000000 | CV237: 882000000 | CW237: 882000000 | CX237: 882000000 | CY237: 882000000 | CZ237: 882000000 | DA237: 882000000 | DB237: 882000000 | DC237: 882000000 | DD237: 882000000 | DE237: 882000000 | DF237: 882000000 | DG237: 882000000
C238: Interest Rate | K238: =$F$80 -> 0.08 | L238: =$F$80 -> 0.08 | M238: 0.08 | N238: 0.08 | O238: 0.08 | P238: 0.08 | Q238: 0.08 | R238: 0.08 | S238: 0.08 | T238: 0.08 | U238: 0.08 | V238: 0.08 | W238: 0.08 | X238: 0.08 | Y238: 0.08 | Z238: 0.08 | AA238: 0.08 | AB238: 0.08 | AC238: 0.08 | AD238: 0.08 | AE238: 0.08 | AF238: 0.08 | AG238: 0.08 | AH238: 0.08 | AI238: 0.08 | AJ238: 0.08 | AK238: 0.08 | AL238: 0.08 | AM238: 0.08 | AN238: 0.08 | AO238: 0.08 | AP238: 0.08 | AQ238: 0.08 | AR238: 0.08 | AS238: 0.08 | AT238: 0.08 | AU238: 0.08 | AV238: 0.08 | AW238: 0.08 | AX238: 0.08 | AY238: 0.08 | AZ238: 0.08 | BA238: 0.08 | BB238: 0.08 | BC238: 0.08 | BD238: 0.08 | BE238: 0.08 | BF238: 0.08 | BG238: 0.08 | BH238: 0.08 | BI238: 0.08 | BJ238: 0.08 | BK238: 0.08 | BL238: 0.08 | BM238: 0.08 | BN238: 0.08 | BO238: 0.08 | BP238: 0.08 | BQ238: 0.08 | BR238: 0.08 | BS238: 0.08 | BT238: 0.08 | BU238: 0.08 | BV238: 0.08 | BW238: 0.08 | BX238: =$F$80 -> 0.08 | BY238: 0.08 | BZ238: 0.08 | CA238: 0.08 | CB238: 0.08 | CC238: 0.08 | CD238: 0.08 | CE238: 0.08 | CF238: 0.08 | CG238: 0.08 | CH238: 0.08 | CI238: 0.08 | CJ238: 0.08 | CK238: 0.08 | CL238: 0.08 | CM238: 0.08 | CN238: 0.08 | CO238: 0.08 | CP238: 0.08 | CQ238: 0.08 | CR238: 0.08 | CS238: 0.08 | CT238: 0.08 | CU238: 0.08 | CV238: 0.08 | CW238: 0.08 | CX238: 0.08 | CY238: 0.08 | CZ238: 0.08 | DA238: 0.08 | DB238: 0.08 | DC238: 0.08 | DD238: 0.08 | DE238: 0.08 | DF238: 0.08 | DG238: 0.08
C239: Operating Flag | K239: =K9 -> 0 | L239: =L9 -> 1 | M239: 1 | N239: 1 | O239: 1 | P239: 1 | Q239: 1 | R239: 1 | S239: 1 | T239: 1 | U239: 1 | V239: 1 | W239: 1 | X239: 1 | Y239: 1 | Z239: 1 | AA239: 1 | AB239: 1 | AC239: 1 | AD239: 1 | AE239: 1 | AF239: 1 | AG239: 1 | AH239: 1 | AI239: 1 | AJ239: 1 | AK239: 1 | AL239: 1 | AM239: 1 | AN239: 1 | AO239: 1 | AP239: 0 | AQ239: 0 | AR239: 0 | AS239: 0 | AT239: 0 | AU239: 0 | AV239: 0 | AW239: 0 | AX239: 0 | AY239: 0 | AZ239: 0 | BA239: 0 | BB239: 0 | BC239: 0 | BD239: 0 | BE239: 0 | BF239: 0 | BG239: 0 | BH239: 0 | BI239: 0 | BJ239: 0 | BK239: 0 | BL239: 0 | BM239: 0 | BN239: 0 | BO239: 0 | BP239: 0 | BQ239: 0 | BR239: 0 | BS239: 0 | BT239: 0 | BU239: 0 | BV239: 0 | BW239: 0 | BX239: =BX9 -> 0 | BY239: 0 | BZ239: 0 | CA239: 0 | CB239: 0 | CC239: 0 | CD239: 0 | CE239: 0 | CF239: 0 | CG239: 0 | CH239: 0 | CI239: 0 | CJ239: 0 | CK239: 0 | CL239: 0 | CM239: 0 | CN239: 0 | CO239: 0 | CP239: 0 | CQ239: 0 | CR239: 0 | CS239: 0 | CT239: 0 | CU239: 0 | CV239: 0 | CW239: 0 | CX239: 0 | CY239: 0 | CZ239: 0 | DA239: 0 | DB239: 0 | DC239: 0 | DD239: 0 | DE239: 0 | DF239: 0 | DG239: 0
A241: =DSCR_Compute(K233:DG239) -> 
D242: EBITDA | K242: 0 | L242: 219865591.7 | M242: 214138112.3 | N242: 208281764.7 | O242: 202293649.2 | P242: 196170801.1 | Q242: 189910189 | R242: 183508713 | S242: 176963203.9 | T242: 170270420.8 | U242: 163427050.1 | V242: 156429703.5 | W242: 149274916.7 | X242: 141959147.1 | Y242: 134478772.8 | Z242: 126830090 | AA242: 119009311.8 | AB242: 111012566.1 | AC242: 102835893.7 | AD242: 94475246.11 | AE242: 85926483.97 | AF242: 77185374.68 | AG242: 68247590.42 | AH242: 59108706.03 | AI242: 49764196.73 | AJ242: 40209435.97 | AK242: 30439693.1 | AL242: 20450131.01 | AM242: 10235803.78 | AN242: -208345.8193 | AO242: -10887488.78 | AP242: 0 | AQ242: 0 | AR242: 0 | AS242: 0 | AT242: 0 | AU242: 0 | AV242: 0 | AW242: 0 | AX242: 0 | AY242: 0 | AZ242: 0 | BA242: 0 | BB242: 0 | BC242: 0 | BD242: 0 | BE242: 0 | BF242: 0 | BG242: 0 | BH242: 0 | BI242: 0 | BJ242: 0 | BK242: 0 | BL242: 0 | BM242: 0 | BN242: 0 | BO242: 0 | BP242: 0 | BQ242: 0 | BR242: 0 | BS242: 0 | BT242: 0 | BU242: 0 | BV242: 0 | BW242: 0 | BX242: 0 | BY242: 0 | BZ242: 0 | CA242: 0 | CB242: 0 | CC242: 0 | CD242: 0 | CE242: 0 | CF242: 0 | CG242: 0 | CH242: 0 | CI242: 0 | CJ242: 0 | CK242: 0 | CL242: 0 | CM242: 0 | CN242: 0 | CO242: 0 | CP242: 0 | CQ242: 0 | CR242: 0 | CS242: 0 | CT242: 0 | CU242: 0 | CV242: 0 | CW242: 0 | CX242: 0 | CY242: 0 | CZ242: 0 | DA242: 0 | DB242: 0 | DC242: 0 | DD242: 0 | DE242: 0 | DF242: 0
D243: Taxes | K243: 0 | L243: 40122236.68 | M243: 38988655.61 | N243: 37808830.71 | O243: 36580456.51 | P243: 35301098.46 | Q243: 33968185.39 | R243: 32579001.4 | S243: 31130677.31 | T243: 29620181.63 | U243: 28044310.87 | V243: 26399679.42 | W243: 24682708.67 | X243: 22889615.59 | Y243: 21016400.56 | Z243: 19058834.45 | AA243: 17012444.99 | AB243: 14872502.24 | AC243: 12634003.22 | AD243: 10291655.61 | AE243: 7839860.461 | AF243: 5272693.836 | AG243: 2583887.377 | AH243: -233192.3332 | AI243: -3185565.646 | AJ243: -6280663.053 | AK243: -9526349.795 | AL243: -12930951.97 | AM243: -16503284.21 | AN243: -20252679.05 | AO243: -24189018.08 | AP243: 0 | AQ243: 0 | AR243: 0 | AS243: 0 | AT243: 0 | AU243: 0 | AV243: 0 | AW243: 0 | AX243: 0 | AY243: 0 | AZ243: 0 | BA243: 0 | BB243: 0 | BC243: 0 | BD243: 0 | BE243: 0 | BF243: 0 | BG243: 0 | BH243: 0 | BI243: 0 | BJ243: 0 | BK243: 0 | BL243: 0 | BM243: 0 | BN243: 0 | BO243: 0 | BP243: 0 | BQ243: 0 | BR243: 0 | BS243: 0 | BT243: 0 | BU243: 0 | BV243: 0 | BW243: 0 | BX243: 0 | BY243: 0 | BZ243: 0 | CA243: 0 | CB243: 0 | CC243: 0 | CD243: 0 | CE243: 0 | CF243: 0 | CG243: 0 | CH243: 0 | CI243: 0 | CJ243: 0 | CK243: 0 | CL243: 0 | CM243: 0 | CN243: 0 | CO243: 0 | CP243: 0 | CQ243: 0 | CR243: 0 | CS243: 0 | CT243: 0 | CU243: 0 | CV243: 0 | CW243: 0 | CX243: 0 | CY243: 0 | CZ243: 0 | DA243: 0 | DB243: 0 | DC243: 0 | DD243: 0 | DE243: 0 | DF243: 0
D244: CFADS | K244: 0 | L244: 179743355 | M244: 175149456.7 | N244: 170472934 | O244: 165713192.7 | P244: 160869702.7 | Q244: 155942003.6 | R244: 150929711.6 | S244: 145832526.6 | T244: 140650239.2 | U244: 135382739.2 | V244: 130030024.1 | W244: 124592208 | X244: 119069531.5 | Y244: 113462372.2 | Z244: 107771255.5 | AA244: 101996866.8 | AB244: 96140063.89 | AC244: 90201890.47 | AD244: 84183590.5 | AE244: 78086623.5 | AF244: 71912680.83 | AG244: 65663703.04 | AH244: 59341898.35 | AI244: 52949762.37 | AJ244: 46490099.02 | AK244: 39966042.89 | AL244: 33381082.97 | AM244: 26739087.97 | AN244: 20044333.21 | AO244: 13301529.29 | AP244: 0 | AQ244: 0 | AR244: 0 | AS244: 0 | AT244: 0 | AU244: 0 | AV244: 0 | AW244: 0 | AX244: 0 | AY244: 0 | AZ244: 0 | BA244: 0 | BB244: 0 | BC244: 0 | BD244: 0 | BE244: 0 | BF244: 0 | BG244: 0 | BH244: 0 | BI244: 0 | BJ244: 0 | BK244: 0 | BL244: 0 | BM244: 0 | BN244: 0 | BO244: 0 | BP244: 0 | BQ244: 0 | BR244: 0 | BS244: 0 | BT244: 0 | BU244: 0 | BV244: 0 | BW244: 0 | BX244: 0 | BY244: 0 | BZ244: 0 | CA244: 0 | CB244: 0 | CC244: 0 | CD244: 0 | CE244: 0 | CF244: 0 | CG244: 0 | CH244: 0 | CI244: 0 | CJ244: 0 | CK244: 0 | CL244: 0 | CM244: 0 | CN244: 0 | CO244: 0 | CP244: 0 | CQ244: 0 | CR244: 0 | CS244: 0 | CT244: 0 | CU244: 0 | CV244: 0 | CW244: 0 | CX244: 0 | CY244: 0 | CZ244: 0 | DA244: 0 | DB244: 0 | DC244: 0 | DD244: 0 | DE244: 0 | DF244: 0
D246: EBITDA | K246: 0 | L246: 219865591.7 | M246: 214138112.3 | N246: 208281764.7 | O246: 202293649.2 | P246: 196170801.1 | Q246: 189910189 | R246: 183508713 | S246: 176963203.9 | T246: 170270420.8 | U246: 163427050.1 | V246: 156429703.5 | W246: 149274916.7 | X246: 141959147.1 | Y246: 134478772.8 | Z246: 126830090 | AA246: 119009311.8 | AB246: 111012566.1 | AC246: 102835893.7 | AD246: 94475246.11 | AE246: 85926483.97 | AF246: 77185374.68 | AG246: 68247590.42 | AH246: 59108706.03 | AI246: 49764196.73 | AJ246: 40209435.97 | AK246: 30439693.1 | AL246: 20450131.01 | AM246: 10235803.78 | AN246: -208345.8193 | AO246: -10887488.78 | AP246: 0 | AQ246: 0 | AR246: 0 | AS246: 0 | AT246: 0 | AU246: 0 | AV246: 0 | AW246: 0 | AX246: 0 | AY246: 0 | AZ246: 0 | BA246: 0 | BB246: 0 | BC246: 0 | BD246: 0 | BE246: 0 | BF246: 0 | BG246: 0 | BH246: 0 | BI246: 0 | BJ246: 0 | BK246: 0 | BL246: 0 | BM246: 0 | BN246: 0 | BO246: 0 | BP246: 0 | BQ246: 0 | BR246: 0 | BS246: 0 | BT246: 0 | BU246: 0 | BV246: 0 | BW246: 0 | BX246: 0 | BY246: 0 | BZ246: 0 | CA246: 0 | CB246: 0 | CC246: 0 | CD246: 0 | CE246: 0 | CF246: 0 | CG246: 0 | CH246: 0 | CI246: 0 | CJ246: 0 | CK246: 0 | CL246: 0 | CM246: 0 | CN246: 0 | CO246: 0 | CP246: 0 | CQ246: 0 | CR246: 0 | CS246: 0 | CT246: 0 | CU246: 0 | CV246: 0 | CW246: 0 | CX246: 0 | CY246: 0 | CZ246: 0 | DA246: 0 | DB246: 0 | DC246: 0 | DD246: 0 | DE246: 0 | DF246: 0
D247: Depreciation | K247: 0 | L247: 49000000 | M247: 49000000 | N247: 49000000 | O247: 49000000 | P247: 49000000 | Q247: 49000000 | R247: 49000000 | S247: 49000000 | T247: 49000000 | U247: 49000000 | V247: 49000000 | W247: 49000000 | X247: 49000000 | Y247: 49000000 | Z247: 49000000 | AA247: 49000000 | AB247: 49000000 | AC247: 49000000 | AD247: 49000000 | AE247: 49000000 | AF247: 49000000 | AG247: 49000000 | AH247: 49000000 | AI247: 49000000 | AJ247: 49000000 | AK247: 49000000 | AL247: 49000000 | AM247: 49000000 | AN247: 49000000 | AO247: 49000000 | AP247: 0 | AQ247: 0 | AR247: 0 | AS247: 0 | AT247: 0 | AU247: 0 | AV247: 0 | AW247: 0 | AX247: 0 | AY247: 0 | AZ247: 0 | BA247: 0 | BB247: 0 | BC247: 0 | BD247: 0 | BE247: 0 | BF247: 0 | BG247: 0 | BH247: 0 | BI247: 0 | BJ247: 0 | BK247: 0 | BL247: 0 | BM247: 0 | BN247: 0 | BO247: 0 | BP247: 0 | BQ247: 0 | BR247: 0 | BS247: 0 | BT247: 0 | BU247: 0 | BV247: 0 | BW247: 0 | BX247: 0 | BY247: 0 | BZ247: 0 | CA247: 0 | CB247: 0 | CC247: 0 | CD247: 0 | CE247: 0 | CF247: 0 | CG247: 0 | CH247: 0 | CI247: 0 | CJ247: 0 | CK247: 0 | CL247: 0 | CM247: 0 | CN247: 0 | CO247: 0 | CP247: 0 | CQ247: 0 | CR247: 0 | CS247: 0 | CT247: 0 | CU247: 0 | CV247: 0 | CW247: 0 | CX247: 0 | CY247: 0 | CZ247: 0 | DA247: 0 | DB247: 0 | DC247: 0 | DD247: 0 | DE247: 0 | DF247: 0
D248: EBIT | K248: 0 | L248: 170865591.7 | M248: 165138112.3 | N248: 159281764.7 | O248: 153293649.2 | P248: 147170801.1 | Q248: 140910189 | R248: 134508713 | S248: 127963203.9 | T248: 121270420.8 | U248: 114427050.1 | V248: 107429703.5 | W248: 100274916.7 | X248: 92959147.13 | Y248: 85478772.75 | Z248: 77830089.96 | AA248: 70009311.8 | AB248: 62012566.13 | AC248: 53835893.69 | AD248: 45475246.11 | AE248: 36926483.97 | AF248: 28185374.68 | AG248: 19247590.42 | AH248: 10108706.03 | AI248: 764196.7292 | AJ248: -8790564.027 | AK248: -18560306.9 | AL248: -28549868.99 | AM248: -38764196.22 | AN248: -49208345.82 | AO248: -59887488.78 | AP248: 0 | AQ248: 0 | AR248: 0 | AS248: 0 | AT248: 0 | AU248: 0 | AV248: 0 | AW248: 0 | AX248: 0 | AY248: 0 | AZ248: 0 | BA248: 0 | BB248: 0 | BC248: 0 | BD248: 0 | BE248: 0 | BF248: 0 | BG248: 0 | BH248: 0 | BI248: 0 | BJ248: 0 | BK248: 0 | BL248: 0 | BM248: 0 | BN248: 0 | BO248: 0 | BP248: 0 | BQ248: 0 | BR248: 0 | BS248: 0 | BT248: 0 | BU248: 0 | BV248: 0 | BW248: 0 | BX248: 0 | BY248: 0 | BZ248: 0 | CA248: 0 | CB248: 0 | CC248: 0 | CD248: 0 | CE248: 0 | CF248: 0 | CG248: 0 | CH248: 0 | CI248: 0 | CJ248: 0 | CK248: 0 | CL248: 0 | CM248: 0 | CN248: 0 | CO248: 0 | CP248: 0 | CQ248: 0 | CR248: 0 | CS248: 0 | CT248: 0 | CU248: 0 | CV248: 0 | CW248: 0 | CX248: 0 | CY248: 0 | CZ248: 0 | DA248: 0 | DB248: 0 | DC248: 0 | DD248: 0 | DE248: 0 | DF248: 0
D249: Interest | K249: 0 | L249: 70560000 | M249: 67666473.32 | N249: 64759687.89 | O249: 61842507.93 | P249: 58918054.97 | Q249: 55989725.49 | R249: 53061209.55 | S249: 50136510.62 | T249: 47219966.74 | U249: 44316272.91 | V249: 41430504.99 | W249: 38568145 | X249: 35735108.14 | Y249: 32937771.35 | Z249: 30183003.82 | AA249: 27478199.31 | AB249: 24831310.53 | AC249: 22250885.64 | AD249: 19746107.08 | AE249: 17326832.81 | AF249: 15003640.08 | AG249: 12787871.98 | AH249: 10691686.85 | AI249: 8728110.839 | AJ249: 6911093.6 | AK249: 5255567.582 | AL249: 3777510.926 | AM249: 2494014.285 | AN249: 1423351.792 | AO249: 585056.4179 | AP249: 0.007236858383 | AQ249: 0.007815807053 | AR249: 0.008441071618 | AS249: 0.009116357347 | AT249: 0.009845665935 | AU249: 0.01063331921 | AV249: 0.01148398475 | AW249: 0.01240270353 | AX249: 0.01339491981 | AY249: 0.01446651339 | AZ249: 0.01562383446 | BA249: 0.01687374122 | BB249: 0.01822364052 | BC249: 0.01968153176 | BD249: 0.0212560543 | BE249: 0.02295653865 | BF249: 0.02479306174 | BG249: 0.02677650668 | BH249: 0.02891862721 | BI249: 0.03123211739 | BJ249: 0.03373068678 | BK249: 0.03642914172 | BL249: 0.03934347306 | BM249: 0.0424909509 | BN249: 0.04589022698 | BO249: 0.04956144513 | BP249: 0.05352636074 | BQ249: 0.0578084696 | BR249: 0.06243314717 | BS249: 0.06742779895 | BT249: 0.07282202286 | BU249: 0.07864778469 | BV249: 0.08493960747 | BW249: 0.09173477606 | BX249: 0.09907355815 | BY249: 0.1069994428 | BZ249: 0.1155593982 | CA249: 0.1248041501 | CB249: 0.1347884821 | CC249: 0.1455715607 | CD249: 0.1572172855 | CE249: 0.1697946683 | CF249: 0.1833782418 | CG249: 0.1980485012 | CH249: 0.2138923813 | CI249: 0.2310037718 | CJ249: 0.2494840735 | CK249: 0.2694427994 | CL249: 0.2909982233 | CM249: 0.3142780812 | CN249: 0.3394203277 | CO249: 0.3665739539 | CP249: 0.3958998702 | CQ249: 0.4275718598 | CR249: 0.4617776086 | CS249: 0.4987198173 | CT249: 0.5386174027 | CU249: 0.5817067949 | CV249: 0.6282433385 | CW249: 0.6785028056 | CX249: 0.73278303 | CY249: 0.7914056724 | CZ249: 0.8547181262 | DA249: 0.9230955763 | DB249: 0.9969432224 | DC249: 1.07669868 | DD249: 1.162834575 | DE249: 1.255861341 | DF249: 1.356330248
D250: EBT | K250: 0 | L250: 100305591.7 | M250: 97471639.01 | N250: 94522076.78 | O250: 91451141.27 | P250: 88252746.16 | Q250: 84920463.47 | R250: 81447503.49 | S250: 77826693.28 | T250: 74050454.07 | U250: 70110777.18 | V250: 65999198.55 | W250: 61706771.68 | X250: 57224038.99 | Y250: 52541001.4 | Z250: 47647086.14 | AA250: 42531112.48 | AB250: 37181255.6 | AC250: 31585008.05 | AD250: 25729139.03 | AE250: 19599651.15 | AF250: 13181734.59 | AG250: 6459718.443 | AH250: -582980.8331 | AI250: -7963914.115 | AJ250: -15701657.63 | AK250: -23815874.49 | AL250: -32327379.92 | AM250: -41258210.51 | AN250: -50631697.62 | AO250: -60472545.21 | AP250: -0.01305424809 | AQ250: -0.01409858794 | AR250: -0.01522647498 | AS250: -0.01644459298 | AT250: -0.01776016041 | AU250: -0.01918097325 | AV250: -0.02071545111 | AW250: -0.0223726872 | AX250: -0.02416250217 | AY250: -0.02609550234 | AZ250: -0.02818314253 | BA250: -0.03043779393 | BB250: -0.03287281745 | BC250: -0.03550264285 | BD250: -0.03834285427 | BE250: -0.04141028261 | BF250: -0.04472310522 | BG250: -0.04830095364 | BH250: -0.05216502993 | BI250: -0.05633823233 | BJ250: -0.06084529091 | BK250: -0.06571291419 | BL250: -0.07096994732 | BM250: -0.07664754311 | BN250: -0.08277934656 | BO250: -0.08940169428 | BP250: -0.09655382982 | BQ250: -0.1042781362 | BR250: -0.1126203871 | BS250: -0.1216300181 | BT250: -0.1313604195 | BU250: -0.1418692531 | BV250: -0.1532187933 | BW250: -0.1654762968 | BX250: -0.1787144005 | BY250: -0.1930115526 | BZ250: -0.2084524768 | CA250: -0.2251286749 | CB250: -0.2431389689 | CC250: -0.2625900864 | CD250: -0.2835972934 | CE250: -0.3062850768 | CF250: -0.330787883 | CG250: -0.3572509136 | CH250: -0.3858309867 | CI250: -0.4166974656 | CJ250: -0.4500332629 | CK250: -0.4860359239 | CL250: -0.5249187978 | CM250: -0.5669123017 | CN250: -0.6122652858 | CO250: -0.6612465086 | CP250: -0.7141462293 | CQ250: -0.7712779277 | CR250: -0.8329801619 | CS250: -0.8996185749 | CT250: -0.9715880608 | CU250: -1.049315106 | CV250: -1.133260314 | CW250: -1.223921139 | CX250: -1.32183483 | CY250: -1.427581617 | CZ250: -1.541788146 | DA250: -1.665131198 | DB250: -1.798341694 | DC250: -1.942209029 | DD250: -2.097585752 | DE250: -2.265392612 | DF250: -2.446624021
D251: Taxes | K251: 0 | L251: 40122236.68 | M251: 38988655.61 | N251: 37808830.71 | O251: 36580456.51 | P251: 35301098.46 | Q251: 33968185.39 | R251: 32579001.4 | S251: 31130677.31 | T251: 29620181.63 | U251: 28044310.87 | V251: 26399679.42 | W251: 24682708.67 | X251: 22889615.59 | Y251: 21016400.56 | Z251: 19058834.45 | AA251: 17012444.99 | AB251: 14872502.24 | AC251: 12634003.22 | AD251: 10291655.61 | AE251: 7839860.461 | AF251: 5272693.836 | AG251: 2583887.377 | AH251: -233192.3332 | AI251: -3185565.646 | AJ251: -6280663.053 | AK251: -9526349.795 | AL251: -12930951.97 | AM251: -16503284.21 | AN251: -20252679.05 | AO251: -24189018.08 | AP251: 0 | AQ251: 0 | AR251: 0 | AS251: 0 | AT251: 0 | AU251: 0 | AV251: 0 | AW251: 0 | AX251: 0 | AY251: 0 | AZ251: 0 | BA251: 0 | BB251: 0 | BC251: 0 | BD251: 0 | BE251: 0 | BF251: 0 | BG251: 0 | BH251: 0 | BI251: 0 | BJ251: 0 | BK251: 0 | BL251: 0 | BM251: 0 | BN251: 0 | BO251: 0 | BP251: 0 | BQ251: 0 | BR251: 0 | BS251: 0 | BT251: 0 | BU251: 0 | BV251: 0 | BW251: 0 | BX251: 0 | BY251: 0 | BZ251: 0 | CA251: 0 | CB251: 0 | CC251: 0 | CD251: 0 | CE251: 0 | CF251: 0 | CG251: 0 | CH251: 0 | CI251: 0 | CJ251: 0 | CK251: 0 | CL251: 0 | CM251: 0 | CN251: 0 | CO251: 0 | CP251: 0 | CQ251: 0 | CR251: 0 | CS251: 0 | CT251: 0 | CU251: 0 | CV251: 0 | CW251: 0 | CX251: 0 | CY251: 0 | CZ251: 0 | DA251: 0 | DB251: 0 | DC251: 0 | DD251: 0 | DE251: 0 | DF251: 0
D253: PV_CFADS | K253: 0 | L253: 166429032.4 | M253: 150162428.6 | N253: 135326911.2 | O253: 121804143.6 | P253: 109485216.5 | Q253: 98269914.21 | R253: 88066037.1 | S253: 78788776.46 | T253: 70360136.88 | U253: 62708403.2 | V253: 55767648.54 | W253: 49477280.02 | X253: 43781619.63 | Y253: 38629517.39 | Z253: 33973994.33 | AA253: 29771913.14 | AB253: 25983674.26 | AC253: 22572935.51 | AD253: 19506353.51 | AE253: 16753345.09 | AF253: 14285867.37 | AG253: 12078214.83 | AH253: 10106832.29 | AI253: 8350142.436 | AJ253: 6788386.858 | AK253: 5403479.491 | AL253: 4178871.57 | AM253: 3099427.175 | AN253: 2151308.557 | AO253: 1321870.499 | AP253: 0 | AQ253: 0 | AR253: 0 | AS253: 0 | AT253: 0 | AU253: 0 | AV253: 0 | AW253: 0 | AX253: 0 | AY253: 0 | AZ253: 0 | BA253: 0 | BB253: 0 | BC253: 0 | BD253: 0 | BE253: 0 | BF253: 0 | BG253: 0 | BH253: 0 | BI253: 0 | BJ253: 0 | BK253: 0 | BL253: 0 | BM253: 0 | BN253: 0 | BO253: 0 | BP253: 0 | BQ253: 0 | BR253: 0 | BS253: 0 | BT253: 0 | BU253: 0 | BV253: 0 | BW253: 0 | BX253: 0 | BY253: 0 | BZ253: 0 | CA253: 0 | CB253: 0 | CC253: 0 | CD253: 0 | CE253: 0 | CF253: 0 | CG253: 0 | CH253: 0 | CI253: 0 | CJ253: 0 | CK253: 0 | CL253: 0 | CM253: 0 | CN253: 0 | CO253: 0 | CP253: 0 | CQ253: 0 | CR253: 0 | CS253: 0 | CT253: 0 | CU253: 0 | CV253: 0 | CW253: 0 | CX253: 0 | CY253: 0 | CZ253: 0 | DA253: 0 | DB253: 0 | DC253: 0 | DD253: 0 | DE253: 0 | DF253: 0
D254: Total_Debt_Fixed | K254: 882000000 | L254: 882000000 | M254: 882000000 | N254: 882000000 | O254: 882000000 | P254: 882000000 | Q254: 882000000 | R254: 882000000 | S254: 882000000 | T254: 882000000 | U254: 882000000 | V254: 882000000 | W254: 882000000 | X254: 882000000 | Y254: 882000000 | Z254: 882000000 | AA254: 882000000 | AB254: 882000000 | AC254: 882000000 | AD254: 882000000 | AE254: 882000000 | AF254: 882000000 | AG254: 882000000 | AH254: 882000000 | AI254: 882000000 | AJ254: 882000000 | AK254: 882000000 | AL254: 882000000 | AM254: 882000000 | AN254: 882000000 | AO254: 882000000 | AP254: 882000000 | AQ254: 882000000 | AR254: 882000000 | AS254: 882000000 | AT254: 882000000 | AU254: 882000000 | AV254: 882000000 | AW254: 882000000 | AX254: 882000000 | AY254: 882000000 | AZ254: 882000000 | BA254: 882000000 | BB254: 882000000 | BC254: 882000000 | BD254: 882000000 | BE254: 882000000 | BF254: 882000000 | BG254: 882000000 | BH254: 882000000 | BI254: 882000000 | BJ254: 882000000 | BK254: 882000000 | BL254: 882000000 | BM254: 882000000 | BN254: 882000000 | BO254: 882000000 | BP254: 882000000 | BQ254: 882000000 | BR254: 882000000 | BS254: 882000000 | BT254: 882000000 | BU254: 882000000 | BV254: 882000000 | BW254: 882000000 | BX254: 882000000 | BY254: 882000000 | BZ254: 882000000 | CA254: 882000000 | CB254: 882000000 | CC254: 882000000 | CD254: 882000000 | CE254: 882000000 | CF254: 882000000 | CG254: 882000000 | CH254: 882000000 | CI254: 882000000 | CJ254: 882000000 | CK254: 882000000 | CL254: 882000000 | CM254: 882000000 | CN254: 882000000 | CO254: 882000000 | CP254: 882000000 | CQ254: 882000000 | CR254: 882000000 | CS254: 882000000 | CT254: 882000000 | CU254: 882000000 | CV254: 882000000 | CW254: 882000000 | CX254: 882000000 | CY254: 882000000 | CZ254: 882000000 | DA254: 882000000 | DB254: 882000000 | DC254: 882000000 | DD254: 882000000 | DE254: 882000000 | DF254: 882000000
... 30 more rows

Sheet Sensitivity
O1: =1/4 -> 0.25
O3: 1 | P3: 2 | Q3: 3 | R3: 4 | S3: 5 | T3: 6 | U3: 7 | V3: 8 | W3: 9 | X3: 10
R4: ='Input C'!AI3 -> Utility Solar Project High | S4: ='Input C'!AL3 -> Solar with Tracking | T4: ='Input C'!AM3 -> Hyrdo Project | U4: ='Input C'!AO3 -> NGCC Project - Current Fuel | V4: ='Input C'!AP3 -> NGCC Project Mean Reverted Price | W4: ='Input C'!AQ3 -> Nuclear Project - Lazard Cost | X4: ='Input C'!AW3 -> BESS Project
G5: Lazard Method | H5: 1 | I5: EIRR | J5: 0.12 | K5: Debt | L5: 0 | M5: Inflation | N5: 0 | O5: =144.339515613562*(1/4) -> 36.0848789 | P5: =144.544508997169*(1/4) -> 36.13612725 | Q5: =141.941541026919*(1/4) -> 35.48538526 | R5: =147.826532846382*(1/4) -> 36.95663321 | S5: =123.164824639679*(1/4) -> 30.79120616 | T5: =502.682867006707*(1/4) -> 125.6707168 | U5: =370.101437999503*(1/4) -> 92.5253595 | V5: =511.211532786233*(1/4) -> 127.8028832 | W5: =522.363376290218*(1/4) -> 130.5908441
G6: Lazard Method, Lower Cost of Capital | H6: 2 | I6: EIRR | J6: 0.07 | K6: Debt | L6: 0 | M6: Inflation | N6: 0 | O6: =104.176287372841*(1/4) -> 26.04407184 | P6: =102.289631553317*(1/4) -> 25.57240789 | Q6: =100.552755437664*(1/4) -> 25.13818886 | R6: =104.197100286637*(1/4) -> 26.04927507 | S6: =86.931735397224*(1/4) -> 21.73293385 | T6: =313.408472073663*(1/4) -> 78.35211802 | U6: =345.24693386771*(1/4) -> 86.31173347 | V6: =486.35702865444*(1/4) -> 121.5892572 | W6: =362.78290796714*(1/4) -> 90.69572699
G7: Lazard Method, Including Debt | H7: 3 | I7: EIRR | J7: 0.07 | K7: Debt | L7: 0.8 | M7: Inflation | N7: 0 | O7: =85.5157797506132*(1/4) -> 21.37894494 | P7: =89.5313878018299*(1/4) -> 22.38284695 | Q7: =88.0544762955558*(1/4) -> 22.01361907 | R7: =91.0299054223077*(1/4) -> 22.75747636 | S7: =75.9950221647896*(1/4) -> 18.99875554 | T7: =254.552694357294*(1/4) -> 63.63817359 | U7: =338.1483205671*(1/4) -> 84.53708014 | V7: =479.25841535383*(1/4) -> 119.8146038 | W7: =313.823343027035*(1/4) -> 78.45583576
G8: Real LCOE with Inflation Correction | H8: 4 | I8: EIRR | J8: 0.07 | K8: Debt | L8: 0.8 | M8: Inflation | N8: 0.02 | O8: =74.1384031627732*(1/4) -> 18.53460079 | P8: =76.2971425336991*(1/4) -> 19.07428563 | Q8: =75.0927573483141*(1/4) -> 18.77318934 | R8: =77.3601515878817*(1/4) -> 19.3400379 | S8: =64.6440567829335*(1/4) -> 16.1610142 | T8: =194.560655216318*(1/4) -> 48.6401638 | U8: =330.168566937851*(1/4) -> 82.54214173 | V8: =471.278661724581*(1/4) -> 117.8196654 | W8: =263.609129703496*(1/4) -> 65.90228243
G9: Country Cost of Capital, Real LCOE | H9: 5 | I9: EIRR | J9: 0.055 | K9: Debt | L9: 0.8 | M9: Inflation | N9: 0.02 | O9: =72.0799946796777*(1/4) -> 18.01999867 | P9: =73.7093935943073*(1/4) -> 18.4273484 | Q9: =72.5600058679029*(1/4) -> 18.14000147 | R9: =74.6804988848284*(1/4) -> 18.67012472 | S9: =62.4208453515319*(1/4) -> 15.60521134 | T9: =176.179631123589*(1/4) -> 44.04490778 | U9: =328.602852492691*(1/4) -> 82.15071312 | V9: =469.712947279421*(1/4) -> 117.4282368 | W9: =249.021115130504*(1/4) -> 62.25527878
I13: LCOE | J13: ='Input C'!F109 -> 37.74351386 | K13: 1300 | L13: 1400 | M13: 1500 | N13: 1600
J14: 0.16
J15: 0.165
J16: 0.17
J17: 0.175
J18: 0.18
J19: 0.185
J20: 0.19
J21: 0.195
O23: Project | P23: 5
M25: High IRR | N25: =INDEX(O5:X5,$P$23) -> 30.79120616
M26: Lower IRR | N26: =INDEX(O6:X6,$P$23) -> 21.73293385
M27: Debt | N27: =INDEX(O7:X7,$P$23) -> 18.99875554
M28: Inflation | N28: =INDEX(O8:X8,$P$23) -> 16.1610142
M29: Inflation and Low IRR | N29: =INDEX(O9:X9,$P$23) -> 15.60521134
M32: =M25 -> High IRR | N32: =N25 -> 30.79120616
M33: =M26 -> Lower IRR | N33: =N26-N25 -> -9.058272311
M34: =M27 -> Debt | N34: =N27-N26 -> -2.734178308
M35: Inflation | N35: -2.837741345
M36: Inflation and Low IRR | N36: -0.5558028579
M37: Final Case | N37: =N29 -> 15.60521134

Sheet Performance Measure
B4: Project Finance Model | F4: 0 | G4: 1 | H4: 2 | I4: 3 | J4: 4 | K4: 5 | L4: 6 | M4: 7 | N4: 8 | O4: 9 | P4: 10 | Q4: 11 | R4: 12 | S4: 13 | T4: 14 | U4: 15 | V4: 16 | W4: 17 | X4: 18 | Y4: 19 | Z4: 20 | AA4: 21 | AB4: 22 | AC4: 23 | AD4: 24 | AE4: 25 | AF4: 26 | AG4: 27 | AH4: 28 | AI4: 29 | AJ4: 30
D5: EBITDA in FM | G5: 100 | H5: =G5*1.015 -> 101.5 | I5: =H5*1.015 -> 103.0225 | J5: 104.5678375 | K5: 106.1363551 | L5: 107.7284004 | M5: 109.3443264 | N5: 110.9844913 | O5: 112.6492587 | P5: 114.3389975 | Q5: 116.0540825 | R5: 117.7948937 | S5: 119.5618171 | T5: 121.3552444 | U5: 123.1755731 | V5: 125.0232067 | W5: 126.8985548 | X5: 128.8020331 | Y5: 130.7340636 | Z5: 132.6950745 | AA5: 134.6855007 | AB5: 136.7057832 | AC5: 138.7563699 | AD5: 140.8377155 | AE5: 142.9502812 | AF5: 145.0945354 | AG5: 147.2709534 | AH5: 149.4800177 | AI5: 151.722218 | AJ5: 153.9980513
D6: Cap Exp | F6: 1000
D7: FCF | F7: =F5-F6 -> -1000 | G7: =G5-G6 -> 100 | H7: 101.5 | I7: 103.0225 | J7: 104.5678375 | K7: 106.1363551 | L7: 107.7284004 | M7: 109.3443264 | N7: 110.9844913 | O7: 112.6492587 | P7: 114.3389975 | Q7: 116.0540825 | R7: 117.7948937 | S7: 119.5618171 | T7: 121.3552444 | U7: 123.1755731 | V7: 125.0232067 | W7: 126.8985548 | X7: 128.8020331 | Y7: 130.7340636 | Z7: 132.6950745 | AA7: 134.6855007 | AB7: 136.7057832 | AC7: 138.7563699 | AD7: 140.8377155 | AE7: 142.9502812 | AF7: 145.0945354 | AG7: 147.2709534 | AH7: 149.4800177 | AI7: 151.722218 | AJ7: 153.9980513
D8: Pre-tax Project IRR | E8: =IRR(F7:AJ7) -> 0.1077418828
D10: Tenor | E10: 25 | G10: =G4<=$E$10 -> TRUE | H10: =H4<=$E$10 -> TRUE | I10: TRUE | J10: TRUE | K10: TRUE | L10: TRUE | M10: TRUE | N10: TRUE | O10: TRUE | P10: TRUE | Q10: TRUE | R10: TRUE | S10: TRUE | T10: TRUE | U10: TRUE | V10: TRUE | W10: TRUE | X10: TRUE | Y10: TRUE | Z10: TRUE | AA10: TRUE | AB10: TRUE | AC10: TRUE | AD10: TRUE | AE10: TRUE | AF10: FALSE | AG10: FALSE | AH10: FALSE | AI10: FALSE | AJ10: FALSE
D11: Interest Rate | E11: 0.05
D12: Debt to Cap | E12: 0.8 | F12: =F6*E12 -> 800
D13: Debt Service | E13: =PMT(E11,E10,-F12) -> 56.76196584 | G13: =G10*$E$13 -> 56.76196584 | H13: =H10*$E$13 -> 56.76196584 | I13: 56.76196584 | J13: 56.76196584 | K13: 56.76196584 | L13: 56.76196584 | M13: 56.76196584 | N13: 56.76196584 | O13: 56.76196584 | P13: 56.76196584 | Q13: 56.76196584 | R13: 56.76196584 | S13: 56.76196584 | T13: 56.76196584 | U13: 56.76196584 | V13: 56.76196584 | W13: 56.76196584 | X13: 56.76196584 | Y13: 56.76196584 | Z13: 56.76196584 | AA13: 56.76196584 | AB13: 56.76196584 | AC13: 56.76196584 | AD13: 56.76196584 | AE13: 56.76196584 | AF13: 0 | AG13: 0 | AH13: 0 | AI13: 0 | AJ13: 0
D15: Debt Cash Flow | F15: =F13-F12 -> -800 | G15: =G13-G12 -> 56.76196584 | H15: 56.76196584 | I15: 56.76196584 | J15: 56.76196584 | K15: 56.76196584 | L15: 56.76196584 | M15: 56.76196584 | N15: 56.76196584 | O15: 56.76196584 | P15: 56.76196584 | Q15: 56.76196584 | R15: 56.76196584 | S15: 56.76196584 | T15: 56.76196584 | U15: 56.76196584 | V15: 56.76196584 | W15: 56.76196584 | X15: 56.76196584 | Y15: 56.76196584 | Z15: 56.76196584 | AA15: 56.76196584 | AB15: 56.76196584 | AC15: 56.76196584 | AD15: 56.76196584 | AE15: 56.76196584 | AF15: 0 | AG15: 0 | AH15: 0 | AI15: 0 | AJ15: 0
D16: Debt IRR | E16: =IFERROR(IRR(F15:AJ15),FALSE) -> 0.05
D18: Equity Paid | F18: =F6-F12 -> 200 | G18: =G6-G12 -> 0 | H18: 0 | I18: 0 | J18: 0 | K18: 0 | L18: 0 | M18: 0 | N18: 0 | O18: 0 | P18: 0 | Q18: 0 | R18: 0 | S18: 0 | T18: 0 | U18: 0 | V18: 0 | W18: 0 | X18: 0 | Y18: 0 | Z18: 0 | AA18: 0 | AB18: 0 | AC18: 0 | AD18: 0 | AE18: 0 | AF18: 0 | AG18: 0 | AH18: 0 | AI18: 0 | AJ18: 0
D19: Dividend | F19: =F5-F13 -> 0 | G19: =G5-G13 -> 43.23803416 | H19: 44.73803416 | I19: 46.26053416 | J19: 47.80587166 | K19: 49.37438922 | L19: 50.96643455 | M19: 52.58236055 | N19: 54.22252545 | O19: 55.88729282 | P19: 57.5770317 | Q19: 59.29211666 | R19: 61.0329279 | S19: 62.79985131 | T19: 64.59327856 | U19: 66.41360723 | V19: 68.26124083 | W19: 70.13658893 | X19: 72.04006725 | Y19: 73.97209774 | Z19: 75.9331087 | AA19: 77.92353482 | AB19: 79.94381733 | AC19: 81.99440407 | AD19: 84.07574962 | AE19: 86.18831535 | AF19: 145.0945354 | AG19: 147.2709534 | AH19: 149.4800177 | AI19: 151.722218 | AJ19: 153.9980513
D21: Equity CF | F21: =F12-F6 -> -200 | G21: =G5-G13 -> 43.23803416 | H21: =H5-H13 -> 44.73803416 | I21: 46.26053416 | J21: 47.80587166 | K21: 49.37438922 | L21: 50.96643455 | M21: 52.58236055 | N21: 54.22252545 | O21: 55.88729282 | P21: 57.5770317 | Q21: 59.29211666 | R21: 61.0329279 | S21: 62.79985131 | T21: 64.59327856 | U21: 66.41360723 | V21: 68.26124083 | W21: 70.13658893 | X21: 72.04006725 | Y21: 73.97209774 | Z21: 75.9331087 | AA21: 77.92353482 | AB21: 79.94381733 | AC21: 81.99440407 | AD21: 84.07574962 | AE21: 86.18831535 | AF21: 145.0945354 | AG21: 147.2709534 | AH21: 149.4800177 | AI21: 151.722218 | AJ21: 153.9980513
D22: Equity IRR | E22: =IRR(F21:AJ21) -> 0.2483655383
D24: Opening Balance | F24: =E27 -> 0 | G24: =F27 -> 800 | H24: 783.2380342 | I24: 765.63797 | J24: 747.1579027 | K24: 727.753832 | L24: 707.3795577 | M24: 685.9865698 | N24: 663.5239324 | O24: 639.9381632 | P24: 615.1731055 | Q24: 589.169795 | R24: 561.8663189 | S24: 533.197669 | T24: 503.0955866 | U24: 471.4884001 | V24: 438.3008543 | W24: 403.4539311 | X24: 366.8646619 | Y24: 328.4459291 | Z24: 288.1062597 | AA24: 245.7496069 | AB24: 201.2751214 | AC24: 154.5769116 | AD24: 105.5437914 | AE24: 54.05901509 | AF24: 0 | AG24: 0 | AH24: 0 | AI24: 0 | AJ24: 0
D25: Add: Debt Issued | F25: =F12 -> 800 | G25: =G12 -> 0 | H25: 0 | I25: 0 | J25: 0 | K25: 0 | L25: 0 | M25: 0 | N25: 0 | O25: 0 | P25: 0 | Q25: 0 | R25: 0 | S25: 0 | T25: 0 | U25: 0 | V25: 0 | W25: 0 | X25: 0 | Y25: 0 | Z25: 0 | AA25: 0 | AB25: 0 | AC25: 0 | AD25: 0 | AE25: 0 | AF25: 0 | AG25: 0 | AH25: 0 | AI25: 0 | AJ25: 0
D26: Less: Debt Repaid | F26: =F13-F28 -> 0 | G26: =G13-G28 -> 16.76196584 | H26: 17.60006413 | I26: 18.48006734 | J26: 19.4040707 | K26: 20.37427424 | L26: 21.39298795 | M26: 22.46263735 | N26: 23.58576922 | O26: 24.76505768 | P26: 26.00331056 | Q26: 27.30347609 | R26: 28.66864989 | S26: 30.10208239 | T26: 31.60718651 | U26: 33.18754583 | V26: 34.84692313 | W26: 36.58926928 | X26: 38.41873275 | Y26: 40.33966938 | Z26: 42.35665285 | AA26: 44.4744855 | AB26: 46.69820977 | AC26: 49.03312026 | AD26: 51.48477627 | AE26: 54.05901509 | AF26: 0 | AG26: 0 | AH26: 0 | AI26: 0 | AJ26: 0
D27: Closing Balance | F27: =F24+F25-F26 -> 800 | G27: =G24+G25-G26 -> 783.2380342 | H27: 765.63797 | I27: 747.1579027 | J27: 727.753832 | K27: 707.3795577 | L27: 685.9865698 | M27: 663.5239324 | N27: 639.9381632 | O27: 615.1731055 | P27: 589.169795 | Q27: 561.8663189 | R27: 533.197669 | S27: 503.0955866 | T27: 471.4884001 | U27: 438.3008543 | V27: 403.4539311 | W27: 366.8646619 | X27: 328.4459291 | Y27: 288.1062597 | Z27: 245.7496069 | AA27: 201.2751214 | AB27: 154.5769116 | AC27: 105.5437914 | AD27: 54.05901509 | AE27: 0 | AF27: 0 | AG27: 0 | AH27: 0 | AI27: 0 | AJ27: 0
D28: Interest | E28: =E11 -> 0.05 | F28: =F24*$E$28 -> 0 | G28: =G24*$E$28 -> 40 | H28: 39.16190171 | I28: 38.2818985 | J28: 37.35789513 | K28: 36.3876916 | L28: 35.36897789 | M28: 34.29932849 | N28: 33.17619662 | O28: 31.99690816 | P28: 30.75865528 | Q28: 29.45848975 | R28: 28.09331594 | S28: 26.65988345 | T28: 25.15477933 | U28: 23.57442001 | V28: 21.91504271 | W28: 20.17269656 | X28: 18.34323309 | Y28: 16.42229646 | Z28: 14.40531299 | AA28: 12.28748034 | AB28: 10.06375607 | AC28: 7.728845581 | AD28: 5.277189568 | AE28: 2.702950754 | AF28: 0 | AG28: 0 | AH28: 0 | AI28: 0 | AJ28: 0
D30: Value of Project at IRR | E30: =E8 -> 0.1077418828 | F30: =NPV($E$30,G5:AJ5) -> 1000 | G30: =NPV($E$30,H5:AK5) -> 1007.741883 | H30: 1014.817891 | I30: 1021.133781 | J30: 1026.584819 | K30: 1031.054646 | L30: 1034.414014 | M30: 1036.519401 | N30: 1037.211462 | O30: 1036.313319 | P30: 1033.628669 | Q30: 1028.939686 | R30: 1022.004691 | S30: 1012.555583 | T30: 1000.294984 | U30: 984.8930758 | V30: 965.9841035 | W30: 943.1624948 | X30: 915.9785647 | Y30: 883.9337562 | Z30: 846.4753689 | AA30: 802.9907182 | AB30: 752.8006668 | AC30: 695.1524581 | AD30: 629.2117773 | AE30: 554.0539577 | AF30: 468.6542389 | AG30: 371.8769755 | AH30: 262.4636833 | AI30: 139.0197966 | AJ30: 0
D31: Change in Value | G31: =F30-G30 -> -7.741882785 | H31: =G30-H30 -> -7.076007812 | I31: -6.315890216 | J31: -5.45103862 | K31: -4.469826221 | L31: -3.359368388 | M31: -2.105387057 | N31: -0.692060527 | O31: 0.8981429381 | P31: 2.684649429 | Q31: 4.688983576 | R31: 6.934994733 | S31: 9.449107529 | T31: 12.26059942 | U31: 15.40190815 | V31: 18.90897233 | W31: 22.82160871 | X31: 27.18393013 | Y31: 32.04480843 | Z31: 37.45838738 | AA31: 43.48465068 | AB31: 50.19005133 | AC31: 57.6482087 | AD31: 65.9406808 | AE31: 75.15781963 | AF31: 85.39971884 | AG31: 96.77726337 | AH31: 109.4132922 | AI31: 123.4438866 | AJ31: 139.0197966
D32: Economic Depreciation=Change in Value
D33: Flag for Using Economic Depreciation | E33: TRUE
B35: Financial Statements
C36: Profit and Loss
D37: Revenue
D38: Expense
D39: EBITDA | G39: =G5 -> 100 | H39: =H5 -> 101.5 | I39: 103.0225 | J39: 104.5678375 | K39: 106.1363551 | L39: 107.7284004 | M39: 109.3443264 | N39: 110.9844913 | O39: 112.6492587 | P39: 114.3389975 | Q39: 116.0540825 | R39: 117.7948937 | S39: 119.5618171 | T39: 121.3552444 | U39: 123.1755731 | V39: 125.0232067 | W39: 126.8985548 | X39: 128.8020331 | Y39: 130.7340636 | Z39: 132.6950745 | AA39: 134.6855007 | AB39: 136.7057832 | AC39: 138.7563699 | AD39: 140.8377155 | AE39: 142.9502812 | AF39: 145.0945354 | AG39: 147.2709534 | AH39: 149.4800177 | AI39: 151.722218 | AJ39: 153.9980513
D40: Depreciation and Amort | G40: =IF($E$33,G31,$F$6/30) -> -7.741882785 | H40: =IF($E$33,H31,$F$6/30) -> -7.076007812 | I40: -6.315890216 | J40: -5.45103862 | K40: -4.469826221 | L40: -3.359368388 | M40: -2.105387057 | N40: -0.692060527 | O40: 0.8981429381 | P40: 2.684649429 | Q40: 4.688983576 | R40: 6.934994733 | S40: 9.449107529 | T40: 12.26059942 | U40: 15.40190815 | V40: 18.90897233 | W40: 22.82160871 | X40: 27.18393013 | Y40: 32.04480843 | Z40: 37.45838738 | AA40: 43.48465068 | AB40: 50.19005133 | AC40: 57.6482087 | AD40: 65.9406808 | AE40: 75.15781963 | AF40: 85.39971884 | AG40: 96.77726337 | AH40: 109.4132922 | AI40: 123.4438866 | AJ40: 139.0197966
D41: EBIT | G41: =G39-G40 -> 107.7418828 | H41: =H39-H40 -> 108.5760078 | I41: 109.3383902 | J41: 110.0188761 | K41: 110.6061813 | L41: 111.0877688 | M41: 111.4497135 | N41: 111.6765518 | O41: 111.7511157 | P41: 111.6543481 | Q41: 111.3650989 | R41: 110.859899 | S41: 110.1127096 | T41: 109.094645 | U41: 107.7736649 | V41: 106.1142343 | W41: 104.0769461 | X41: 101.618103 | Y41: 98.68925515 | Z41: 95.23668715 | AA41: 91.20084997 | AB41: 86.51573183 | AC41: 81.10816121 | AD41: 74.89703466 | AE41: 67.79246156 | AF41: 59.69481657 | AG41: 50.49369007 | AH41: 40.0667255 | AI41: 28.2783314 | AJ41: 14.97825463
D42: Interest Expense | G42: =G28 -> 40 | H42: =H28 -> 39.16190171 | I42: 38.2818985 | J42: 37.35789513 | K42: 36.3876916 | L42: 35.36897789 | M42: 34.29932849 | N42: 33.17619662 | O42: 31.99690816 | P42: 30.75865528 | Q42: 29.45848975 | R42: 28.09331594 | S42: 26.65988345 | T42: 25.15477933 | U42: 23.57442001 | V42: 21.91504271 | W42: 20.17269656 | X42: 18.34323309 | Y42: 16.42229646 | Z42: 14.40531299 | AA42: 12.28748034 | AB42: 10.06375607 | AC42: 7.728845581 | AD42: 5.277189568 | AE42: 2.702950754 | AF42: 0 | AG42: 0 | AH42: 0 | AI42: 0 | AJ42: 0
D43: EBT | G43: =G41-G42 -> 67.74188278 | H43: =H41-H42 -> 69.4141061 | I43: 71.05649171 | J43: 72.66098099 | K43: 74.21848968 | L43: 75.71879089 | M43: 77.15038496 | N43: 78.50035519 | O43: 79.75420756 | P43: 80.89569283 | Q43: 81.90660918 | R43: 82.76658306 | S43: 83.45282617 | T43: 83.93986565 | U43: 84.19924491 | V43: 84.19919162 | W43: 83.9042495 | X43: 83.27486987 | Y43: 82.26695869 | Z43: 80.83137417 | AA43: 78.91336963 | AB43: 76.45197577 | AC43: 73.37931563 | AD43: 69.61984509 | AE43: 65.08951081 | AF43: 59.69481657 | AG43: 50.49369007 | AH43: 40.0667255 | AI43: 28.2783314 | AJ43: 14.97825463
D44: Tax
D45: Net Income | G45: =G43-G44 -> 67.74188278 | H45: =H43-H44 -> 69.4141061 | I45: 71.05649171 | J45: 72.66098099 | K45: 74.21848968 | L45: 75.71879089 | M45: 77.15038496 | N45: 78.50035519 | O45: 79.75420756 | P45: 80.89569283 | Q45: 81.90660918 | R45: 82.76658306 | S45: 83.45282617 | T45: 83.93986565 | U45: 84.19924491 | V45: 84.19919162 | W45: 83.9042495 | X45: 83.27486987 | Y45: 82.26695869 | Z45: 80.83137417 | AA45: 78.91336963 | AB45: 76.45197577 | AC45: 73.37931563 | AD45: 69.61984509 | AE45: 65.08951081 | AF45: 59.69481657 | AG45: 50.49369007 | AH45: 40.0667255 | AI45: 28.2783314 | AJ45: 14.97825463
C47: Cash Flow
D48: Cash from Operations
D49: EBITDA | G49: =G39 -> 100 | H49: =H39 -> 101.5 | I49: 103.0225 | J49: 104.5678375 | K49: 106.1363551 | L49: 107.7284004 | M49: 109.3443264 | N49: 110.9844913 | O49: 112.6492587 | P49: 114.3389975 | Q49: 116.0540825 | R49: 117.7948937 | S49: 119.5618171 | T49: 121.3552444 | U49: 123.1755731 | V49: 125.0232067 | W49: 126.8985548 | X49: 128.8020331 | Y49: 130.7340636 | Z49: 132.6950745 | AA49: 134.6855007 | AB49: 136.7057832 | AC49: 138.7563699 | AD49: 140.8377155 | AE49: 142.9502812 | AF49: 145.0945354 | AG49: 147.2709534 | AH49: 149.4800177 | AI49: 151.722218 | AJ49: 153.9980513
D50: Less Taxes | G50: =G44 -> 0 | H50: =H44 -> 0 | I50: 0 | J50: 0 | K50: 0 | L50: 0 | M50: 0 | N50: 0 | O50: 0 | P50: 0 | Q50: 0 | R50: 0 | S50: 0 | T50: 0 | U50: 0 | V50: 0 | W50: 0 | X50: 0 | Y50: 0 | Z50: 0 | AA50: 0 | AB50: 0 | AC50: 0 | AD50: 0 | AE50: 0 | AF50: 0 | AG50: 0 | AH50: 0 | AI50: 0 | AJ50: 0
D51: CFADS | G51: =G49-G50 -> 100 | H51: =H49-H50 -> 101.5 | I51: 103.0225 | J51: 104.5678375 | K51: 106.1363551 | L51: 107.7284004 | M51: 109.3443264 | N51: 110.9844913 | O51: 112.6492587 | P51: 114.3389975 | Q51: 116.0540825 | R51: 117.7948937 | S51: 119.5618171 | T51: 121.3552444 | U51: 123.1755731 | V51: 125.0232067 | W51: 126.8985548 | X51: 128.8020331 | Y51: 130.7340636 | Z51: 132.6950745 | AA51: 134.6855007 | AB51: 136.7057832 | AC51: 138.7563699 | AD51: 140.8377155 | AE51: 142.9502812 | AF51: 145.0945354 | AG51: 147.2709534 | AH51: 149.4800177 | AI51: 151.722218 | AJ51: 153.9980513
D53: Cash from Investing
D54: Capital Expenditure | F54: =-F6 -> -1000 | G54: =-G6 -> 0 | H54: 0 | I54: 0 | J54: 0 | K54: 0 | L54: 0 | M54: 0 | N54: 0 | O54: 0 | P54: 0 | Q54: 0 | R54: 0 | S54: 0 | T54: 0 | U54: 0 | V54: 0 | W54: 0 | X54: 0 | Y54: 0 | Z54: 0 | AA54: 0 | AB54: 0 | AC54: 0 | AD54: 0 | AE54: 0 | AF54: 0 | AG54: 0 | AH54: 0 | AI54: 0 | AJ54: 0
D56: Cash from Finacing
D57: Debt Raised | F57: =F12 -> 800 | G57: =G12 -> 0 | H57: 0 | I57: 0 | J57: 0 | K57: 0 | L57: 0 | M57: 0 | N57: 0 | O57: 0 | P57: 0 | Q57: 0 | R57: 0 | S57: 0 | T57: 0 | U57: 0 | V57: 0 | W57: 0 | X57: 0 | Y57: 0 | Z57: 0 | AA57: 0 | AB57: 0 | AC57: 0 | AD57: 0 | AE57: 0 | AF57: 0 | AG57: 0 | AH57: 0 | AI57: 0 | AJ57: 0
D58: Equity Paid in Capital | F58: =F18 -> 200 | G58: =G18 -> 0 | H58: 0 | I58: 0 | J58: 0 | K58: 0 | L58: 0 | M58: 0 | N58: 0 | O58: 0 | P58: 0 | Q58: 0 | R58: 0 | S58: 0 | T58: 0 | U58: 0 | V58: 0 | W58: 0 | X58: 0 | Y58: 0 | Z58: 0 | AA58: 0 | AB58: 0 | AC58: 0 | AD58: 0 | AE58: 0 | AF58: 0 | AG58: 0 | AH58: 0 | AI58: 0 | AJ58: 0
D59: Less: Interest | G59: =-G28 -> -40 | H59: =-H28 -> -39.16190171 | I59: -38.2818985 | J59: -37.35789513 | K59: -36.3876916 | L59: -35.36897789 | M59: -34.29932849 | N59: -33.17619662 | O59: -31.99690816 | P59: -30.75865528 | Q59: -29.45848975 | R59: -28.09331594 | S59: -26.65988345 | T59: -25.15477933 | U59: -23.57442001 | V59: -21.91504271 | W59: -20.17269656 | X59: -18.34323309 | Y59: -16.42229646 | Z59: -14.40531299 | AA59: -12.28748034 | AB59: -10.06375607 | AC59: -7.728845581 | AD59: -5.277189568 | AE59: -2.702950754 | AF59: 0 | AG59: 0 | AH59: 0 | AI59: 0 | AJ59: 0
D60: Less: Repayment | G60: =-G26 -> -16.76196584 | H60: =-H26 -> -17.60006413 | I60: -18.48006734 | J60: -19.4040707 | K60: -20.37427424 | L60: -21.39298795 | M60: -22.46263735 | N60: -23.58576922 | O60: -24.76505768 | P60: -26.00331056 | Q60: -27.30347609 | R60: -28.66864989 | S60: -30.10208239 | T60: -31.60718651 | U60: -33.18754583 | V60: -34.84692313 | W60: -36.58926928 | X60: -38.41873275 | Y60: -40.33966938 | Z60: -42.35665285 | AA60: -44.4744855 | AB60: -46.69820977 | AC60: -49.03312026 | AD60: -51.48477627 | AE60: -54.05901509 | AF60: 0 | AG60: 0 | AH60: 0 | AI60: 0 | AJ60: 0
D61: Less: Dividend | G61: =-G21 -> -43.23803416 | H61: =-H21 -> -44.73803416 | I61: -46.26053416 | J61: -47.80587166 | K61: -49.37438922 | L61: -50.96643455 | M61: -52.58236055 | N61: -54.22252545 | O61: -55.88729282 | P61: -57.5770317 | Q61: -59.29211666 | R61: -61.0329279 | S61: -62.79985131 | T61: -64.59327856 | U61: -66.41360723 | V61: -68.26124083 | W61: -70.13658893 | X61: -72.04006725 | Y61: -73.97209774 | Z61: -75.9331087 | AA61: -77.92353482 | AB61: -79.94381733 | AC61: -81.99440407 | AD61: -84.07574962 | AE61: -86.18831535 | AF61: -145.0945354 | AG61: -147.2709534 | AH61: -149.4800177 | AI61: -151.722218 | AJ61: -153.9980513
D62: Cash from Financing | F62: =SUM(F57:F61) -> 1000 | G62: =SUM(G57:G61) -> -100 | H62: -101.5 | I62: -103.0225 | J62: -104.5678375 | K62: -106.1363551 | L62: -107.7284004 | M62: -109.3443264 | N62: -110.9844913 | O62: -112.6492587 | P62: -114.3389975 | Q62: -116.0540825 | R62: -117.7948937 | S62: -119.5618171 | T62: -121.3552444 | U62: -123.1755731 | V62: -125.0232067 | W62: -126.8985548 | X62: -128.8020331 | Y62: -130.7340636 | Z62: -132.6950745 | AA62: -134.6855007 | AB62: -136.7057832 | AC62: -138.7563699 | AD62: -140.8377155 | AE62: -142.9502812 | AF62: -145.0945354 | AG62: -147.2709534 | AH62: -149.4800177 | AI62: -151.722218 | AJ62: -153.9980513
D64: Net Cash Flow | F64: =F51+F54+F62 -> 0 | G64: =G51+G54+G62 -> 0 | H64: 0 | I64: 0 | J64: 0 | K64: 0 | L64: 0 | M64: 0 | N64: 0 | O64: 0 | P64: 0 | Q64: 0 | R64: 0 | S64: 0 | T64: 0 | U64: 0 | V64: 0 | W64: 0 | X64: 0 | Y64: 0 | Z64: 0 | AA64: 0 | AB64: 0 | AC64: 0 | AD64: 0 | AE64: 0 | AF64: 0 | AG64: 0 | AH64: 0 | AI64: 0 | AJ64: 0
C66: Balance Sheet
D67: Assets
D69: PPE | F69: =E67-F54 -> 1000 | G69: =F69-G54 -> 1000 | H69: 1000 | I69: 1000 | J69: 1000 | K69: 1000 | L69: 1000 | M69: 1000 | N69: 1000 | O69: 1000 | P69: 1000 | Q69: 1000 | R69: 1000 | S69: 1000 | T69: 1000 | U69: 1000 | V69: 1000 | W69: 1000 | X69: 1000 | Y69: 1000 | Z69: 1000 | AA69: 1000 | AB69: 1000 | AC69: 1000 | AD69: 1000 | AE69: 1000 | AF69: 1000 | AG69: 1000 | AH69: 1000 | AI69: 1000 | AJ69: 1000
D70: Accumulated Dep | F70: =E70+F40 -> 0 | G70: =F70+G40 -> -7.741882785 | H70: -14.8178906 | I70: -21.13378081 | J70: -26.58481943 | K70: -31.05464565 | L70: -34.41401404 | M70: -36.5194011 | N70: -37.21146163 | O70: -36.31331869 | P70: -33.62866926 | Q70: -28.93968568 | R70: -22.00469095 | S70: -12.55558342 | T70: -0.2949840001 | U70: 15.10692415 | V70: 34.01589649 | W70: 56.8375052 | X70: 84.02143532 | Y70: 116.0662438 | Z70: 153.5246311 | AA70: 197.0092818 | AB70: 247.1993332 | AC70: 304.8475419 | AD70: 370.7882227 | AE70: 445.9460423 | AF70: 531.3457611 | AG70: 628.1230245 | AH70: 737.5363167 | AI70: 860.9802034 | AJ70: 1000
D71: Total Assets | F71: =F69-F70 -> 1000 | G71: =G69-G70 -> 1007.741883 | H71: 1014.817891 | I71: 1021.133781 | J71: 1026.584819 | K71: 1031.054646 | L71: 1034.414014 | M71: 1036.519401 | N71: 1037.211462 | O71: 1036.313319 | P71: 1033.628669 | Q71: 1028.939686 | R71: 1022.004691 | S71: 1012.555583 | T71: 1000.294984 | U71: 984.8930758 | V71: 965.9841035 | W71: 943.1624948 | X71: 915.9785647 | Y71: 883.9337562 | Z71: 846.4753689 | AA71: 802.9907182 | AB71: 752.8006668 | AC71: 695.1524581 | AD71: 629.2117773 | AE71: 554.0539577 | AF71: 468.6542389 | AG71: 371.8769755 | AH71: 262.4636833 | AI71: 139.0197966 | AJ71: 0
D73: Liab and Capital
D75: Debt | F75: =F27 -> 800 | G75: =G27 -> 783.2380342 | H75: 765.63797 | I75: 747.1579027 | J75: 727.753832 | K75: 707.3795577 | L75: 685.9865698 | M75: 663.5239324 | N75: 639.9381632 | O75: 615.1731055 | P75: 589.169795 | Q75: 561.8663189 | R75: 533.197669 | S75: 503.0955866 | T75: 471.4884001 | U75: 438.3008543 | V75: 403.4539311 | W75: 366.8646619 | X75: 328.4459291 | Y75: 288.1062597 | Z75: 245.7496069 | AA75: 201.2751214 | AB75: 154.5769116 | AC75: 105.5437914 | AD75: 54.05901509 | AE75: 0 | AF75: 0 | AG75: 0 | AH75: 0 | AI75: 0 | AJ75: 0
D77: Equity
D78: Opening Balance | F78: =E82 -> 0 | G78: =F82 -> 200 | H78: 224.5038486 | I78: 249.1799206 | J78: 273.9758781 | K78: 298.8309874 | L78: 323.6750879 | M78: 348.4274442 | N78: 372.9954687 | O78: 397.2732984 | P78: 421.1402131 | Q78: 444.4588743 | R78: 467.0733668 | S78: 488.8070219 | T78: 509.4599968 | U78: 528.8065839 | V78: 546.5922216 | W78: 562.5301724 | X78: 576.2978329 | Y78: 587.5326356 | Z78: 595.8274965 | AA78: 600.725762 | AB78: 601.7155968 | AC78: 598.2237552 | AD78: 589.6086668 | AE78: 575.1527623 | AF78: 554.0539577 | AG78: 468.6542389 | AH78: 371.8769755 | AI78: 262.4636833 | AJ78: 139.0197966
D79: Add: Income | F79: =F45 -> 0 | G79: =G45 -> 67.74188278 | H79: 69.4141061 | I79: 71.05649171 | J79: 72.66098099 | K79: 74.21848968 | L79: 75.71879089 | M79: 77.15038496 | N79: 78.50035519 | O79: 79.75420756 | P79: 80.89569283 | Q79: 81.90660918 | R79: 82.76658306 | S79: 83.45282617 | T79: 83.93986565 | U79: 84.19924491 | V79: 84.19919162 | W79: 83.9042495 | X79: 83.27486987 | Y79: 82.26695869 | Z79: 80.83137417 | AA79: 78.91336963 | AB79: 76.45197577 | AC79: 73.37931563 | AD79: 69.61984509 | AE79: 65.08951081 | AF79: 59.69481657 | AG79: 50.49369007 | AH79: 40.0667255 | AI79: 28.2783314 | AJ79: 14.97825463
D80: Add: Paid in Capital | F80: =F58 -> 200 | G80: =G58 -> 0 | H80: 0 | I80: 0 | J80: 0 | K80: 0 | L80: 0 | M80: 0 | N80: 0 | O80: 0 | P80: 0 | Q80: 0 | R80: 0 | S80: 0 | T80: 0 | U80: 0 | V80: 0 | W80: 0 | X80: 0 | Y80: 0 | Z80: 0 | AA80: 0 | AB80: 0 | AC80: 0 | AD80: 0 | AE80: 0 | AF80: 0 | AG80: 0 | AH80: 0 | AI80: 0 | AJ80: 0
D81: Less: Dividends | F81: =F61 -> 0 | G81: =G61 -> -43.23803416 | H81: -44.73803416 | I81: -46.26053416 | J81: -47.80587166 | K81: -49.37438922 | L81: -50.96643455 | M81: -52.58236055 | N81: -54.22252545 | O81: -55.88729282 | P81: -57.5770317 | Q81: -59.29211666 | R81: -61.0329279 | S81: -62.79985131 | T81: -64.59327856 | U81: -66.41360723 | V81: -68.26124083 | W81: -70.13658893 | X81: -72.04006725 | Y81: -73.97209774 | Z81: -75.9331087 | AA81: -77.92353482 | AB81: -79.94381733 | AC81: -81.99440407 | AD81: -84.07574962 | AE81: -86.18831535 | AF81: -145.0945354 | AG81: -147.2709534 | AH81: -149.4800177 | AI81: -151.722218 | AJ81: -153.9980513
D82: Closing | F82: =F78+F79+F80+F81 -> 200 | G82: =G78+G79+G80+G81 -> 224.5038486 | H82: 249.1799206 | I82: 273.9758781 | J82: 298.8309874 | K82: 323.6750879 | L82: 348.4274442 | M82: 372.9954687 | N82: 397.2732984 | O82: 421.1402131 | P82: 444.4588743 | Q82: 467.0733668 | R82: 488.8070219 | S82: 509.4599968 | T82: 528.8065839 | U82: 546.5922216 | V82: 562.5301724 | W82: 576.2978329 | X82: 587.5326356 | Y82: 595.8274965 | Z82: 600.725762 | AA82: 601.7155968 | AB82: 598.2237552 | AC82: 589.6086668 | AD82: 575.1527623 | AE82: 554.0539577 | AF82: 468.6542389 | AG82: 371.8769755 | AH82: 262.4636833 | AI82: 139.0197966 | AJ82: 0
D84: Total Debt and Equity | F84: =F82+F75 -> 1000 | G84: =G82+G75 -> 1007.741883 | H84: 1014.817891 | I84: 1021.133781 | J84: 1026.584819 | K84: 1031.054646 | L84: 1034.414014 | M84: 1036.519401 | N84: 1037.211462 | O84: 1036.313319 | P84: 1033.628669 | Q84: 1028.939686 | R84: 1022.004691 | S84: 1012.555583 | T84: 1000.294984 | U84: 984.8930758 | V84: 965.9841035 | W84: 943.1624948 | X84: 915.9785647 | Y84: 883.9337562 | Z84: 846.4753689 | AA84: 802.9907182 | AB84: 752.8006668 | AC84: 695.1524581 | AD84: 629.2117773 | AE84: 554.0539577 | AF84: 468.6542389 | AG84: 371.8769755 | AH84: 262.4636833 | AI84: 139.0197966 | AJ84: 0
D86: Difference | F86: =F84-F71 -> 0 | G86: =G84-G71 -> 0 | H86: 0 | I86: 0 | J86: 0 | K86: 0 | L86: 0 | M86: 0 | N86: 0 | O86: 0 | P86: 0 | Q86: 0 | R86: 0 | S86: 0 | T86: 0 | U86: 0 | V86: 0 | W86: 0 | X86: 0 | Y86: 0 | Z86: 0 | AA86: 0 | AB86: 0 | AC86: 0 | AD86: 0 | AE86: 0 | AF86: 0 | AG86: 0 | AH86: 0 | AI86: 0 | AJ86: 0
B88: Performance Ratios
D89: NOPAT | G89: =G41 -> 107.7418828 | H89: =H41 -> 108.5760078 | I89: 109.3383902 | J89: 110.0188761 | K89: 110.6061813 | L89: 111.0877688 | M89: 111.4497135 | N89: 111.6765518 | O89: 111.7511157 | P89: 111.6543481 | Q89: 111.3650989 | R89: 110.859899 | S89: 110.1127096 | T89: 109.094645 | U89: 107.7736649 | V89: 106.1142343 | W89: 104.0769461 | X89: 101.618103 | Y89: 98.68925515 | Z89: 95.23668715 | AA89: 91.20084997 | AB89: 86.51573183 | AC89: 81.10816121 | AD89: 74.89703466 | AE89: 67.79246156 | AF89: 59.69481657 | AG89: 50.49369007 | AH89: 40.0667255 | AI89: 28.2783314 | AJ89: 14.97825463
D90: Invested Capital | G90: =F84 -> 1000 | H90: =G84 -> 1007.741883 | I90: 1014.817891 | J90: 1021.133781 | K90: 1026.584819 | L90: 1031.054646 | M90: 1034.414014 | N90: 1036.519401 | O90: 1037.211462 | P90: 1036.313319 | Q90: 1033.628669 | R90: 1028.939686 | S90: 1022.004691 | T90: 1012.555583 | U90: 1000.294984 | V90: 984.8930758 | W90: 965.9841035 | X90: 943.1624948 | Y90: 915.9785647 | Z90: 883.9337562 | AA90: 846.4753689 | AB90: 802.9907182 | AC90: 752.8006668 | AD90: 695.1524581 | AE90: 629.2117773 | AF90: 554.0539577 | AG90: 468.6542389 | AH90: 371.8769755 | AI90: 262.4636833 | AJ90: 139.0197966
D91: ROIC | G91: =G89/G90 -> 0.1077418828 | H91: =H89/H90 -> 0.1077418828 | I91: 0.1077418828 | J91: 0.1077418828 | K91: 0.1077418828 | L91: 0.1077418828 | M91: 0.1077418828 | N91: 0.1077418828 | O91: 0.1077418828 | P91: 0.1077418828 | Q91: 0.1077418828 | R91: 0.1077418828 | S91: 0.1077418828 | T91: 0.1077418828 | U91: 0.1077418828 | V91: 0.1077418828 | W91: 0.1077418828 | X91: 0.1077418828 | Y91: 0.1077418828 | Z91: 0.1077418828 | AA91: 0.1077418828 | AB91: 0.1077418828 | AC91: 0.1077418828 | AD91: 0.1077418828 | AE91: 0.1077418828 | AF91: 0.1077418828 | AG91: 0.1077418828 | AH91: 0.1077418828 | AI91: 0.1077418828 | AJ91: 0.1077418828
D93: Net Income | G93: =G45 -> 67.74188278 | H93: =H45 -> 69.4141061 | I93: 71.05649171 | J93: 72.66098099 | K93: 74.21848968 | L93: 75.71879089 | M93: 77.15038496 | N93: 78.50035519 | O93: 79.75420756 | P93: 80.89569283 | Q93: 81.90660918 | R93: 82.76658306 | S93: 83.45282617 | T93: 83.93986565 | U93: 84.19924491 | V93: 84.19919162 | W93: 83.9042495 | X93: 83.27486987 | Y93: 82.26695869 | Z93: 80.83137417 | AA93: 78.91336963 | AB93: 76.45197577 | AC93: 73.37931563 | AD93: 69.61984509 | AE93: 65.08951081 | AF93: 59.69481657 | AG93: 50.49369007 | AH93: 40.0667255 | AI93: 28.2783314 | AJ93: 14.97825463
D94: Equity Capital | G94: =F82 -> 200 | H94: =G82 -> 224.5038486 | I94: 249.1799206 | J94: 273.9758781 | K94: 298.8309874 | L94: 323.6750879 | M94: 348.4274442 | N94: 372.9954687 | O94: 397.2732984 | P94: 421.1402131 | Q94: 444.4588743 | R94: 467.0733668 | S94: 488.8070219 | T94: 509.4599968 | U94: 528.8065839 | V94: 546.5922216 | W94: 562.5301724 | X94: 576.2978329 | Y94: 587.5326356 | Z94: 595.8274965 | AA94: 600.725762 | AB94: 601.7155968 | AC94: 598.2237552 | AD94: 589.6086668 | AE94: 575.1527623 | AF94: 554.0539577 | AG94: 468.6542389 | AH94: 371.8769755 | AI94: 262.4636833 | AJ94: 139.0197966
D95: ROE | G95: =G93/G94 -> 0.3387094139 | H95: =H93/H94 -> 0.3091889361 | I95: 0.2851613868 | J95: 0.26520941 | K95: 0.2483627629 | L95: 0.233934565 | M95: 0.2214245354 | N95: 0.2104592731 | O95: 0.2007540096 | P95: 0.1920873151 | Q95: 0.1842838875 | R95: 0.1772025317 | S95: 0.1707275518 | T95: 0.1647624272 | U95: 0.1592250314 | V95: 0.1540438892 | W95: 0.1491551096 | X95: 0.1444997102 | Y95: 0.1400210877 | Z95: 0.1356623765 | AA95: 0.1313633851 | AB95: 0.1270566629 | AC95: 0.1226619889 | AD95: 0.1180780559 | AE95: 0.1131690832 | AF95: 0.1077418828 | AG95: 0.1077418828 | AH95: 0.1077418828 | AI95: 0.1077418828 | AJ95: 0.1077418828
D97: Discount Factor | E97: =E8 -> 0.1077418828 | G97: =1/(1+$E$97)^G4 -> 0.9027373755 | H97: =1/(1+$E$97)^H4 -> 0.8149347691 | I97: 0.7356720747 | J97: 0.6641186779 | K97: 0.5995247523 | L97: 0.5412134015 | M97: 0.4885735656 | N97: 0.4410536184 | O97: 0.3981555859 | P97: 0.3594299287 | Q97: 0.3244708305 | R97: 0.2929119459 | S97: 0.2644225613 | T97: 0.238704129 | U97: 0.215487139 | V97: 0.1945282943 | W97: 0.1756079618 | X97: 0.1585278706 | Y97: 0.1431090338 | Z97: 0.1291898736 | AA97: 0.1166245275 | AB97: 0.1052813198 | AC97: 0.09504138236 | AD97: 0.08579740808 | AE97: 0.07745252699 | AF97: 0.06991929094 | AG97: 0.0631187572 | AH97: 0.05697966122 | AI97: 0.05143766983 | AJ97: 0.04643470706
D98: PV of Invested Capital | E98: =SUM(G98:XFD98) -> 8663.127869 | G98: =G97*F84 -> 902.7373755 | H98: =H97*G84 -> 821.2438986 | I98: 746.573183 | J98: 678.1540165 | K98: 615.4630096 | L98: 558.0205919 | M98: 505.3873432 | N98: 457.1606324 | O98: 412.9715372 | P98: 372.4820222 | Q98: 335.3823527 | R98: 301.3887256 | S98: 270.2410981 | T98: 241.7011986 | U98: 215.5507042 | V98: 191.5895701 | W98: 169.6344996 | X98: 149.5175419 | Y98: 131.0848074 | Z98: 114.1952903 | AA98: 98.7197899 | AB98: 84.53992263 | AC98: 71.54721602 | AD98: 59.64227913 | AE98: 48.73404217 | AF98: 38.73905987 | AG98: 29.58087311 | AH98: 21.18942408 | AI98: 13.50052028 | AJ98: 6.455343533
D99: Weighting for ROIC | E99: =SUM(G99:XFD99) -> 1 | G99: =G98/$E$98 -> 0.104204554 | H99: =H98/$E$98 -> 0.0947976194 | I99: 0.08617824812 | J99: 0.07828050408 | K99: 0.07104397152 | L99: 0.06441329278 | M99: 0.05833774484 | N99: 0.05277085128 | O99: 0.04767002674 | P99: 0.04299625122 | Q99: 0.03871377149 | R99: 0.03478982766 | S99: 0.03119440255 | T99: 0.02789999205 | U99: 0.02488139474 | V99: 0.02211551913 | W99: 0.01958120694 | X99: 0.01725907134 | Y99: 0.01513134856 | Z99: 0.01318176206 | AA99: 0.01139539799 | AB99: 0.009758591112 | AC99: 0.008258820266 | AD99: 0.006884612582 | AE99: 0.005625455713 | AF99: 0.004471717427 | AG99: 0.003414571915 | AH99: 0.002445932277 | AI99: 0.001558388666 | AJ99: 0.0007451515931
D101: Weighted ROIC =Project IRR | E101: =SUMPRODUCT(G99:AJ99,G91:AJ91) -> 0.1077418828
D103: Discount Rate at EIRR | E103: =E22 -> 0.2483655383 | G103: =1/(1+$E$103)^G4 -> 0.8010474251 | H103: =1/(1+$E$103)^H4 -> 0.6416769772 | I103: 0.5140136903 | J103: 0.4117493431 | K103: 0.329830751 | L103: 0.2642100738 | M103: 0.2116447993 | N103: 0.1695375215 | O103: 0.1358075951 | P103: 0.1087883243 | Q103: 0.08714460709 | R103: 0.06980696311 | S103: 0.05591868805 | T103: 0.04479352108 | U103: 0.03588173472 | V103: 0.0287429712 | W103: 0.02302448307 | X103: 0.01844370288 | Y103: 0.0147742807 | Z103: 0.01183489951 | AA103: 0.00948031578 | AB103: 0.007594182544 | AC103: 0.006083300372 | AD103: 0.004873012099 | AE103: 0.003903513794 | AF103: 0.003126899674 | AG103: 0.002504794932 | AH103: 0.002006459531 | AI103: 0.001607269241 | AJ103: 0.001287498887
D104: PV of Equity Capital | E104: =SUM(G104:XFD104) -> 1184.75372 | G104: =F82*G103 -> 160.209485 | H104: =G82*H103 -> 144.058951 | I104: 128.0818905 | J104: 112.8093878 | K104: 98.56364902 | L104: 85.51821887 | M104: 73.74285652 | N104: 63.2367273 | O104: 53.95273124 | P104: 45.8151381 | Q104: 38.73219396 | R104: 32.60497329 | S104: 27.33344738 | T104: 22.82050711 | U104: 18.97449756 | V104: 15.71068449 | W104: 12.95196643 | X104: 10.629066 | Y104: 8.680372078 | Z104: 7.051558547 | AA104: 5.69506992 | AB104: 4.569538082 | AC104: 3.639174793 | AD104: 2.873170167 | AE104: 2.245116741 | AF104: 1.73247114 | AG104: 1.173882762 | AH104: 0.7461561017 | AI104: 0.4218498049 | AJ104: 0.1789878334
D105: Weighting for ROE | G105: =G104/$E$104 -> 0.1352259819 | H105: =H104/$E$104 -> 0.1215940061 | I105: 0.1081084519 | J105: 0.09521758486 | K105: 0.08319336534 | L105: 0.07218227507 | M105: 0.06224319477 | N105: 0.05337541993 | O105: 0.04553919549 | P105: 0.03867060077 | Q105: 0.03269219022 | R105: 0.02752046501 | S105: 0.0230709952 | T105: 0.01926181512 | U105: 0.01601556277 | V105: 0.01326071759 | W105: 0.01093220153 | X105: 0.008971540519 | Y105: 0.007326731231 | Z105: 0.005951919315 | AA105: 0.004806965217 | AB105: 0.003856951876 | AC105: 0.003071671971 | AD105: 0.002425120191 | AE105: 0.001895007126 | AF105: 0.001462304875 | AG105: 0.0009908242895 | AH105: 0.0006297984884 | AI105: 0.0003560653981 | AJ105: 0.0001510759835
D107: Weighted ROE =Equity IRR | E107: =SUMPRODUCT(G105:AJ105,G95:AJ95) -> 0.2483655383
B109: Project Finance Model | F109: 0 | G109: 1 | H109: 2 | I109: 3 | J109: 4 | K109: 5 | L109: 6 | M109: 7 | N109: 8 | O109: 9 | P109: 10 | Q109: 11 | R109: 12 | S109: 13 | T109: 14 | U109: 15 | V109: 16 | W109: 17 | X109: 18 | Y109: 19 | Z109: 20 | AA109: 21 | AB109: 22 | AC109: 23 | AD109: 24 | AE109: 25 | AF109: 26 | AG109: 27 | AH109: 28 | AI109: 29 | AJ109: 30
